Workbook

Sheet Inflation - Input (hidden)
B1: ="ENVESTRA - Cost allocation model for "&'General Inputs'!#REF!&" ("&'General Inputs'!#REF!&")" -> 
B2: Inflation - inputs
B3: Back to table of contents
B4: This sheet provide inputs for inflation values based on Envestra financial model
B5: Updating the 2000 to 2004 Depreciation Allowance
B7: Period Ending 30 June | J7: 2005 | K7: =J7+1 -> 2006 | L7: 2007 | M7: 2008 | N7: 2009 | O7: 2010 | P7: 2011
B9: SAIPAR Inflation
B10: Quarterly inflation values up until December 2002 are the assumed values of SAIPAR.
B11: Quartley CPI values at and before September 2002 are baqck calculated from SAIPAR's inflation values.
B13: Quarterly CPI
B15: March | J15: 147.5 | K15: 151.9 | L15: 155.6 | M15: 162.2 | N15: 166.2 | O15: 170.355 | P15: 174.613875
B16: June | J16: 148.4 | K16: 154.3 | L16: 157.5 | M16: 164.6 | N16: 167.2291513 | O16: 171.4098801 | P16: 175.6951271
B17: September | J17: 149.8 | K17: 155.7 | L17: 158.6 | M17: 166.5 | N17: 168.2646754 | O17: 172.4712923 | P17: 176.7830746
B18: December | J18: 150.6 | K18: 155.5 | L18: 160.1 | M18: 166 | N18: 169.3066118 | O18: 173.539277 | P18: 177.877759
B20: Quarterly Inflation
J21: 2005 | K21: 2006 | L21: 2007 | M21: 2008 | N21: 2009 | O21: 2010 | P21: 2011
B22: March | J22: 0.006825938567 | K22: 0.008632138114 | L22: 0.0006430868167 | M22: 0.013116802 | N22: 0.001204819277 | O22: 0.006192246326 | P22: 0.006192246326
B23: June | J23: 0.006101694915 | K23: 0.01579986833 | L23: 0.01221079692 | M23: 0.01479654747 | N23: 0.006192246326 | O23: 0.006192246326 | P23: 0.006192246326
B24: September | J24: 0.009433962264 | K24: 0.00907323396 | L24: 0.006984126984 | M24: 0.01154313487 | N24: 0.006192246326 | O24: 0.006192246326 | P24: 0.006192246326
B25: December | J25: 0.005340453939 | K25: -0.001284521516 | L25: 0.009457755359 | M25: -0.003003003003 | N25: 0.006192246326 | O25: 0.006192246326 | P25: 0.006192246326
B27: Six Month Inflation
J28: 2005 | K28: 2006 | L28: 2007 | M28: 2008 | N28: 2009 | O28: 2010 | P28: 2011
B29: March | J29: 0.01444291609 | K29: 0.01401869159 | L29: -0.0006422607579 | M29: 0.02269861286 | N29: -0.001801801802 | O29: 0.01242283657 | P29: 0.01242283657
B30: June | J30: 0.01296928328 | K30: 0.02456839309 | L30: 0.01286173633 | M30: 0.02810743285 | N30: 0.00740452614 | O30: 0.01242283657 | P30: 0.01242283657
B31: September | J31: 0.01559322034 | K31: 0.0250164582 | L31: 0.01928020566 | M31: 0.02651048089 | N31: 0.01242283657 | O31: 0.01242283657 | P31: 0.01242283657
B32: December | J32: 0.01482479784 | K32: 0.00777705768 | L32: 0.01650793651 | M32: 0.008505467801 | N32: 0.01242283657 | O32: 0.01242283657 | P32: 0.01242283657
B34: Annual Inflation
J35: 2005 | K35: 2006 | L35: 2007 | M35: 2008 | N35: 2009 | O35: 2010 | P35: 2011
B36: March | J36: 0.02359472588 | K36: 0.02983050847 | L36: 0.02435813035 | M36: 0.04241645244 | N36: 0.02466091245 | O36: 0.025 | P36: 0.025
B37: June | J37: 0.02486187845 | K37: 0.0397574124 | L37: 0.02073882048 | M37: 0.04507936508 | N37: 0.0159729729 | O37: 0.025 | P37: 0.025
B38: September | J38: 0.03026134801 | K38: 0.0393858478 | L38: 0.01862556198 | M38: 0.04981084489 | N38: 0.01059865127 | O38: 0.025 | P38: 0.025
B39: December | J39: 0.02798634812 | K39: 0.03253652058 | L39: 0.02958199357 | M39: 0.03685196752 | N39: 0.01991934792 | O39: 0.025 | P39: 0.025
B41: Inflation factor to 31 December 2005
J42: 2005 | K42: 2006 | L42: 2007 | M42: 2008 | N42: 2009 | O42: 2010 | P42: 2011
B43: March | J43: 1 | K43: 1.029830508 | L43: 1.054915254 | M43: 1.099661017 | N43: 1.126779661 | O43: 1.154949153 | P43: 1.183822881
B44: June | J44: 1.006101695 | K44: 1.046101695 | L44: 1.06779661 | M44: 1.115932203 | N44: 1.133756958 | O44: 1.162100882 | P44: 1.191153404
B45: September | J45: 1.01559322 | K45: 1.05559322 | L45: 1.075254237 | M45: 1.128813559 | N45: 1.140777461 | O45: 1.169296897 | P45: 1.19852932
B46: December | J46: 1.021016949 | K46: 1.054237288 | L46: 1.085423729 | M46: 1.125423729 | N46: 1.147841436 | O46: 1.176537472 | P46: 1.205950908
B48: Actual Inlfation
B50: Quarterly CPI
J51: 2005 | K51: 2006 | L51: 2007 | M51: 2008 | N51: 2009 | O51: 2010 | P51: 2011
B52: March | J52: 147.5 | K52: 151.6609409 | L52: 155.4524644 | M52: 159.3387761 | N52: 163.3222455 | O52: 167.4053016 | P52: 171.5904341
B53: June | J53: 148.4 | K53: 152.6000628 | L53: 156.4150644 | M53: 160.325441 | N53: 164.333577 | O53: 168.4419165 | P53: 172.6529644
B54: September | J54: 149.8 | K54: 153.545 | L54: 157.383625 | M54: 161.3182156 | N54: 165.351171 | O54: 169.4849503 | P54: 173.722074
B55: December | J55: 150.7275985 | K55: 154.4957885 | L55: 158.3581832 | M55: 162.3171378 | N55: 166.3750662 | O55: 170.5344429 | P55: 174.7978039
B57: Quarterly Inflation
J58: 2005 | K58: 2006 | L58: 2007 | M58: 2008 | N58: 2009 | O58: 2010 | P58: 2011
B59: March | J59: 0.006825938567 | K59: 0.006192246326 | L59: 0.006192246326 | M59: 0.006192246326 | N59: 0.006192246326 | O59: 0.006192246326 | P59: 0.006192246326
B60: June | J60: 0.006101694915 | K60: 0.006192246326 | L60: 0.006192246326 | M60: 0.006192246326 | N60: 0.006192246326 | O60: 0.006192246326 | P60: 0.006192246326
B61: September | J61: 0.009433962264 | K61: 0.006192246326 | L61: 0.006192246326 | M61: 0.006192246326 | N61: 0.006192246326 | O61: 0.006192246326 | P61: 0.006192246326
B62: December | J62: 0.006192246326 | K62: 0.006192246326 | L62: 0.006192246326 | M62: 0.006192246326 | N62: 0.006192246326 | O62: 0.006192246326 | P62: 0.006192246326
B64: Six Month Inflation
J65: 2005 | K65: 2006 | L65: 2007 | M65: 2008 | N65: 2009 | O65: 2010 | P65: 2011
B66: March | J66: 0.01444291609 | K66: 0.01242283657 | L66: 0.01242283657 | M66: 0.01242283657 | N66: 0.01242283657 | O66: 0.01242283657 | P66: 0.01242283657
B67: June | J67: 0.01296928328 | K67: 0.01242283657 | L67: 0.01242283657 | M67: 0.01242283657 | N67: 0.01242283657 | O67: 0.01242283657 | P67: 0.01242283657
B68: September | J68: 0.01559322034 | K68: 0.01242283657 | L68: 0.01242283657 | M68: 0.01242283657 | N68: 0.01242283657 | O68: 0.01242283657 | P68: 0.01242283657
B69: December | J69: 0.01568462601 | K69: 0.01242283657 | L69: 0.01242283657 | M69: 0.01242283657 | N69: 0.01242283657 | O69: 0.01242283657 | P69: 0.01242283657
B71: Annual Inflation
J72: 2005 | K72: 2006 | L72: 2007 | M72: 2008 | N72: 2009 | O72: 2010 | P72: 2011
B73: March | J73: 0.02359472588 | K73: 0.02820976893 | L73: 0.025 | M73: 0.025 | N73: 0.025 | O73: 0.025 | P73: 0.025
B74: June | J74: 0.02486187845 | K74: 0.02830231012 | L74: 0.025 | M74: 0.025 | N74: 0.025 | O74: 0.025 | P74: 0.025
B75: September | J75: 0.03026134801 | K75: 0.025 | L75: 0.025 | M75: 0.025 | N75: 0.025 | O75: 0.025 | P75: 0.025
B76: December | J76: 0.02885732764 | K76: 0.025 | L76: 0.025 | M76: 0.025 | N76: 0.025 | O76: 0.025 | P76: 0.025
B78: Inflation factor to 31 December 2005
J79: 2005 | K79: 2006 | L79: 2007 | M79: 2008 | N79: 2009 | O79: 2010 | P79: 2011
B80: March | J80: 1 | K80: 1.028209769 | L80: 1.053915013 | M80: 1.080262888 | N80: 1.107269461 | O80: 1.134951197 | P80: 1.163324977
B81: June | J81: 1.006101695 | K81: 1.034576697 | L81: 1.060441115 | M81: 1.086952142 | N81: 1.114125946 | O81: 1.141979095 | P81: 1.170528572
B82: September | J82: 1.01559322 | K82: 1.040983051 | L82: 1.067007627 | M82: 1.093682818 | N82: 1.121024888 | O82: 1.14905051 | P82: 1.177776773
B83: December | J83: 1.021882024 | K83: 1.047429074 | L83: 1.073614801 | M83: 1.100455171 | N83: 1.12796655 | O83: 1.156165714 | P83: 1.185069857
B85: Model Inflation
B87: Quarterly CPI
J88: 2005 | K88: 2006 | L88: 2007 | M88: 2008 | N88: 2009 | O88: 2010 | P88: 2011
B89: March | J89: 147.5 | K89: 151.9 | L89: 155.6 | M89: 162.2 | N89: 166.2 | O89: 170.355 | P89: 174.613875
B90: June | J90: 148.4 | K90: 154.3 | L90: 157.5 | M90: 164.6 | N90: 167.2291513 | O90: 171.4098801 | P90: 175.6951271
B91: September | J91: 149.8 | K91: 155.7 | L91: 158.6 | M91: 166.5 | N91: 168.2646754 | O91: 172.4712923 | P91: 176.7830746
B92: December | J92: 150.6 | K92: 155.5 | L92: 160.1 | M92: 166 | N92: 169.3066118 | O92: 173.539277 | P92: 177.877759
B94: Quarterly Inflation
J95: 2005 | K95: 2006 | L95: 2007 | M95: 2008 | N95: 2009 | O95: 2010 | P95: 2011
B96: March | J96: 0.006825938567 | K96: 0.008632138114 | L96: 0.0006430868167 | M96: 0.013116802 | N96: 0.001204819277 | O96: 0.006192246326 | P96: 0.006192246326
B97: June | J97: 0.006101694915 | K97: 0.01579986833 | L97: 0.01221079692 | M97: 0.01479654747 | N97: 0.006192246326 | O97: 0.006192246326 | P97: 0.006192246326
B98: September | J98: 0.009433962264 | K98: 0.00907323396 | L98: 0.006984126984 | M98: 0.01154313487 | N98: 0.006192246326 | O98: 0.006192246326 | P98: 0.006192246326
B99: December | J99: 0.005340453939 | K99: -0.001284521516 | L99: 0.009457755359 | M99: -0.003003003003 | N99: 0.006192246326 | O99: 0.006192246326 | P99: 0.006192246326
B101: Six Month Inflation
J102: 2005 | K102: 2006 | L102: 2007 | M102: 2008 | N102: 2009 | O102: 2010 | P102: 2011
B103: March | J103: 0.01444291609 | K103: 0.01401869159 | L103: -0.0006422607579 | M103: 0.02269861286 | N103: -0.001801801802 | O103: 0.01242283657 | P103: 0.01242283657
B104: June | J104: 0.01296928328 | K104: 0.02456839309 | L104: 0.01286173633 | M104: 0.02810743285 | N104: 0.00740452614 | O104: 0.01242283657 | P104: 0.01242283657
B105: September | J105: 0.01559322034 | K105: 0.0250164582 | L105: 0.01928020566 | M105: 0.02651048089 | N105: 0.01242283657 | O105: 0.01242283657 | P105: 0.01242283657
B106: December | J106: 0.01482479784 | K106: 0.00777705768 | L106: 0.01650793651 | M106: 0.008505467801 | N106: 0.01242283657 | O106: 0.01242283657 | P106: 0.01242283657
B108: Annual Inflation | J108: 2005 | K108: 2006 | L108: 2007 | M108: 2008 | N108: 2009 | O108: 2010 | P108: 2011
B110: March | J110: 0.02359472588 | K110: 0.02983050847 | L110: 0.02435813035 | M110: 0.04241645244 | N110: 0.02466091245 | O110: 0.025 | P110: 0.025
B111: June | J111: 0.02486187845 | K111: 0.0397574124 | L111: 0.02073882048 | M111: 0.04507936508 | N111: 0.0159729729 | O111: 0.025 | P111: 0.025
B112: September | J112: 0.03026134801 | K112: 0.0393858478 | L112: 0.01862556198 | M112: 0.04981084489 | N112: 0.01059865127 | O112: 0.025 | P112: 0.025
B113: December | J113: 0.02798634812 | K113: 0.03253652058 | L113: 0.02958199357 | M113: 0.03685196752 | N113: 0.01991934792 | O113: 0.025 | P113: 0.025
B115: Inflation factor to 31 December 2005
J116: 2005 | K116: 2006 | L116: 2007 | M116: 2008 | N116: 2009 | O116: 2010 | P116: 2011
B117: March | J117: 1 | K117: 1.029830508 | L117: 1.054915254 | M117: 1.099661017 | N117: 1.126779661 | O117: 1.154949153 | P117: 1.183822881
B118: June | J118: 1.006101695 | K118: 1.046101695 | L118: 1.06779661 | M118: 1.115932203 | N118: 1.133756958 | O118: 1.162100882 | P118: 1.191153404
B119: September | J119: 1.01559322 | K119: 1.05559322 | L119: 1.075254237 | M119: 1.128813559 | N119: 1.140777461 | O119: 1.169296897 | P119: 1.19852932
B120: December | J120: 1.021016949 | K120: 1.054237288 | L120: 1.085423729 | M120: 1.125423729 | N120: 1.147841436 | O120: 1.176537472 | P120: 1.205950908

Sheet Cover Sheet

Sheet General Inputs
A1: General Inputs
A3: Input Cell Guide
A4: Global
A5: 2016/17-2020/21
A6: 2021/22-2025/26 | C6: 2026/27-2030/31
A8: Days in Year (DiY) | B8: 365.25
A9: Months in year (MiY) | B9: 12
A11: WACC calculation | B11: 2016-17 | C11: 2021-22 | D11: 2026-27
A12: Inflation from 1/1/06 to 30/6/06
A13: Inflation rate (forecast) | B13: 0.025 | C13: 0.0237 | D13: 0.02659759351
A14: Real pre-tax WACC (average) | B14: 0.05114444599 | C14: 0.02296185978 | D14: 0.04069559931
A15: Nominal pre-tax WACC (average) | B15: 0.07742305714 | C15: 0.047250132 | D15: 0.06200050167
A17: Date Periods | B17: 1999/00 | C17: 2000/01 | D17: 2001/02 | E17: 2002/03 | F17: 2003/04 | G17: 2004/05 | H17: 2005/06 | I17: 2006/07 | J17: 2007/08 | K17: 2008/09 | L17: 2009/10 | M17: 2010/11 | N17: 2011/12 | O17: 2012/13 | P17: 2013/14 | Q17: 2014/15 | R17: 2015/16 | S17: 2016/17 | T17: 2017/18 | U17: 2018/19 | V17: 2019/20 | W17: 2020/21 | X17: 2021/22 | Y17: 2022/23 | Z17: 2023/24 | AA17: 2024/25 | AB17: 2025/26 | AC17: 2026/27 | AD17: 2027/28 | AE17: 2028/29 | AF17: 2029/30 | AG17: 2030/31
A20: Inflation Index | B20: =LEFT(C17,4) -> 2000 | C20: =+B20+1 -> 2001 | D20: =+C20+1 -> 2002 | E20: 2003 | F20: 2004 | G20: =+F20+1 -> 2005 | H20: 2006 | I20: 2007 | J20: 2008 | K20: 2009 | L20: 2010 | M20: 2011 | N20: 2012 | O20: 2013 | P20: 2014 | Q20: 2015 | R20: 2016 | S20: 2017 | T20: 2018 | U20: 2019 | V20: 2020 | W20: 2021 | X20: =+W20+1 -> 2022 | Y20: =+X20+1 -> 2023 | Z20: =+Y20+1 -> 2024 | AA20: =+Z20+1 -> 2025 | AB20: =+AA20+1 -> 2026 | AC20: =+AB20+1 -> 2027 | AD20: =+AC20+1 -> 2028 | AE20: =+AD20+1 -> 2029 | AF20: =+AE20+1 -> 2030 | AG20: =+AF20+1 -> 2031
A21: March | B21: 69.7 | C21: 73.9 | D21: 76.1 | E21: 78.6 | F21: 80.2 | G21: 82.1 | H21: 84.5 | I21: 86.6 | J21: 90.3 | K21: 92.5 | L21: 95.2 | M21: 98.3 | N21: 99.9 | O21: 102.4 | P21: 105.4 | Q21: 106.8 | R21: 108.2 | S21: 110.5 | T21: 112.6 | U21: 114.1 | V21: 116.6 | W21: 117.9 | X21: 123.9 | Y21: 132.6 | Z21: 137.4 | AA21: 140.7 | AB21: =AA24*(1+$D$13)^0.25 -> 144.4422814 | AC21: =AB24*(1+$D$13)^0.25 -> 148.2840985 | AD21: 152.2280987 | AE21: 156.2769998 | AF21: 160.4335919 | AG21: 164.7007393
A22: June | B22: 70.2 | C22: 74.5 | D22: 76.6 | E22: 78.6 | F22: 80.6 | G22: 82.6 | H22: 85.9 | I22: 87.7 | J22: 91.6 | K22: 92.9 | L22: 95.8 | M22: 99.2 | N22: 100.4 | O22: 102.8 | P22: 105.9 | Q22: 107.5 | R22: 108.6 | S22: 110.7 | T22: 113 | U22: 114.8 | V22: 114.4 | W22: 118.8 | X22: 126.1 | Y22: 133.7 | Z22: 138.8 | AA22: =AA21*(1+$D$13)^0.25 -> 141.6263811 | AB22: =AB21*(1+$D$13)^0.25 -> 145.393302 | AC22: =AC21*(1+$D$13)^0.25 -> 149.2604139 | AD22: 153.2303817 | AE22: 157.3059411 | AF22: 161.4899006 | AG22: 165.7851434
A23: September | B23: 72.9 | C23: 74.7 | D23: 77.1 | E23: 79.1 | F23: 80.9 | G23: 83.4 | H23: 86.7 | I23: 88.3 | J23: 92.7 | K23: 93.8 | L23: 96.5 | M23: 99.8 | N23: 101.8 | O23: 104 | P23: 106.4 | Q23: 108 | R23: 109.4 | S23: 111.4 | T23: 113.5 | U23: 115.4 | V23: 116.2 | W23: 119.7 | X23: 128.4 | Y23: 135.3 | Z23: 139.1 | AA23: =AA22*(1+$D$13)^0.25 -> 142.5588615 | AB23: 146.3505842 | AC23: 150.2431575 | AD23: 154.2392639 | AE23: 158.3416572 | AF23: 162.5531642 | AG23: 166.8766872
A24: December | B24: 73.1 | C24: 75.4 | D24: 77.6 | E24: 79.5 | F24: 81.5 | G24: 83.8 | H24: 86.6 | I24: 89.1 | J24: 92.4 | K24: 94.3 | L24: 96.9 | M24: 99.8 | N24: 102 | O24: 104.8 | P24: 106.6 | Q24: 108.4 | R24: 110 | S24: 112.1 | T24: 114.1 | U24: 116.2 | V24: 117.2 | W24: 121.3 | X24: 130.8 | Y24: 136.1 | Z24: 139.4 | AA24: 143.4974815 | AB24: 147.3141692 | AC24: 151.2323715 | AD24: 155.2547887 | AE24: 159.3841925 | AF24: 163.6234284 | AG24: 167.9754179
A25: Annual CPI | C25: =IFERROR(C21/B21-1,"") -> 0.06025824964 | D25: =IFERROR(D21/C21-1,"") -> 0.0297699594 | E25: =IFERROR(E21/D21-1,"") -> 0.03285151117 | F25: 0.0203562341 | G25: =IFERROR(G21/F21-1,"") -> 0.02369077307 | H25: 0.02923264312 | I25: 0.02485207101 | J25: 0.04272517321 | K25: 0.02436323367 | L25: 0.02918918919 | M25: 0.03256302521 | N25: 0.01627670397 | O25: 0.02502502503 | P25: =IFERROR(P21/O21-1,"") -> 0.029296875 | Q25: =IFERROR(Q21/P21-1,"") -> 0.01328273245 | R25: =IFERROR(R21/Q21-1,"") -> 0.01310861423 | S25: =IFERROR(S22/R22-1,"") -> 0.01933701657 | T25: =IFERROR(T22/S22-1,"") -> 0.02077687444 | U25: =IFERROR(U22/T22-1,"") -> 0.01592920354 | V25: =IFERROR(V21/U21-1,"") -> 0.02191060473 | W25: =IFERROR(W21/V21-1,"") -> 0.01114922813 | X25: =IFERROR(X21/W21-1,"") -> 0.05089058524 | Y25: =IFERROR(Y22/X22-1,"") -> 0.06026962728 | Z25: =IFERROR(Z22/Y22-1,"") -> 0.03814510097 | AA25: =IFERROR(AA21/Z21-1,"") -> 0.02401746725 | AB25: =IFERROR(AB21/AA21-1,"") -> 0.02659759351 | AC25: =IFERROR(AC21/AB21-1,"") -> 0.02659759351 | AD25: 0.02659759351 | AE25: 0.02659759351 | AF25: 0.02659759351 | AG25: 0.02659759351
A28: Cost Pools
A29: Tariff class | B29: Short Name | C29: Tariff type | D29: Description of cost centre | E29: Description of tariff
A30: 1 | B30: Residential 1 | C30: Non-demand | D30: Tariff R - Domestic | E30: Residential tariff
A31: 3 | B31: Commercial 1 | C31: Non-demand | D31: Tariff C - I&C | E31: Commercial customers
A32: 6 | B32: Demand-AdNr | C32: Demand | D32: Tariff D - MDQ (GJ/d) Tariff D Zone - Northern | E32: Demand customers in region 1
A33: 7 | B33: Demand-AdC | C33: Demand | D33: Tariff D - MDQ (GJ/d) Tariff D Zone - Central | E33: Demand customers in region 2
A34: 8 | B34: Demand-AdS | C34: Demand | D34: Tariff D - MDQ (GJ/d) Tariff D Zone - Southern | E34: Demand customers in region 3
A35: 9 | B35: Demand-PP | C35: Demand | D35: Tariff D - MDQ (GJ/d) Tariff D Zone - Port Pirie | E35: Demand customers in region 4
A36: 10 | B36: Demand-Peter | C36: Demand | D36: Tariff D - MDQ (GJ/d) Tariff D Zone - Peterborough | E36: Demand customers in region 5
A37: 11 | B37: Demand-River | C37: Demand | D37: Tariff D - MDQ (GJ/d) Tariff D Zone - Riverland | E37: Demand customers in region 6
A38: 12 | B38: Demand-SE | C38: Demand | D38: Tariff D - MDQ (GJ/d) Tariff D Zone - South East | E38: Demand customers in region 7
A39: 13 | B39: Demand-Whyal | C39: Demand | D39: Tariff D - MDQ (GJ/d) Tariff D Zone - Whyalla | E39: Demand customers in region 8

Sheet Connection Numbers Inputs
A1: Connection Numbers Inputs
A3: Fixed Band | B3: Residential 1 | C3: Commercial 1 | D3: Demand-AdC | E3: Demand-AdNr | F3: Demand-AdS | G3: Demand-Peter | H3: Demand-PP | I3: Demand-River | J3: Demand-SE | K3: Demand-Whyal
A4: ='General Inputs'!$N$17 -> 2011/12 | B4: 400460 | C4: 10068 | D4: 44.569 | E4: 74.409 | F4: 16.019 | G4: 1 | H4: 1 | I4: 2 | J4: 5 | K4: 1
A5: ='General Inputs'!$O$17 -> 2012/13 | B5: 406873 | C5: 10189 | D5: 44.777 | E5: 74.344 | F5: 16.924 | G5: 1 | H5: 1 | I5: 2 | J5: 5 | K5: 1
A6: ='General Inputs'!$P$17 -> 2013/14 | B6: 412860 | C6: 10446 | D6: 44.518 | E6: 73.316 | F6: 17.644 | G6: 1 | H6: 1 | I6: 2 | J6: 5 | K6: 1
A7: ='General Inputs'!$Q$17 -> 2014/15 | B7: 419410 | C7: 10684 | D7: 44.648 | E7: 73.261 | F7: 18.479 | G7: 1 | H7: 1 | I7: 2 | J7: 5 | K7: 1
A8: ='General Inputs'!$R$17 -> 2015/16 | B8: 425056 | C8: 10735 | D8: 44.965 | E8: 73.74 | F8: 19.395 | G8: 1 | H8: 1 | I8: 2 | J8: 5 | K8: 1
A9: ='General Inputs'!$S$17 -> 2016/17 | B9: 430776 | C9: 10996 | D9: 37.5 | E9: 63.17391304 | F9: 15.32608696 | G9: 1 | H9: 1 | I9: 2 | J9: 4 | K9: 1
A10: ='General Inputs'!$T$17 -> 2017/18 | B10: 436908 | C10: 11185 | D10: 35.4 | E10: 59.13217391 | F10: 14.46782609 | G10: 1 | H10: 1 | I10: 2 | J10: 4 | K10: 1
A11: ='General Inputs'!$U$17 -> 2018/19 | B11: 443043 | C11: 11233 | D11: 34.6299814 | E11: 57.65016709 | F11: 14.15312283 | G11: 1 | H11: 1 | I11: 2 | J11: 4 | K11: 1
A12: ='General Inputs'!$V$17 -> 2019/20 | B12: 448399.9232 | C12: 11349.88159 | D12: 33.87671219 | E12: 56.20039679 | F12: 13.84526498 | G12: 1 | H12: 1 | I12: 2 | J12: 4 | K12: 1
A13: ='General Inputs'!$W$17 -> 2020/21 | B13: 452591.7048 | C13: 11291.42727 | D13: 33.13982805 | E13: 54.7821618 | F13: 13.54410364 | G13: 1 | H13: 1 | I13: 2 | J13: 4 | K13: 1
A14: ='General Inputs'!$X$17 -> 2021/22 | B14: 455277.7591 | C14: 11231.23111 | D14: 31.89380531 | E14: 55.34513274 | F14: 12.19469027 | G14: 0 | H14: 0.9380530973 | I14: 1.876106195 | J14: 2.814159292 | K14: 0.9380530973
A15: ='General Inputs'!$Y$17 -> 2022/23 | B15: 459953.1422 | C15: 11337.20796 | D15: 30.99115044 | E15: 53.77876106 | F15: 11.84955752 | G15: 0 | H15: 0.9115044248 | I15: 1.82300885 | J15: 2.734513274 | K15: 0.9115044248
A16: ='General Inputs'!$Z$17 -> 2023/24 | B16: 465168.9882 | C16: 11441.53756 | D16: 30.08849558 | E16: 52.21238938 | F16: 11.50442478 | G16: 0 | H16: 0.8849557522 | I16: 1.769911504 | J16: 2.654867257 | K16: 0.8849557522
A17: ='General Inputs'!$AA$17 -> 2024/25 | B17: 470924.3751 | C17: 11543.60759 | D17: 29.18584071 | E17: 50.6460177 | F17: 11.15929204 | G17: 0 | H17: 0.8584070796 | I17: 1.716814159 | J17: 2.575221239 | K17: 0.8584070796
A18: ='General Inputs'!$AB$17 -> 2025/26 | B18: 476729.5068 | C18: 11879.06618 | D18: 34.632 | E18: 57.72 | F18: 12.432 | G18: 0 | H18: 0.888 | I18: 1.776 | J18: 2.664 | K18: 0.888
A19: ='General Inputs'!$AC$17 -> 2026/27 | B19: 477173.6123 | C19: 11945.50281 | D19: 34.632 | E19: 57.72 | F19: 12.432 | G19: 0 | H19: 0.888 | I19: 1.776 | J19: 2.664 | K19: 0.888
A20: ='General Inputs'!$AD$17 -> 2027/28 | B20: 477043.8121 | C20: 12014.03801 | D20: 34.32 | E20: 57.2 | F20: 12.32 | G20: 0 | H20: 0.88 | I20: 1.76 | J20: 2.64 | K20: 0.88
A21: ='General Inputs'!$AE$17 -> 2028/29 | B21: 478350.6715 | C21: 12082.75749 | D21: 34.008 | E21: 56.68 | F21: 12.208 | G21: 0 | H21: 0.872 | I21: 1.744 | J21: 2.616 | K21: 0.872
A22: ='General Inputs'!$AF$17 -> 2029/30 | B22: 481144.6277 | C22: 12148.73336 | D22: 33.696 | E22: 56.16 | F22: 12.096 | G22: 0 | H22: 0.864 | I22: 1.728 | J22: 2.592 | K22: 0.864
A23: ='General Inputs'!$AG$17 -> 2030/31 | B23: 483291.4656 | C23: 12216.12903 | D23: 33.384 | E23: 55.64 | F23: 11.984 | G23: 0 | H23: 0.856 | I23: 1.712 | J23: 2.568 | K23: 0.856

Sheet No of Connections Summ (hidden)
B1: ="ENVESTRA - Tariff model for "&'General Inputs'!#REF!&" ("&'General Inputs'!#REF!&")" -> 
B2: Number of connections - Summary
B3: Back to table of contents
B4: This page summarises the total number of connections input for each cost pools
B7: Period Ending 30 June | J7: 2005 | K7: =J7+1 -> 2006 | L7: 2007 | M7: 2008 | N7: 2009 | O7: 2010 | P7: 2011
B11: Connections data
C13: Number of connections
C16: Total number of connections
C17: in connections units
F18: Short name | G18: Price bands
C20: ='General Inputs'!#REF! ->  | F20: ='General Inputs'!B30 -> Residential 1 | G20: Total | L20: =MAX('Connection Numbers Inputs'!B4,SUM('Connection Numbers Inputs'!B26,'Connection Numbers Inputs'!B48,'Connection Numbers Inputs'!B70,'Connection Numbers Inputs'!B92,'Connection Numbers Inputs'!B114)) -> 400460 | M20: =MAX('Connection Numbers Inputs'!B5,SUM('Connection Numbers Inputs'!B27,'Connection Numbers Inputs'!B49,'Connection Numbers Inputs'!B71,'Connection Numbers Inputs'!B93,'Connection Numbers Inputs'!B115)) -> 406873 | N20: =MAX('Connection Numbers Inputs'!B6,SUM('Connection Numbers Inputs'!B28,'Connection Numbers Inputs'!B50,'Connection Numbers Inputs'!B72,'Connection Numbers Inputs'!B94,'Connection Numbers Inputs'!B116)) -> 412860 | O20: =MAX('Connection Numbers Inputs'!B7,SUM('Connection Numbers Inputs'!B29,'Connection Numbers Inputs'!B51,'Connection Numbers Inputs'!B73,'Connection Numbers Inputs'!B95,'Connection Numbers Inputs'!B117)) -> 419410 | P20: =MAX('Connection Numbers Inputs'!B8,SUM('Connection Numbers Inputs'!B30,'Connection Numbers Inputs'!B52,'Connection Numbers Inputs'!B74,'Connection Numbers Inputs'!B96,'Connection Numbers Inputs'!B118)) -> 425056
C21: ='General Inputs'!#REF! ->  | F21: ='General Inputs'!#REF! ->  | G21: Total | L21: =MAX('Connection Numbers Inputs'!#REF!,SUM('Connection Numbers Inputs'!#REF!,'Connection Numbers Inputs'!#REF!,'Connection Numbers Inputs'!#REF!,'Connection Numbers Inputs'!#REF!,'Connection Numbers Inputs'!#REF!)) ->  | M21: =MAX('Connection Numbers Inputs'!#REF!,SUM('Connection Numbers Inputs'!#REF!,'Connection Numbers Inputs'!#REF!,'Connection Numbers Inputs'!#REF!,'Connection Numbers Inputs'!#REF!,'Connection Numbers Inputs'!#REF!)) ->  | N21: =MAX('Connection Numbers Inputs'!#REF!,SUM('Connection Numbers Inputs'!#REF!,'Connection Numbers Inputs'!#REF!,'Connection Numbers Inputs'!#REF!,'Connection Numbers Inputs'!#REF!,'Connection Numbers Inputs'!#REF!)) ->  | O21: =MAX('Connection Numbers Inputs'!#REF!,SUM('Connection Numbers Inputs'!#REF!,'Connection Numbers Inputs'!#REF!,'Connection Numbers Inputs'!#REF!,'Connection Numbers Inputs'!#REF!,'Connection Numbers Inputs'!#REF!)) ->  | P21: =MAX('Connection Numbers Inputs'!#REF!,SUM('Connection Numbers Inputs'!#REF!,'Connection Numbers Inputs'!#REF!,'Connection Numbers Inputs'!#REF!,'Connection Numbers Inputs'!#REF!,'Connection Numbers Inputs'!#REF!)) -> 
C22: ='General Inputs'!#REF! ->  | F22: ='General Inputs'!#REF! ->  | G22: Total | L22: =MAX('Connection Numbers Inputs'!#REF!,SUM('Connection Numbers Inputs'!#REF!,'Connection Numbers Inputs'!#REF!,'Connection Numbers Inputs'!#REF!,'Connection Numbers Inputs'!#REF!,'Connection Numbers Inputs'!#REF!)) ->  | M22: =MAX('Connection Numbers Inputs'!#REF!,SUM('Connection Numbers Inputs'!#REF!,'Connection Numbers Inputs'!#REF!,'Connection Numbers Inputs'!#REF!,'Connection Numbers Inputs'!#REF!,'Connection Numbers Inputs'!#REF!)) ->  | N22: =MAX('Connection Numbers Inputs'!#REF!,SUM('Connection Numbers Inputs'!#REF!,'Connection Numbers Inputs'!#REF!,'Connection Numbers Inputs'!#REF!,'Connection Numbers Inputs'!#REF!,'Connection Numbers Inputs'!#REF!)) ->  | O22: =MAX('Connection Numbers Inputs'!#REF!,SUM('Connection Numbers Inputs'!#REF!,'Connection Numbers Inputs'!#REF!,'Connection Numbers Inputs'!#REF!,'Connection Numbers Inputs'!#REF!,'Connection Numbers Inputs'!#REF!)) ->  | P22: =MAX('Connection Numbers Inputs'!#REF!,SUM('Connection Numbers Inputs'!#REF!,'Connection Numbers Inputs'!#REF!,'Connection Numbers Inputs'!#REF!,'Connection Numbers Inputs'!#REF!,'Connection Numbers Inputs'!#REF!)) -> 
C23: ='General Inputs'!#REF! ->  | F23: ='General Inputs'!B31 -> Commercial 1 | G23: Total | L23: =MAX('Connection Numbers Inputs'!C4,SUM('Connection Numbers Inputs'!C26,'Connection Numbers Inputs'!C48,'Connection Numbers Inputs'!C70,'Connection Numbers Inputs'!C92,'Connection Numbers Inputs'!C114)) -> 10068 | M23: =MAX('Connection Numbers Inputs'!C5,SUM('Connection Numbers Inputs'!C27,'Connection Numbers Inputs'!C49,'Connection Numbers Inputs'!C71,'Connection Numbers Inputs'!C93,'Connection Numbers Inputs'!C115)) -> 10189 | N23: =MAX('Connection Numbers Inputs'!C6,SUM('Connection Numbers Inputs'!C28,'Connection Numbers Inputs'!C50,'Connection Numbers Inputs'!C72,'Connection Numbers Inputs'!C94,'Connection Numbers Inputs'!C116)) -> 10446 | O23: =MAX('Connection Numbers Inputs'!C7,SUM('Connection Numbers Inputs'!C29,'Connection Numbers Inputs'!C51,'Connection Numbers Inputs'!C73,'Connection Numbers Inputs'!C95,'Connection Numbers Inputs'!C117)) -> 10684 | P23: =MAX('Connection Numbers Inputs'!C8,SUM('Connection Numbers Inputs'!C30,'Connection Numbers Inputs'!C52,'Connection Numbers Inputs'!C74,'Connection Numbers Inputs'!C96,'Connection Numbers Inputs'!C118)) -> 10735
C24: ='General Inputs'!#REF! ->  | F24: ='General Inputs'!#REF! ->  | G24: Total | L24: =MAX('Connection Numbers Inputs'!#REF!,SUM('Connection Numbers Inputs'!#REF!,'Connection Numbers Inputs'!#REF!,'Connection Numbers Inputs'!#REF!,'Connection Numbers Inputs'!#REF!,'Connection Numbers Inputs'!#REF!)) ->  | M24: =MAX('Connection Numbers Inputs'!#REF!,SUM('Connection Numbers Inputs'!#REF!,'Connection Numbers Inputs'!#REF!,'Connection Numbers Inputs'!#REF!,'Connection Numbers Inputs'!#REF!,'Connection Numbers Inputs'!#REF!)) ->  | N24: =MAX('Connection Numbers Inputs'!#REF!,SUM('Connection Numbers Inputs'!#REF!,'Connection Numbers Inputs'!#REF!,'Connection Numbers Inputs'!#REF!,'Connection Numbers Inputs'!#REF!,'Connection Numbers Inputs'!#REF!)) ->  | O24: =MAX('Connection Numbers Inputs'!#REF!,SUM('Connection Numbers Inputs'!#REF!,'Connection Numbers Inputs'!#REF!,'Connection Numbers Inputs'!#REF!,'Connection Numbers Inputs'!#REF!,'Connection Numbers Inputs'!#REF!)) ->  | P24: =MAX('Connection Numbers Inputs'!#REF!,SUM('Connection Numbers Inputs'!#REF!,'Connection Numbers Inputs'!#REF!,'Connection Numbers Inputs'!#REF!,'Connection Numbers Inputs'!#REF!,'Connection Numbers Inputs'!#REF!)) -> 
C25: ='General Inputs'!#REF! ->  | F25: ='General Inputs'!B32 -> Demand-AdNr | G25: Total | L25: =MAX('Connection Numbers Inputs'!E4,SUM('Connection Numbers Inputs'!E26,'Connection Numbers Inputs'!E48,'Connection Numbers Inputs'!E70,'Connection Numbers Inputs'!E92,'Connection Numbers Inputs'!E114)) -> 74.409 | M25: =MAX('Connection Numbers Inputs'!E5,SUM('Connection Numbers Inputs'!E27,'Connection Numbers Inputs'!E49,'Connection Numbers Inputs'!E71,'Connection Numbers Inputs'!E93,'Connection Numbers Inputs'!E115)) -> 74.344 | N25: =MAX('Connection Numbers Inputs'!E6,SUM('Connection Numbers Inputs'!E28,'Connection Numbers Inputs'!E50,'Connection Numbers Inputs'!E72,'Connection Numbers Inputs'!E94,'Connection Numbers Inputs'!E116)) -> 73.316 | O25: =MAX('Connection Numbers Inputs'!E7,SUM('Connection Numbers Inputs'!E29,'Connection Numbers Inputs'!E51,'Connection Numbers Inputs'!E73,'Connection Numbers Inputs'!E95,'Connection Numbers Inputs'!E117)) -> 73.261 | P25: =MAX('Connection Numbers Inputs'!E8,SUM('Connection Numbers Inputs'!E30,'Connection Numbers Inputs'!E52,'Connection Numbers Inputs'!E74,'Connection Numbers Inputs'!E96,'Connection Numbers Inputs'!E118)) -> 73.74
C26: ='General Inputs'!#REF! ->  | F26: ='General Inputs'!B33 -> Demand-AdC | G26: Total | L26: =MAX('Connection Numbers Inputs'!D4,SUM('Connection Numbers Inputs'!D26,'Connection Numbers Inputs'!D48,'Connection Numbers Inputs'!D70,'Connection Numbers Inputs'!D92,'Connection Numbers Inputs'!D114)) -> 44.569 | M26: =MAX('Connection Numbers Inputs'!D5,SUM('Connection Numbers Inputs'!D27,'Connection Numbers Inputs'!D49,'Connection Numbers Inputs'!D71,'Connection Numbers Inputs'!D93,'Connection Numbers Inputs'!D115)) -> 44.777 | N26: =MAX('Connection Numbers Inputs'!D6,SUM('Connection Numbers Inputs'!D28,'Connection Numbers Inputs'!D50,'Connection Numbers Inputs'!D72,'Connection Numbers Inputs'!D94,'Connection Numbers Inputs'!D116)) -> 44.518 | O26: =MAX('Connection Numbers Inputs'!D7,SUM('Connection Numbers Inputs'!D29,'Connection Numbers Inputs'!D51,'Connection Numbers Inputs'!D73,'Connection Numbers Inputs'!D95,'Connection Numbers Inputs'!D117)) -> 44.648 | P26: =MAX('Connection Numbers Inputs'!D8,SUM('Connection Numbers Inputs'!D30,'Connection Numbers Inputs'!D52,'Connection Numbers Inputs'!D74,'Connection Numbers Inputs'!D96,'Connection Numbers Inputs'!D118)) -> 44.965
C27: ='General Inputs'!#REF! ->  | F27: ='General Inputs'!B34 -> Demand-AdS | G27: Total | L27: =MAX('Connection Numbers Inputs'!F4,SUM('Connection Numbers Inputs'!F26,'Connection Numbers Inputs'!F48,'Connection Numbers Inputs'!F70,'Connection Numbers Inputs'!F92,'Connection Numbers Inputs'!F114)) -> 16.019 | M27: =MAX('Connection Numbers Inputs'!F5,SUM('Connection Numbers Inputs'!F27,'Connection Numbers Inputs'!F49,'Connection Numbers Inputs'!F71,'Connection Numbers Inputs'!F93,'Connection Numbers Inputs'!F115)) -> 16.924 | N27: =MAX('Connection Numbers Inputs'!F6,SUM('Connection Numbers Inputs'!F28,'Connection Numbers Inputs'!F50,'Connection Numbers Inputs'!F72,'Connection Numbers Inputs'!F94,'Connection Numbers Inputs'!F116)) -> 17.644 | O27: =MAX('Connection Numbers Inputs'!F7,SUM('Connection Numbers Inputs'!F29,'Connection Numbers Inputs'!F51,'Connection Numbers Inputs'!F73,'Connection Numbers Inputs'!F95,'Connection Numbers Inputs'!F117)) -> 18.479 | P27: =MAX('Connection Numbers Inputs'!F8,SUM('Connection Numbers Inputs'!F30,'Connection Numbers Inputs'!F52,'Connection Numbers Inputs'!F74,'Connection Numbers Inputs'!F96,'Connection Numbers Inputs'!F118)) -> 19.395
C28: ='General Inputs'!#REF! ->  | F28: ='General Inputs'!B35 -> Demand-PP | G28: Total | L28: =MAX('Connection Numbers Inputs'!H4,SUM('Connection Numbers Inputs'!H26,'Connection Numbers Inputs'!H48,'Connection Numbers Inputs'!H70,'Connection Numbers Inputs'!H92,'Connection Numbers Inputs'!H114)) -> 1 | M28: =MAX('Connection Numbers Inputs'!H5,SUM('Connection Numbers Inputs'!H27,'Connection Numbers Inputs'!H49,'Connection Numbers Inputs'!H71,'Connection Numbers Inputs'!H93,'Connection Numbers Inputs'!H115)) -> 1 | N28: =MAX('Connection Numbers Inputs'!H6,SUM('Connection Numbers Inputs'!H28,'Connection Numbers Inputs'!H50,'Connection Numbers Inputs'!H72,'Connection Numbers Inputs'!H94,'Connection Numbers Inputs'!H116)) -> 1 | O28: =MAX('Connection Numbers Inputs'!H7,SUM('Connection Numbers Inputs'!H29,'Connection Numbers Inputs'!H51,'Connection Numbers Inputs'!H73,'Connection Numbers Inputs'!H95,'Connection Numbers Inputs'!H117)) -> 1 | P28: =MAX('Connection Numbers Inputs'!H8,SUM('Connection Numbers Inputs'!H30,'Connection Numbers Inputs'!H52,'Connection Numbers Inputs'!H74,'Connection Numbers Inputs'!H96,'Connection Numbers Inputs'!H118)) -> 1
C29: ='General Inputs'!#REF! ->  | F29: ='General Inputs'!B36 -> Demand-Peter | G29: Total | L29: =MAX('Connection Numbers Inputs'!G4,SUM('Connection Numbers Inputs'!G26,'Connection Numbers Inputs'!G48,'Connection Numbers Inputs'!G70,'Connection Numbers Inputs'!G92,'Connection Numbers Inputs'!G114)) -> 1 | M29: =MAX('Connection Numbers Inputs'!G5,SUM('Connection Numbers Inputs'!G27,'Connection Numbers Inputs'!G49,'Connection Numbers Inputs'!G71,'Connection Numbers Inputs'!G93,'Connection Numbers Inputs'!G115)) -> 1 | N29: =MAX('Connection Numbers Inputs'!G6,SUM('Connection Numbers Inputs'!G28,'Connection Numbers Inputs'!G50,'Connection Numbers Inputs'!G72,'Connection Numbers Inputs'!G94,'Connection Numbers Inputs'!G116)) -> 1 | O29: =MAX('Connection Numbers Inputs'!G7,SUM('Connection Numbers Inputs'!G29,'Connection Numbers Inputs'!G51,'Connection Numbers Inputs'!G73,'Connection Numbers Inputs'!G95,'Connection Numbers Inputs'!G117)) -> 1 | P29: =MAX('Connection Numbers Inputs'!G8,SUM('Connection Numbers Inputs'!G30,'Connection Numbers Inputs'!G52,'Connection Numbers Inputs'!G74,'Connection Numbers Inputs'!G96,'Connection Numbers Inputs'!G118)) -> 1
C30: ='General Inputs'!#REF! ->  | F30: ='General Inputs'!B37 -> Demand-River | G30: Total | L30: =MAX('Connection Numbers Inputs'!I4,SUM('Connection Numbers Inputs'!I26,'Connection Numbers Inputs'!I48,'Connection Numbers Inputs'!I70,'Connection Numbers Inputs'!I92,'Connection Numbers Inputs'!I114)) -> 2 | M30: =MAX('Connection Numbers Inputs'!I5,SUM('Connection Numbers Inputs'!I27,'Connection Numbers Inputs'!I49,'Connection Numbers Inputs'!I71,'Connection Numbers Inputs'!I93,'Connection Numbers Inputs'!I115)) -> 2 | N30: =MAX('Connection Numbers Inputs'!I6,SUM('Connection Numbers Inputs'!I28,'Connection Numbers Inputs'!I50,'Connection Numbers Inputs'!I72,'Connection Numbers Inputs'!I94,'Connection Numbers Inputs'!I116)) -> 2 | O30: =MAX('Connection Numbers Inputs'!I7,SUM('Connection Numbers Inputs'!I29,'Connection Numbers Inputs'!I51,'Connection Numbers Inputs'!I73,'Connection Numbers Inputs'!I95,'Connection Numbers Inputs'!I117)) -> 2 | P30: =MAX('Connection Numbers Inputs'!I8,SUM('Connection Numbers Inputs'!I30,'Connection Numbers Inputs'!I52,'Connection Numbers Inputs'!I74,'Connection Numbers Inputs'!I96,'Connection Numbers Inputs'!I118)) -> 2
C31: ='General Inputs'!#REF! ->  | F31: ='General Inputs'!B38 -> Demand-SE | G31: Total | L31: =MAX('Connection Numbers Inputs'!J4,SUM('Connection Numbers Inputs'!J26,'Connection Numbers Inputs'!J48,'Connection Numbers Inputs'!J70,'Connection Numbers Inputs'!J92,'Connection Numbers Inputs'!J114)) -> 5 | M31: =MAX('Connection Numbers Inputs'!J5,SUM('Connection Numbers Inputs'!J27,'Connection Numbers Inputs'!J49,'Connection Numbers Inputs'!J71,'Connection Numbers Inputs'!J93,'Connection Numbers Inputs'!J115)) -> 5 | N31: =MAX('Connection Numbers Inputs'!J6,SUM('Connection Numbers Inputs'!J28,'Connection Numbers Inputs'!J50,'Connection Numbers Inputs'!J72,'Connection Numbers Inputs'!J94,'Connection Numbers Inputs'!J116)) -> 5 | O31: =MAX('Connection Numbers Inputs'!J7,SUM('Connection Numbers Inputs'!J29,'Connection Numbers Inputs'!J51,'Connection Numbers Inputs'!J73,'Connection Numbers Inputs'!J95,'Connection Numbers Inputs'!J117)) -> 5 | P31: =MAX('Connection Numbers Inputs'!J8,SUM('Connection Numbers Inputs'!J30,'Connection Numbers Inputs'!J52,'Connection Numbers Inputs'!J74,'Connection Numbers Inputs'!J96,'Connection Numbers Inputs'!J118)) -> 5
C32: ='General Inputs'!#REF! ->  | F32: ='General Inputs'!B39 -> Demand-Whyal | G32: Total | L32: =MAX('Connection Numbers Inputs'!K4,SUM('Connection Numbers Inputs'!K26,'Connection Numbers Inputs'!K48,'Connection Numbers Inputs'!K70,'Connection Numbers Inputs'!K92,'Connection Numbers Inputs'!K114)) -> 1 | M32: =MAX('Connection Numbers Inputs'!K5,SUM('Connection Numbers Inputs'!K27,'Connection Numbers Inputs'!K49,'Connection Numbers Inputs'!K71,'Connection Numbers Inputs'!K93,'Connection Numbers Inputs'!K115)) -> 1 | N32: =MAX('Connection Numbers Inputs'!K6,SUM('Connection Numbers Inputs'!K28,'Connection Numbers Inputs'!K50,'Connection Numbers Inputs'!K72,'Connection Numbers Inputs'!K94,'Connection Numbers Inputs'!K116)) -> 1 | O32: =MAX('Connection Numbers Inputs'!K7,SUM('Connection Numbers Inputs'!K29,'Connection Numbers Inputs'!K51,'Connection Numbers Inputs'!K73,'Connection Numbers Inputs'!K95,'Connection Numbers Inputs'!K117)) -> 1 | P32: =MAX('Connection Numbers Inputs'!K8,SUM('Connection Numbers Inputs'!K30,'Connection Numbers Inputs'!K52,'Connection Numbers Inputs'!K74,'Connection Numbers Inputs'!K96,'Connection Numbers Inputs'!K118)) -> 1
C33: ='General Inputs'!#REF! ->  | F33: ='General Inputs'!#REF! ->  | G33: Total | L33: =MAX('Connection Numbers Inputs'!#REF!,SUM('Connection Numbers Inputs'!#REF!,'Connection Numbers Inputs'!#REF!,'Connection Numbers Inputs'!#REF!,'Connection Numbers Inputs'!#REF!,'Connection Numbers Inputs'!#REF!)) ->  | M33: =MAX('Connection Numbers Inputs'!#REF!,SUM('Connection Numbers Inputs'!#REF!,'Connection Numbers Inputs'!#REF!,'Connection Numbers Inputs'!#REF!,'Connection Numbers Inputs'!#REF!,'Connection Numbers Inputs'!#REF!)) ->  | N33: =MAX('Connection Numbers Inputs'!#REF!,SUM('Connection Numbers Inputs'!#REF!,'Connection Numbers Inputs'!#REF!,'Connection Numbers Inputs'!#REF!,'Connection Numbers Inputs'!#REF!,'Connection Numbers Inputs'!#REF!)) ->  | O33: =MAX('Connection Numbers Inputs'!#REF!,SUM('Connection Numbers Inputs'!#REF!,'Connection Numbers Inputs'!#REF!,'Connection Numbers Inputs'!#REF!,'Connection Numbers Inputs'!#REF!,'Connection Numbers Inputs'!#REF!)) ->  | P33: =MAX('Connection Numbers Inputs'!#REF!,SUM('Connection Numbers Inputs'!#REF!,'Connection Numbers Inputs'!#REF!,'Connection Numbers Inputs'!#REF!,'Connection Numbers Inputs'!#REF!,'Connection Numbers Inputs'!#REF!)) -> 
C34: ='General Inputs'!#REF! ->  | F34: ='General Inputs'!#REF! ->  | G34: Total | L34: =MAX('Connection Numbers Inputs'!#REF!,SUM('Connection Numbers Inputs'!#REF!,'Connection Numbers Inputs'!#REF!,'Connection Numbers Inputs'!#REF!,'Connection Numbers Inputs'!#REF!,'Connection Numbers Inputs'!#REF!)) ->  | M34: =MAX('Connection Numbers Inputs'!#REF!,SUM('Connection Numbers Inputs'!#REF!,'Connection Numbers Inputs'!#REF!,'Connection Numbers Inputs'!#REF!,'Connection Numbers Inputs'!#REF!,'Connection Numbers Inputs'!#REF!)) ->  | N34: =MAX('Connection Numbers Inputs'!#REF!,SUM('Connection Numbers Inputs'!#REF!,'Connection Numbers Inputs'!#REF!,'Connection Numbers Inputs'!#REF!,'Connection Numbers Inputs'!#REF!,'Connection Numbers Inputs'!#REF!)) ->  | O34: =MAX('Connection Numbers Inputs'!#REF!,SUM('Connection Numbers Inputs'!#REF!,'Connection Numbers Inputs'!#REF!,'Connection Numbers Inputs'!#REF!,'Connection Numbers Inputs'!#REF!,'Connection Numbers Inputs'!#REF!)) ->  | P34: =MAX('Connection Numbers Inputs'!#REF!,SUM('Connection Numbers Inputs'!#REF!,'Connection Numbers Inputs'!#REF!,'Connection Numbers Inputs'!#REF!,'Connection Numbers Inputs'!#REF!,'Connection Numbers Inputs'!#REF!)) -> 
C35: ='General Inputs'!#REF! ->  | F35: ='General Inputs'!#REF! ->  | G35: Total | L35: =MAX('Connection Numbers Inputs'!#REF!,SUM('Connection Numbers Inputs'!#REF!,'Connection Numbers Inputs'!#REF!,'Connection Numbers Inputs'!#REF!,'Connection Numbers Inputs'!#REF!,'Connection Numbers Inputs'!#REF!)) ->  | M35: =MAX('Connection Numbers Inputs'!#REF!,SUM('Connection Numbers Inputs'!#REF!,'Connection Numbers Inputs'!#REF!,'Connection Numbers Inputs'!#REF!,'Connection Numbers Inputs'!#REF!,'Connection Numbers Inputs'!#REF!)) ->  | N35: =MAX('Connection Numbers Inputs'!#REF!,SUM('Connection Numbers Inputs'!#REF!,'Connection Numbers Inputs'!#REF!,'Connection Numbers Inputs'!#REF!,'Connection Numbers Inputs'!#REF!,'Connection Numbers Inputs'!#REF!)) ->  | O35: =MAX('Connection Numbers Inputs'!#REF!,SUM('Connection Numbers Inputs'!#REF!,'Connection Numbers Inputs'!#REF!,'Connection Numbers Inputs'!#REF!,'Connection Numbers Inputs'!#REF!,'Connection Numbers Inputs'!#REF!)) ->  | P35: =MAX('Connection Numbers Inputs'!#REF!,SUM('Connection Numbers Inputs'!#REF!,'Connection Numbers Inputs'!#REF!,'Connection Numbers Inputs'!#REF!,'Connection Numbers Inputs'!#REF!,'Connection Numbers Inputs'!#REF!)) -> 
C36: ='General Inputs'!#REF! ->  | F36: ='General Inputs'!#REF! ->  | G36: Total | L36: =MAX('Connection Numbers Inputs'!#REF!,SUM('Connection Numbers Inputs'!#REF!,'Connection Numbers Inputs'!#REF!,'Connection Numbers Inputs'!#REF!,'Connection Numbers Inputs'!#REF!,'Connection Numbers Inputs'!#REF!)) ->  | M36: =MAX('Connection Numbers Inputs'!#REF!,SUM('Connection Numbers Inputs'!#REF!,'Connection Numbers Inputs'!#REF!,'Connection Numbers Inputs'!#REF!,'Connection Numbers Inputs'!#REF!,'Connection Numbers Inputs'!#REF!)) ->  | N36: =MAX('Connection Numbers Inputs'!#REF!,SUM('Connection Numbers Inputs'!#REF!,'Connection Numbers Inputs'!#REF!,'Connection Numbers Inputs'!#REF!,'Connection Numbers Inputs'!#REF!,'Connection Numbers Inputs'!#REF!)) ->  | O36: =MAX('Connection Numbers Inputs'!#REF!,SUM('Connection Numbers Inputs'!#REF!,'Connection Numbers Inputs'!#REF!,'Connection Numbers Inputs'!#REF!,'Connection Numbers Inputs'!#REF!,'Connection Numbers Inputs'!#REF!)) ->  | P36: =MAX('Connection Numbers Inputs'!#REF!,SUM('Connection Numbers Inputs'!#REF!,'Connection Numbers Inputs'!#REF!,'Connection Numbers Inputs'!#REF!,'Connection Numbers Inputs'!#REF!,'Connection Numbers Inputs'!#REF!)) -> 
C37: ='General Inputs'!#REF! ->  | F37: ='General Inputs'!#REF! ->  | G37: Total | L37: =MAX('Connection Numbers Inputs'!#REF!,SUM('Connection Numbers Inputs'!#REF!,'Connection Numbers Inputs'!#REF!,'Connection Numbers Inputs'!#REF!,'Connection Numbers Inputs'!#REF!,'Connection Numbers Inputs'!#REF!)) ->  | M37: =MAX('Connection Numbers Inputs'!#REF!,SUM('Connection Numbers Inputs'!#REF!,'Connection Numbers Inputs'!#REF!,'Connection Numbers Inputs'!#REF!,'Connection Numbers Inputs'!#REF!,'Connection Numbers Inputs'!#REF!)) ->  | N37: =MAX('Connection Numbers Inputs'!#REF!,SUM('Connection Numbers Inputs'!#REF!,'Connection Numbers Inputs'!#REF!,'Connection Numbers Inputs'!#REF!,'Connection Numbers Inputs'!#REF!,'Connection Numbers Inputs'!#REF!)) ->  | O37: =MAX('Connection Numbers Inputs'!#REF!,SUM('Connection Numbers Inputs'!#REF!,'Connection Numbers Inputs'!#REF!,'Connection Numbers Inputs'!#REF!,'Connection Numbers Inputs'!#REF!,'Connection Numbers Inputs'!#REF!)) ->  | P37: =MAX('Connection Numbers Inputs'!#REF!,SUM('Connection Numbers Inputs'!#REF!,'Connection Numbers Inputs'!#REF!,'Connection Numbers Inputs'!#REF!,'Connection Numbers Inputs'!#REF!,'Connection Numbers Inputs'!#REF!)) -> 
C38: ='General Inputs'!#REF! ->  | F38: ='General Inputs'!#REF! ->  | G38: Total | L38: =MAX('Connection Numbers Inputs'!#REF!,SUM('Connection Numbers Inputs'!#REF!,'Connection Numbers Inputs'!#REF!,'Connection Numbers Inputs'!#REF!,'Connection Numbers Inputs'!#REF!,'Connection Numbers Inputs'!#REF!)) ->  | M38: =MAX('Connection Numbers Inputs'!#REF!,SUM('Connection Numbers Inputs'!#REF!,'Connection Numbers Inputs'!#REF!,'Connection Numbers Inputs'!#REF!,'Connection Numbers Inputs'!#REF!,'Connection Numbers Inputs'!#REF!)) ->  | N38: =MAX('Connection Numbers Inputs'!#REF!,SUM('Connection Numbers Inputs'!#REF!,'Connection Numbers Inputs'!#REF!,'Connection Numbers Inputs'!#REF!,'Connection Numbers Inputs'!#REF!,'Connection Numbers Inputs'!#REF!)) ->  | O38: =MAX('Connection Numbers Inputs'!#REF!,SUM('Connection Numbers Inputs'!#REF!,'Connection Numbers Inputs'!#REF!,'Connection Numbers Inputs'!#REF!,'Connection Numbers Inputs'!#REF!,'Connection Numbers Inputs'!#REF!)) ->  | P38: =MAX('Connection Numbers Inputs'!#REF!,SUM('Connection Numbers Inputs'!#REF!,'Connection Numbers Inputs'!#REF!,'Connection Numbers Inputs'!#REF!,'Connection Numbers Inputs'!#REF!,'Connection Numbers Inputs'!#REF!)) -> 
C39: ='General Inputs'!#REF! ->  | F39: ='General Inputs'!#REF! ->  | G39: Total | L39: =MAX('Connection Numbers Inputs'!#REF!,SUM('Connection Numbers Inputs'!#REF!,'Connection Numbers Inputs'!#REF!,'Connection Numbers Inputs'!#REF!,'Connection Numbers Inputs'!#REF!,'Connection Numbers Inputs'!#REF!)) ->  | M39: =MAX('Connection Numbers Inputs'!#REF!,SUM('Connection Numbers Inputs'!#REF!,'Connection Numbers Inputs'!#REF!,'Connection Numbers Inputs'!#REF!,'Connection Numbers Inputs'!#REF!,'Connection Numbers Inputs'!#REF!)) ->  | N39: =MAX('Connection Numbers Inputs'!#REF!,SUM('Connection Numbers Inputs'!#REF!,'Connection Numbers Inputs'!#REF!,'Connection Numbers Inputs'!#REF!,'Connection Numbers Inputs'!#REF!,'Connection Numbers Inputs'!#REF!)) ->  | O39: =MAX('Connection Numbers Inputs'!#REF!,SUM('Connection Numbers Inputs'!#REF!,'Connection Numbers Inputs'!#REF!,'Connection Numbers Inputs'!#REF!,'Connection Numbers Inputs'!#REF!,'Connection Numbers Inputs'!#REF!)) ->  | P39: =MAX('Connection Numbers Inputs'!#REF!,SUM('Connection Numbers Inputs'!#REF!,'Connection Numbers Inputs'!#REF!,'Connection Numbers Inputs'!#REF!,'Connection Numbers Inputs'!#REF!,'Connection Numbers Inputs'!#REF!)) -> 
C40: ='General Inputs'!#REF! ->  | F40: ='General Inputs'!#REF! ->  | G40: Total | L40: =MAX('Connection Numbers Inputs'!#REF!,SUM('Connection Numbers Inputs'!#REF!,'Connection Numbers Inputs'!#REF!,'Connection Numbers Inputs'!#REF!,'Connection Numbers Inputs'!#REF!,'Connection Numbers Inputs'!#REF!)) ->  | M40: =MAX('Connection Numbers Inputs'!#REF!,SUM('Connection Numbers Inputs'!#REF!,'Connection Numbers Inputs'!#REF!,'Connection Numbers Inputs'!#REF!,'Connection Numbers Inputs'!#REF!,'Connection Numbers Inputs'!#REF!)) ->  | N40: =MAX('Connection Numbers Inputs'!#REF!,SUM('Connection Numbers Inputs'!#REF!,'Connection Numbers Inputs'!#REF!,'Connection Numbers Inputs'!#REF!,'Connection Numbers Inputs'!#REF!,'Connection Numbers Inputs'!#REF!)) ->  | O40: =MAX('Connection Numbers Inputs'!#REF!,SUM('Connection Numbers Inputs'!#REF!,'Connection Numbers Inputs'!#REF!,'Connection Numbers Inputs'!#REF!,'Connection Numbers Inputs'!#REF!,'Connection Numbers Inputs'!#REF!)) ->  | P40: =MAX('Connection Numbers Inputs'!#REF!,SUM('Connection Numbers Inputs'!#REF!,'Connection Numbers Inputs'!#REF!,'Connection Numbers Inputs'!#REF!,'Connection Numbers Inputs'!#REF!,'Connection Numbers Inputs'!#REF!)) -> 
C41: ='General Inputs'!#REF! ->  | F41: ='General Inputs'!#REF! ->  | G41: Total | L41: =MAX('Connection Numbers Inputs'!#REF!,SUM('Connection Numbers Inputs'!#REF!,'Connection Numbers Inputs'!#REF!,'Connection Numbers Inputs'!#REF!,'Connection Numbers Inputs'!#REF!,'Connection Numbers Inputs'!#REF!)) ->  | M41: =MAX('Connection Numbers Inputs'!#REF!,SUM('Connection Numbers Inputs'!#REF!,'Connection Numbers Inputs'!#REF!,'Connection Numbers Inputs'!#REF!,'Connection Numbers Inputs'!#REF!,'Connection Numbers Inputs'!#REF!)) ->  | N41: =MAX('Connection Numbers Inputs'!#REF!,SUM('Connection Numbers Inputs'!#REF!,'Connection Numbers Inputs'!#REF!,'Connection Numbers Inputs'!#REF!,'Connection Numbers Inputs'!#REF!,'Connection Numbers Inputs'!#REF!)) ->  | O41: =MAX('Connection Numbers Inputs'!#REF!,SUM('Connection Numbers Inputs'!#REF!,'Connection Numbers Inputs'!#REF!,'Connection Numbers Inputs'!#REF!,'Connection Numbers Inputs'!#REF!,'Connection Numbers Inputs'!#REF!)) ->  | P41: =MAX('Connection Numbers Inputs'!#REF!,SUM('Connection Numbers Inputs'!#REF!,'Connection Numbers Inputs'!#REF!,'Connection Numbers Inputs'!#REF!,'Connection Numbers Inputs'!#REF!,'Connection Numbers Inputs'!#REF!)) -> 
C42: ='General Inputs'!#REF! ->  | F42: ='General Inputs'!#REF! ->  | G42: Total | L42: =MAX('Connection Numbers Inputs'!#REF!,SUM('Connection Numbers Inputs'!#REF!,'Connection Numbers Inputs'!#REF!,'Connection Numbers Inputs'!#REF!,'Connection Numbers Inputs'!#REF!,'Connection Numbers Inputs'!#REF!)) ->  | M42: =MAX('Connection Numbers Inputs'!#REF!,SUM('Connection Numbers Inputs'!#REF!,'Connection Numbers Inputs'!#REF!,'Connection Numbers Inputs'!#REF!,'Connection Numbers Inputs'!#REF!,'Connection Numbers Inputs'!#REF!)) ->  | N42: =MAX('Connection Numbers Inputs'!#REF!,SUM('Connection Numbers Inputs'!#REF!,'Connection Numbers Inputs'!#REF!,'Connection Numbers Inputs'!#REF!,'Connection Numbers Inputs'!#REF!,'Connection Numbers Inputs'!#REF!)) ->  | O42: =MAX('Connection Numbers Inputs'!#REF!,SUM('Connection Numbers Inputs'!#REF!,'Connection Numbers Inputs'!#REF!,'Connection Numbers Inputs'!#REF!,'Connection Numbers Inputs'!#REF!,'Connection Numbers Inputs'!#REF!)) ->  | P42: =MAX('Connection Numbers Inputs'!#REF!,SUM('Connection Numbers Inputs'!#REF!,'Connection Numbers Inputs'!#REF!,'Connection Numbers Inputs'!#REF!,'Connection Numbers Inputs'!#REF!,'Connection Numbers Inputs'!#REF!)) -> 
C43: ='General Inputs'!#REF! ->  | F43: ='General Inputs'!#REF! ->  | G43: Total | L43: =MAX('Connection Numbers Inputs'!#REF!,SUM('Connection Numbers Inputs'!#REF!,'Connection Numbers Inputs'!#REF!,'Connection Numbers Inputs'!#REF!,'Connection Numbers Inputs'!#REF!,'Connection Numbers Inputs'!#REF!)) ->  | M43: =MAX('Connection Numbers Inputs'!#REF!,SUM('Connection Numbers Inputs'!#REF!,'Connection Numbers Inputs'!#REF!,'Connection Numbers Inputs'!#REF!,'Connection Numbers Inputs'!#REF!,'Connection Numbers Inputs'!#REF!)) ->  | N43: =MAX('Connection Numbers Inputs'!#REF!,SUM('Connection Numbers Inputs'!#REF!,'Connection Numbers Inputs'!#REF!,'Connection Numbers Inputs'!#REF!,'Connection Numbers Inputs'!#REF!,'Connection Numbers Inputs'!#REF!)) ->  | O43: =MAX('Connection Numbers Inputs'!#REF!,SUM('Connection Numbers Inputs'!#REF!,'Connection Numbers Inputs'!#REF!,'Connection Numbers Inputs'!#REF!,'Connection Numbers Inputs'!#REF!,'Connection Numbers Inputs'!#REF!)) ->  | P43: =MAX('Connection Numbers Inputs'!#REF!,SUM('Connection Numbers Inputs'!#REF!,'Connection Numbers Inputs'!#REF!,'Connection Numbers Inputs'!#REF!,'Connection Numbers Inputs'!#REF!,'Connection Numbers Inputs'!#REF!)) -> 
C44: ='General Inputs'!#REF! ->  | F44: ='General Inputs'!#REF! ->  | G44: Total | L44: =MAX('Connection Numbers Inputs'!#REF!,SUM('Connection Numbers Inputs'!#REF!,'Connection Numbers Inputs'!#REF!,'Connection Numbers Inputs'!#REF!,'Connection Numbers Inputs'!#REF!,'Connection Numbers Inputs'!#REF!)) ->  | M44: =MAX('Connection Numbers Inputs'!#REF!,SUM('Connection Numbers Inputs'!#REF!,'Connection Numbers Inputs'!#REF!,'Connection Numbers Inputs'!#REF!,'Connection Numbers Inputs'!#REF!,'Connection Numbers Inputs'!#REF!)) ->  | N44: =MAX('Connection Numbers Inputs'!#REF!,SUM('Connection Numbers Inputs'!#REF!,'Connection Numbers Inputs'!#REF!,'Connection Numbers Inputs'!#REF!,'Connection Numbers Inputs'!#REF!,'Connection Numbers Inputs'!#REF!)) ->  | O44: =MAX('Connection Numbers Inputs'!#REF!,SUM('Connection Numbers Inputs'!#REF!,'Connection Numbers Inputs'!#REF!,'Connection Numbers Inputs'!#REF!,'Connection Numbers Inputs'!#REF!,'Connection Numbers Inputs'!#REF!)) ->  | P44: =MAX('Connection Numbers Inputs'!#REF!,SUM('Connection Numbers Inputs'!#REF!,'Connection Numbers Inputs'!#REF!,'Connection Numbers Inputs'!#REF!,'Connection Numbers Inputs'!#REF!,'Connection Numbers Inputs'!#REF!)) -> 
C45: ='General Inputs'!#REF! ->  | F45: ='General Inputs'!#REF! ->  | G45: Total | L45: =MAX('Connection Numbers Inputs'!#REF!,SUM('Connection Numbers Inputs'!#REF!,'Connection Numbers Inputs'!#REF!,'Connection Numbers Inputs'!#REF!,'Connection Numbers Inputs'!#REF!,'Connection Numbers Inputs'!#REF!)) ->  | M45: =MAX('Connection Numbers Inputs'!#REF!,SUM('Connection Numbers Inputs'!#REF!,'Connection Numbers Inputs'!#REF!,'Connection Numbers Inputs'!#REF!,'Connection Numbers Inputs'!#REF!,'Connection Numbers Inputs'!#REF!)) ->  | N45: =MAX('Connection Numbers Inputs'!#REF!,SUM('Connection Numbers Inputs'!#REF!,'Connection Numbers Inputs'!#REF!,'Connection Numbers Inputs'!#REF!,'Connection Numbers Inputs'!#REF!,'Connection Numbers Inputs'!#REF!)) ->  | O45: =MAX('Connection Numbers Inputs'!#REF!,SUM('Connection Numbers Inputs'!#REF!,'Connection Numbers Inputs'!#REF!,'Connection Numbers Inputs'!#REF!,'Connection Numbers Inputs'!#REF!,'Connection Numbers Inputs'!#REF!)) ->  | P45: =MAX('Connection Numbers Inputs'!#REF!,SUM('Connection Numbers Inputs'!#REF!,'Connection Numbers Inputs'!#REF!,'Connection Numbers Inputs'!#REF!,'Connection Numbers Inputs'!#REF!,'Connection Numbers Inputs'!#REF!)) -> 
C46: ='General Inputs'!#REF! ->  | F46: ='General Inputs'!#REF! ->  | G46: Total | L46: =MAX('Connection Numbers Inputs'!#REF!,SUM('Connection Numbers Inputs'!#REF!,'Connection Numbers Inputs'!#REF!,'Connection Numbers Inputs'!#REF!,'Connection Numbers Inputs'!#REF!,'Connection Numbers Inputs'!#REF!)) ->  | M46: =MAX('Connection Numbers Inputs'!#REF!,SUM('Connection Numbers Inputs'!#REF!,'Connection Numbers Inputs'!#REF!,'Connection Numbers Inputs'!#REF!,'Connection Numbers Inputs'!#REF!,'Connection Numbers Inputs'!#REF!)) ->  | N46: =MAX('Connection Numbers Inputs'!#REF!,SUM('Connection Numbers Inputs'!#REF!,'Connection Numbers Inputs'!#REF!,'Connection Numbers Inputs'!#REF!,'Connection Numbers Inputs'!#REF!,'Connection Numbers Inputs'!#REF!)) ->  | O46: =MAX('Connection Numbers Inputs'!#REF!,SUM('Connection Numbers Inputs'!#REF!,'Connection Numbers Inputs'!#REF!,'Connection Numbers Inputs'!#REF!,'Connection Numbers Inputs'!#REF!,'Connection Numbers Inputs'!#REF!)) ->  | P46: =MAX('Connection Numbers Inputs'!#REF!,SUM('Connection Numbers Inputs'!#REF!,'Connection Numbers Inputs'!#REF!,'Connection Numbers Inputs'!#REF!,'Connection Numbers Inputs'!#REF!,'Connection Numbers Inputs'!#REF!)) -> 
C47: ='General Inputs'!#REF! ->  | F47: ='General Inputs'!#REF! ->  | G47: Total | L47: =MAX('Connection Numbers Inputs'!#REF!,SUM('Connection Numbers Inputs'!#REF!,'Connection Numbers Inputs'!#REF!,'Connection Numbers Inputs'!#REF!,'Connection Numbers Inputs'!#REF!,'Connection Numbers Inputs'!#REF!)) ->  | M47: =MAX('Connection Numbers Inputs'!#REF!,SUM('Connection Numbers Inputs'!#REF!,'Connection Numbers Inputs'!#REF!,'Connection Numbers Inputs'!#REF!,'Connection Numbers Inputs'!#REF!,'Connection Numbers Inputs'!#REF!)) ->  | N47: =MAX('Connection Numbers Inputs'!#REF!,SUM('Connection Numbers Inputs'!#REF!,'Connection Numbers Inputs'!#REF!,'Connection Numbers Inputs'!#REF!,'Connection Numbers Inputs'!#REF!,'Connection Numbers Inputs'!#REF!)) ->  | O47: =MAX('Connection Numbers Inputs'!#REF!,SUM('Connection Numbers Inputs'!#REF!,'Connection Numbers Inputs'!#REF!,'Connection Numbers Inputs'!#REF!,'Connection Numbers Inputs'!#REF!,'Connection Numbers Inputs'!#REF!)) ->  | P47: =MAX('Connection Numbers Inputs'!#REF!,SUM('Connection Numbers Inputs'!#REF!,'Connection Numbers Inputs'!#REF!,'Connection Numbers Inputs'!#REF!,'Connection Numbers Inputs'!#REF!,'Connection Numbers Inputs'!#REF!)) -> 
C48: ='General Inputs'!#REF! ->  | F48: ='General Inputs'!#REF! ->  | G48: Total | L48: =MAX('Connection Numbers Inputs'!#REF!,SUM('Connection Numbers Inputs'!#REF!,'Connection Numbers Inputs'!#REF!,'Connection Numbers Inputs'!#REF!,'Connection Numbers Inputs'!#REF!,'Connection Numbers Inputs'!#REF!)) ->  | M48: =MAX('Connection Numbers Inputs'!#REF!,SUM('Connection Numbers Inputs'!#REF!,'Connection Numbers Inputs'!#REF!,'Connection Numbers Inputs'!#REF!,'Connection Numbers Inputs'!#REF!,'Connection Numbers Inputs'!#REF!)) ->  | N48: =MAX('Connection Numbers Inputs'!#REF!,SUM('Connection Numbers Inputs'!#REF!,'Connection Numbers Inputs'!#REF!,'Connection Numbers Inputs'!#REF!,'Connection Numbers Inputs'!#REF!,'Connection Numbers Inputs'!#REF!)) ->  | O48: =MAX('Connection Numbers Inputs'!#REF!,SUM('Connection Numbers Inputs'!#REF!,'Connection Numbers Inputs'!#REF!,'Connection Numbers Inputs'!#REF!,'Connection Numbers Inputs'!#REF!,'Connection Numbers Inputs'!#REF!)) ->  | P48: =MAX('Connection Numbers Inputs'!#REF!,SUM('Connection Numbers Inputs'!#REF!,'Connection Numbers Inputs'!#REF!,'Connection Numbers Inputs'!#REF!,'Connection Numbers Inputs'!#REF!,'Connection Numbers Inputs'!#REF!)) -> 
C49: ='General Inputs'!#REF! ->  | F49: ='General Inputs'!#REF! ->  | G49: Total | L49: =MAX('Connection Numbers Inputs'!#REF!,SUM('Connection Numbers Inputs'!#REF!,'Connection Numbers Inputs'!#REF!,'Connection Numbers Inputs'!#REF!,'Connection Numbers Inputs'!#REF!,'Connection Numbers Inputs'!#REF!)) ->  | M49: =MAX('Connection Numbers Inputs'!#REF!,SUM('Connection Numbers Inputs'!#REF!,'Connection Numbers Inputs'!#REF!,'Connection Numbers Inputs'!#REF!,'Connection Numbers Inputs'!#REF!,'Connection Numbers Inputs'!#REF!)) ->  | N49: =MAX('Connection Numbers Inputs'!#REF!,SUM('Connection Numbers Inputs'!#REF!,'Connection Numbers Inputs'!#REF!,'Connection Numbers Inputs'!#REF!,'Connection Numbers Inputs'!#REF!,'Connection Numbers Inputs'!#REF!)) ->  | O49: =MAX('Connection Numbers Inputs'!#REF!,SUM('Connection Numbers Inputs'!#REF!,'Connection Numbers Inputs'!#REF!,'Connection Numbers Inputs'!#REF!,'Connection Numbers Inputs'!#REF!,'Connection Numbers Inputs'!#REF!)) ->  | P49: =MAX('Connection Numbers Inputs'!#REF!,SUM('Connection Numbers Inputs'!#REF!,'Connection Numbers Inputs'!#REF!,'Connection Numbers Inputs'!#REF!,'Connection Numbers Inputs'!#REF!,'Connection Numbers Inputs'!#REF!)) -> 
C50: Total | L50: =SUM(L20:L49) ->  | M50: =SUM(M20:M49) ->  | N50: =SUM(N20:N49) ->  | O50: =SUM(O20:O49) ->  | P50: =SUM(P20:P49) -> 

Sheet Volume Inputs
A1: Volume Inputs
B3: GJ/day | D3: MDQ(GJ)
A4: Price Band 1 | B4: Residential 1 | C4: Commercial 1 | D4: Demand-AdC | E4: Demand-AdNr | F4: Demand-AdS | G4: Demand-Peter | H4: Demand-PP | I4: Demand-River | J4: Demand-SE | K4: Demand-Whyal
A5: ='General Inputs'!$N$17 -> 2011/12 | B5: 3190331.382 | C5: 1174118.821 | D5: 2200 | E5: 3600 | F5: 800 | G5: 50 | H5: 50 | I5: 100 | J5: 200 | K5: 50
A6: ='General Inputs'!$O$17 -> 2012/13 | B6: 3177820.074 | C6: 1193165.005 | D6: 2100 | E6: 3350 | F6: 800 | G6: 50 | H6: 50 | I6: 100 | J6: 200 | K6: 50
A7: ='General Inputs'!$P$17 -> 2013/14 | B7: 3211169.078 | C7: 1197835.114 | D7: 1950 | E7: 3350 | F7: 650 | G7: 50 | H7: 50 | I7: 100 | J7: 200 | K7: 50
A8: ='General Inputs'!$Q$17 -> 2014/15 | B8: 2902884.692 | C8: 1155043.237 | D8: 1701.531432 | E8: 2867.841664 | F8: 736.5831226 | G8: 50 | H8: 50 | I8: 100 | J8: 200 | K8: 50
A9: ='General Inputs'!$R$17 -> 2015/16 | B9: 3242134.812 | C9: 1263343.363 | D9: 1650 | E9: 2765 | F9: 485 | G9: 50 | H9: 50 | I9: 100 | J9: 200 | K9: 26
A10: ='General Inputs'!$S$17 -> 2016/17 | B10: 3314904.759 | C10: 1303131.697 | D10: 1500 | E10: 2715 | F10: 485 | G10: 0 | H10: 50 | I10: 100 | J10: 200 | K10: 26
A11: ='General Inputs'!$T$17 -> 2017/18 | B11: 3279277.347 | C11: 1299890.687 | D11: 1552 | E11: 2632 | F11: 489 | G11: 0 | H11: 50 | I11: 100 | J11: 200 | K11: 26
A12: ='General Inputs'!$U$17 -> 2018/19 | B12: 3316479.231 | C12: 1312326.849 | D12: 1439 | E12: 2769 | F12: 492 | G12: 0 | H12: 50 | I12: 100 | J12: 200 | K12: 16
A13: ='General Inputs'!$V$17 -> 2019/20 | B13: =B12 -> 3316479.231 | C13: =C12 -> 1312326.849 | D13: 1439 | E13: =E12 -> 2769 | F13: 492 | G13: 0 | H13: 50 | I13: 100 | J13: 200 | K13: 16
A14: ='General Inputs'!$W$17 -> 2020/21 | B14: =B13 -> 3316479.231 | C14: =C13 -> 1312326.849 | D14: =D13 -> 1439 | E14: =E13 -> 2769 | F14: =F13 -> 492 | G14: =G13 -> 0 | H14: =H13 -> 50 | I14: =I13 -> 100 | J14: =J13 -> 200 | K14: =K13 -> 16
A15: ='General Inputs'!$X$17 -> 2021/22 | B15: 3094826.15 | C15: 1343341.366 | D15: 1507.437031 | E15: 2478.766069 | F15: 542.0726612 | G15: 0 | H15: 50 | I15: 150 | J15: 150 | K15: 50
A16: ='General Inputs'!$Y$17 -> 2022/23 | B16: 3051887.333 | C16: 1356527.535 | D16: 1460.466243 | E16: 2396.019149 | F16: 521.490955 | G16: 0 | H16: 50 | I16: 150 | J16: 150 | K16: 50
A17: ='General Inputs'!$Z$17 -> 2023/24 | B17: 3006657.18 | C17: 1365074.516 | D17: 1417.778552 | E17: 2320.957986 | F17: 502.1597885 | G17: 0 | H17: 50 | I17: 150 | J17: 200 | K17: 50
A18: ='General Inputs'!$AA$17 -> 2024/25 | B18: 2958768.472 | C18: 1367309.569 | D18: 1375.926204 | E18: 2245.969507 | F18: 483.1563281 | G18: 0 | H18: 50 | I18: 150 | J18: 300 | K18: 50
A19: ='General Inputs'!$AB$17 -> 2025/26 | B19: 2691319.654 | C19: 1260459.602 | D19: 1172.637469 | E19: 2601.182476 | F19: 435.3045653 | G19: 0 | H19: 50 | I19: 100 | J19: 150 | K19: 50
A20: ='General Inputs'!$AC$17 -> 2026/27 | B20: 2577992.246 | C20: 1250551.827 | D20: 1172.637469 | E20: 2601.182476 | F20: 435.3045653 | G20: 0 | H20: 50 | I20: 100 | J20: 150 | K20: 50
A21: ='General Inputs'!$AD$17 -> 2027/28 | B21: 2467278.093 | C21: 1239538.469 | D21: 1163.696887 | E21: 2570.605631 | F21: 430.8201823 | G21: 0 | H21: 50 | I21: 100 | J21: 150 | K21: 50
A22: ='General Inputs'!$AE$17 -> 2028/29 | B22: 2325594.959 | C22: 1227142.986 | D22: 1157.703624 | E22: 2536.581974 | F22: 427.1559399 | G22: 0 | H22: 50 | I22: 100 | J22: 150 | K22: 50
A23: ='General Inputs'!$AF$17 -> 2029/30 | B23: 2187131.73 | C23: 1210531.462 | D23: 1151.916834 | E23: 2480.667745 | F23: 423.575864 | G23: 0 | H23: 50 | I23: 100 | J23: 150 | K23: 50
A24: ='General Inputs'!$AG$17 -> 2030/31 | B24: 2054092.69 | C24: 1190167.752 | D24: 1146.39051 | E24: 2405.290925 | F24: 420.093516 | G24: 0 | H24: 50 | I24: 100 | J24: 150 | K24: 50
A26: Price Band 2 | B26: Residential 1 | C26: Commercial 1 | D26: Demand-AdC | E26: Demand-AdNr | F26: Demand-AdS | G26: Demand-Peter | H26: Demand-PP | I26: Demand-River | J26: Demand-SE | K26: Demand-Whyal
A27: ='General Inputs'!$N$17 -> 2011/12 | B27: 1419928.446 | C27: 1142001.875 | D27: 1763 | E27: 3167 | F27: 710 | G27: 50 | H27: 50 | I27: 100 | J27: 200 | K27: 0
A28: ='General Inputs'!$O$17 -> 2012/13 | B28: 1367875.601 | C28: 1146764.414 | D28: 1679 | E28: 2990 | F28: 710 | G28: 50 | H28: 50 | I28: 100 | J28: 200 | K28: 0
A29: ='General Inputs'!$P$17 -> 2013/14 | B29: 1340399.86 | C29: 1120467.658 | D29: 1625 | E29: 2994 | F29: 562 | G29: 50 | H29: 50 | I29: 100 | J29: 200 | K29: 26
A30: ='General Inputs'!$Q$17 -> 2014/15 | B30: 1286659.377 | C30: 1111654.865 | D30: 1407.951114 | E30: 2593.028403 | F30: 636.7930244 | G30: 50 | H30: 50 | I30: 100 | J30: 200 | K30: 4.984726429
A31: ='General Inputs'!$R$17 -> 2015/16 | B31: 1304511.609 | C31: 1160370.922 | D31: 8024 | E31: 12479 | F31: =F9 -> 485 | G31: 19 | H31: 900 | I31: 225 | J31: 379 | K31: 0
A32: ='General Inputs'!$S$17 -> 2016/17 | B32: 1391912.582 | C32: 1201502.956 | D32: 6684 | E32: 13327 | F32: =F10 -> 485 | G32: 0 | H32: 900 | I32: 225 | J32: 379 | K32: 0
A33: ='General Inputs'!$T$17 -> 2017/18 | B33: 1297916.54 | C33: 1178027.415 | D33: 6608 | E33: 11489 | F33: =F11 -> 489 | G33: 0 | H33: 900 | I33: 234 | J33: 422 | K33: 0
A34: ='General Inputs'!$U$17 -> 2018/19 | B34: 1309847.873 | C34: 1184542.739 | D34: 5907 | E34: 13346 | F34: =F12 -> 492 | G34: 0 | H34: 900 | I34: 234 | J34: 422 | K34: 0
A35: ='General Inputs'!$V$17 -> 2019/20 | B35: =B34 -> 1309847.873 | C35: =C34 -> 1184542.739 | D35: =D34 -> 5907 | E35: =E34 -> 13346 | F35: =F34 -> 492 | G35: =G34 -> 0 | H35: =H34 -> 900 | I35: =I34 -> 234 | J35: =J34 -> 422 | K35: =K34 -> 0
A36: ='General Inputs'!$W$17 -> 2020/21 | B36: =B35 -> 1309847.873 | C36: 1184542.739 | D36: 5907 | E36: 13346 | F36: 492 | G36: 0 | H36: 900 | I36: 234 | J36: 422 | K36: 0
A37: ='General Inputs'!$X$17 -> 2021/22 | B37: 1256836.11 | C37: 1228995.364 | D37: 1247.719515 | E37: 2222.797301 | F37: 468.7747668 | G37: 0 | H37: 50 | I37: 150 | J37: 150 | K37: 20.06183764
A38: ='General Inputs'!$Y$17 -> 2022/23 | B38: 1240616.187 | C38: 1239126.355 | D38: 1209.223842 | E38: 2148.700143 | F38: 451.1187649 | G38: 0 | H38: 50 | I38: 150 | J38: 150 | K38: 17.75105672
A39: ='General Inputs'!$Z$17 -> 2023/24 | B39: 1224799.884 | C39: 1242610.073 | D39: 1173.919625 | E39: 2080.867584 | F39: 434.4110139 | G39: 0 | H39: 50 | I39: 150 | J39: 150 | K39: 16.11041162
A40: ='General Inputs'!$AA$17 -> 2024/25 | B40: 1207904.581 | C40: 1240563.298 | D40: 1139.301442 | E40: 2013.089859 | F40: 417.9844365 | G40: 0 | H40: 50 | I40: 150 | J40: 150 | K40: 13.8974647
A41: ='General Inputs'!$AB$17 -> 2025/26 | B41: 1092295.853 | C41: 1154338.036 | D41: 970.6028335 | E41: 2343.071715 | F41: 376.4436222 | G41: 0 | H41: 50 | I41: 100 | J41: 150 | K41: 50
A42: ='General Inputs'!$AC$17 -> 2026/27 | B42: 1046300.924 | C42: 1145264.423 | D42: 970.6028335 | E42: 2343.071715 | F42: 376.4436222 | G42: 0 | H42: 50 | I42: 100 | J42: 150 | K42: 50
A43: ='General Inputs'!$AD$17 -> 2027/28 | B43: 1001366.607 | C43: 1135178.31 | D43: 963.5073916 | E43: 2316.180878 | F43: 372.6834888 | G43: 0 | H43: 50 | I43: 100 | J43: 150 | K43: 50
A44: ='General Inputs'!$AE$17 -> 2028/29 | B44: 943863.2556 | C44: 1123826.437 | D44: 958.5777709 | E44: 2285.479802 | F44: 369.5262926 | G44: 0 | H44: 50 | I44: 100 | J44: 150 | K44: 50
A45: ='General Inputs'!$AF$17 -> 2029/30 | B45: 887666.7312 | C45: 1108613.483 | D45: 953.8160592 | E45: 2234.963538 | F45: 366.4406498 | G45: 0 | H45: 50 | I45: 100 | J45: 150 | K45: 50
A46: ='General Inputs'!$AG$17 -> 2030/31 | B46: 833671.6618 | C46: 1089964.25 | D46: 949.2612121 | E46: 2166.81367 | F46: 363.4361019 | G46: 0 | H46: 50 | I46: 100 | J46: 150 | K46: 50
A48: Price Band 3 | B48: Residential 1 | C48: Commercial 1 | D48: Demand-AdC | E48: Demand-AdNr | F48: Demand-AdS | G48: Demand-Peter | H48: Demand-PP | I48: Demand-River | J48: Demand-SE | K48: Demand-Whyal
A49: ='General Inputs'!$N$17 -> 2011/12 | B49: 2827008.382 | C49: 547835.9294 | D49: 7429 | E49: 14441 | F49: 1141 | G49: 19 | H49: 400 | I49: 197 | J49: 538 | K49: 0
A50: ='General Inputs'!$O$17 -> 2012/13 | B50: 3024885.588 | C50: 535636.1957 | D50: 7312 | E50: 14139 | F50: 1147 | G50: 19 | H50: 400 | I50: 225 | J50: 418 | K50: 0
A51: ='General Inputs'!$P$17 -> 2013/14 | B51: 2442738.88 | C51: 516781.1391 | D51: 7140 | E51: 14698 | F51: 874 | G51: 19 | H51: 400 | I51: 225 | J51: 554 | K51: 0
A52: ='General Inputs'!$Q$17 -> 2014/15 | B52: 2702758.858 | C52: 538923.5113 | D52: 6160.581814 | E52: 12896.05823 | F52: 1234.554127 | G52: 19 | H52: 400 | I52: 305.7627977 | J52: 487.9357124 | K52: 0
A53: ='General Inputs'!$R$17 -> 2015/16 | B53: 2911746.293 | C53: 532712.1799 | D53: 604 | E53: 20891 | F53: 0 | G53: 0 | H53: 2560 | I53: 0 | J53: 0 | K53: 0
A54: ='General Inputs'!$S$17 -> 2016/17 | B54: 2968067.229 | C54: 564134.3478 | D54: 104 | E54: 21391 | F54: 0 | G54: 0 | H54: 2560 | I54: 0 | J54: 0 | K54: 0
A55: ='General Inputs'!$T$17 -> 2017/18 | B55: 2749229.94 | C55: 539188.1073 | D55: 104 | E55: 21209 | F55: 0 | G55: 0 | H55: 3000 | I55: 0 | J55: 0 | K55: 0
A56: ='General Inputs'!$U$17 -> 2018/19 | B56: 2660395.894 | C56: 561470.6367 | D56: 104 | E56: 20809 | F56: 0 | G56: 0 | H56: 3000 | I56: 0 | J56: 0 | K56: 0
A57: ='General Inputs'!$V$17 -> 2019/20 | B57: =B56 -> 2660395.894 | C57: =C56 -> 561470.6367 | D57: =D56 -> 104 | E57: =E56 -> 20809 | F57: =F56 -> 0 | G57: =G56 -> 0 | H57: =H56 -> 3000 | I57: =I56 -> 0 | J57: =J56 -> 0 | K57: =K56 -> 0
A58: ='General Inputs'!$W$17 -> 2020/21 | B58: =B57 -> 2660395.894 | C58: 561470.6367 | D58: 104 | E58: 20809 | F58: 0 | G58: 0 | H58: 3000 | I58: 0 | J58: 0 | K58: 0
A59: ='General Inputs'!$X$17 -> 2021/22 | B59: 2714371.73 | C59: 568664.6702 | D59: 5433.519749 | E59: 9802.14639 | F59: 904.4950476 | G59: 0 | H59: 900 | I59: 128.1829009 | J59: 242.9489004 | K59: 0
A60: ='General Inputs'!$Y$17 -> 2022/23 | B60: 2676875.151 | C60: 573352.3499 | D60: 5284.664879 | E60: 9476.857214 | F60: 873.5330233 | G60: 0 | H60: 900 | I60: 116.8452138 | J60: 230.5811297 | K60: 0
A61: ='General Inputs'!$Z$17 -> 2023/24 | B61: 2637548.204 | C61: 574964.2903 | D61: 5132.336824 | E61: 9144.240361 | F61: 841.5022851 | G61: 0 | H61: 900 | I61: 105.4668363 | J61: 218.1234516 | K61: 0
A62: ='General Inputs'!$AA$17 -> 2024/25 | B62: 2595889.613 | C62: 574017.2331 | D62: 4982.73168 | E62: 8811.286125 | F62: 809.965741 | G62: 0 | H62: 900 | I62: 94.0474088 | J62: 205.5055623 | K62: 0
A63: ='General Inputs'!$AB$17 -> 2025/26 | B63: 2360378.855 | C63: 534120.2069 | D63: 4226.742951 | E63: 10360.60335 | F63: 726.3432593 | G63: 0 | H63: 900 | I63: 114.3154457 | J63: 566.8561995 | K63: 50
A64: ='General Inputs'!$AC$17 -> 2026/27 | B64: 2260986.865 | C64: 529921.7835 | D64: 4226.742951 | E64: 10360.60335 | F64: 726.3432593 | G64: 0 | H64: 900 | I64: 114.3154457 | J64: 566.8561995 | K64: 50
A65: ='General Inputs'!$AD$17 -> 2027/28 | B65: 2163886.788 | C65: 525254.8692 | D65: 4210.81151 | E65: 10265.50383 | F65: 721.6532764 | G65: 0 | H65: 900 | I65: 114.3154457 | J65: 561.5553937 | K65: 50
A66: ='General Inputs'!$AE$17 -> 2028/29 | B66: 2039625.861 | C66: 520002.2789 | D66: 4190.869533 | E66: 10112.84864 | F66: 715.8133879 | G66: 0 | H66: 900 | I66: 114.3154457 | J66: 556.3882101 | K66: 50
A67: ='General Inputs'!$AF$17 -> 2029/30 | B67: 1918188.901 | C67: 512963.1398 | D67: 4171.511876 | E67: 9861.177123 | F67: 710.0847462 | G67: 0 | H67: 900 | I67: 114.3154457 | J67: 551.351148 | K67: 50
A68: ='General Inputs'!$AG$17 -> 2030/31 | B68: 1801509.139 | C68: 504334.0101 | D68: 4152.626563 | E68: 9520.48393 | F68: 704.4381901 | G68: 0 | H68: 900 | I68: 114.3154457 | J68: 546.4408017 | K68: 50
A70: Price Band 4 | B70: Residential 1 | C70: Commercial 1 | D70: Demand-AdC | E70: Demand-AdNr | F70: Demand-AdS | G70: Demand-Peter | H70: Demand-PP | I70: Demand-River | J70: Demand-SE | K70: Demand-Whyal
A71: ='General Inputs'!$N$17 -> 2011/12 | B71: 0 | C71: 165027.4877 | D71: 427 | E71: 25053 | F71: 0 | G71: 0 | H71: 500 | I71: 0 | J71: 168 | K71: 0
A72: ='General Inputs'!$O$17 -> 2012/13 | B72: 0 | C72: 193357.7459 | D72: 81 | E72: 23263 | F72: 0 | G72: 0 | H72: 500 | I72: 0 | J72: 0 | K72: 0
A73: ='General Inputs'!$P$17 -> 2013/14 | B73: 0 | C73: 172883.2106 | D73: 81 | E73: 23581 | F73: 0 | G73: 0 | H73: 500 | I73: 0 | J73: 35 | K73: 0
A74: ='General Inputs'!$Q$17 -> 2014/15 | B74: 0 | C74: 197079.822 | D74: 207.9167629 | E74: 21031.55544 | F74: 0 | G74: 0 | H74: 500 | I74: 0 | J74: 22.539141 | K74: 0
A75: ='General Inputs'!$R$17 -> 2015/16 | B75: 0 | C75: 196355.745 | D75: 207.9167629 | E75: 21031.55544 | F75: 0 | G75: 0 | H75: 0 | I75: 0 | J75: 0 | K75: 0
A76: ='General Inputs'!$S$17 -> 2016/17 | B76: 0 | C76: 224194.5417 | D76: 223.8018463 | E76: 4385.390823 | F76: 0 | G76: 0 | H76: 0 | I76: 0 | J76: 0 | K76: 0
A77: ='General Inputs'!$T$17 -> 2017/18 | B77: 0 | C77: 219848.3843 | D77: 210.1378645 | E77: 3003.228143 | F77: 0 | G77: 0 | H77: 0 | I77: 0 | J77: 0 | K77: 0
A78: ='General Inputs'!$U$17 -> 2018/19 | B78: 0 | C78: 235923.3055 | D78: 208.7716445 | E78: 2865.029902 | F78: 0 | G78: 0 | H78: 0 | I78: 0 | J78: 0 | K78: 0
A79: ='General Inputs'!$V$17 -> 2019/20 | B79: =B78 -> 0 | C79: =C78 -> 235923.3055 | D79: 207.5362502 | E79: 2740.065157 | F79: =F78 -> 0 | G79: =G78 -> 0 | H79: =H78 -> 0 | I79: =I78 -> 0 | J79: =J78 -> 0 | K79: =K78 -> 0
A80: ='General Inputs'!$W$17 -> 2020/21 | B80: =B79 -> 0 | C80: 235923.3055 | D80: 206.6656114 | E80: 2651.996798 | F80: 0 | G80: 0 | H80: 0 | I80: 0 | J80: 0 | K80: 0
A81: ='General Inputs'!$X$17 -> 2021/22 | B81: 0 | C81: 221398.4499 | D81: 183.4199653 | E81: 2163.602005 | F81: 0 | G81: 0 | H81: 0 | I81: 0 | J81: 0 | K81: 0
A82: ='General Inputs'!$Y$17 -> 2022/23 | B82: 0 | C82: 223223.5061 | D82: 178.3471773 | E82: 2151.127992 | F82: 0 | G82: 0 | H82: 0 | I82: 0 | J82: 0 | K82: 0
A83: ='General Inputs'!$Z$17 -> 2023/24 | B83: 0 | C83: 223851.0835 | D83: 173.2014189 | E83: 2131.422354 | F83: 0 | G83: 0 | H83: 0 | I83: 0 | J83: 0 | K83: 0
A84: ='General Inputs'!$AA$17 -> 2024/25 | B84: 0 | C84: 223482.3654 | D84: 168.1482526 | E84: 2111.241349 | F84: 0 | G84: 0 | H84: 0 | I84: 0 | J84: 0 | K84: 0
A85: ='General Inputs'!$AB$17 -> 2025/26 | B85: 0 | C85: 207949.2397 | D85: 142.6826589 | E85: 4640.397113 | F85: 0 | G85: 0 | H85: 2857.95429 | I85: 0 | J85: 0 | K85: 50
A86: ='General Inputs'!$AC$17 -> 2026/27 | B86: 0 | C86: 206314.6658 | D86: 142.6826589 | E86: 4640.397113 | F86: 0 | G86: 0 | H86: 2857.95429 | I86: 0 | J86: 0 | K86: 50
A87: ='General Inputs'!$AD$17 -> 2027/28 | B87: 0 | C87: 204497.6942 | D87: 142.1067114 | E87: 4648.46651 | F87: 0 | G87: 0 | H87: 2809.729862 | I87: 0 | J87: 0 | K87: 50
A88: ='General Inputs'!$AE$17 -> 2028/29 | B88: 0 | C88: 202452.701 | D88: 141.4296401 | E88: 4725.085016 | F88: 0 | G88: 0 | H88: 2762.108239 | I88: 0 | J88: 0 | K88: 50
A89: ='General Inputs'!$AF$17 -> 2029/30 | B89: 0 | C89: 199712.1501 | D89: 140.7726681 | E89: 4946.082672 | F89: 0 | G89: 0 | H89: 2715.081886 | I89: 0 | J89: 0 | K89: 50
A90: ='General Inputs'!$AG$17 -> 2030/31 | B90: 0 | C90: 196352.5675 | D90: 140.1327332 | E90: 5296.777924 | F90: 0 | G90: 0 | H90: 2668.643362 | I90: 0 | J90: 0 | K90: 50
A92: Price Band 5 | B92: Residential 1 | C92: Commercial 1 | D92: Demand-AdC | E92: Demand-AdNr | F92: Demand-AdS | G92: Demand-Peter | H92: Demand-PP | I92: Demand-River | J92: Demand-SE | K92: Demand-Whyal
A93: ='General Inputs'!$N$17 -> 2011/12 | B93: 0 | C93: 0 | D93: 0 | E93: 0 | F93: 0 | G93: 0 | H93: 0 | I93: 0 | J93: 0 | K93: 0
A94: ='General Inputs'!$O$17 -> 2012/13 | B94: 0 | C94: 0 | D94: 0 | E94: 0 | F94: 0 | G94: 0 | H94: 0 | I94: 0 | J94: 0 | K94: 0
A95: ='General Inputs'!$P$17 -> 2013/14 | B95: 0 | C95: 0 | D95: 0 | E95: 0 | F95: 0 | G95: 0 | H95: 0 | I95: 0 | J95: 0 | K95: 0
A96: ='General Inputs'!$Q$17 -> 2014/15 | B96: 0 | C96: 0 | D96: 0 | E96: 0 | F96: 0 | G96: 0 | H96: 0 | I96: 0 | J96: 0 | K96: 0
A97: ='General Inputs'!$R$17 -> 2015/16 | B97: 0 | C97: 0 | D97: 0 | E97: 0 | F97: 0 | G97: 0 | H97: 0 | I97: 0 | J97: 0 | K97: 0
A98: ='General Inputs'!$S$17 -> 2016/17 | B98: 0 | C98: 0 | D98: 0 | E98: 0 | F98: 0 | G98: 0 | H98: 0 | I98: 0 | J98: 0 | K98: 0
A99: ='General Inputs'!$T$17 -> 2017/18 | B99: 0 | C99: 0 | D99: 0 | E99: 0 | F99: 0 | G99: 0 | H99: 0 | I99: 0 | J99: 0 | K99: 0
A100: ='General Inputs'!$U$17 -> 2018/19 | B100: 0 | C100: 0 | D100: 0 | E100: 0 | F100: 0 | G100: 0 | H100: 0 | I100: 0 | J100: 0 | K100: 0
A101: ='General Inputs'!$V$17 -> 2019/20 | B101: 0 | C101: 0 | D101: 0 | E101: 0 | F101: 0 | G101: 0 | H101: 0 | I101: 0 | J101: 0 | K101: 0
A102: ='General Inputs'!$W$17 -> 2020/21 | B102: 0 | C102: 0 | D102: 0 | E102: 0 | F102: 0 | G102: 0 | H102: 0 | I102: 0 | J102: 0 | K102: 0
A103: ='General Inputs'!$X$17 -> 2021/22 | B103: 0 | C103: 0 | D103: 0 | E103: 0 | F103: 0 | G103: 0 | H103: 0 | I103: 0 | J103: 0 | K103: 0
A104: ='General Inputs'!$Y$17 -> 2022/23 | B104: 0 | C104: 0 | D104: 0 | E104: 0 | F104: 0 | G104: 0 | H104: 0 | I104: 0 | J104: 0 | K104: 0
A105: ='General Inputs'!$Z$17 -> 2023/24 | B105: 0 | C105: 0 | D105: 0 | E105: 0 | F105: 0 | G105: 0 | H105: 0 | I105: 0 | J105: 0 | K105: 0
A106: ='General Inputs'!$AA$17 -> 2024/25 | B106: 0 | C106: 0 | D106: 0 | E106: 0 | F106: 0 | G106: 0 | H106: 0 | I106: 0 | J106: 0 | K106: 0
A107: ='General Inputs'!$AB$17 -> 2025/26 | B107: 0 | C107: 0 | D107: 0 | E107: 0 | F107: 0 | G107: 0 | H107: 0 | I107: 0 | J107: 0 | K107: 0
A108: ='General Inputs'!$AC$17 -> 2026/27 | B108: 0 | C108: 0 | D108: 0 | E108: 0 | F108: 0 | G108: 0 | H108: 0 | I108: 0 | J108: 0 | K108: 0
A109: ='General Inputs'!$AD$17 -> 2027/28 | B109: 0 | C109: 0 | D109: 0 | E109: 0 | F109: 0 | G109: 0 | H109: 0 | I109: 0 | J109: 0 | K109: 0
A110: ='General Inputs'!$AE$17 -> 2028/29 | B110: 0 | C110: 0 | D110: 0 | E110: 0 | F110: 0 | G110: 0 | H110: 0 | I110: 0 | J110: 0 | K110: 0
A111: ='General Inputs'!$AF$17 -> 2029/30 | B111: 0 | C111: 0 | D111: 0 | E111: 0 | F111: 0 | G111: 0 | H111: 0 | I111: 0 | J111: 0 | K111: 0
A112: ='General Inputs'!$AG$17 -> 2030/31 | B112: 0 | C112: 0 | D112: 0 | E112: 0 | F112: 0 | G112: 0 | H112: 0 | I112: 0 | J112: 0 | K112: 0
A114: Summary | B114: Residential 1 | C114: Commercial 1 | D114: Demand-AdC | E114: Demand-AdNr | F114: Demand-AdS | G114: Demand-Peter | H114: Demand-PP | I114: Demand-River | J114: Demand-SE | K114: Demand-Whyal
A115: 2011/12 | B115: =IFERROR(B5+B27+B49+B71+B93,0) -> 7437268.21 | C115: =IFERROR(C5+C27+C49+C71+C93,0) -> 3028984.113 | D115: =IFERROR(D5+D27+D49+D71+D93,0) -> 11819 | E115: 46261 | F115: 2651 | G115: 119 | H115: 1000 | I115: 397 | J115: 1106 | K115: 50
A116: 2012/13 | B116: =IFERROR(B6+B28+B50+B72+B94,0) -> 7570581.263 | C116: 3068923.361 | D116: 11172 | E116: 43742 | F116: 2657 | G116: 119 | H116: 1000 | I116: 425 | J116: 818 | K116: 50
A117: 2013/14 | B117: =IFERROR(B7+B29+B51+B73+B95,0) -> 6994307.818 | C117: 3007967.122 | D117: 10796 | E117: 44623 | F117: 2086 | G117: 119 | H117: 1000 | I117: 425 | J117: 989 | K117: 76
A118: 2014/15 | B118: =IFERROR(B8+B30+B52+B74+B96,0) -> 6892302.927 | C118: 3002701.436 | D118: 9477.981123 | E118: 39388.48374 | F118: 2607.930274 | G118: 119 | H118: 1000 | I118: 505.7627977 | J118: 910.4748534 | K118: 54.98472643
A119: 2015/16 | B119: =IFERROR(B9+B31+B53+B75+B97,0) -> 7458392.714 | C119: 3152782.21 | D119: 10485.91676 | E119: 57166.55544 | F119: 970 | G119: 69 | H119: 3510 | I119: 325 | J119: 579 | K119: 26
A120: 2016/17 | B120: =IFERROR(B10+B32+B54+B76+B98,0) -> 7674884.57 | C120: 3292963.543 | D120: 8511.801846 | E120: 41818.39082 | F120: 970 | G120: 0 | H120: 3510 | I120: 325 | J120: 579 | K120: 26
A121: 2017/18 | B121: =IFERROR(B11+B33+B55+B77+B99,0) -> 7326423.828 | C121: 3236954.594 | D121: 8474.137865 | E121: 38333.22814 | F121: 978 | G121: 0 | H121: 3950 | I121: 334 | J121: 622 | K121: 26
A122: 2018/19 | B122: =IFERROR(B12+B34+B56+B78+B100,0) -> 7286722.998 | C122: 3294263.531 | D122: 7658.771645 | E122: 39789.0299 | F122: 984 | G122: 0 | H122: 3950 | I122: 334 | J122: 622 | K122: 16
A123: 2019/20 | B123: =IFERROR(B13+B35+B57+B79+B101,0) -> 7286722.998 | C123: 3294263.531 | D123: 7657.53625 | E123: 39664.06516 | F123: 984 | G123: 0 | H123: 3950 | I123: 334 | J123: 622 | K123: 16
A124: 2020/21 | B124: =IFERROR(B14+B36+B58+B80+B102,0) -> 7286722.998 | C124: 3294263.531 | D124: 7656.665611 | E124: 39575.9968 | F124: 984 | G124: 0 | H124: 3950 | I124: 334 | J124: 622 | K124: 16
A125: 2021/22 | B125: =IFERROR(B15+B37+B59+B81+B103,0) -> 7066033.99 | C125: 3362399.851 | D125: 8372.09626 | E125: 16667.31177 | F125: 1915.342476 | G125: 0 | H125: 1000 | I125: 428.1829009 | J125: 542.9489004 | K125: 70.06183764
A126: 2022/23 | B126: =IFERROR(B16+B38+B60+B82+B104,0) -> 6969378.672 | C126: 3392229.746 | D126: 8132.702142 | E126: 16172.7045 | F126: 1846.142743 | G126: 0 | H126: 1000 | I126: 416.8452138 | J126: 530.5811297 | K126: 67.75105672
A127: 2023/24 | B127: =IFERROR(B17+B39+B61+B83+B105,0) -> 6869005.268 | C127: 3406499.963 | D127: 7897.23642 | E127: 15677.48828 | F127: 1778.073088 | G127: 0 | H127: 1000 | I127: 405.4668363 | J127: 568.1234516 | K127: 66.11041162
A128: 2024/25 | B128: =IFERROR(B18+B40+B62+B84+B106,0) -> 6762562.666 | C128: 3405372.465 | D128: 7666.107578 | E128: 15181.58684 | F128: 1711.106506 | G128: 0 | H128: 1000 | I128: 394.0474088 | J128: 655.5055623 | K128: 63.8974647
A129: 2025/26 | B129: =IFERROR(B19+B41+B63+B85+B107,0) -> 6143994.362 | C129: 3156867.084 | D129: 6512.665912 | E129: 19945.25466 | F129: 1538.091447 | G129: 0 | H129: 3857.95429 | I129: 314.3154457 | J129: 866.8561995 | K129: 200
A130: ='General Inputs'!$AC$17 -> 2026/27 | B130: =IFERROR(B20+B42+B64+B86+B108,0) -> 5885280.036 | C130: 3132052.699 | D130: 6512.665912 | E130: 19945.25466 | F130: 1538.091447 | G130: 0 | H130: 3857.95429 | I130: 314.3154457 | J130: 866.8561995 | K130: 200
A131: ='General Inputs'!$AD$17 -> 2027/28 | B131: =IFERROR(B21+B43+B65+B87+B109,0) -> 5632531.488 | C131: 3104469.342 | D131: 6480.122499 | E131: 19800.75685 | F131: 1525.156948 | G131: 0 | H131: 3809.729862 | I131: 314.3154457 | J131: 861.5553937 | K131: 200
A132: ='General Inputs'!$AE$17 -> 2028/29 | B132: =IFERROR(B22+B44+B66+B88+B110,0) -> 5309084.075 | C132: 3073424.403 | D132: 6448.580568 | E132: 19659.99543 | F132: 1512.49562 | G132: 0 | H132: 3762.108239 | I132: 314.3154457 | J132: 856.3882101 | K132: 200
A133: ='General Inputs'!$AF$17 -> 2029/30 | B133: =IFERROR(B23+B45+B67+B89+B111,0) -> 4992987.362 | C133: 3031820.236 | D133: 6418.017438 | E133: 19522.89108 | F133: 1500.10126 | G133: 0 | H133: 3715.081886 | I133: 314.3154457 | J133: 851.351148 | K133: 200
A134: ='General Inputs'!$AG$17 -> 2030/31 | B134: =IFERROR(B24+B46+B68+B90+B112,0) -> 4689273.491 | C134: 2980818.579 | D134: 6388.411018 | E134: 19389.36645 | F134: 1487.967808 | G134: 0 | H134: 3668.643362 | I134: 314.3154457 | J134: 846.4408017 | K134: 200

Sheet RAB Calculations (hidden)
B1: ="ENVESTRA - Cost allocation model for "&'General Inputs'!#REF!&" ("&'General Inputs'!#REF!&")" -> 
B2: Regulatory Asset Base Calculations
B7: Period Ending 30 June | J7: 2005 | K7: =J7+1 -> 2006 | L7: 2007 | M7: 2008 | N7: 2009 | O7: 2010 | P7: 2011
B11: Summary of Regulatory Asset Base Calculations (in $million)
C12: Depreciation | I12: 5-year NPV
E13: Mains and Inlets | I13: =NPV(realpretaxwacc,L13:P13) -> 40.73558768 | K13: =K82 ->  | L13: 8.229431322 | M13: 8.78436781 | N13: 9.515194969 | O13: 10.16377271 | P13: 10.82815563
E14: Meters | I14: 17.40318733 | K14: =K183 ->  | L14: 3.243611481 | M14: 3.611067427 | N14: 4.062632668 | O14: 4.501658544 | P14: 4.958169578
E15: Telemetry | I15: 0.3471403091 | K15: =+K278 ->  | L15: 0.0330111862 | M15: 0.06029364986 | N15: 0.08374465191 | O15: 0.1062534621 | P15: 0.1309245159
E16: IT Systems | I16: 10.63688313 | K16: =+K383 ->  | L16: 0.9268954705 | M16: 1.76269944 | N16: 3.015914533 | O16: 3.46894675 | P16: 3.492349319
E17: Other Distribution Equipment | I17: 29.53885394 | K17: =+K483 ->  | L17: 6.367853716 | M17: 6.551339947 | N17: 6.851877563 | O17: 7.128210712 | P17: 7.459560126
E18: Other Assets | I18: 4.552287676 | K18: =+K583 ->  | L18: 0.8634685565 | M18: 0.9572901887 | N18: 1.073771653 | O18: 1.166238008 | P18: 1.263487708
D19: Total | I19: =SUM(I13:I18) -> 103.2139401 | K19: =SUM(K13:K18) ->  | L19: 19.66427173 | M19: 21.72705846 | N19: 24.60313604 | O19: 26.53508018 | P19: 28.13264688
C22: Asset return
E23: =E13 -> Mains and Inlets | I23: =NPV(NompretaxWACC,L23:P23) -> 159.6043231 | K23: =K115 ->  | L23: 34.74441109 | M23: 37.37545493 | N23: 40.33128804 | O23: 42.7832982 | P23: 45.24680553
E24: Meters | I24: 20.31314774 | K24: =K216 ->  | L24: 4.177223692 | M24: 4.642658937 | N24: 5.147506284 | O24: 5.600869307 | P24: 6.046685691
E25: Telemetry | I25: 0.93363369 | K25: =K316 ->  | L25: 0.09569911621 | M25: 0.1788543451 | N25: 0.2475225934 | O25: 0.3113030984 | P25: 0.3801311603
E26: IT Systems | I26: 1.80261905 | K26: =K416 ->  | L26: 0.1789110276 | M26: 0.3561481222 | N26: 0.591988572 | O26: 0.6408343434 | P26: 0.5530043123
E27: Other Distribution Equipment | I27: 53.06223547 | K27: =K516 ->  | L27: 12.83080704 | M27: 13.00539173 | N27: 13.23487476 | O27: 13.39594608 | P27: 13.68721066
E28: Other Assets | I28: 1.105879241 | K28: =K616 ->  | L28: 0.292352449 | M28: 0.2915760343 | N28: 0.2874172275 | O28: 0.2620369925 | P28: 0.2309973587
D29: =D19 -> Total | I29: =SUM(I23:I28) -> 236.8218383 | K29: =SUM(K23:K28) ->  | L29: 52.31940442 | M29: 55.8500841 | N29: 59.84059748 | O29: 62.99428802 | P29: 66.14483471
C32: Closing written down value
E33: =E23 -> Mains and Inlets | K33: =K147 -> 
E34: =E24 -> Meters | K34: =K247 -> 
E35: Telemetry | K35: =K347 -> 
E36: IT Systems | K36: =K447 -> 
E37: Other Distribution Equipment | K37: =K547 -> 
E38: Other Assets | K38: =K647 -> 
D39: Total | I39: =SUM(I33:I38) -> 0 | K39: =SUM(K34:K38) ->  | L39: =SUM(L33:L38) ->  | M39: =SUM(M33:M38) ->  | N39: =SUM(N33:N38) ->  | O39: =SUM(O33:O38) ->  | P39: =SUM(P33:P38) -> 
C46: Index
D47: For initial capital base and 2005/06 capex | J47: 1 | K47: =J47*(1+'General Inputs'!$B$13) -> 1.025 | L47: =K47*(1+'General Inputs'!$B$13) -> 1.050625 | M47: =L47*(1+'General Inputs'!$B$13) -> 1.076890625 | N47: =M47*(1+'General Inputs'!$B$13) -> 1.103812891 | O47: =N47*(1+'General Inputs'!$B$13) -> 1.131408213 | P47: =O47*(1+'General Inputs'!$B$13) -> 1.159693418
D48: For capex from | G48: 2005/06 | K48: 1 | L48: =K48*(1+'General Inputs'!$B$13) -> 1.025 | M48: =L48*(1+'General Inputs'!$B$13) -> 1.050625 | N48: =M48*(1+'General Inputs'!$B$13) -> 1.076890625 | O48: =N48*(1+'General Inputs'!$B$13) -> 1.103812891 | P48: =O48*(1+'General Inputs'!$B$13) -> 1.131408213
G49: 2006/07 | L49: 1 | M49: =L49*(1+'General Inputs'!$B$13) -> 1.025 | N49: =M49*(1+'General Inputs'!$B$13) -> 1.050625 | O49: =N49*(1+'General Inputs'!$B$13) -> 1.076890625 | P49: =O49*(1+'General Inputs'!$B$13) -> 1.103812891
G50: 2007/08 | M50: 1 | N50: =M50*(1+'General Inputs'!$B$13) -> 1.025 | O50: =N50*(1+'General Inputs'!$B$13) -> 1.050625 | P50: =O50*(1+'General Inputs'!$B$13) -> 1.076890625
G51: 2008/09 | N51: 1 | O51: =N51*(1+'General Inputs'!$B$13) -> 1.025 | P51: =O51*(1+'General Inputs'!$B$13) -> 1.050625
G52: 2009/10 | O52: 1 | P52: =O52*(1+'General Inputs'!$B$13) -> 1.025
G53: 2010/11 | P53: 1
B60: RAB Calculations
C61: ="Asset Class 1 - "&E13 -> Asset Class 1 - Mains and Inlets
C63: Real calculations
D65: Real asset value
E67: Opening balance | K67: =#REF! ->  | L67: =K75 ->  | M67: =L75 ->  | N67: =M75 ->  | O67: =N75 ->  | P67: =O75 -> 
E69: Capex
F70: First 50% | K70: =#REF!/2 ->  | L70: =#REF!/2 ->  | M70: =#REF!/2 ->  | N70: =#REF!/2 ->  | O70: =#REF!/2 ->  | P70: =#REF!/2 -> 
F71: Remainder | K71: =K70 -> 
E73: Depreciation | K73: =K77 -> 
E75: Closing balance | K75: =-K73+K71+K70+K67 -> 
E77: Depreciation | J77: ='General Inputs'!#REF! ->  | K77: ='General Inputs'!#REF! ->  | L77: ='General Inputs'!#REF! ->  | M77: ='General Inputs'!#REF! ->  | N77: ='General Inputs'!#REF! ->  | O77: ='General Inputs'!#REF! ->  | P77: ='General Inputs'!#REF! -> 
C80: Depreciation
D82: Total depreciation | J82: =J77 -> 
C85: Asset Returns
D87: Initial assets
E88: Regulatory value of initial assets | K88: =IF($K82=0,0,$K67*'RAB Calculations'!K$47*('RAB Calculations'!K82/'RAB Calculations'!$K82)) ->  | L88: =IF($K82=0,0,$K67*'RAB Calculations'!L$47*('RAB Calculations'!L82/'RAB Calculations'!$K82)) ->  | M88: =IF($K82=0,0,$K67*'RAB Calculations'!M$47*('RAB Calculations'!M82/'RAB Calculations'!$K82)) ->  | N88: =IF($K82=0,0,$K67*'RAB Calculations'!N$47*('RAB Calculations'!N82/'RAB Calculations'!$K82)) ->  | O88: =IF($K82=0,0,$K67*'RAB Calculations'!O$47*('RAB Calculations'!O82/'RAB Calculations'!$K82)) ->  | P88: =IF($K82=0,0,$K67*'RAB Calculations'!P$47*('RAB Calculations'!P82/'RAB Calculations'!$K82)) -> 
D91: Capex
E92: Regulatory value of remainder of year1 capex | K92: =$K70*'RAB Calculations'!K$47 ->  | L92: =$K70*'RAB Calculations'!L$47 ->  | M92: =$K70*'RAB Calculations'!M$47 ->  | N92: =$K70*'RAB Calculations'!N$47 ->  | O92: =$K70*'RAB Calculations'!O$47 ->  | P92: =$K70*'RAB Calculations'!P$47 -> 
E93: cost base of 50% of capex
F94: Year 1 capex | K94: =$K70*'RAB Calculations'!K$47 ->  | L94: =$K70*'RAB Calculations'!L$47 ->  | M94: =$K70*'RAB Calculations'!M$47 ->  | N94: =$K70*'RAB Calculations'!N$47 ->  | O94: =$K70*'RAB Calculations'!O$47 ->  | P94: =$K70*'RAB Calculations'!P$47 -> 
F95: Year 2 capex | L95: =$L70*'RAB Calculations'!L$48 ->  | M95: =$L70*'RAB Calculations'!M$48 ->  | N95: =$L70*'RAB Calculations'!N$48 ->  | O95: =$L70*'RAB Calculations'!O$48 ->  | P95: =$L70*'RAB Calculations'!P$48 -> 
F96: Year 3 capex | M96: =$M70*'RAB Calculations'!M$49 ->  | N96: =$M70*'RAB Calculations'!N$49 ->  | O96: =$M70*'RAB Calculations'!O$49 ->  | P96: =$M70*'RAB Calculations'!P$49 -> 
F97: Year 4 capex | N97: =$N70*'RAB Calculations'!N$50 ->  | O97: =$N70*'RAB Calculations'!O$50 ->  | P97: =$N70*'RAB Calculations'!P$50 -> 
F98: Year 5 capex | O98: =$O70*'RAB Calculations'!O$51 ->  | P98: =$O70*'RAB Calculations'!P$51 -> 
F99: Year 6 capex | P99: =$P70*'RAB Calculations'!P$52 -> 
D100: Total | K100: =SUM(K94:K99) -> 
D103: Asset returns
E104: Regulatory value of initial assets for return purposes
F105: cost base | K105: =$K67*'RAB Calculations'!K$47 ->  | L105: =$K67*'RAB Calculations'!L$47 ->  | M105: =$K67*'RAB Calculations'!M$47 ->  | N105: =$K67*'RAB Calculations'!N$47 ->  | O105: =$K67*'RAB Calculations'!O$47 ->  | P105: =$K67*'RAB Calculations'!P$47 -> 
E106: Value of Year 1 remainder assets for return purposes
F107: cost base | K107: =$K92/'RAB Calculations'!$K$48*'RAB Calculations'!K$48 ->  | L107: =$K92/'RAB Calculations'!$K$48*'RAB Calculations'!L$48 ->  | M107: =$K92/'RAB Calculations'!$K$48*'RAB Calculations'!M$48 ->  | N107: =$K92/'RAB Calculations'!$K$48*'RAB Calculations'!N$48 ->  | O107: =$K92/'RAB Calculations'!$K$48*'RAB Calculations'!O$48 ->  | P107: =$K92/'RAB Calculations'!$K$48*'RAB Calculations'!P$48 -> 
E108: WDV of 50% of capex
F109: cost base | K109: =K94 ->  | L109: =K109*(1+'General Inputs'!$B$13)+'RAB Calculations'!L95 ->  | M109: =L109*(1+'General Inputs'!$B$13)+'RAB Calculations'!M96 ->  | N109: =M109*(1+'General Inputs'!$B$13)+'RAB Calculations'!N97 ->  | O109: =N109*(1+'General Inputs'!$B$13)+'RAB Calculations'!O98 ->  | P109: =O109*(1+'General Inputs'!$B$13)+'RAB Calculations'!P99 -> 
F111: accumulated depreciation (to start of year) | K111: =J82*'RAB Calculations'!K$47 ->  | L111: =(K111+K82)*(1+'General Inputs'!$B$13) ->  | M111: =(L111+L82)*(1+'General Inputs'!$B$13) ->  | N111: =(M111+M82)*(1+'General Inputs'!$B$13) ->  | O111: =(N111+N82)*(1+'General Inputs'!$B$13) ->  | P111: =(O111+O82)*(1+'General Inputs'!$B$13) -> 
E113: Total WDV of 50% of capex | K113: =K105-K111+K109+(K109+((J109-(J109/'RAB Calculations'!$J$47*'RAB Calculations'!I47)))+K70) ->  | L113: =L105-L111+L109+(L109+((K109-(K109/'RAB Calculations'!$J$47*'RAB Calculations'!J$47)))+L70) ->  | M113: =M105-M111+M109+(M109+((L109-(L109/'RAB Calculations'!$J$47*'RAB Calculations'!K$47)))+M70) ->  | N113: =N105-N111+N109+(N109+((M109-(M109/'RAB Calculations'!$J$47*'RAB Calculations'!L$47)))+N70) ->  | O113: =O105-O111+O109+(O109+((N109-(N109/'RAB Calculations'!$J$47*'RAB Calculations'!M$47)))+O70) ->  | P113: =P105-P111+P109+(P109+((O109-(O109/'RAB Calculations'!$J$47*'RAB Calculations'!N$47)))+P70) -> 
D115: Total asset returns | K115: =(K105+K109-K111)*'General Inputs'!$B$14 ->  | L115: =(L105+L109-L111)*'General Inputs'!$B$14+((K109-($K109/'RAB Calculations'!$K$47*'RAB Calculations'!K$47)))*'General Inputs'!$B$14+L107*'General Inputs'!$B$14 ->  | M115: =(M105+M109-M111)*'General Inputs'!$B$14+((L109-($K109/'RAB Calculations'!$K$47*'RAB Calculations'!L$47)))*'General Inputs'!$B$14+M107*'General Inputs'!$B$14 ->  | N115: =(N105+N109-N111)*'General Inputs'!$B$14+((M109-($K109/'RAB Calculations'!$K$47*'RAB Calculations'!M$47)))*'General Inputs'!$B$14+N107*'General Inputs'!$B$14 ->  | O115: =(O105+O109-O111)*'General Inputs'!$B$14+((N109-($K109/'RAB Calculations'!$K$47*'RAB Calculations'!N$47)))*'General Inputs'!$B$14+O107*'General Inputs'!$B$14 ->  | P115: =(P105+P109-P111)*'General Inputs'!$B$14+((O109-($K109/'RAB Calculations'!$K$47*'RAB Calculations'!O$47)))*'General Inputs'!$B$14+P107*'General Inputs'!$B$14 -> 
C119: Proof of Calculations
D121: Initial assets
E122: Opening balance | L122: =K88-K82-K111 -> 
D124: First 50% of capex
E125: Spend | K125: =K70 -> 
E126: Carried forward balance | L126: =K94 -> 
E127: NPV at nominal WACC of | I127: ='General Inputs'!B15 -> 0.07742305714 | L127: =L126+L125+NPV(I127,M125:P125) -> 
D129: Remainder of capex
E130: Spend | K130: =K71 -> 
E131: Carried forward balance | L131: =K92 -> 
E132: NPV at nominal WACC of | I132: =I127 -> 0.07742305714 | L132: =L131+NPV(I132,L130:P130) -> 
L133: =L135-L127-L132 -> 
D135: Total opening balance | L135: =L122+L127+L132 -> 
E136: Revenue stream
F137: depreciation | L137: =L82 ->  | M137: =M82 ->  | N137: =N82 ->  | O137: =O82 ->  | P137: =P82 -> 
F138: Return on assets | L138: =L115 ->  | M138: =M115 ->  | N138: =N115 ->  | O138: =O115 ->  | P138: =P115 -> 
F139: Residual value
F140: residual value of initial assets | P140: =(P105-P111-P137+P109+P107+P130)+(O109-(K109/'RAB Calculations'!K47*'RAB Calculations'!O47)) -> 
F141: residual value of remainder of capex
E142: Total | L142: =L137+L138+L140 ->  | M142: =M137+M138+M140 ->  | N142: =N137+N138+N140 ->  | O142: =O137+O138+O140 ->  | P142: =P137+P138+P140 -> 
E144: NPV at nominal WACC of | I144: =I132 -> 0.07742305714 | L144: =NPV(I144,L142:P142) ->  | M144: =L135-L144 -> 
F145: Check | L145: =IF(ROUND(L135-L144,5)=0,"ok","problem") -> 
D147: Closing written down value | K147: =K105-K111-K82+K100+K109 -> 
B161: RAB Calculations
C162: ="Asset Class 2 - "&E14 -> Asset Class 2 - Meters
C164: Real calculations
D166: Real asset value
E168: Opening balance | K168: =#REF! ->  | L168: =K176 ->  | M168: =L176 ->  | N168: =M176 ->  | O168: =N176 ->  | P168: =O176 -> 
E170: Capex
F171: First 50% | K171: =#REF!/2 ->  | L171: =#REF!/2 ->  | M171: =#REF!/2 ->  | N171: =#REF!/2 ->  | O171: =#REF!/2 ->  | P171: =#REF!/2 -> 
F172: Remainder | K172: =K171 -> 
E174: Depreciation | K174: =K178 -> 
E176: Closing balance | K176: =-K174+K172+K171+K168 -> 
E178: Depreciation | J178: ='General Inputs'!#REF! ->  | K178: ='General Inputs'!#REF! ->  | L178: ='General Inputs'!#REF! ->  | M178: ='General Inputs'!#REF! ->  | N178: ='General Inputs'!#REF! ->  | O178: ='General Inputs'!#REF! ->  | P178: ='General Inputs'!#REF! -> 
C181: Depreciation
D183: Total depreciation | J183: =J178 -> 
C186: Asset Returns
D188: Initial assets
E189: Regulatory value of initial assets | K189: =IF($K183=0,0,$K168*'RAB Calculations'!K$47*('RAB Calculations'!K183/'RAB Calculations'!$K183)) ->  | L189: =IF($K183=0,0,$K168*'RAB Calculations'!L$47*('RAB Calculations'!L183/'RAB Calculations'!$K183)) ->  | M189: =IF($K183=0,0,$K168*'RAB Calculations'!M$47*('RAB Calculations'!M183/'RAB Calculations'!$K183)) ->  | N189: =IF($K183=0,0,$K168*'RAB Calculations'!N$47*('RAB Calculations'!N183/'RAB Calculations'!$K183)) ->  | O189: =IF($K183=0,0,$K168*'RAB Calculations'!O$47*('RAB Calculations'!O183/'RAB Calculations'!$K183)) ->  | P189: =IF($K183=0,0,$K168*'RAB Calculations'!P$47*('RAB Calculations'!P183/'RAB Calculations'!$K183)) -> 
D192: Capex
E193: Regulatory value of remainder of year1 capex | K193: =$K171*'RAB Calculations'!K$47 ->  | L193: =$K171*'RAB Calculations'!L$47 ->  | M193: =$K171*'RAB Calculations'!M$47 ->  | N193: =$K171*'RAB Calculations'!N$47 ->  | O193: =$K171*'RAB Calculations'!O$47 ->  | P193: =$K171*'RAB Calculations'!P$47 -> 
E194: cost base of 50% of capex
F195: Year 1 capex | K195: =$K171*'RAB Calculations'!K$47 ->  | L195: =$K171*'RAB Calculations'!L$47 ->  | M195: =$K171*'RAB Calculations'!M$47 ->  | N195: =$K171*'RAB Calculations'!N$47 ->  | O195: =$K171*'RAB Calculations'!O$47 ->  | P195: =$K171*'RAB Calculations'!P$47 -> 
F196: Year 2 capex | L196: =$L171*'RAB Calculations'!L$48 ->  | M196: =$L171*'RAB Calculations'!M$48 ->  | N196: =$L171*'RAB Calculations'!N$48 ->  | O196: =$L171*'RAB Calculations'!O$48 ->  | P196: =$L171*'RAB Calculations'!P$48 -> 
F197: Year 3 capex | M197: =$M171*'RAB Calculations'!M$49 ->  | N197: =$M171*'RAB Calculations'!N$49 ->  | O197: =$M171*'RAB Calculations'!O$49 ->  | P197: =$M171*'RAB Calculations'!P$49 -> 
F198: Year 4 capex | N198: =$N171*'RAB Calculations'!N$50 ->  | O198: =$N171*'RAB Calculations'!O$50 ->  | P198: =$N171*'RAB Calculations'!P$50 -> 
F199: Year 5 capex | O199: =$O171*'RAB Calculations'!O$51 ->  | P199: =$O171*'RAB Calculations'!P$51 -> 
F200: Year 6 capex | P200: =$P171*'RAB Calculations'!P$52 -> 
D201: Total | K201: =SUM(K195:K200) -> 
D204: Asset returns
E205: Regulatory value of initial assets for return purposes
F206: cost base | K206: =$K168*'RAB Calculations'!K$47 ->  | L206: =$K168*'RAB Calculations'!L$47 ->  | M206: =$K168*'RAB Calculations'!M$47 ->  | N206: =$K168*'RAB Calculations'!N$47 ->  | O206: =$K168*'RAB Calculations'!O$47 ->  | P206: =$K168*'RAB Calculations'!P$47 -> 
E207: Value of Year 1 remainder assets for return purposes
F208: cost base | K208: =$K193/'RAB Calculations'!$K$48*'RAB Calculations'!K$48 ->  | L208: =$K193/'RAB Calculations'!$K$48*'RAB Calculations'!L$48 ->  | M208: =$K193/'RAB Calculations'!$K$48*'RAB Calculations'!M$48 ->  | N208: =$K193/'RAB Calculations'!$K$48*'RAB Calculations'!N$48 ->  | O208: =$K193/'RAB Calculations'!$K$48*'RAB Calculations'!O$48 ->  | P208: =$K193/'RAB Calculations'!$K$48*'RAB Calculations'!P$48 -> 
E209: WDV of 50% of capex
F210: cost base | K210: =K195 ->  | L210: =K210*(1+'General Inputs'!$B$13)+'RAB Calculations'!L196 ->  | M210: =L210*(1+'General Inputs'!$B$13)+'RAB Calculations'!M197 ->  | N210: =M210*(1+'General Inputs'!$B$13)+'RAB Calculations'!N198 ->  | O210: =N210*(1+'General Inputs'!$B$13)+'RAB Calculations'!O199 ->  | P210: =O210*(1+'General Inputs'!$B$13)+'RAB Calculations'!P200 -> 
F212: accumulated depreciation (to start of year) | K212: =J183*'RAB Calculations'!K$47 ->  | L212: =(K212+K183)*(1+'General Inputs'!$B$13) ->  | M212: =(L212+L183)*(1+'General Inputs'!$B$13) ->  | N212: =(M212+M183)*(1+'General Inputs'!$B$13) ->  | O212: =(N212+N183)*(1+'General Inputs'!$B$13) ->  | P212: =(O212+O183)*(1+'General Inputs'!$B$13) -> 
E214: Total WDV of 50% of capex | K214: =K206-K212+K210+(K210+((J210-(J210/'RAB Calculations'!$J$47*'RAB Calculations'!$I$47)))+K171) ->  | L214: =L206-L212+L210+(L210+((K210-(K210/'RAB Calculations'!$J$47*'RAB Calculations'!J$47)))+L171) ->  | M214: =M206-M212+M210+(M210+((L210-(L210/'RAB Calculations'!$J$47*'RAB Calculations'!K$47)))+M171) ->  | N214: =N206-N212+N210+(N210+((M210-(M210/'RAB Calculations'!$J$47*'RAB Calculations'!L$47)))+N171) ->  | O214: =O206-O212+O210+(O210+((N210-(N210/'RAB Calculations'!$J$47*'RAB Calculations'!M$47)))+O171) ->  | P214: =P206-P212+P210+(P210+((O210-(O210/'RAB Calculations'!$J$47*'RAB Calculations'!N$47)))+P171) -> 
D216: Total asset returns | K216: =(K206+K210-K212)*'General Inputs'!$B$14 ->  | L216: =(L206+L210-L212)*'General Inputs'!$B$14+((K210-($K210/'RAB Calculations'!$K$47*'RAB Calculations'!K$47)))*'General Inputs'!$B$14+L208*'General Inputs'!$B$14 ->  | M216: =(M206+M210-M212)*'General Inputs'!$B$14+((L210-($K210/'RAB Calculations'!$K$47*'RAB Calculations'!L$47)))*'General Inputs'!$B$14+M208*'General Inputs'!$B$14 ->  | N216: =(N206+N210-N212)*'General Inputs'!$B$14+((M210-($K210/'RAB Calculations'!$K$47*'RAB Calculations'!M$47)))*'General Inputs'!$B$14+N208*'General Inputs'!$B$14 ->  | O216: =(O206+O210-O212)*'General Inputs'!$B$14+((N210-($K210/'RAB Calculations'!$K$47*'RAB Calculations'!N$47)))*'General Inputs'!$B$14+O208*'General Inputs'!$B$14 ->  | P216: =(P206+P210-P212)*'General Inputs'!$B$14+((O210-($K210/'RAB Calculations'!$K$47*'RAB Calculations'!O$47)))*'General Inputs'!$B$14+P208*'General Inputs'!$B$14 -> 
C219: Proof of Calculations
D221: Initial assets
E222: Opening balance | L222: =K189-K183-K212 -> 
D224: First 50% of capex
E225: Spend | K225: =K171 -> 
E226: Carried forward balance | L226: =K195 -> 
E227: NPV at nominal WACC of | I227: =NompretaxWACC -> 0.07742305714 | L227: =L226+L225+NPV(I227,M225:P225) -> 
D229: Remainder of capex
E230: Spend | K230: =K172 -> 
E231: Carried forward balance | L231: =K193 -> 
E232: NPV at nominal WACC of | I232: =I227 -> 0.07742305714 | L232: =L231+NPV(I232,L230:P230) -> 
L233: =L235-L227-L232 -> 
D235: Total opening balance | L235: =L222+L227+L232 -> 
E236: Revenue stream
F237: depreciation | L237: =L183 ->  | M237: =M183 ->  | N237: =N183 ->  | O237: =O183 ->  | P237: =P183 -> 
F238: Return on assets | L238: =L216 ->  | M238: =M216 ->  | N238: =N216 ->  | O238: =O216 ->  | P238: =P216 -> 
F239: Residual value
F240: residual value of initial assets | P240: =(P206-P212-P237+P210)+P208+P230+(O210-(K210/'RAB Calculations'!K47*'RAB Calculations'!O47)) -> 
F241: residual value of remainder of capex
E242: Total | L242: =L237+L238+L240 ->  | M242: =M237+M238+M240 ->  | N242: =N237+N238+N240 ->  | O242: =O237+O238+O240 ->  | P242: =P237+P238+P240 -> 
E244: NPV at nominal WACC of | I244: =I232 -> 0.07742305714 | L244: =NPV(I244,L242:P242) ->  | M244: =L235-L244 -> 
F245: Check | L245: =IF(ROUND(L235-L244,5)=0,"ok","problem") -> 
D247: Closing written down value | K247: =K206-K212-K183+K201+K210 -> 
B261: RAB Calculations
C262: ="Asset Class 3 - "&E15 -> Asset Class 3 - Telemetry
C264: Real calculations
D266: Real asset value
E268: Opening balance | K268: =#REF! ->  | L268: =K276 ->  | M268: =L276 ->  | N268: =M276 ->  | O268: =N276 ->  | P268: =O276 -> 
E270: Capex
F271: First 50% | K271: =#REF!/2 ->  | L271: =#REF!/2 ->  | M271: =#REF!/2 ->  | N271: =#REF!/2 ->  | O271: =#REF!/2 ->  | P271: =#REF!/2 -> 
F272: Remainder | K272: =K271 -> 
E274: Depreciation | K274: =K278 -> 
E276: Closing balance | K276: =-K274+K272+K271+K268 -> 
E278: Depreciation | J278: ='General Inputs'!#REF! ->  | K278: ='General Inputs'!#REF! ->  | L278: ='General Inputs'!#REF! ->  | M278: ='General Inputs'!#REF! ->  | N278: ='General Inputs'!#REF! ->  | O278: ='General Inputs'!#REF! ->  | P278: ='General Inputs'!#REF! -> 
C281: Depreciation
D283: Total depreciation | J283: =J278 -> 
C286: Asset Returns
D288: Initial assets
E289: Regulatory value of initial assets | K289: =IF($K283=0,0,$K268*'RAB Calculations'!K$47*('RAB Calculations'!K283/'RAB Calculations'!$K283)) ->  | L289: =IF($K283=0,0,$K268*'RAB Calculations'!L$47*('RAB Calculations'!L283/'RAB Calculations'!$K283)) ->  | M289: =IF($K283=0,0,$K268*'RAB Calculations'!M$47*('RAB Calculations'!M283/'RAB Calculations'!$K283)) ->  | N289: =IF($K283=0,0,$K268*'RAB Calculations'!N$47*('RAB Calculations'!N283/'RAB Calculations'!$K283)) ->  | O289: =IF($K283=0,0,$K268*'RAB Calculations'!O$47*('RAB Calculations'!O283/'RAB Calculations'!$K283)) ->  | P289: =IF($K283=0,0,$K268*'RAB Calculations'!P$47*('RAB Calculations'!P283/'RAB Calculations'!$K283)) -> 
D292: Capex
E293: Regulatory value of remainder of year1 capex | K293: =$K271*'RAB Calculations'!K$47 ->  | L293: =$K271*'RAB Calculations'!L$47 ->  | M293: =$K271*'RAB Calculations'!M$47 ->  | N293: =$K271*'RAB Calculations'!N$47 ->  | O293: =$K271*'RAB Calculations'!O$47 ->  | P293: =$K271*'RAB Calculations'!P$47 -> 
E294: cost base of 50% of capex
F295: Year 1 capex | K295: =$K271*'RAB Calculations'!K$47 ->  | L295: =$K271*'RAB Calculations'!L$47 ->  | M295: =$K271*'RAB Calculations'!M$47 ->  | N295: =$K271*'RAB Calculations'!N$47 ->  | O295: =$K271*'RAB Calculations'!O$47 ->  | P295: =$K271*'RAB Calculations'!P$47 -> 
F296: Year 2 capex | L296: =$L271*'RAB Calculations'!L$48 ->  | M296: =$L271*'RAB Calculations'!M$48 ->  | N296: =$L271*'RAB Calculations'!N$48 ->  | O296: =$L271*'RAB Calculations'!O$48 ->  | P296: =$L271*'RAB Calculations'!P$48 -> 
F297: Year 3 capex | M297: =$M271*'RAB Calculations'!M$49 ->  | N297: =$M271*'RAB Calculations'!N$49 ->  | O297: =$M271*'RAB Calculations'!O$49 ->  | P297: =$M271*'RAB Calculations'!P$49 -> 
F298: Year 4 capex | N298: =$N271*'RAB Calculations'!N$50 ->  | O298: =$N271*'RAB Calculations'!O$50 ->  | P298: =$N271*'RAB Calculations'!P$50 -> 
F299: Year 5 capex | O299: =$O271*'RAB Calculations'!O$51 ->  | P299: =$O271*'RAB Calculations'!P$51 -> 
F300: Year 6 capex | P300: =$P271*'RAB Calculations'!P$52 -> 
D301: Total | K301: =SUM(K295:K300) -> 
D304: Asset returns
E305: Regulatory value of initial assets for return purposes
F306: cost base | K306: =$K268*'RAB Calculations'!K$47 ->  | L306: =$K268*'RAB Calculations'!L$47 ->  | M306: =$K268*'RAB Calculations'!M$47 ->  | N306: =$K268*'RAB Calculations'!N$47 ->  | O306: =$K268*'RAB Calculations'!O$47 ->  | P306: =$K268*'RAB Calculations'!P$47 -> 
E307: Value of Year 1 remainder assets for return purposes
F308: cost base | K308: =$K293/'RAB Calculations'!$K$48*'RAB Calculations'!K$48 ->  | L308: =$K293/'RAB Calculations'!$K$48*'RAB Calculations'!L$48 ->  | M308: =$K293/'RAB Calculations'!$K$48*'RAB Calculations'!M$48 ->  | N308: =$K293/'RAB Calculations'!$K$48*'RAB Calculations'!N$48 ->  | O308: =$K293/'RAB Calculations'!$K$48*'RAB Calculations'!O$48 ->  | P308: =$K293/'RAB Calculations'!$K$48*'RAB Calculations'!P$48 -> 
E309: WDV of 50% of capex
F310: cost base | K310: =K295 ->  | L310: =K310*(1+'General Inputs'!$B$13)+'RAB Calculations'!L296 ->  | M310: =L310*(1+'General Inputs'!$B$13)+'RAB Calculations'!M297 ->  | N310: =M310*(1+'General Inputs'!$B$13)+'RAB Calculations'!N298 ->  | O310: =N310*(1+'General Inputs'!$B$13)+'RAB Calculations'!O299 ->  | P310: =O310*(1+'General Inputs'!$B$13)+'RAB Calculations'!P300 -> 
F312: accumulated depreciation (to start of year) | K312: =J283*'RAB Calculations'!K$47 ->  | L312: =(K312+K283)*(1+'General Inputs'!$B$13) ->  | M312: =(L312+L283)*(1+'General Inputs'!$B$13) ->  | N312: =(M312+M283)*(1+'General Inputs'!$B$13) ->  | O312: =(N312+N283)*(1+'General Inputs'!$B$13) ->  | P312: =(O312+O283)*(1+'General Inputs'!$B$13) -> 
E314: Total WDV of 50% of capex | K314: =K306-K312+K310+(K310+((J310-(J310/'RAB Calculations'!$J$47*'RAB Calculations'!I$47)))+K271) ->  | L314: =L306-L312+L310+(L310+((K310-(K310/'RAB Calculations'!$J$47*'RAB Calculations'!J$47)))+L271) ->  | M314: =M306-M312+M310+(M310+((L310-(L310/'RAB Calculations'!$J$47*'RAB Calculations'!K$47)))+M271) ->  | N314: =N306-N312+N310+(N310+((M310-(M310/'RAB Calculations'!$J$47*'RAB Calculations'!L$47)))+N271) ->  | O314: =O306-O312+O310+(O310+((N310-(N310/'RAB Calculations'!$J$47*'RAB Calculations'!M$47)))+O271) ->  | P314: =P306-P312+P310+(P310+((O310-(O310/'RAB Calculations'!$J$47*'RAB Calculations'!N$47)))+P271) -> 
D316: Total asset returns | K316: =(K306+K310-K312)*'General Inputs'!$B$14 ->  | L316: =(L306+L310-L312)*'General Inputs'!$B$14+((K310-($K310/'RAB Calculations'!$K$47*'RAB Calculations'!K$47)))*'General Inputs'!$B$14+L308*'General Inputs'!$B$14 ->  | M316: =(M306+M310-M312)*'General Inputs'!$B$14+((L310-($K310/'RAB Calculations'!$K$47*'RAB Calculations'!L$47)))*'General Inputs'!$B$14+M308*'General Inputs'!$B$14 ->  | N316: =(N306+N310-N312)*'General Inputs'!$B$14+((M310-($K310/'RAB Calculations'!$K$47*'RAB Calculations'!M$47)))*'General Inputs'!$B$14+N308*'General Inputs'!$B$14 ->  | O316: =(O306+O310-O312)*'General Inputs'!$B$14+((N310-($K310/'RAB Calculations'!$K$47*'RAB Calculations'!N$47)))*'General Inputs'!$B$14+O308*'General Inputs'!$B$14 ->  | P316: =(P306+P310-P312)*'General Inputs'!$B$14+((O310-($K310/'RAB Calculations'!$K$47*'RAB Calculations'!O$47)))*'General Inputs'!$B$14+P308*'General Inputs'!$B$14 -> 
C319: Proof of Calculations
D321: Initial assets
E322: Opening balance | L322: =K289-K283-K312 -> 
D324: First 50% of capex
E325: Spend | K325: =K271 -> 
E326: Carried forward balance | L326: =K295 -> 
E327: NPV at nominal WACC of | I327: =NompretaxWACC -> 0.07742305714 | L327: =L326+L325+NPV(I327,M325:P325) -> 
D329: Remainder of capex
E330: Spend | K330: =K272 -> 
E331: Carried forward balance | L331: =K293 -> 
... 186 more rows

Sheet Tariff Inputs
A1: Tariff Inputs
A4: ='General Inputs'!B30 -> Residential 1 | B4: ='General Inputs'!$I$17 -> 2006/07 | C4: ='General Inputs'!$J$17 -> 2007/08 | D4: ='General Inputs'!$K$17 -> 2008/09 | E4: ='General Inputs'!$L$17 -> 2009/10 | F4: ='General Inputs'!$M$17 -> 2010/11 | G4: ='General Inputs'!$N$17 -> 2011/12 | H4: ='General Inputs'!$O$17 -> 2012/13 | I4: ='General Inputs'!$P$17 -> 2013/14 | J4: ='General Inputs'!$Q$17 -> 2014/15 | K4: ='General Inputs'!$R$17 -> 2015/16 | L4: ='General Inputs'!$S$17 -> 2016/17 | M4: ='General Inputs'!$T$17 -> 2017/18 | N4: ='General Inputs'!$U$17 -> 2018/19 | O4: ='General Inputs'!$V$17 -> 2019/20 | P4: ='General Inputs'!$W$17 -> 2020/21 | Q4: 2021/22 | R4: 2022/23 | S4: 2023/24 | T4: 2024/25 | U4: 2025/26 | V4: 2026/27 | W4: 2027/28 | X4: 2028/29 | Y4: 2029/30 | Z4: 2030/31
A5: ='General Inputs'!E30 -> Residential tariff
A6: Fixed ($/day) | B6: 0.229 | C6: 0.248 | D6: 0.26 | E6: 0.28 | F6: 0.31 | G6: 0.35 | H6: 0.36 | I6: 0.37 | J6: 0.38 | K6: 0.38 | L6: 0.298 | M6: 0.3023 | N6: 0.308 | O6: 0.3134 | P6: 0.3191 | Q6: 0.2984 | R6: 0.3093 | S6: 0.3206 | T6: 0.3323 | U6: 0.386 | V6: 0.3821709115 | W6: 0.3959844605 | X6: 0.4102972994 | Y6: 0.4251274753 | Z6: 0.4404936871
A7: Band 1 ($/GJ) | B7: 9.977 | C7: 10.15 | D7: 10.82 | E7: 11.02 | F7: 14 | G7: 16.14 | H7: 21.59 | I7: 28.93 | J7: 30.01 | K7: 30.66 | L7: 24.0479 | M7: 26.22118662 | N7: 28.3485 | O7: 30.7131 | P7: 32.6759 | Q7: 30.5582 | R7: 31.6729 | S7: 32.8283 | T7: 34.0258 | U7: 41.1375 | V7: 40.72650709 | W7: 42.1985647 | X7: 43.72382976 | Y7: 45.30422545 | Z7: 46.94174446
A8: Band 2 ($/GJ) | B8: 4.758 | C8: 4.82 | D8: 5.06 | E8: 5.14 | F8: 8.34465 | G8: 9.91 | H8: 12.08 | I8: 14.44 | J8: 14.62 | K8: 14.8 | L8: 11.6083 | M8: 11.6083 | N8: 11.6083 | O8: 11.6083 | P8: 11.6083 | Q8: 10.856 | R8: 11.252 | S8: 11.6625 | T8: 12.0879 | U8: 17.8982 | V8: 17.72065132 | W8: 18.36116339 | X8: 19.02482675 | Y8: 19.71247818 | Z8: 20.42498474
A9: Band 3 ($/GJ) | B9: 0 | C9: 0 | D9: 0 | E9: 0 | F9: 3.49598301 | G9: 4.35 | H9: 4.83 | I9: 4.91 | J9: 4.96 | K9: 5.01 | L9: 3.9296 | M9: 3.9296 | N9: 3.9296 | O9: 3.9295 | P9: 3.9298 | Q9: 3.6751 | R9: 3.8092 | S9: 3.9482 | T9: 4.0922 | U9: 3.9989 | V9: 3.959231239 | W9: 4.102337458 | X9: 4.250616245 | Y9: 4.404254562 | Z9: 4.563446128
A10: Band 4 ($/GJ) | B10: 0 | C10: 0 | D10: 0 | E10: 0 | F10: 0 | G10: 0 | H10: 0 | I10: 0 | J10: 0 | K10: 0 | L10: 0 | M10: 0 | N10: 0 | O10: 0 | P10: 0 | Q10: 0 | R10: 0 | S10: 0 | T10: 0 | U10: 0 | V10: 0 | W10: 0 | X10: 0 | Y10: 0 | Z10: 0
A11: Band 5 ($/GJ) | B11: 0 | C11: 0 | D11: 0 | E11: 0 | F11: 0 | G11: 0 | H11: 0 | I11: 0 | J11: 0 | K11: 0 | L11: 0 | M11: 0 | N11: 0 | O11: 0 | P11: 0 | Q11: 0 | R11: 0 | S11: 0 | T11: 0 | U11: 0 | V11: 0 | W11: 0 | X11: 0 | Y11: 0 | Z11: 0
A13: ='General Inputs'!B31 -> Commercial 1 | B13: ='General Inputs'!$I$17 -> 2006/07 | C13: ='General Inputs'!$J$17 -> 2007/08 | D13: ='General Inputs'!$K$17 -> 2008/09 | E13: ='General Inputs'!$L$17 -> 2009/10 | F13: ='General Inputs'!$M$17 -> 2010/11 | G13: ='General Inputs'!$N$17 -> 2011/12 | H13: ='General Inputs'!$O$17 -> 2012/13 | I13: ='General Inputs'!$P$17 -> 2013/14 | J13: ='General Inputs'!$Q$17 -> 2014/15 | K13: ='General Inputs'!$R$17 -> 2015/16 | L13: ='General Inputs'!$S$17 -> 2016/17 | M13: ='General Inputs'!$T$17 -> 2017/18 | N13: ='General Inputs'!$U$17 -> 2018/19 | O13: ='General Inputs'!$V$17 -> 2019/20 | P13: ='General Inputs'!$W$17 -> 2020/21 | Q13: 2021/22 | R13: 2022/23 | S13: 2023/24 | T13: 2024/25 | U13: 2025/26 | V13: 2026/27 | W13: 2027/28 | X13: 2028/29 | Y13: 2029/30 | Z13: 2030/31
A14: ='General Inputs'!E31 -> Commercial customers
A15: =A6 -> Fixed ($/day) | B15: 0.467 | C15: 0.539 | D15: 0.52 | E15: 0.56 | F15: 0.62 | G15: 0.71 | H15: 0.75 | I15: 0.77 | J15: 0.79 | K15: 0.8 | L15: 0.6275 | M15: 0.6367 | N15: 0.6488 | O15: 0.6603 | P15: 0.6724 | Q15: 0.6288 | R15: 0.6517 | S15: 0.6755 | T15: 0.7001 | U15: 0.7764 | V15: 0.7686432113 | W15: 0.7964257826 | X15: 0.8252125536 | Y15: 0.855039821 | Z15: 0.8859451936
A16: Band 1 ($/GJ) | B16: 7.359 | C16: 7.55 | D16: 8.06 | E16: 8.3 | F16: 8.8 | G16: 10.15 | H16: 12.11 | I16: 14.61 | J16: 15.05 | K16: 15.26 | L16: 11.9691 | M16: 13.01470065 | N16: 14.0428 | O16: 15.1521 | P16: 16.1157 | Q16: 15.0712 | R16: 15.621 | S16: 16.1908 | T16: 16.7814 | U16: 21.359 | V16: 21.14560839 | W16: 21.90991537 | X16: 22.70184819 | Y16: 23.52240538 | Z16: 24.37262157
A17: Band 2 ($/GJ) | B17: 4.227 | C17: 4.32 | D17: 4.56 | E17: 4.69 | F17: 4.72 | G17: 5.44 | H17: 6.49 | I17: 7.83 | J17: 8.09 | K17: 8.19 | L17: 6.4238 | M17: 6.4238 | N17: 6.4238 | O17: 6.4238 | P17: 6.4238 | Q17: 6.0075 | R17: 6.2266 | S17: 6.4537 | T17: 6.6891 | U17: 7.5427 | V17: 7.467343058 | W17: 7.737249808 | X17: 8.016912324 | Y17: 8.306683228 | Z17: 8.606927887
A18: Band 3 ($/GJ) | B18: 1.85 | C18: 1.88 | D18: 1.99 | E18: 2.04 | F18: 2.06 | G18: 2.38 | H18: 2.84 | I18: 3.43 | J18: 3.47 | K18: 3.51 | L18: 2.753 | M18: 2.753 | N18: 2.775 | O18: 2.775 | P18: 2.775 | Q18: 2.5952 | R18: 2.6899 | S18: 2.788 | T18: 2.8897 | U18: 2.5683 | V18: 2.542640855 | W18: 2.634544484 | X18: 2.729769966 | Y18: 2.828437368 | Z18: 2.930671098
A19: Band 4 ($/GJ) | B19: 0.788 | C19: 0.79 | D19: 0.85 | E19: 0.86 | F19: 0.86 | G19: 0.99 | H19: 1.17 | I19: 1.38 | J19: 1.38 | K19: 1.4 | L19: 1.4902 | M19: 1.5647 | N19: 1.6889 | O19: 2.0084 | P19: 2.1477 | Q19: 2.0085 | R19: 2.0818 | S19: 2.1577 | T19: 2.2364 | U19: 2.5683 | V19: 2.542640855 | W19: 2.634544484 | X19: 2.729769966 | Y19: 2.828437368 | Z19: 2.930671098
A20: Band 5 ($/GJ) | B20: 0 | C20: 0 | D20: 0 | E20: 0 | F20: 0 | G20: 0 | H20: 0 | I20: 0 | J20: 0 | K20: 0 | L20: 0 | M20: 0 | N20: 0 | O20: 0 | P20: 0 | Q20: 0 | R20: 0 | S20: 0 | T20: 0 | U20: 0 | V20: 0 | W20: 0 | X20: 0 | Y20: 0 | Z20: 0
A22: Demand-AdNr | B22: ='General Inputs'!$I$17 -> 2006/07 | C22: ='General Inputs'!$J$17 -> 2007/08 | D22: ='General Inputs'!$K$17 -> 2008/09 | E22: ='General Inputs'!$L$17 -> 2009/10 | F22: ='General Inputs'!$M$17 -> 2010/11 | G22: ='General Inputs'!$N$17 -> 2011/12 | H22: ='General Inputs'!$O$17 -> 2012/13 | I22: ='General Inputs'!$P$17 -> 2013/14 | J22: ='General Inputs'!$Q$17 -> 2014/15 | K22: ='General Inputs'!$R$17 -> 2015/16 | L22: ='General Inputs'!$S$17 -> 2016/17 | M22: ='General Inputs'!$T$17 -> 2017/18 | N22: ='General Inputs'!$U$17 -> 2018/19 | O22: ='General Inputs'!$V$17 -> 2019/20 | P22: ='General Inputs'!$W$17 -> 2020/21 | Q22: 2021/22 | R22: 2022/23 | S22: 2023/24 | T22: 2024/25 | U22: 2025/26 | V22: 2026/27 | W22: 2027/28 | X22: 2028/29 | Y22: 2029/30 | Z22: 2030/31
A23: Demand customers in region 1
A24: =A15 -> Fixed ($/day) | B24: 2130 | C24: 2317 | D24: 2419 | E24: 2506 | F24: 2682 | G24: 3092.56 | H24: 3638.87 | I24: 4320.28 | J24: 4466.41 | K24: 2682 | L24: 2307.3235 | M24: 2425.4589 | N24: 2544.4455 | O24: 2675.2455 | P24: 2787.0723 | Q24: 2606.4402 | R24: 2701.5191 | S24: 2800.0663 | T24: 2902.2084 | U24: 3494.6393 | V24: 3459.972764 | W24: 3585.03331 | X24: 3714.614164 | Y24: 3848.878711 | Z24: 3987.996244
A25: Band 1 ($/GJ) | B25: 28.43 | C25: 29.28 | D25: 30.86 | E25: 32.4 | F25: 34.06 | G25: 39.27 | H25: 46.21 | I25: 54.86 | J25: 56.45 | K25: 34.06 | L25: 44.8644 | M25: 47.1615 | N25: 49.4751 | O25: 52.0184 | P25: 54.1928 | Q25: 50.6805 | R25: 52.5292 | S25: 54.4454 | T25: 56.4315 | U25: 67.9507 | V25: 67.27663461 | W25: 69.70834528 | X25: 72.22795001 | Y25: 74.83862574 | Z25: 77.54366421
A26: Band 2 ($/GJ) | B26: 18.92 | C26: 19.3 | D26: 20.3 | E26: 20.91 | F26: 21.33 | G26: 24.6 | H26: 28.95 | I26: 34.37 | J26: 35.24 | K26: 21.33 | L26: 28.0089 | M26: 29.443 | N26: 30.8873 | O26: 32.475 | P26: 33.8324 | Q26: 31.6397 | R26: 32.7939 | S26: 33.9902 | T26: 35.2301 | U26: 42.4214 | V26: 42.00058318 | W26: 43.51869221 | X26: 45.09167321 | Y26: 46.72150953 | Z26: 48.41025621
A27: Band 3 ($/GJ) | B27: 5.61 | C27: 5.67 | D27: 5.94 | E27: 6.04 | F27: 6.4 | G27: 7.38 | H27: 8.68 | I27: 10.31 | J27: 10.68 | K27: 6.4 | L27: 8.4866 | M27: 8.9211 | N27: 9.3587 | O27: 9.8397 | P27: 10.251 | Q27: 9.5866 | R27: 9.9363 | S27: 10.2988 | T27: 10.6745 | U27: 12.8534 | V27: 12.72589532 | W27: 13.18587219 | X27: 13.66247489 | Y27: 14.15630438 | Z27: 14.66798331
A28: Band 4 ($/GJ) | B28: 0 | C28: 0 | D28: 0 | E28: 0 | F28: 0 | G28: 0 | H28: 0 | I28: 0 | J28: 0 | K28: 0 | L28: 0 | M28: 0 | N28: 0 | O28: 0 | P28: 0 | Q28: 0 | R28: 0 | S28: 0 | T28: 0 | U28: 0 | V28: 0 | W28: 0 | X28: 0 | Y28: 0 | Z28: 0
A29: Band 5 ($/GJ) | B29: 0 | C29: 0 | D29: 0 | E29: 0 | F29: 0 | G29: 0 | H29: 0 | I29: 0 | J29: 0 | K29: 0 | L29: 0 | M29: 0 | N29: 0 | O29: 0 | P29: 0 | Q29: 0 | R29: 0 | S29: 0 | T29: 0 | U29: 0 | V29: 0 | W29: 0 | X29: 0 | Y29: 0 | Z29: 0
A31: Demand-AdC | B31: ='General Inputs'!$I$17 -> 2006/07 | C31: ='General Inputs'!$J$17 -> 2007/08 | D31: ='General Inputs'!$K$17 -> 2008/09 | E31: ='General Inputs'!$L$17 -> 2009/10 | F31: ='General Inputs'!$M$17 -> 2010/11 | G31: ='General Inputs'!$N$17 -> 2011/12 | H31: ='General Inputs'!$O$17 -> 2012/13 | I31: ='General Inputs'!$P$17 -> 2013/14 | J31: ='General Inputs'!$Q$17 -> 2014/15 | K31: ='General Inputs'!$R$17 -> 2015/16 | L31: ='General Inputs'!$S$17 -> 2016/17 | M31: ='General Inputs'!$T$17 -> 2017/18 | N31: ='General Inputs'!$U$17 -> 2018/19 | O31: ='General Inputs'!$V$17 -> 2019/20 | P31: ='General Inputs'!$W$17 -> 2020/21 | Q31: 2021/22 | R31: 2022/23 | S31: 2023/24 | T31: 2024/25 | U31: 2025/26 | V31: 2026/27 | W31: 2027/28 | X31: 2028/29 | Y31: 2029/30 | Z31: 2030/31
A32: Demand customers in region 2
A33: =A24 -> Fixed ($/day) | B33: 2130 | C33: 2317 | D33: 2419 | E33: 2506 | F33: 2682 | G33: 3092.56 | H33: 3638.87 | I33: 4320.28 | J33: 4466.41 | K33: 2682 | L33: 2307.3235 | M33: 2425.4589 | N33: 2544.4455 | O33: 2675.2455 | P33: 2787.0723 | Q33: 2606.4402 | R33: 2701.5191 | S33: 2800.0663 | T33: 2902.2084 | U33: 3494.6393 | V33: 3459.972764 | W33: 3585.03331 | X33: 3714.614164 | Y33: 3848.878711 | Z33: 3987.996244
A34: Band 1 ($/GJ) | B34: 33.88 | C34: 34.9 | D34: 36.78 | E34: 38.62 | F34: 40.59 | G34: 46.8 | H34: 55.07 | I34: 65.38 | J34: 67.04 | K34: 40.59 | L34: 53.2804 | M34: 56.0078 | N34: 58.7553 | O34: 61.7756 | P34: 64.3578 | Q34: 60.1867 | R34: 62.3822 | S34: 64.6578 | T34: 67.0164 | U34: 80.6965 | V34: 79.89599731 | W34: 82.78383423 | X34: 85.77605188 | Y34: 88.87642308 | Z34: 92.08885705
A35: Band 2 ($/GJ) | B35: 22.89 | C35: 23.34 | D35: 24.55 | E35: 25.29 | F35: 25.8 | G35: 29.75 | H35: 35.01 | I35: 41.57 | J35: 42.63 | K35: 25.8 | L35: 33.8836 | M35: 35.6184 | N35: 37.3657 | O35: 39.2865 | P35: 40.9286 | Q35: 38.276 | R35: 39.6722 | S35: 41.1194 | T35: 42.6194 | U35: 51.3192 | V35: 50.81011773 | W35: 52.64664695 | X35: 54.54955743 | Y35: 56.52124852 | Z35: 58.56420629
A36: Band 3 ($/GJ) | B36: 6.49 | C36: 6.55 | D36: 6.86 | E36: 6.97 | F36: 7.4 | G36: 8.53 | H36: 10.04 | I36: 11.92 | J36: 12.22 | K36: 7.4 | L36: 9.7102 | M36: 10.2074 | N36: 10.7081 | O36: 11.2585 | P36: 11.7291 | Q36: 10.9689 | R36: 11.369 | S36: 11.7837 | T36: 12.2136 | U36: 16.2207 | V36: 16.05979198 | W36: 16.64027238 | X36: 17.24173421 | Y36: 17.86493585 | Z36: 18.51066308
A37: Band 4 ($/GJ) | B37: 0 | C37: 0 | D37: 0 | E37: 0 | F37: 0 | G37: 0 | H37: 0 | I37: 0 | J37: 0 | K37: 0 | L37: 0 | M37: 0 | N37: 0 | O37: 0 | P37: 0 | Q37: 0 | R37: 0 | S37: 0 | T37: 0 | U37: 0 | V37: 0 | W37: 0 | X37: 0 | Y37: 0 | Z37: 0
A38: Band 5 ($/GJ) | B38: 0 | C38: 0 | D38: 0 | E38: 0 | F38: 0 | G38: 0 | H38: 0 | I38: 0 | J38: 0 | K38: 0 | L38: 0 | M38: 0 | N38: 0 | O38: 0 | P38: 0 | Q38: 0 | R38: 0 | S38: 0 | T38: 0 | U38: 0 | V38: 0 | W38: 0 | X38: 0 | Y38: 0 | Z38: 0
A40: Demand-AdS | B40: ='General Inputs'!$I$17 -> 2006/07 | C40: ='General Inputs'!$J$17 -> 2007/08 | D40: ='General Inputs'!$K$17 -> 2008/09 | E40: ='General Inputs'!$L$17 -> 2009/10 | F40: ='General Inputs'!$M$17 -> 2010/11 | G40: ='General Inputs'!$N$17 -> 2011/12 | H40: ='General Inputs'!$O$17 -> 2012/13 | I40: ='General Inputs'!$P$17 -> 2013/14 | J40: ='General Inputs'!$Q$17 -> 2014/15 | K40: ='General Inputs'!$R$17 -> 2015/16 | L40: ='General Inputs'!$S$17 -> 2016/17 | M40: ='General Inputs'!$T$17 -> 2017/18 | N40: ='General Inputs'!$U$17 -> 2018/19 | O40: ='General Inputs'!$V$17 -> 2019/20 | P40: ='General Inputs'!$W$17 -> 2020/21 | Q40: 2021/22 | R40: 2022/23 | S40: 2023/24 | T40: 2024/25 | U40: 2025/26 | V40: 2026/27 | W40: 2027/28 | X40: 2028/29 | Y40: 2029/30 | Z40: 2030/31
A41: Demand customers in region 3
A42: =A33 -> Fixed ($/day) | B42: 2130 | C42: 2317 | D42: 2419 | E42: 2506 | F42: 2682 | G42: 3092.56 | H42: 3638.87 | I42: 4320.28 | J42: 4466.41 | K42: 2682 | L42: 2307.3235 | M42: 2425.4589 | N42: 2544.4455 | O42: 2675.2455 | P42: 2787.0723 | Q42: 2606.4402 | R42: 2701.5191 | S42: 2800.0663 | T42: 2902.2084 | U42: 3494.6393 | V42: 3459.972764 | W42: 3585.03331 | X42: 3714.614164 | Y42: 3848.878711 | Z42: 3987.996244
A43: Band 1 ($/GJ) | B43: 39.95 | C43: 41.15 | D43: 43.37 | E43: 45.54 | F43: 47.86 | G43: 55.19 | H43: 64.94 | I43: 77.1 | J43: 79.06 | K43: 47.86 | L43: 62.8336 | M43: 66.0501 | N43: 69.2903 | O43: 72.8522 | P43: 75.8974 | Q43: 70.9784 | R43: 73.5676 | S43: 76.2512 | T43: 79.0327 | U43: 95.1657 | V43: 94.22166403 | W43: 97.62730147 | X43: 101.1560355 | Y43: 104.8123155 | Z43: 108.6007515
A44: Band 2 ($/GJ) | B44: 26.59 | C44: 27.12 | D44: 28.53 | E44: 29.39 | F44: 29.97 | G44: 34.56 | H44: 40.67 | I44: 48.29 | J44: 49.52 | K44: 29.97 | L44: 39.3504 | M44: 41.3651 | N44: 43.3943 | O44: 45.625 | P44: 47.5321 | Q44: 44.4515 | R44: 46.073 | S44: 47.7537 | T44: 49.4957 | U44: 59.5992 | V44: 59.00798081 | W44: 61.14082139 | X44: 63.35075339 | Y44: 65.64056328 | Z44: 68.01313823
A45: Band 3 ($/GJ) | B45: 7.93 | C45: 8.01 | D45: 8.39 | E45: 8.53 | F45: 9.04 | G45: 10.42 | H45: 12.26 | I45: 14.56 | J45: 14.93 | K45: 9.04 | L45: 11.8671 | M45: 12.4747 | N45: 13.0866 | O45: 13.7593 | P45: 14.3344 | Q45: 13.4054 | R45: 13.8944 | S45: 14.4012 | T45: 14.9265 | U45: 17.9733 | V45: 17.79500633 | W45: 18.43820597 | X45: 19.10465402 | Y45: 19.79519081 | Z45: 20.51068701
A46: Band 4 ($/GJ) | B46: 0 | C46: 0 | D46: 0 | E46: 0 | F46: 0 | G46: 0 | H46: 0 | I46: 0 | J46: 0 | K46: 0 | L46: 0 | M46: 0 | N46: 0 | O46: 0 | P46: 0 | Q46: 0 | R46: 0 | S46: 0 | T46: 0 | U46: 0 | V46: 0 | W46: 0 | X46: 0 | Y46: 0 | Z46: 0
A47: Band 5 ($/GJ) | B47: 0 | C47: 0 | D47: 0 | E47: 0 | F47: 0 | G47: 0 | H47: 0 | I47: 0 | J47: 0 | K47: 0 | L47: 0 | M47: 0 | N47: 0 | O47: 0 | P47: 0 | Q47: 0 | R47: 0 | S47: 0 | T47: 0 | U47: 0 | V47: 0 | W47: 0 | X47: 0 | Y47: 0 | Z47: 0
A49: Demand-PP | B49: ='General Inputs'!$I$17 -> 2006/07 | C49: ='General Inputs'!$J$17 -> 2007/08 | D49: ='General Inputs'!$K$17 -> 2008/09 | E49: ='General Inputs'!$L$17 -> 2009/10 | F49: ='General Inputs'!$M$17 -> 2010/11 | G49: ='General Inputs'!$N$17 -> 2011/12 | H49: ='General Inputs'!$O$17 -> 2012/13 | I49: ='General Inputs'!$P$17 -> 2013/14 | J49: ='General Inputs'!$Q$17 -> 2014/15 | K49: ='General Inputs'!$R$17 -> 2015/16 | L49: ='General Inputs'!$S$17 -> 2016/17 | M49: ='General Inputs'!$T$17 -> 2017/18 | N49: ='General Inputs'!$U$17 -> 2018/19 | O49: ='General Inputs'!$V$17 -> 2019/20 | P49: ='General Inputs'!$W$17 -> 2020/21 | Q49: 2021/22 | R49: 2022/23 | S49: 2023/24 | T49: 2024/25 | U49: 2025/26 | V49: 2026/27 | W49: 2027/28 | X49: 2028/29 | Y49: 2029/30 | Z49: 2030/31
A50: Demand customers in region 4
A51: =A42 -> Fixed ($/day) | B51: 2130 | C51: 2317 | D51: 2419 | E51: 2506 | F51: 2682 | G51: 3092.56 | H51: 3638.87 | I51: 4320.28 | J51: 4466.41 | K51: 2682 | L51: 2307.3235 | M51: 2425.4589 | N51: 2544.4455 | O51: 2675.2455 | P51: 2787.0723 | Q51: 2606.4402 | R51: 2701.5191 | S51: 2800.0663 | T51: 2902.2084 | U51: 3494.6393 | V51: 3459.972764 | W51: 3585.03331 | X51: 3714.614164 | Y51: 3848.878711 | Z51: 3987.996244
A52: Band 1 ($/GJ) | B52: 28.42 | C52: 29.27 | D52: 30.85 | E52: 32.39 | F52: 34.05 | G52: 55.19 | H52: 64.94 | I52: 77.1 | J52: 79.06 | K52: 34.05 | L52: 44.8644 | M52: 47.161 | N52: 49.4745 | O52: 52.0177 | P52: 54.192 | Q52: 50.6798 | R52: 52.5285 | S52: 54.4447 | T52: 56.4308 | U52: 67.9499 | V52: 67.27584254 | W52: 69.70752459 | X52: 72.22709966 | Y52: 74.83774464 | Z52: 77.54275127
A53: Band 2 ($/GJ) | B53: 15.43 | C53: 15.74 | D53: 16.56 | E53: 17.06 | F53: 17.4 | G53: 34.56 | H53: 40.67 | I53: 48.29 | J53: 49.52 | K53: 17.4 | L53: 15.5483 | M53: 16.3444 | N53: 17.1462 | O53: 18.0276 | P53: 18.7811 | Q53: 17.5639 | R53: 18.2046 | S53: 18.8687 | T53: 19.557 | U53: 23.549 | V53: 23.31539584 | W53: 24.15812969 | X53: 25.0313241 | Y53: 25.93608009 | Z53: 26.87353844
A54: Band 3 ($/GJ) | B54: 6.36 | C54: 6.42 | D54: 6.75 | E54: 6.86 | F54: 7.34 | G54: 10.42 | H54: 12.26 | I54: 14.56 | J54: 14.93 | K54: 7.34 | L54: 7.812 | M54: 8.212 | N54: 8.6148 | O54: 9.0576 | P54: 9.4368 | Q54: 8.8252 | R54: 9.1471 | S54: 9.4808 | T54: 9.8266 | U54: 11.7866 | V54: 11.66967789 | W54: 12.09147783 | X54: 12.5285237 | Y54: 12.98136658 | Z54: 13.45057744
A55: Band 4 ($/GJ) | B55: 5.19 | C55: 5.23 | D55: 5.5 | E55: 5.59 | F55: 5.98 | G55: 0 | H55: 0 | I55: 0 | J55: 0 | K55: 0 | L55: 0 | M55: 0 | N55: 0 | O55: 0 | P55: 0 | Q55: 0 | R55: 0 | S55: 0 | T55: 0 | U55: 0 | V55: 0 | W55: 0 | X55: 0 | Y55: 0 | Z55: 0
A56: Band 5 ($/GJ) | B56: 0 | C56: 0 | D56: 0 | E56: 0 | F56: 0 | G56: 0 | H56: 0 | I56: 0 | J56: 0 | K56: 0 | L56: 0 | M56: 0 | N56: 0 | O56: 0 | P56: 0 | Q56: 0 | R56: 0 | S56: 0 | T56: 0 | U56: 0 | V56: 0 | W56: 0 | X56: 0 | Y56: 0 | Z56: 0
A58: Demand-Peter | B58: ='General Inputs'!$I$17 -> 2006/07 | C58: ='General Inputs'!$J$17 -> 2007/08 | D58: ='General Inputs'!$K$17 -> 2008/09 | E58: ='General Inputs'!$L$17 -> 2009/10 | F58: ='General Inputs'!$M$17 -> 2010/11 | G58: ='General Inputs'!$N$17 -> 2011/12 | H58: ='General Inputs'!$O$17 -> 2012/13 | I58: ='General Inputs'!$P$17 -> 2013/14 | J58: ='General Inputs'!$Q$17 -> 2014/15 | K58: ='General Inputs'!$R$17 -> 2015/16 | L58: ='General Inputs'!$S$17 -> 2016/17 | M58: ='General Inputs'!$T$17 -> 2017/18 | N58: ='General Inputs'!$U$17 -> 2018/19 | O58: ='General Inputs'!$V$17 -> 2019/20 | P58: ='General Inputs'!$W$17 -> 2020/21 | Q58: 2021/22 | R58: 2022/23 | S58: 2023/24 | T58: 2024/25 | U58: 2025/26 | V58: 2026/27 | W58: 2027/28 | X58: 2028/29 | Y58: 2029/30 | Z58: 2030/31
A59: Demand customers in region 5
A60: =A51 -> Fixed ($/day) | B60: 2953 | C60: 3211 | D60: 3353 | E60: 3474 | F60: 3795 | G60: 4375.94 | H60: 5148.97 | I60: 6113.15 | J60: 6304.45 | K60: 3795 | L60: 3256.8422 | M60: 3423.5931 | N60: 3591.5455 | O60: 3776.1728 | P60: 3934.019 | Q60: 3679.0525 | R60: 3813.2586 | S60: 3952.3604 | T60: 4096.5364 | U60: 0
A61: Band 1 ($/GJ) | B61: 41.71 | C61: 42.96 | D61: 45.28 | E61: 47.54 | F61: 49.92 | G61: 57.56 | H61: 67.73 | I61: 80.4 | J61: 82.43 | K61: 49.92 | L61: 65.5083 | M61: 68.8617 | N61: 72.2398 | O61: 75.9533 | P61: 79.1281 | Q61: 73.9998 | R61: 76.6992 | S61: 79.4971 | T61: 82.397 | U61: 0
A62: Band 2 ($/GJ) | B62: 27.2 | C62: 27.74 | D62: 29.18 | E62: 30.06 | F62: 30.66 | G62: 35.35 | H62: 41.59 | I62: 49.41 | J62: 50.69 | K62: 30.66 | L62: 40.8198 | M62: 42.9098 | N62: 45.0148 | O62: 47.3288 | P62: 49.3071 | Q62: 46.1115 | R62: 47.7936 | S62: 49.537 | T62: 51.344 | U62: 0
A63: Band 3 ($/GJ) | B63: 27.2 | C63: 27.47 | D63: 28.87 | E63: 29.36 | F63: 31.42 | G63: 36.23 | H63: 42.63 | I63: 50.61 | J63: 51.9 | K63: 31.42 | L63: 8.4866 | M63: 8.9211 | N63: 9.3587 | O63: 9.8397 | P63: 10.251 | Q63: 9.5866 | R63: 9.9363 | S63: 10.2988 | T63: 10.6745 | U63: 0
A64: Band 4 ($/GJ) | B64: 5.61 | C64: 5.66 | D64: 5.95 | E64: 6.05 | F64: 6.47 | G64: 7.44 | H64: 8.75 | I64: 10.39 | J64: 10.68 | K64: 6.47 | L64: 0 | M64: 0 | N64: 0 | O64: 0 | P64: 0 | Q64: 0 | R64: 0 | S64: 0 | T64: 0 | U64: 0
A65: Band 5 ($/GJ) | B65: 0 | C65: 0 | D65: 0 | E65: 0 | F65: 0 | G65: 0 | H65: 0 | I65: 0 | J65: 0 | K65: 0 | L65: 0 | M65: 0 | N65: 0 | O65: 0 | P65: 0 | Q65: 0 | R65: 0 | S65: 0 | T65: 0 | U65: 0
A67: Demand-River | B67: ='General Inputs'!$I$17 -> 2006/07 | C67: ='General Inputs'!$J$17 -> 2007/08 | D67: ='General Inputs'!$K$17 -> 2008/09 | E67: ='General Inputs'!$L$17 -> 2009/10 | F67: ='General Inputs'!$M$17 -> 2010/11 | G67: ='General Inputs'!$N$17 -> 2011/12 | H67: ='General Inputs'!$O$17 -> 2012/13 | I67: ='General Inputs'!$P$17 -> 2013/14 | J67: ='General Inputs'!$Q$17 -> 2014/15 | K67: ='General Inputs'!$R$17 -> 2015/16 | L67: ='General Inputs'!$S$17 -> 2016/17 | M67: ='General Inputs'!$T$17 -> 2017/18 | N67: ='General Inputs'!$U$17 -> 2018/19 | O67: ='General Inputs'!$V$17 -> 2019/20 | P67: ='General Inputs'!$W$17 -> 2020/21 | Q67: 2021/22 | R67: 2022/23 | S67: 2023/24 | T67: 2024/25 | U67: 2025/26 | V67: 2026/27 | W67: 2027/28 | X67: 2028/29 | Y67: 2029/30 | Z67: 2030/31
A68: Demand customers in region 6
A69: =A60 -> Fixed ($/day) | B69: 2953 | C69: 3211 | D69: 3353 | E69: 3474 | F69: 3795 | G69: 4375.94 | H69: 5148.97 | I69: 6113.15 | J69: 6304.45 | K69: 3795 | L69: 3256.8422 | M69: 3423.5931 | N69: 3591.5455 | O69: 3776.1728 | P69: 3934.019 | Q69: 3679.0525 | R69: 3813.2586 | S69: 3952.3604 | T69: 4096.5364 | U69: 4932.7668 | V69: 4883.834156 | W69: 5060.360103 | X69: 5243.266572 | Y69: 5432.784186 | Z69: 5629.151905
A70: Band 1 ($/GJ) | B70: 41.61 | C70: 42.86 | D70: 45.17 | E70: 47.43 | F70: 49.8 | G70: 57.42 | H70: 67.56 | I70: 80.21 | J70: 82.43 | K70: 49.8 | L70: 65.5083 | M70: 68.8617 | N70: 72.2398 | O70: 75.9533 | P70: 79.1281 | Q70: 73.9998 | R70: 76.6992 | S70: 79.4971 | T70: 82.397 | U70: 99.2164 | V70: 98.23218142 | W70: 101.7827788 | X70: 105.4617124 | Y70: 109.2736208 | Z70: 113.2233105
A71: Band 2 ($/GJ) | B71: 27.2 | C71: 27.74 | D71: 29.18 | E71: 30.06 | F71: 30.66 | G71: 35.35 | H71: 41.59 | I71: 49.38 | J71: 50.69 | K71: 30.66 | L71: 40.8198 | M71: 42.9098 | N71: 45.0148 | O71: 47.3288 | P71: 49.3071 | Q71: 46.1115 | R71: 47.7936 | S71: 49.537 | T71: 51.344 | U71: 67.9499 | V71: 67.27584254 | W71: 69.70752459 | X71: 72.22709966 | Y71: 74.83774464 | Z71: 77.54275127
A72: Band 3 ($/GJ) | B72: 27.2 | C72: 27.47 | D72: 28.87 | E72: 29.36 | F72: 31.42 | G72: 36.23 | H72: 42.63 | I72: 50.61 | J72: 51.9 | K72: 31.42 | L72: 8.4866 | M72: 8.9211 | N72: 9.3587 | O72: 9.8397 | P72: 10.251 | Q72: 9.5866 | R72: 9.9363 | S72: 10.2988 | T72: 10.6745 | U72: 12.8533 | V72: 12.72579631 | W72: 13.1857696 | X72: 13.6623686 | Y72: 14.15619424 | Z72: 14.66786919
A73: Band 4 ($/GJ) | B73: 5.61 | C73: 5.66 | D73: 5.95 | E73: 6.05 | F73: 6.47 | G73: 7.44 | H73: 8.75 | I73: 10.39 | J73: 10.68 | K73: 6.47 | L73: 0 | M73: 0 | N73: 0 | O73: 0 | P73: 0 | Q73: 0 | R73: 0 | S73: 0 | T73: 0 | U73: 0 | V73: 0 | W73: 0 | X73: 0 | Y73: 0 | Z73: 0
A74: Band 5 ($/GJ) | B74: 0 | C74: 0 | D74: 0 | E74: 0 | F74: 0 | G74: 0 | H74: 0 | I74: 0 | J74: 0 | K74: 0 | L74: 0 | M74: 0 | N74: 0 | O74: 0 | P74: 0 | Q74: 0 | R74: 0 | S74: 0 | T74: 0 | U74: 0 | V74: 0 | W74: 0 | X74: 0 | Y74: 0 | Z74: 0
A76: Demand-SE | B76: ='General Inputs'!$I$17 -> 2006/07 | C76: ='General Inputs'!$J$17 -> 2007/08 | D76: ='General Inputs'!$K$17 -> 2008/09 | E76: ='General Inputs'!$L$17 -> 2009/10 | F76: ='General Inputs'!$M$17 -> 2010/11 | G76: ='General Inputs'!$N$17 -> 2011/12 | H76: ='General Inputs'!$O$17 -> 2012/13 | I76: ='General Inputs'!$P$17 -> 2013/14 | J76: ='General Inputs'!$Q$17 -> 2014/15 | K76: ='General Inputs'!$R$17 -> 2015/16 | L76: ='General Inputs'!$S$17 -> 2016/17 | M76: ='General Inputs'!$T$17 -> 2017/18 | N76: ='General Inputs'!$U$17 -> 2018/19 | O76: ='General Inputs'!$V$17 -> 2019/20 | P76: ='General Inputs'!$W$17 -> 2020/21 | Q76: 2021/22 | R76: 2022/23 | S76: 2023/24 | T76: 2024/25 | U76: 2025/26 | V76: 2026/27 | W76: 2027/28 | X76: 2028/29 | Y76: 2029/30 | Z76: 2030/31
A77: Demand customers in region 7
A78: =A69 -> Fixed ($/day) | B78: 2130 | C78: 2317 | D78: 2419 | E78: 2506 | F78: 2682 | G78: 3092.56 | H78: 3638.87 | I78: 4320.28 | J78: 4466.41 | K78: 2682 | L78: 2307.3235 | M78: 2425.4589 | N78: 2544.4455 | O78: 2675.2455 | P78: 2787.0723 | Q78: 2606.4402 | R78: 2701.5191 | S78: 2800.0663 | T78: 2902.2084 | U78: 3494.6393 | V78: 3459.972764 | W78: 3585.03331 | X78: 3714.614164 | Y78: 3848.878711 | Z78: 3987.996244
A79: Band 1 ($/GJ) | B79: 28.42 | C79: 29.27 | D79: 30.85 | E79: 32.39 | F79: 34.05 | G79: 39.26 | H79: 46.2 | I79: 54.86 | J79: 56.45 | K79: 34.05 | L79: 44.8644 | M79: 47.161 | N79: 49.4745 | O79: 52.0177 | P79: 54.192 | Q79: 50.6798 | R79: 52.5285 | S79: 54.4447 | T79: 56.4308 | U79: 67.9499 | V79: 67.27584254 | W79: 69.70752459 | X79: 72.22709966 | Y79: 74.83774464 | Z79: 77.54275127
A80: Band 2 ($/GJ) | B80: 15.43 | C80: 15.74 | D80: 16.56 | E80: 17.06 | F80: 17.4 | G80: 20.06 | H80: 23.6 | I80: 28.02 | J80: 28.76 | K80: 17.4 | L80: 23.1564 | M80: 24.342 | N80: 25.5361 | O80: 26.8488 | P80: 27.971 | Q80: 26.1582 | R80: 27.1124 | S80: 28.1014 | T80: 29.1265 | U80: 35.0719 | V80: 34.72398962 | W80: 35.97908653 | X80: 37.27954885 | Y80: 38.62701632 | Z80: 40.02318794
A81: Band 3 ($/GJ) | B81: 15.43 | C81: 15.58 | D81: 16.37 | E81: 16.65 | F81: 17.82 | G81: 20.55 | H81: 24.18 | I81: 28.71 | J81: 29.44 | K81: 17.82 | L81: 8.4866 | M81: 8.9211 | N81: 9.3587 | O81: 9.8397 | P81: 10.251 | Q81: 9.5866 | R81: 9.9363 | S81: 10.2988 | T81: 10.6745 | U81: 12.8533 | V81: 12.72579631 | W81: 13.1857696 | X81: 13.6623686 | Y81: 14.15619424 | Z81: 14.66786919
A82: Band 4 ($/GJ) | B82: 5.61 | C82: 5.66 | D82: 5.95 | E82: 6.05 | F82: 6.47 | G82: 7.46 | H82: 8.78 | I82: 10.42 | J82: 10.68 | K82: 6.47 | L82: 0 | M82: 0 | N82: 0 | O82: 0 | P82: 0 | Q82: 0 | R82: 0 | S82: 0 | T82: 0 | U82: 0 | V82: 0 | W82: 0 | X82: 0 | Y82: 0 | Z82: 0
A83: Band 5 ($/GJ) | B83: 0 | C83: 0 | D83: 0 | E83: 0 | F83: 0 | G83: 0 | H83: 0 | I83: 0 | J83: 0 | K83: 0 | L83: 0 | M83: 0 | N83: 0 | O83: 0 | P83: 0 | Q83: 0 | R83: 0 | S83: 0 | T83: 0 | U83: 0 | V83: 0 | W83: 0 | X83: 0 | Y83: 0 | Z83: 0
A85: Demand-Whyal | B85: ='General Inputs'!$I$17 -> 2006/07 | C85: ='General Inputs'!$J$17 -> 2007/08 | D85: ='General Inputs'!$K$17 -> 2008/09 | E85: ='General Inputs'!$L$17 -> 2009/10 | F85: ='General Inputs'!$M$17 -> 2010/11 | G85: ='General Inputs'!$N$17 -> 2011/12 | H85: ='General Inputs'!$O$17 -> 2012/13 | I85: ='General Inputs'!$P$17 -> 2013/14 | J85: ='General Inputs'!$Q$17 -> 2014/15 | K85: ='General Inputs'!$R$17 -> 2015/16 | L85: ='General Inputs'!$S$17 -> 2016/17 | M85: ='General Inputs'!$T$17 -> 2017/18 | N85: ='General Inputs'!$U$17 -> 2018/19 | O85: ='General Inputs'!$V$17 -> 2019/20 | P85: ='General Inputs'!$W$17 -> 2020/21 | Q85: 2021/22 | R85: 2022/23 | S85: 2023/24 | T85: 2024/25 | U85: 2025/26 | V85: 2026/27 | W85: 2027/28 | X85: 2028/29 | Y85: 2029/30 | Z85: 2030/31
A86: Demand customers in region 8
A87: =A78 -> Fixed ($/day) | B87: 2130 | C87: 2317 | D87: 2419 | E87: 2506 | F87: 2682 | G87: 3092.56 | H87: 3638.87 | I87: 4320.28 | J87: 4466.41 | K87: 2682 | L87: 2307.3235 | M87: 2425.4589 | N87: 2544.4455 | O87: 2675.2455 | P87: 2787.0723 | Q87: 2606.4402 | R87: 2701.5191 | S87: 2800.0663 | T87: 2902.2084 | U87: 3494.6393 | V87: 3459.972764 | W87: 3585.03331 | X87: 3714.614164 | Y87: 3848.878711 | Z87: 3987.996244
A88: Band 1 ($/GJ) | B88: 28.53 | C88: 29.39 | D88: 30.98 | E88: 32.53 | F88: 34.18 | G88: 39.41 | H88: 46.37 | I88: 55.05 | J88: 56.45 | K88: 34.18 | L88: 44.8644 | M88: 47.161 | N88: 49.4745 | O88: 52.0177 | P88: 54.192 | Q88: 50.6798 | R88: 52.5285 | S88: 54.4447 | T88: 56.4308 | U88: 67.9499 | V88: 67.27584254 | W88: 69.70752459 | X88: 72.22709966 | Y88: 74.83774464 | Z88: 77.54275127
A89: Band 2 ($/GJ) | B89: 15.43 | C89: 15.74 | D89: 16.56 | E89: 17.06 | F89: 17.4 | G89: 20.06 | H89: 23.6 | I89: 28.02 | J89: 28.76 | K89: 17.4 | L89: 23.1564 | M89: 24.342 | N89: 25.5361 | O89: 26.8488 | P89: 27.971 | Q89: 26.1582 | R89: 27.1124 | S89: 28.1014 | T89: 29.1265 | U89: 35.0719 | V89: 34.72398962 | W89: 35.97908653 | X89: 37.27954885 | Y89: 38.62701632 | Z89: 40.02318794
A90: Band 3 ($/GJ) | B90: 15.43 | C90: 15.58 | D90: 16.37 | E90: 16.65 | F90: 17.82 | G90: 20.55 | H90: 24.18 | I90: 28.71 | J90: 29.44 | K90: 17.82 | L90: 8.4866 | M90: 8.9211 | N90: 9.3587 | O90: 9.8397 | P90: 10.251 | Q90: 9.5866 | R90: 9.9363 | S90: 10.2988 | T90: 10.6745 | U90: 12.7971 | V90: 12.67015381 | W90: 13.1281159 | X90: 13.60263101 | Y90: 14.09429745 | Z90: 14.60373514
A91: Band 4 ($/GJ) | B91: 5.61 | C91: 5.66 | D91: 5.95 | E91: 6.05 | F91: 6.47 | G91: 7.46 | H91: 8.78 | I91: 10.42 | J91: 10.68 | K91: 6.47 | L91: 0 | M91: 0 | N91: 0 | O91: 0 | P91: 0 | Q91: 0 | R91: 0 | S91: 0 | T91: 0 | U91: 0 | V91: 0 | W91: 0 | X91: 0 | Y91: 0 | Z91: 0
A92: Band 5 ($/GJ) | B92: 0 | C92: 0 | D92: 0 | E92: 0 | F92: 0 | G92: 0 | H92: 0 | I92: 0 | J92: 0 | K92: 0 | L92: 0 | M92: 0 | N92: 0 | O92: 0 | P92: 0 | Q92: 0 | R92: 0 | S92: 0 | T92: 0 | U92: 0 | V92: 0 | W92: 0 | X92: 0 | Y92: 0 | Z92: 0

Sheet Cost allocators
A1: Cost Allocators
A3: Tariff D Zonal Allocator Selection
A4: ='FDC Calculations'!A4 -> Return on capital | B4: Assets
A5: ='FDC Calculations'!A5 -> Return of capital | B5: Assets
A6: ='FDC Calculations'!A6 -> O&M | B6: Volume and Customer No
A7: ='FDC Calculations'!A7 -> Carry-over amounts | B7: Volume and Customer No
A8: ='FDC Calculations'!A8 -> Benchmark Tax liability | B8: Assets
A10: Carry-over amounts | C10: 2017-2021 | E10: 2022-2026 | G10: 2027-2031
C11: Residential | D11: Commercial | E11: Residential | F11: Commercial | G11: Residential | H11: Commercial
A12: =A4 -> Return on capital | B12: Volume and Customer No | C12: =IF(B12=$A$20,SUM($C$20:$C$20)/SUM($C$20:$D$20),IF(B12=$A$21,SUM($C$21:$C$21)/SUM($C$21:$D$21),SUM($C$22:$C$22)/SUM($C$22:$D$22))) -> 0.8834618261 | D12: =IF(B12=$A$20,SUM($D$20:$D$20)/SUM($C$20:$D$20),IF(B12=$A$21,SUM($D$21:$D$21)/SUM($C$21:$D$21),SUM($D$22:$D$22)/SUM($C$22:$D$22))) -> 0.1165381739 | E12: =IF(B12=$A$33,SUM($C$33:$C$33)/SUM($C$33:$D$33),IF(B12=$A$34,SUM($C$34:$C$34)/SUM($C$34:$D$34),SUM($C$35:$C$35)/SUM($C$35:$D$35))) -> 0.8669619796 | F12: =IF(B12=$A$33,SUM($D$33:$D$33)/SUM($C$33:$D$33),IF(B12=$A$34,SUM($D$34:$D$34)/SUM($C$34:$D$34),SUM($D$35:$D$35)/SUM($C$35:$D$35))) -> 0.1330380204 | G12: =IF(B12=$A$46,SUM($C$46:$C$46)/SUM($C$46:$D$46),IF(B12=$A$47,SUM($C$47:$C$47)/SUM($C$47:$D$47),SUM($C$48:$C$48)/SUM($C$48:$D$48))) -> 0.8505483631 | H12: =IF(B12=$A$46,SUM($D$46:$D$46)/SUM($C$46:$D$46),IF(B12=$A$47,SUM($D$47:$D$47)/SUM($C$47:$D$47),SUM($D$48:$D$48)/SUM($C$48:$D$48))) -> 0.1494516369
A13: =A5 -> Return of capital | B13: Volume and Customer No | C13: =IF(B13=$A$20,SUM($C$20:$C$20)/SUM($C$20:$D$20),IF(B13=$A$21,SUM($C$21:$C$21)/SUM($C$21:$D$21),SUM($C$22:$C$22)/SUM($C$22:$D$22))) -> 0.8834618261 | D13: =IF(B13=$A$20,SUM($D$20:$D$20)/SUM($C$20:$D$20),IF(B13=$A$21,SUM($D$21:$D$21)/SUM($C$21:$D$21),SUM($D$22:$D$22)/SUM($C$22:$D$22))) -> 0.1165381739 | E13: =IF(B13=$A$33,SUM($C$33:$C$33)/SUM($C$33:$D$33),IF(B13=$A$34,SUM($C$34:$C$34)/SUM($C$34:$D$34),SUM($C$35:$C$35)/SUM($C$35:$D$35))) -> 0.8669619796 | F13: =IF(B13=$A$33,SUM($D$33:$D$33)/SUM($C$33:$D$33),IF(B13=$A$34,SUM($D$34:$D$34)/SUM($C$34:$D$34),SUM($D$35:$D$35)/SUM($C$35:$D$35))) -> 0.1330380204 | G13: =IF(B13=$A$46,SUM($C$46:$C$46)/SUM($C$46:$D$46),IF(B13=$A$47,SUM($C$47:$C$47)/SUM($C$47:$D$47),SUM($C$48:$C$48)/SUM($C$48:$D$48))) -> 0.8505483631 | H13: =IF(B13=$A$46,SUM($D$46:$D$46)/SUM($C$46:$D$46),IF(B13=$A$47,SUM($D$47:$D$47)/SUM($C$47:$D$47),SUM($D$48:$D$48)/SUM($C$48:$D$48))) -> 0.1494516369
A14: =A6 -> O&M | B14: Volume and Customer No | C14: =IF(B14=$A$20,SUM($C$20:$C$20)/SUM($C$20:$D$20),IF(B14=$A$21,SUM($C$21:$C$21)/SUM($C$21:$D$21),SUM($C$22:$C$22)/SUM($C$22:$D$22))) -> 0.8834618261 | D14: =IF(B14=$A$20,SUM($D$20:$D$20)/SUM($C$20:$D$20),IF(B14=$A$21,SUM($D$21:$D$21)/SUM($C$21:$D$21),SUM($D$22:$D$22)/SUM($C$22:$D$22))) -> 0.1165381739 | E14: =IF(B14=$A$33,SUM($C$33:$C$33)/SUM($C$33:$D$33),IF(B14=$A$34,SUM($C$34:$C$34)/SUM($C$34:$D$34),SUM($C$35:$C$35)/SUM($C$35:$D$35))) -> 0.8669619796 | F14: =IF(B14=$A$33,SUM($D$33:$D$33)/SUM($C$33:$D$33),IF(B14=$A$34,SUM($D$34:$D$34)/SUM($C$34:$D$34),SUM($D$35:$D$35)/SUM($C$35:$D$35))) -> 0.1330380204 | G14: 0.8505483631 | H14: 0.1494516369
A15: =A7 -> Carry-over amounts | B15: Volume and Customer No | C15: =IF(B15=$A$20,SUM($C$20:$C$20)/SUM($C$20:$D$20),IF(B15=$A$21,SUM($C$21:$C$21)/SUM($C$21:$D$21),SUM($C$22:$C$22)/SUM($C$22:$D$22))) -> 0.8834618261 | D15: =IF(B15=$A$20,SUM($D$20:$D$20)/SUM($C$20:$D$20),IF(B15=$A$21,SUM($D$21:$D$21)/SUM($C$21:$D$21),SUM($D$22:$D$22)/SUM($C$22:$D$22))) -> 0.1165381739 | E15: =IF(B15=$A$33,SUM($C$33:$C$33)/SUM($C$33:$D$33),IF(B15=$A$34,SUM($C$34:$C$34)/SUM($C$34:$D$34),SUM($C$35:$C$35)/SUM($C$35:$D$35))) -> 0.8669619796 | F15: =IF(B15=$A$33,SUM($D$33:$D$33)/SUM($C$33:$D$33),IF(B15=$A$34,SUM($D$34:$D$34)/SUM($C$34:$D$34),SUM($D$35:$D$35)/SUM($C$35:$D$35))) -> 0.1330380204 | G15: 0.8505483631 | H15: 0.1494516369
A16: =A8 -> Benchmark Tax liability | B16: Volume and Customer No | C16: =IF(B16=$A$20,SUM($C$20:$C$20)/SUM($C$20:$D$20),IF(B16=$A$21,SUM($C$21:$C$21)/SUM($C$21:$D$21),SUM($C$22:$C$22)/SUM($C$22:$D$22))) -> 0.8834618261 | D16: =IF(B16=$A$20,SUM($D$20:$D$20)/SUM($C$20:$D$20),IF(B16=$A$21,SUM($D$21:$D$21)/SUM($C$21:$D$21),SUM($D$22:$D$22)/SUM($C$22:$D$22))) -> 0.1165381739 | E16: =IF(B16=$A$33,SUM($C$33:$C$33)/SUM($C$33:$D$33),IF(B16=$A$34,SUM($C$34:$C$34)/SUM($C$34:$D$34),SUM($C$35:$C$35)/SUM($C$35:$D$35))) -> 0.8669619796 | F16: =IF(B16=$A$33,SUM($D$33:$D$33)/SUM($C$33:$D$33),IF(B16=$A$34,SUM($D$34:$D$34)/SUM($C$34:$D$34),SUM($D$35:$D$35)/SUM($C$35:$D$35))) -> 0.1330380204 | G16: 0.8505483631 | H16: 0.1494516369
A18: Allocators (Percentages) - 2016/17 | B18: Total | C18: Residential 1 | D18: Commercial 1 | E18: Demand-AdC | F18: Demand-AdNr | G18: Demand-AdS | H18: Demand-Peter | I18: Demand-PP | J18: Demand-River | K18: Demand-SE | L18: Demand-Whyal
A19: Assets | B19: =SUM(C19:L19) -> 0.06025937866 | E19: ='DORC Calculations'!$B$18/'DORC Calculations'!$B$26*'DORC Calculations'!$I$18 -> 0.01677194539 | F19: ='DORC Calculations'!$B$19/'DORC Calculations'!$B$26*'DORC Calculations'!$I$18 -> 0.02921334549 | G19: ='DORC Calculations'!$B$20/'DORC Calculations'!$B$26*'DORC Calculations'!$I$18 -> 0.008974009827 | H19: ='DORC Calculations'!$B$21/'DORC Calculations'!$B$26*'DORC Calculations'!$I$18 -> 0.0003604676318 | I19: ='DORC Calculations'!$B$22/'DORC Calculations'!$B$26*'DORC Calculations'!$I$18 -> 0.001870480444 | J19: ='DORC Calculations'!$B$23/'DORC Calculations'!$B$26*'DORC Calculations'!$I$18 -> 0.0003119237237 | K19: ='DORC Calculations'!$B$24/'DORC Calculations'!$B$26*'DORC Calculations'!$I$18 -> 0.002329561607 | L19: ='DORC Calculations'!$B$25/'DORC Calculations'!$B$26*'DORC Calculations'!$I$18 -> 0.0004276445551
A20: Customer Number | B20: =SUM(C20:L20) -> 1 | C20: =C28/SUM($C$28:$M$28) -> 0.9750316367 | D20: =D28/SUM($C$28:$M$28) -> 0.02471186834 | E20: =E28/SUM($C$28:$L$28) -> 7.694847731e-05 | F20: 0.0001282597809 | G20: 3.144850812e-05 | H20: 2.204239781e-06 | I20: 2.204239781e-06 | J20: 4.408479562e-06 | K20: 8.816959123e-06 | L20: 2.204239781e-06
A21: Volume | B21: =SUM(C21:L21) -> 1 | C21: =C29/SUM($C$29:$M$29) -> 0.3316027431 | D21: =D29/SUM($C$29:$M$29) -> 0.1476473441 | E21: =E29/SUM($B$29:$L$29) -> 0.08430055607 | F21: =F29/SUM($C$29:$L$29) -> 0.3871498022 | G21: 0.01427825467 | H21: 0.0004902774055 | I21: 0.0241270459 | J21: 0.003363359494 | K21: 0.006719476608 | L21: 0.0003211404504
A22: Volume and Customer No | B22: =SUM(C22:L22) -> 1 | C22: =$B$23*C20+$B$24*C21 -> 0.6533171899 | D22: =$B$23*D20+$B$24*D21 -> 0.08617960622 | E22: 0.04218875227 | F22: 0.193639031 | G22: 0.007154851589 | H22: 0.0002462408226 | I22: 0.01206462507 | J22: 0.001683883987 | K22: 0.003364146784 | L22: 0.0001616723451
A23: % Volume | B23: 0.5
A24: % Customer | B24: 0.5
A26: Allocators (Amounts) - 2016/17 | C26: =C18 -> Residential 1 | D26: Commercial 1 | E26: Demand-AdC | F26: Demand-AdNr | G26: Demand-AdS | H26: Demand-Peter | I26: Demand-PP | J26: Demand-River | K26: Demand-SE | L26: Demand-Whyal
A27: Assets | C27: 0 | D27: 0 | E27: ='DORC Calculations'!B18 -> 23239681.66 | F27: ='DORC Calculations'!B19 -> 40478837.35 | G27: ='DORC Calculations'!B20 -> 12434641.7 | H27: ='DORC Calculations'!B21 -> 499474.1408 | I27: ='DORC Calculations'!B22 -> 2591790.58 | J27: ='DORC Calculations'!B23 -> 432210.3294 | K27: ='DORC Calculations'!B24 -> 3227906.418 | L27: ='DORC Calculations'!B25 -> 592556.3848
A28: Customer Number | C28: =IFERROR(AVERAGE('Connection Numbers Inputs'!B$9:B$13),0) -> 442343.7256 | D28: =IFERROR(AVERAGE('Connection Numbers Inputs'!C$9:C$13),0) -> 11211.06177 | E28: =IFERROR(AVERAGE('Connection Numbers Inputs'!D$9:D$13),0) -> 34.90930433 | F28: =IFERROR(AVERAGE('Connection Numbers Inputs'!E$9:E$13),0) -> 58.18776253 | G28: =IFERROR(AVERAGE('Connection Numbers Inputs'!F$9:F$13),0) -> 14.2672809 | H28: =IFERROR(AVERAGE('Connection Numbers Inputs'!G$9:G$13),0) -> 1 | I28: =IFERROR(AVERAGE('Connection Numbers Inputs'!H$9:H$13),0) -> 1 | J28: =IFERROR(AVERAGE('Connection Numbers Inputs'!I$9:I$13),0) -> 2 | K28: =IFERROR(AVERAGE('Connection Numbers Inputs'!J$9:J$13),0) -> 4 | L28: =IFERROR(AVERAGE('Connection Numbers Inputs'!K$9:K$13),0) -> 1
A29: Volume | C29: =IF(C59="Demand",C102,AVERAGE('Volume Inputs'!B$120:B$124)) -> 7372295.478 | D29: =IF(D59="Demand",D102,AVERAGE('Volume Inputs'!C$120:C$124)) -> 3282541.746 | E29: =IF(E59="Demand",E102,AVERAGE('Volume Inputs'!D$120:D$124)) -> 1874196.222 | F29: =IF(F59="Demand",F102,AVERAGE('Volume Inputs'!E$120:E$124)) -> 8607235 | G29: =IF(G59="Demand",G102,AVERAGE('Volume Inputs'!F$120:F$124)) -> 317438.6055 | H29: =IF(H59="Demand",H102,AVERAGE('Volume Inputs'!G$120:G$124)) -> 10900 | I29: =IF(I59="Demand",I102,AVERAGE('Volume Inputs'!H$120:H$124)) -> 536400 | J29: =IF(J59="Demand",J102,AVERAGE('Volume Inputs'!I$120:I$124)) -> 74775.25595 | K29: =IF(K59="Demand",K102,AVERAGE('Volume Inputs'!J$120:J$124)) -> 149389.4971 | L29: =IF(L59="Demand",L102,AVERAGE('Volume Inputs'!K$120:K$124)) -> 7139.694529
A31: Allocators (Percentages) - 2021/22 | B31: Total | C31: Residential 1 | D31: Commercial 1 | E31: Demand-AdC | F31: Demand-AdNr | G31: Demand-AdS | H31: Demand-Peter | I31: Demand-PP | J31: Demand-River | K31: Demand-SE | L31: Demand-Whyal
A32: Assets | B32: =SUM(C32:L32) -> 0.06025937866 | E32: ='DORC Calculations'!$B31/'DORC Calculations'!$B$39*'DORC Calculations'!$I$31 -> 0.01677194539 | F32: ='DORC Calculations'!$B32/'DORC Calculations'!$B$39*'DORC Calculations'!$I$31 -> 0.02921334549 | G32: ='DORC Calculations'!$B33/'DORC Calculations'!$B$39*'DORC Calculations'!$I$31 -> 0.008974009827 | H32: ='DORC Calculations'!$B34/'DORC Calculations'!$B$39*'DORC Calculations'!$I$31 -> 0.0003604676318 | I32: ='DORC Calculations'!$B35/'DORC Calculations'!$B$39*'DORC Calculations'!$I$31 -> 0.001870480444 | J32: ='DORC Calculations'!$B36/'DORC Calculations'!$B$39*'DORC Calculations'!$I$31 -> 0.0003119237237 | K32: ='DORC Calculations'!$B37/'DORC Calculations'!$B$39*'DORC Calculations'!$I$31 -> 0.002329561607 | L32: ='DORC Calculations'!$B38/'DORC Calculations'!$B$39*'DORC Calculations'!$I$31 -> 0.0004276445551
A33: Customer Number | B33: =SUM(C33:L33) -> 1 | C33: =C41/SUM($C$41:$L$41) -> 0.9757126709 | D33: =D41/SUM($C$41:$L$41) -> 0.0240706488 | E33: =E41/SUM($C$41:$L$41) -> 6.571293679e-05 | F33: 0.0001130351694 | G33: 2.478620276e-05 | H33: 0 | I33: 1.878002484e-06 | J33: 3.756004969e-06 | K33: 5.634007453e-06 | L33: 1.878002484e-06
A34: Volume | B34: =SUM(C34:L34) -> 1 | C34: =C42/SUM($C$42:$L$42) -> 0.3683178446 | D34: 0.1821750267 | E34: 0.08555677849 | F34: 0.3080937934 | G34: =G42/SUM($C$42:$L$42) -> 0.01491176521 | H34: 0 | I34: 0.02959524941 | J34: 0.00394327057 | K34: 0.006787719393 | L34: 0.0006185521791
A35: Volume and Customer No | B35: =SUM(C35:L35) -> 1 | C35: =$B$36*C33+$B$37*C34 -> 0.6720152577 | D35: =$B$36*D33+$B$37*D34 -> 0.1031228377 | E35: =$B$36*E33+$B$37*E34 -> 0.04281124571 | F35: 0.1541034143 | G35: 0.007468275706 | H35: 0 | I35: 0.01479856371 | J35: 0.001973513287 | K35: 0.0033966767 | L35: 0.0003102150908
A36: % Volume | B36: 0.5
A37: % Customer | B37: 0.5
A39: Allocators (Amounts) - 2021/22 | C39: =C31 -> Residential 1 | D39: Commercial 1 | E39: Demand-AdC | F39: Demand-AdNr | G39: Demand-AdS | H39: Demand-Peter | I39: Demand-PP | J39: Demand-River | K39: Demand-SE | L39: Demand-Whyal
A40: Assets | C40: 0 | D40: 0 | E40: ='DORC Calculations'!B31 -> 29675193.46 | F40: ='DORC Calculations'!B32 -> 51688200.67 | G40: ='DORC Calculations'!B33 -> 15878031.53 | H40: ='DORC Calculations'!B34 -> 637788.0717 | I40: ='DORC Calculations'!B35 -> 3309506.903 | J40: ='DORC Calculations'!B36 -> 551897.6261 | K40: ='DORC Calculations'!B37 -> 4121775.367 | L40: ='DORC Calculations'!B38 -> 756646.5673
A41: Customer Number | C41: =IFERROR(AVERAGE('Connection Numbers Inputs'!B$14:B$18),0) -> 465610.7543 | D41: =IFERROR(AVERAGE('Connection Numbers Inputs'!C$14:C$18),0) -> 11486.53008 | E41: =IFERROR(AVERAGE('Connection Numbers Inputs'!D$14:D$18),0) -> 31.35825841 | F41: =IFERROR(AVERAGE('Connection Numbers Inputs'!E$14:E$18),0) -> 53.94046018 | G41: =IFERROR(AVERAGE('Connection Numbers Inputs'!F$14:F$18),0) -> 11.82799292 | H41: =IFERROR(AVERAGE('Connection Numbers Inputs'!G$14:G$18),0) -> 0 | I41: =IFERROR(AVERAGE('Connection Numbers Inputs'!H$14:H$18),0) -> 0.8961840708 | J41: =IFERROR(AVERAGE('Connection Numbers Inputs'!I$14:I$18),0) -> 1.792368142 | K41: =IFERROR(AVERAGE('Connection Numbers Inputs'!J$14:J$18),0) -> 2.688552212 | L41: =IFERROR(AVERAGE('Connection Numbers Inputs'!K$14:K$18),0) -> 0.8961840708
A42: Volume | C42: =IF(C59="Demand",C103,AVERAGE('Volume Inputs'!B$125:B$129)) -> 6762194.992 | D42: =IF(D59="Demand",D103,AVERAGE('Volume Inputs'!C$125:C$129)) -> 3344673.822 | E42: =IF(E59="Demand",E103,AVERAGE('Volume Inputs'!D$125:D$129)) -> 1570794.431 | F42: =IF(F59="Demand",F103,AVERAGE('Volume Inputs'!E$125:E$129)) -> 5656501.137 | G42: =IF(G59="Demand",G103,AVERAGE('Volume Inputs'!F$125:F$129)) -> 273775.1252 | H42: =IF(H59="Demand",H103,AVERAGE('Volume Inputs'!G$125:G$129)) -> 0 | I42: =IF(I59="Demand",I103,AVERAGE('Volume Inputs'!H$125:H$129)) -> 543359.0858 | J42: =IF(J59="Demand",J103,AVERAGE('Volume Inputs'!I$125:I$129)) -> 72397.15611 | K42: =IF(K59="Demand",K103,AVERAGE('Volume Inputs'!J$125:J$129)) -> 124620.3049 | L42: =IF(L59="Demand",L103,AVERAGE('Volume Inputs'!K$125:K$129)) -> 11356.41541
A44: Allocators (Percentages) - 2026/27 | B44: Total | C44: Residential 1 | D44: Commercial 1 | E44: Demand-AdC | F44: Demand-AdNr | G44: Demand-AdS | H44: Demand-Peter | I44: Demand-PP | J44: Demand-River | K44: Demand-SE | L44: Demand-Whyal
A45: Assets | B45: =SUM(C45:L45) -> 0.06025937866 | E45: ='DORC Calculations'!$B43/'DORC Calculations'!$B$51*'DORC Calculations'!$I$43 -> 0.01677194539 | F45: ='DORC Calculations'!$B44/'DORC Calculations'!$B$51*'DORC Calculations'!$I$43 -> 0.02921334549 | G45: ='DORC Calculations'!$B45/'DORC Calculations'!$B$51*'DORC Calculations'!$I$43 -> 0.008974009827 | H45: ='DORC Calculations'!$B46/'DORC Calculations'!$B$51*'DORC Calculations'!$I$43 -> 0.0003604676318 | I45: ='DORC Calculations'!$B47/'DORC Calculations'!$B$51*'DORC Calculations'!$I$43 -> 0.001870480444 | J45: ='DORC Calculations'!$B48/'DORC Calculations'!$B$51*'DORC Calculations'!$I$43 -> 0.0003119237237 | K45: ='DORC Calculations'!$B49/'DORC Calculations'!$B$51*'DORC Calculations'!$I$43 -> 0.002329561607 | L45: ='DORC Calculations'!$B50/'DORC Calculations'!$B$51*'DORC Calculations'!$I$43 -> 0.0004276445551
A46: Customer Number | B46: =SUM(C46:L46) -> 1 | C46: =C54/SUM($C$54:$L$54) -> 0.975202098 | D46: =D54/SUM($C$54:$L$54) -> 0.02457617309 | E46: =E54/SUM($C$54:$L$54) -> 6.917942217e-05 | F46: =F54/SUM($C$54:$L$54) -> 0.0001152990369 | G46: 2.483363873e-05 | H46: 0 | I46: 1.773831338e-06 | J46: 3.547662675e-06 | K46: 5.321494013e-06 | L46: 1.773831338e-06
A47: Volume | B47: =SUM(C47:L47) -> 1 | C47: =C55/SUM($C$55:$L$55) -> 0.3648496559 | D47: =D55/SUM($C$55:$L$55) -> 0.2108871314 | E47: =E55/SUM($C$55:$L$55) -> 0.09748251508 | F47: =F55/SUM($C$55:$L$55) -> 0.2504379796 | G47: 0.0225062963 | H47: 0 | I47: 0.03670836291 | J47: 0.004858992815 | K47: 0.01024888138 | L47: 0.002020184626
A48: Volume and Customer No | B48: =SUM(C48:L48) -> 1 | C48: =$B$49*C46+$B$50*C47 -> 0.6700258769 | D48: =$B$49*D46+$B$50*D47 -> 0.1177316522 | E48: =$B$49*E46+$B$50*E47 -> 0.04877584725 | F48: =$B$49*F46+$B$50*F47 -> 0.1252766393 | G48: 0.01126556497 | H48: 0 | I48: 0.01835506837 | J48: 0.002431270239 | K48: 0.005127101438 | L48: 0.001010979229
A49: % Volume | B49: 0.5
A50: % Customer | B50: 0.5
A52: Allocators (Amounts) - 2026/27 | C52: =C44 -> Residential 1 | D52: Commercial 1 | E52: Demand-AdC | F52: Demand-AdNr | G52: Demand-AdS | H52: Demand-Peter | I52: Demand-PP | J52: Demand-River | K52: Demand-SE | L52: Demand-Whyal
A53: Assets | C53: 0 | D53: 0 | E53: ='DORC Calculations'!B56 -> Central | F53: ='DORC Calculations'!B57 -> Central | G53: ='DORC Calculations'!B58 -> Central | H53: ='DORC Calculations'!B59 -> Central | I53: ='DORC Calculations'!B60 -> Central | J53: ='DORC Calculations'!B61 -> Central | K53: ='DORC Calculations'!B62 -> Central | L53: ='DORC Calculations'!B63 -> Central
A54: Customer Number | C54: =IFERROR(AVERAGE('Connection Numbers Inputs'!B$19:B$23),0) -> 479400.8379 | D54: =IFERROR(AVERAGE('Connection Numbers Inputs'!C$19:C$23),0) -> 12081.43214 | E54: =IFERROR(AVERAGE('Connection Numbers Inputs'!D$19:D$23),0) -> 34.008 | F54: =IFERROR(AVERAGE('Connection Numbers Inputs'!E$19:E$23),0) -> 56.68 | G54: =IFERROR(AVERAGE('Connection Numbers Inputs'!F$19:F$23),0) -> 12.208 | H54: =IFERROR(AVERAGE('Connection Numbers Inputs'!G$19:G$23),0) -> 0 | I54: =IFERROR(AVERAGE('Connection Numbers Inputs'!H$19:H$23),0) -> 0.872 | J54: =IFERROR(AVERAGE('Connection Numbers Inputs'!I$19:I$23),0) -> 1.744 | K54: =IFERROR(AVERAGE('Connection Numbers Inputs'!J$19:J$23),0) -> 2.616 | L54: =IFERROR(AVERAGE('Connection Numbers Inputs'!K$19:K$23),0) -> 0.872
A55: Volume | C55: =IF(C72="Demand",C116,AVERAGE('Volume Inputs'!B$130:B$134)) -> 5301831.29 | D55: =IF(D72="Demand",D116,AVERAGE('Volume Inputs'!C$130:C$134)) -> 3064517.052 | E55: =IF(E59="Demand",E104,AVERAGE('Volume Inputs'!D$130:D$134)) -> 1416572.115 | F55: =IF(F59="Demand",F104,AVERAGE('Volume Inputs'!E$130:E$134)) -> 3639252.21 | G55: =IF(G59="Demand",G104,AVERAGE('Volume Inputs'!F$130:F$134)) -> 327051.3868 | H55: =IF(H59="Demand",H104,AVERAGE('Volume Inputs'!G$130:G$134)) -> 0 | I55: =IF(I59="Demand",I104,AVERAGE('Volume Inputs'!H$130:H$134)) -> 533429.4386 | J55: =IF(J59="Demand",J104,AVERAGE('Volume Inputs'!I$130:I$134)) -> 70608.70068 | K55: =IF(K59="Demand",K104,AVERAGE('Volume Inputs'!J$130:J$134)) -> 148932.1399 | L55: =IF(L59="Demand",L104,AVERAGE('Volume Inputs'!K$130:K$134)) -> 29356.41541
A57: Calculation of Consumption (GJ)
A58: Total MDQ | C58: =C26 -> Residential 1 | D58: Commercial 1 | E58: Demand-AdC | F58: Demand-AdNr | G58: Demand-AdS | H58: Demand-Peter | I58: Demand-PP | J58: Demand-River | K58: Demand-SE | L58: Demand-Whyal
A59: Demand Tariff | C59: ='General Inputs'!C30 -> Non-demand | D59: ='General Inputs'!C31 -> Non-demand | E59: ='General Inputs'!C33 -> Demand | F59: ='General Inputs'!C32 -> Demand | G59: ='General Inputs'!C34 -> Demand | H59: ='General Inputs'!C36 -> Demand | I59: ='General Inputs'!C35 -> Demand | J59: ='General Inputs'!C37 -> Demand | K59: ='General Inputs'!C38 -> Demand | L59: ='General Inputs'!C39 -> Demand
A60: 2011/12 | C60: =IF(C$59="Demand",'Volume Inputs'!B115,0) -> 0 | D60: =IF(D$59="Demand",'Volume Inputs'!C115,0) -> 0 | E60: =IF(E$59="Demand",'Volume Inputs'!D115,0) -> 11819 | F60: =IF(F$59="Demand",'Volume Inputs'!E115,0) -> 46261 | G60: =IF(G$59="Demand",'Volume Inputs'!F115,0) -> 2651 | H60: =IF(H$59="Demand",'Volume Inputs'!G115,0) -> 119 | I60: =IF(I$59="Demand",'Volume Inputs'!H115,0) -> 1000 | J60: =IF(J$59="Demand",'Volume Inputs'!I115,0) -> 397 | K60: =IF(K$59="Demand",'Volume Inputs'!J115,0) -> 1106 | L60: =IF(L$59="Demand",'Volume Inputs'!K115,0) -> 50
A61: 2012/13 | C61: =IF(C$59="Demand",'Volume Inputs'!B116,0) -> 0 | D61: =IF(D$59="Demand",'Volume Inputs'!C116,0) -> 0 | E61: =IF(E$59="Demand",'Volume Inputs'!D116,0) -> 11172 | F61: =IF(F$59="Demand",'Volume Inputs'!E116,0) -> 43742 | G61: =IF(G$59="Demand",'Volume Inputs'!F116,0) -> 2657 | H61: =IF(H$59="Demand",'Volume Inputs'!G116,0) -> 119 | I61: =IF(I$59="Demand",'Volume Inputs'!H116,0) -> 1000 | J61: =IF(J$59="Demand",'Volume Inputs'!I116,0) -> 425 | K61: =IF(K$59="Demand",'Volume Inputs'!J116,0) -> 818 | L61: =IF(L$59="Demand",'Volume Inputs'!K116,0) -> 50
A62: 2013/14 | C62: =IF(C$59="Demand",'Volume Inputs'!B117,0) -> 0 | D62: =IF(D$59="Demand",'Volume Inputs'!C117,0) -> 0 | E62: =IF(E$59="Demand",'Volume Inputs'!D117,0) -> 10796 | F62: =IF(F$59="Demand",'Volume Inputs'!E117,0) -> 44623 | G62: =IF(G$59="Demand",'Volume Inputs'!F117,0) -> 2086 | H62: =IF(H$59="Demand",'Volume Inputs'!G117,0) -> 119 | I62: =IF(I$59="Demand",'Volume Inputs'!H117,0) -> 1000 | J62: =IF(J$59="Demand",'Volume Inputs'!I117,0) -> 425 | K62: =IF(K$59="Demand",'Volume Inputs'!J117,0) -> 989 | L62: =IF(L$59="Demand",'Volume Inputs'!K117,0) -> 76
A63: 2014/15 | C63: =IF(C$59="Demand",'Volume Inputs'!B118,0) -> 0 | D63: =IF(D$59="Demand",'Volume Inputs'!C118,0) -> 0 | E63: =IF(E$59="Demand",'Volume Inputs'!D118,0) -> 9477.981123 | F63: =IF(F$59="Demand",'Volume Inputs'!E118,0) -> 39388.48374 | G63: =IF(G$59="Demand",'Volume Inputs'!F118,0) -> 2607.930274 | H63: =IF(H$59="Demand",'Volume Inputs'!G118,0) -> 119 | I63: =IF(I$59="Demand",'Volume Inputs'!H118,0) -> 1000 | J63: =IF(J$59="Demand",'Volume Inputs'!I118,0) -> 505.7627977 | K63: =IF(K$59="Demand",'Volume Inputs'!J118,0) -> 910.4748534 | L63: =IF(L$59="Demand",'Volume Inputs'!K118,0) -> 54.98472643
A64: 2015/16 | C64: =IF(C$59="Demand",'Volume Inputs'!B119,0) -> 0 | D64: =IF(D$59="Demand",'Volume Inputs'!C119,0) -> 0 | E64: =IF(E$59="Demand",'Volume Inputs'!D119,0) -> 10485.91676 | F64: =IF(F$59="Demand",'Volume Inputs'!E119,0) -> 57166.55544 | G64: =IF(G$59="Demand",'Volume Inputs'!F119,0) -> 970 | H64: =IF(H$59="Demand",'Volume Inputs'!G119,0) -> 69 | I64: =IF(I$59="Demand",'Volume Inputs'!H119,0) -> 3510 | J64: =IF(J$59="Demand",'Volume Inputs'!I119,0) -> 325 | K64: =IF(K$59="Demand",'Volume Inputs'!J119,0) -> 579 | L64: =IF(L$59="Demand",'Volume Inputs'!K119,0) -> 26
A65: 2016/17 | C65: =IF(C$59="Demand",'Volume Inputs'!B120,0) -> 0 | D65: =IF(D$59="Demand",'Volume Inputs'!C120,0) -> 0 | E65: =IF(E$59="Demand",'Volume Inputs'!D120,0) -> 8511.801846 | F65: =IF(F$59="Demand",'Volume Inputs'!E120,0) -> 41818.39082 | G65: =IF(G$59="Demand",'Volume Inputs'!F120,0) -> 970 | H65: =IF(H$59="Demand",'Volume Inputs'!G120,0) -> 0 | I65: =IF(I$59="Demand",'Volume Inputs'!H120,0) -> 3510 | J65: =IF(J$59="Demand",'Volume Inputs'!I120,0) -> 325 | K65: =IF(K$59="Demand",'Volume Inputs'!J120,0) -> 579 | L65: =IF(L$59="Demand",'Volume Inputs'!K120,0) -> 26
A66: 2017/18 | C66: =IF(C$59="Demand",'Volume Inputs'!B121,0) -> 0 | D66: =IF(D$59="Demand",'Volume Inputs'!C121,0) -> 0 | E66: =IF(E$59="Demand",'Volume Inputs'!D121,0) -> 8474.137865 | F66: =IF(F$59="Demand",'Volume Inputs'!E121,0) -> 38333.22814 | G66: =IF(G$59="Demand",'Volume Inputs'!F121,0) -> 978 | H66: =IF(H$59="Demand",'Volume Inputs'!G121,0) -> 0 | I66: =IF(I$59="Demand",'Volume Inputs'!H121,0) -> 3950 | J66: =IF(J$59="Demand",'Volume Inputs'!I121,0) -> 334 | K66: =IF(K$59="Demand",'Volume Inputs'!J121,0) -> 622 | L66: =IF(L$59="Demand",'Volume Inputs'!K121,0) -> 26
A67: 2018/19 | C67: =IF(C$59="Demand",'Volume Inputs'!B122,0) -> 0 | D67: =IF(D$59="Demand",'Volume Inputs'!C122,0) -> 0 | E67: =IF(E$59="Demand",'Volume Inputs'!D122,0) -> 7658.771645 | F67: =IF(F$59="Demand",'Volume Inputs'!E122,0) -> 39789.0299 | G67: =IF(G$59="Demand",'Volume Inputs'!F122,0) -> 984 | H67: =IF(H$59="Demand",'Volume Inputs'!G122,0) -> 0 | I67: =IF(I$59="Demand",'Volume Inputs'!H122,0) -> 3950 | J67: =IF(J$59="Demand",'Volume Inputs'!I122,0) -> 334 | K67: =IF(K$59="Demand",'Volume Inputs'!J122,0) -> 622 | L67: =IF(L$59="Demand",'Volume Inputs'!K122,0) -> 16
A68: 2019/20 | C68: =IF(C$59="Demand",'Volume Inputs'!B123,0) -> 0 | D68: =IF(D$59="Demand",'Volume Inputs'!C123,0) -> 0 | E68: =IF(E$59="Demand",'Volume Inputs'!D123,0) -> 7657.53625 | F68: =IF(F$59="Demand",'Volume Inputs'!E123,0) -> 39664.06516 | G68: =IF(G$59="Demand",'Volume Inputs'!F123,0) -> 984 | H68: =IF(H$59="Demand",'Volume Inputs'!G123,0) -> 0 | I68: =IF(I$59="Demand",'Volume Inputs'!H123,0) -> 3950 | J68: =IF(J$59="Demand",'Volume Inputs'!I123,0) -> 334 | K68: =IF(K$59="Demand",'Volume Inputs'!J123,0) -> 622 | L68: =IF(L$59="Demand",'Volume Inputs'!K123,0) -> 16
A69: 2020/21 | C69: =IF(C$59="Demand",'Volume Inputs'!B124,0) -> 0 | D69: =IF(D$59="Demand",'Volume Inputs'!C124,0) -> 0 | E69: =IF(E$59="Demand",'Volume Inputs'!D124,0) -> 7656.665611 | F69: =IF(F$59="Demand",'Volume Inputs'!E124,0) -> 39575.9968 | G69: =IF(G$59="Demand",'Volume Inputs'!F124,0) -> 984 | H69: =IF(H$59="Demand",'Volume Inputs'!G124,0) -> 0 | I69: =IF(I$59="Demand",'Volume Inputs'!H124,0) -> 3950 | J69: =IF(J$59="Demand",'Volume Inputs'!I124,0) -> 334 | K69: =IF(K$59="Demand",'Volume Inputs'!J124,0) -> 622 | L69: =IF(L$59="Demand",'Volume Inputs'!K124,0) -> 16
A70: 2021/22 | C70: =IF(C$59="Demand",'Volume Inputs'!B125,0) -> 0 | D70: =IF(D$59="Demand",'Volume Inputs'!C125,0) -> 0 | E70: =IF(E$59="Demand",'Volume Inputs'!D125,0) -> 8372.09626 | F70: =IF(F$59="Demand",'Volume Inputs'!E125,0) -> 16667.31177 | G70: =IF(G$59="Demand",'Volume Inputs'!F125,0) -> 1915.342476 | H70: =IF(H$59="Demand",'Volume Inputs'!G125,0) -> 0 | I70: =IF(I$59="Demand",'Volume Inputs'!H125,0) -> 1000 | J70: =IF(J$59="Demand",'Volume Inputs'!I125,0) -> 428.1829009 | K70: =IF(K$59="Demand",'Volume Inputs'!J125,0) -> 542.9489004 | L70: =IF(L$59="Demand",'Volume Inputs'!K125,0) -> 70.06183764
A71: 2022/23 | C71: =IF(C$59="Demand",'Volume Inputs'!B126,0) -> 0 | D71: =IF(D$59="Demand",'Volume Inputs'!C126,0) -> 0 | E71: =IF(E$59="Demand",'Volume Inputs'!D126,0) -> 8132.702142 | F71: =IF(F$59="Demand",'Volume Inputs'!E126,0) -> 16172.7045 | G71: =IF(G$59="Demand",'Volume Inputs'!F126,0) -> 1846.142743 | H71: =IF(H$59="Demand",'Volume Inputs'!G126,0) -> 0 | I71: =IF(I$59="Demand",'Volume Inputs'!H126,0) -> 1000 | J71: =IF(J$59="Demand",'Volume Inputs'!I126,0) -> 416.8452138 | K71: =IF(K$59="Demand",'Volume Inputs'!J126,0) -> 530.5811297 | L71: =IF(L$59="Demand",'Volume Inputs'!K126,0) -> 67.75105672
A72: 2023/24 | C72: =IF(C$59="Demand",'Volume Inputs'!B127,0) -> 0 | D72: =IF(D$59="Demand",'Volume Inputs'!C127,0) -> 0 | E72: =IF(E$59="Demand",'Volume Inputs'!D127,0) -> 7897.23642 | F72: =IF(F$59="Demand",'Volume Inputs'!E127,0) -> 15677.48828 | G72: =IF(G$59="Demand",'Volume Inputs'!F127,0) -> 1778.073088 | H72: =IF(H$59="Demand",'Volume Inputs'!G127,0) -> 0 | I72: =IF(I$59="Demand",'Volume Inputs'!H127,0) -> 1000 | J72: =IF(J$59="Demand",'Volume Inputs'!I127,0) -> 405.4668363 | K72: =IF(K$59="Demand",'Volume Inputs'!J127,0) -> 568.1234516 | L72: =IF(L$59="Demand",'Volume Inputs'!K127,0) -> 66.11041162
A73: 2024/25 | C73: =IF(C$59="Demand",'Volume Inputs'!B128,0) -> 0 | D73: =IF(D$59="Demand",'Volume Inputs'!C128,0) -> 0 | E73: =IF(E$59="Demand",'Volume Inputs'!D128,0) -> 7666.107578 | F73: =IF(F$59="Demand",'Volume Inputs'!E128,0) -> 15181.58684 | G73: =IF(G$59="Demand",'Volume Inputs'!F128,0) -> 1711.106506 | H73: =IF(H$59="Demand",'Volume Inputs'!G128,0) -> 0 | I73: =IF(I$59="Demand",'Volume Inputs'!H128,0) -> 1000 | J73: =IF(J$59="Demand",'Volume Inputs'!I128,0) -> 394.0474088 | K73: =IF(K$59="Demand",'Volume Inputs'!J128,0) -> 655.5055623 | L73: =IF(L$59="Demand",'Volume Inputs'!K128,0) -> 63.8974647
A74: 2025/26 | C74: =IF(C$59="Demand",'Volume Inputs'!B129,0) -> 0 | D74: =IF(D$59="Demand",'Volume Inputs'!C129,0) -> 0 | E74: =IF(E$59="Demand",'Volume Inputs'!D129,0) -> 6512.665912 | F74: =IF(F$59="Demand",'Volume Inputs'!E129,0) -> 19945.25466 | G74: =IF(G$59="Demand",'Volume Inputs'!F129,0) -> 1538.091447 | H74: =IF(H$59="Demand",'Volume Inputs'!G129,0) -> 0 | I74: =IF(I$59="Demand",'Volume Inputs'!H129,0) -> 3857.95429 | J74: =IF(J$59="Demand",'Volume Inputs'!I129,0) -> 314.3154457 | K74: =IF(K$59="Demand",'Volume Inputs'!J129,0) -> 866.8561995 | L74: =IF(L$59="Demand",'Volume Inputs'!K129,0) -> 200
A75: 2026/27 | C75: =IF(C$59="Demand",'Volume Inputs'!B130,0) -> 0 | D75: =IF(D$59="Demand",'Volume Inputs'!C130,0) -> 0 | E75: =IF(E$59="Demand",'Volume Inputs'!D130,0) -> 6512.665912 | F75: =IF(F$59="Demand",'Volume Inputs'!E130,0) -> 19945.25466 | G75: =IF(G$59="Demand",'Volume Inputs'!F130,0) -> 1538.091447 | H75: =IF(H$59="Demand",'Volume Inputs'!G130,0) -> 0 | I75: =IF(I$59="Demand",'Volume Inputs'!H130,0) -> 3857.95429 | J75: =IF(J$59="Demand",'Volume Inputs'!I130,0) -> 314.3154457 | K75: =IF(K$59="Demand",'Volume Inputs'!J130,0) -> 866.8561995 | L75: =IF(L$59="Demand",'Volume Inputs'!K130,0) -> 200
A76: 2027/28 | C76: =IF(C$59="Demand",'Volume Inputs'!B131,0) -> 0 | D76: =IF(D$59="Demand",'Volume Inputs'!C131,0) -> 0 | E76: =IF(E$59="Demand",'Volume Inputs'!D131,0) -> 6480.122499 | F76: =IF(F$59="Demand",'Volume Inputs'!E131,0) -> 19800.75685 | G76: =IF(G$59="Demand",'Volume Inputs'!F131,0) -> 1525.156948 | H76: =IF(H$59="Demand",'Volume Inputs'!G131,0) -> 0 | I76: =IF(I$59="Demand",'Volume Inputs'!H131,0) -> 3809.729862 | J76: =IF(J$59="Demand",'Volume Inputs'!I131,0) -> 314.3154457 | K76: =IF(K$59="Demand",'Volume Inputs'!J131,0) -> 861.5553937 | L76: =IF(L$59="Demand",'Volume Inputs'!K131,0) -> 200
A77: 2028/29 | C77: =IF(C$59="Demand",'Volume Inputs'!B132,0) -> 0 | D77: =IF(D$59="Demand",'Volume Inputs'!C132,0) -> 0 | E77: =IF(E$59="Demand",'Volume Inputs'!D132,0) -> 6448.580568 | F77: =IF(F$59="Demand",'Volume Inputs'!E132,0) -> 19659.99543 | G77: =IF(G$59="Demand",'Volume Inputs'!F132,0) -> 1512.49562 | H77: =IF(H$59="Demand",'Volume Inputs'!G132,0) -> 0 | I77: =IF(I$59="Demand",'Volume Inputs'!H132,0) -> 3762.108239 | J77: =IF(J$59="Demand",'Volume Inputs'!I132,0) -> 314.3154457 | K77: =IF(K$59="Demand",'Volume Inputs'!J132,0) -> 856.3882101 | L77: =IF(L$59="Demand",'Volume Inputs'!K132,0) -> 200
A78: 2029/30 | C78: =IF(C$59="Demand",'Volume Inputs'!B133,0) -> 0 | D78: =IF(D$59="Demand",'Volume Inputs'!C133,0) -> 0 | E78: =IF(E$59="Demand",'Volume Inputs'!D133,0) -> 6418.017438 | F78: =IF(F$59="Demand",'Volume Inputs'!E133,0) -> 19522.89108 | G78: =IF(G$59="Demand",'Volume Inputs'!F133,0) -> 1500.10126 | H78: =IF(H$59="Demand",'Volume Inputs'!G133,0) -> 0 | I78: =IF(I$59="Demand",'Volume Inputs'!H133,0) -> 3715.081886 | J78: =IF(J$59="Demand",'Volume Inputs'!I133,0) -> 314.3154457 | K78: =IF(K$59="Demand",'Volume Inputs'!J133,0) -> 851.351148 | L78: =IF(L$59="Demand",'Volume Inputs'!K133,0) -> 200
A79: 2030/31 | C79: =IF(C$59="Demand",'Volume Inputs'!B134,0) -> 0 | D79: =IF(D$59="Demand",'Volume Inputs'!C134,0) -> 0 | E79: =IF(E$59="Demand",'Volume Inputs'!D134,0) -> 6388.411018 | F79: =IF(F$59="Demand",'Volume Inputs'!E134,0) -> 19389.36645 | G79: =IF(G$59="Demand",'Volume Inputs'!F134,0) -> 1487.967808 | H79: =IF(H$59="Demand",'Volume Inputs'!G134,0) -> 0 | I79: =IF(I$59="Demand",'Volume Inputs'!H134,0) -> 3668.643362 | J79: =IF(J$59="Demand",'Volume Inputs'!I134,0) -> 314.3154457 | K79: =IF(K$59="Demand",'Volume Inputs'!J134,0) -> 846.4408017 | L79: =IF(L$59="Demand",'Volume Inputs'!K134,0) -> 200
A81: Calculated Consumption | C81: =C58 -> Residential 1 | D81: =D58 -> Commercial 1 | E81: Demand-AdC | F81: Demand-AdNr | G81: Demand-AdS | H81: Demand-Peter | I81: Demand-PP | J81: Demand-River | K81: Demand-SE | L81: Demand-Whyal
A82: 2011/12 | C82: =C60/$B$106*$B$107 -> 0 | D82: 0 | E82: =E60/$B$106*$B$107 -> 2363800 | F82: 9252200 | G82: =G60/$B$106*$B$107 -> 530200 | H82: 23800 | I82: 200000 | J82: 79400 | K82: 221200 | L82: 10000
A83: 2012/13 | C83: =C61/$B$106*$B$107 -> 0 | D83: 0 | E83: 2234400 | F83: 8748400 | G83: 531400 | H83: 23800 | I83: 200000 | J83: 85000 | K83: 163600 | L83: =L61/$B$106*$B$107 -> 10000
A84: 2013/14 | C84: =C62/$B$106*$B$107 -> 0 | D84: 0 | E84: 2159200 | F84: 8924600 | G84: 417200 | H84: 23800 | I84: 200000 | J84: 85000 | K84: 197800 | L84: 15200
A85: 2014/15 | C85: =C63/$B$106*$B$107 -> 0 | D85: 0 | E85: 1895596.225 | F85: 7877696.748 | G85: 521586.0549 | H85: 23800 | I85: 200000 | J85: 101152.5595 | K85: 182094.9707 | L85: 10996.94529
A86: 2015/16 | C86: =C64/$B$106*$B$107 -> 0 | D86: 0 | E86: 2097183.353 | F86: 11433311.09 | G86: 194000 | H86: 13800 | I86: 702000 | J86: 65000 | K86: 115800 | L86: 5200
A87: 2016/17 | C87: =C65/$B$106*$B$107 -> 0 | D87: 0 | E87: 1702360.369 | F87: 8363678.165 | G87: 194000 | H87: 0 | I87: 702000 | J87: 65000 | K87: 115800 | L87: 5200
A88: 2017/18 | C88: =C66/$B$106*$B$107 -> 0 | D88: 0 | E88: 1694827.573 | F88: 7666645.629 | G88: 195600 | H88: 0 | I88: 790000 | J88: 66800 | K88: 124400 | L88: 5200
A89: 2018/19 | C89: =C67/$B$106*$B$107 -> 0 | D89: 0 | E89: 1531754.329 | F89: 7957805.98 | G89: 196800 | H89: 0 | I89: 790000 | J89: 66800 | K89: 124400 | L89: 3200
A90: 2019/20 | C90: =C68/$B$106*$B$107 -> 0 | D90: 0 | E90: 1531507.25 | F90: 7932813.031 | G90: 196800 | H90: 0 | I90: 790000 | J90: 66800 | K90: 124400 | L90: 3200
A91: 2020/21 | C91: =C69/$B$106*$B$107 -> 0 | D91: 0 | E91: 1531333.122 | F91: 7915199.36 | G91: 196800 | H91: 0 | I91: 790000 | J91: 66800 | K91: 124400 | L91: 3200
A92: 2021/22 | C92: =C70/$B$106*$B$107 -> 0 | D92: 0 | E92: 1674419.252 | F92: 3333462.353 | G92: 383068.4951 | H92: 0 | I92: 200000 | J92: 85636.58019 | K92: 108589.7801 | L92: 14012.36753
A93: 2022/23 | C93: =C71/$B$106*$B$107 -> 0 | D93: 0 | E93: 1626540.428 | F93: 3234540.899 | G93: 369228.5486 | H93: 0 | I93: 200000 | J93: 83369.04277 | K93: 106116.2259 | L93: 13550.21134
A94: 2023/24 | C94: =C72/$B$106*$B$107 -> 0 | D94: 0 | E94: 1579447.284 | F94: 3135497.657 | G94: 355614.6175 | H94: 0 | I94: 200000 | J94: 81093.36726 | K94: 113624.6903 | L94: 13222.08232
A95: 2024/25 | C95: =C73/$B$106*$B$107 -> 0 | D95: 0 | E95: 1533221.516 | F95: 3036317.368 | G95: 342221.3011 | H95: 0 | I95: 200000 | J95: 78809.48176 | K95: 131101.1125 | L95: 12779.49294
A96: 2025/26 | C96: =C74/$B$106*$B$107 -> 0 | D96: 0 | E96: 1302533.182 | F96: 3989050.931 | G96: 307618.2894 | H96: 0 | I96: 771590.8581 | J96: 62863.08914 | K96: 173371.2399 | L96: 40000
A97: 2026/27 | C97: =C75/$B$106*$B$107 -> 0 | D97: 0 | E97: 1302533.182 | F97: 3989050.931 | G97: 307618.2894 | H97: 0 | I97: 771590.8581 | J97: 62863.08914 | K97: 173371.2399 | L97: 40000
A98: 2027/28 | C98: =C76/$B$106*$B$107 -> 0 | D98: 0 | E98: 1296024.5 | F98: 3960151.37 | G98: 305031.3895 | H98: 0 | I98: 761945.9724 | J98: 62863.08914 | K98: 172311.0787 | L98: 40000
A99: 2028/29 | C99: =C77/$B$106*$B$107 -> 0 | D99: 0 | E99: 1289716.114 | F99: 3931999.086 | G99: 302499.1241 | H99: 0 | I99: 752421.6477 | J99: 62863.08914 | K99: 171277.642 | L99: 40000
A100: 2029/30 | C100: =C78/$B$106*$B$107 -> 0 | D100: 0 | E100: 1283603.488 | F100: 3904578.216 | G100: 300020.252 | H100: 0 | I100: 743016.3771 | J100: 62863.08914 | K100: 170270.2296 | L100: 40000
A101: 2030/31 | C101: =C79/$B$106*$B$107 -> 0 | D101: 0 | E101: 1277682.204 | F101: 3877873.29 | G101: 297593.5616 | H101: 0 | I101: 733728.6724 | J101: 62863.08914 | K101: 169288.1603 | L101: 40000
A102: Average - 2012-2021 | C102: =IFERROR(AVERAGE(C82:C91),"") -> 0 | D102: =IFERROR(AVERAGE(D82:D91),"") -> 0 | E102: =IFERROR(AVERAGE(E82:E91),"") -> 1874196.222 | F102: 8607235 | G102: 317438.6055 | H102: 10900 | I102: 536400 | J102: 74775.25595 | K102: 149389.4971 | L102: 7139.694529
A103: Average - 2017-2026 | C103: =IFERROR(AVERAGE(C87:C96),"") -> 0 | D103: =IFERROR(AVERAGE(D87:D96),"") -> 0 | E103: =IFERROR(AVERAGE(E87:E96),"") -> 1570794.431 | F103: 5656501.137 | G103: 273775.1252 | H103: 0 | I103: 543359.0858 | J103: 72397.15611 | K103: 124620.3049 | L103: 11356.41541
A104: Average - 2022-2031 | C104: =IFERROR(AVERAGE(C88:C97),"") -> 0 | D104: 0 | E104: =IFERROR(AVERAGE(E92:E101),"") -> 1416572.115 | F104: =IFERROR(AVERAGE(F92:F101),"") -> 3639252.21 | G104: 327051.3868 | H104: 0 | I104: 533429.4386 | J104: 70608.70068 | K104: 148932.1399 | L104: 29356.41541
A105: Other Calculation of Consumption Inputs
A106: Load factor | B106: 1.3
A107: Days | B107: 260

Sheet PTRM Inputs
A1: SA PTRM Inputs
A3: Building block components ($M NOMINAL) | B3: 2016/17 | C3: 2017/18 | D3: 2018/19 | E3: 2019/20 | F3: 2020/21 | G3: 2021/22 | H3: 2022/23 | I3: 2023/24 | J3: 2024/25 | K3: 2025/26 | L3: 2026/27 | M3: 2027/28 | N3: 2028/29 | O3: 2029/30 | P3: 2030/31
A4: Return on capital | B4: 85.14494463 | C4: 91.6424184 | D4: 97.92703966 | E4: 104.4132138 | F4: 111.0441073 | G4: 83.41500742 | H4: 83.20698139 | I4: 83.12937466 | J4: 82.91120001 | K4: 82.6287495 | L4: 124.0929682 | M4: 129.7532524 | N4: 139.1140015 | O4: 146.1137066 | P4: 156.4727754
A5: Return of capital | B5: 11.15062949 | C5: 14.32474054 | D5: 19.61074034 | E5: 24.4868127 | F5: 23.99011088 | G5: 57.07079889 | H5: 61.71123186 | I5: 66.3034728 | J5: 64.00603055 | K5: 69.10591591 | L5: 18.01647058 | M5: 12.47117127 | N5: 21.24680875 | O5: 25.82112131 | P5: 31.93562809
A6: O&M | B6: 73.14045602 | C6: 76.37397208 | D6: 79.74921945 | E6: 81.75199041 | F6: 83.93389338 | G6: 74.93822135 | H6: 77.59179498 | I6: 80.35032892 | J6: 83.09939789 | K6: 85.84262521 | L6: 87.79502927 | M6: 97.52041893 | N6: 113.0388225 | O6: 111.0852523 | P6: 110.4406267
A7: Carry-over amounts | B7: 5.538825144 | C7: -2.798603476 | D7: -3.71090921 | E7: 0.2886529688 | F7: 0 | G7: 6.687336601 | H7: 1.868922322 | I7: 6.227054017 | J7: -1.753142851 | K7: 0 | L7: 8.460539861 | M7: -2.169787223 | N7: -0.8155107211 | O7: -0.9345779918 | P7: 3.972661393
A8: Benchmark Tax liability | B8: 2.238928721 | C8: 1.821074784 | D8: 1.602903662 | E8: 2.216261865 | F8: 0.8128296422 | G8: 0 | H8: 0 | I8: 0 | J8: 0 | K8: 0 | L8: 0 | M8: 0 | N8: 0 | O8: 0 | P8: 0
A9: TOTAL REVENUE | B9: =SUM(B4:B8) -> 177.213784 | C9: 181.3636023 | D9: 195.1789939 | E9: 213.1569317 | F9: 219.7809412 | G9: =SUM(G4:G8) -> 222.1113643 | H9: 224.3789305 | I9: 236.0102304 | J9: 228.2634856 | K9: 237.5772906 | L9: 238.3650079 | M9: 237.5750553 | N9: 272.584122 | O9: 282.0855022 | P9: 302.8216915
A10: TOTAL REVENUE (SMOOTHED) | B10: 177.9 | C10: 213.3 | D10: 247.7 | E10: 259.3 | F10: 270.1 | G10: 204.2766849 | H10: 215.5428785 | I10: 228.809071 | J10: 243.1742999 | K10: 258.9165254 | L10: 260.669677 | M10: 263.8424137 | N10: 265.1819491 | O10: 266.5711915 | P10: 267.7509976
A14: Asset Class Name | B14: Opening Asset Value
B15: 2016/17 | C15: 2021/22 | D15: 2026/27
A16: Mains | B16: 978.9705139 | C16: 1142.721012 | D16: 1492.203441
A17: Inlets | B17: 121.0581084 | C17: 198.0754396 | D17: 293.2961483
A18: Meters | B18: 56.99294817 | C18: 61.86572759 | D18: 68.80700658
A19: Telemetry | B19: 4.139795268 | C19: 3.135535568 | D19: 3.058658688
A20: IT system | B20: 19.23423291 | C20: 8.888075714 | D20: 12.18363396
A21: Other distribution system equipment | B21: 201.7962545 | C21: 101.7065665 | D21: 136.9121398
A22: Other | B22: 3.436416174 | C22: 1.418600924 | D22: 8.049220331
A23: Low Pressure mains depreciation | B23: 0 | C23: 154.9573411 | D23: 5.567211284
A24: Low Pressure inlets depreciation | B24: 0 | C24: 96.56690715 | D24: 3.472847008
A25: Future of Gas Depreciation | D25: 30

Sheet DORC Calculations
A1: DORC Inputs and Calculations
A2: Tariff D DORC Calculations
A4: Tariff D Summary - 1 July 1999 DORC | B4: Total | C4: Total Cost | D4: Total Inlet | E4: Total Meter and RDL | F4: Total Gate Station | G4: Average Length | H4: Average Cost/m
A5: Central | B5: =SUMIF($B$56:$B$214,A5,$J$56:$J$214) -> 10945456.41 | C5: =SUMIF($B$56:$B$214,A5,$F$56:$F$214) -> 8459300.759 | D5: =SUMIF($B$56:$B$214,$A5,$G$56:$G$214) -> 733200 | E5: =SUMIF($B$56:$B$214,$A5,$H$56:$H$214) -> 1043068 | F5: =SUMIF($B$56:$B$214,$A5,$I$56:$I$214) -> 709887.6465 | G5: 14567.76852 | H5: 13.28586418
A6: Northern | B6: =SUMIF($B$56:$B$214,A6,$J$56:$J$214)+SUMIF($B$56:$B$214,"North Western",$J$56:$J$214) -> 19064777.05 | C6: =SUMIF($B$56:$B$214,A6,$F$56:$F$214)+SUMIF($B$56:$B$214,"NORTH WESTERN",$F$56:$F$214) -> 14808805.08 | D6: =SUMIF($B$56:$B$214,$A6,$G$56:$G$214)+SUMIF($B$56:$B$214,"NORTH WESTERN",$G$56:$G$214) -> 1297200 | E6: =SUMIF($B$56:$B$214,$A6,$H$56:$H$214)+SUMIF($B$56:$B$214,"NORTH WESTERN",$H$56:$H$214) -> 1734068 | F6: =SUMIF($B$56:$B$214,$A6,$I$56:$I$214)+SUMIF($B$56:$B$214,"NORTH WESTERN",$I$56:$I$214) -> 1224703.969
A7: Southern | B7: =SUMIF($B$56:$B$214,A7,$J$56:$J$214) -> 5856484.21 | C7: =SUMIF($B$56:$B$214,A7,$F$56:$F$214) -> 4716231.945 | D7: =SUMIF($B$56:$B$214,$A7,$G$56:$G$214) -> 352500 | E7: =SUMIF($B$56:$B$214,$A7,$H$56:$H$214) -> 472183 | F7: =SUMIF($B$56:$B$214,$A7,$I$56:$I$214) -> 315569.2642
A8: Peterborough | B8: 235243 | C8: 175560 | D8: 14100 | E8: 15583 | F8: 30000
A9: Port Pirie | B9: 1220685 | C9: 1034100 | D9: 42300 | E9: 69285 | F9: 75000
A10: Riverland | B10: 203563 | C10: 173880 | D10: 14100 | E10: 15583 | F10: 0
A11: South East | B11: 1520283.689 | C11: 1232504.998 | D11: 84600 | E11: 93498 | F11: 109680.6913
A12: Whyalla | B12: 279083 | C12: 248400 | D12: 14100 | E12: 15583 | F12: 1000
A13: Total | B13: =SUM(B5:B12) -> 39325575.35
A15: Checks | B15: =B13-J215 -> 0
A17: Tariff D Summary - Closing 2010/11 RAB | B17: Total | C17: Total Cost | D17: Total Inlet | E17: Total Meter and RDL | F17: Total Gate Station | G17: Total 2015/16 RAB | H17: Total 1 July 1999 RAB | I17: Tariff D % (based on 1999/00)
A18: Central | B18: =SUMIF($B$218:$B$376,A18,$J$218:$J$376) -> 23239681.66 | C18: =SUMIF($B$218:$B$376,A18,$F$218:$F$376) -> 17961010.44 | D18: =SUMIF($B$218:$B$376,$A18,$G$218:$G$376) -> 1556749.574 | E18: =SUMIF($B$218:$B$376,$A18,$H$218:$H$376) -> 2214669.482 | F18: =SUMIF($B$218:$B$376,$A18,$I$218:$I$376) -> 1507252.17 | G18: =SUM('PTRM Inputs'!B16:B24)*1000000 -> 1385628269 | H18: 652605058.7 | I18: =B13/H18 -> 0.06025937866
A19: Northern | B19: =SUMIF($B$218:$B$376,A19,$J$218:$J$376)+SUMIF($B$218:$B$376,"North Western",$J$218:$J$376) -> 40478837.35 | C19: =SUMIF($B$218:$B$376,A19,$F$218:$F$376)+SUMIF($B$218:$B$376,"NORTH WESTERN",$F$218:$F$376) -> 31442445.44 | D19: =SUMIF($B$218:$B$376,$A19,$G$218:$G$376)+SUMIF($B$218:$B$376,"NORTH WESTERN",$G$218:$G$376) -> 2754249.246 | E19: =SUMIF($B$218:$B$376,$A19,$H$218:$H$376)+SUMIF($B$218:$B$376,"NORTH WESTERN",$H$218:$H$376) -> 3681818.903 | F19: =SUMIF($B$218:$B$376,$A19,$I$218:$I$376)+SUMIF($B$218:$B$376,"NORTH WESTERN",$I$218:$I$376) -> 2600323.761
A20: Southern | B20: =SUMIF($B$218:$B$376,A20,$J$218:$J$376) -> 12434641.7 | C20: =SUMIF($B$218:$B$376,A20,$F$218:$F$376) -> 10013628.03 | D20: =SUMIF($B$218:$B$376,$A20,$G$218:$G$376) -> 748437.2951 | E20: =SUMIF($B$218:$B$376,$A20,$H$218:$H$376) -> 1002551.397 | F20: =SUMIF($B$218:$B$376,$A20,$I$218:$I$376) -> 670024.983
A21: Peterborough | B21: 499474.1408 | C21: 372753.6214 | D21: 29937.4918 | E21: 33086.23651 | F21: 63696.79107
A22: Port Pirie | B22: 2591790.58 | C22: 2195628.388 | D22: 89812.47541 | E22: 147107.739 | F22: 159241.9777
A23: Riverland | B23: 432210.3294 | C23: 369186.6011 | D23: 29937.4918 | E23: 33086.23651 | F23: 0
A24: South East | B24: 3227906.418 | C24: 2616887.112 | D24: 179624.9508 | E24: 198517.4191 | F24: 232876.9359
A25: Whyalla | B25: 592556.3848 | C25: 527409.4301 | D25: 29937.4918 | E25: 33086.23651 | F25: 2123.226369
A26: Total | B26: =SUM(B18:B25) -> 83497098.56
A28: Checks | B28: =B26-J377 -> 0
A30: Tariff D Summary - Closing 2015/16 RAB | B30: Total | C30: Total Cost | D30: Total Inlet | E30: Total Meter and RDL | F30: Total Gate Station | G30: Total 2020/21 RAB | H30: Total 2015/16 RAB | I30: Tariff D % (based on 2010/11)
A31: Central | B31: =SUMIF($B$380:$B$538,A31,$J$380:$J$538) -> 29675193.46 | C31: =SUMIF($B$380:$B$538,$A31,F$380:F$538) -> 22934757.33 | D31: =SUMIF($B$380:$B$538,$A31,G$380:G$538) -> 1987843.269 | E31: 2827953.769 | F31: 1924639.089 | G31: =SUM('PTRM Inputs'!C16:C24)*1000000 -> 1769335207 | H31: =G18 -> 1385628269 | I31: =B26/H31 -> 0.06025937866
A32: Northern | B32: =SUMIF($B$380:$B$538,A32,$J$380:$J$538)+SUMIF($B$380:$B$538,"North Western",$J$380:$J$538) -> 51688200.67 | C32: =SUMIF($B$380:$B$538,$A32,F$380:F$538)+SUMIF($B$380:$B$538,"NORTH WESTERN",F$380:F$538) -> 40149459.22 | D32: =SUMIF($B$380:$B$538,$A32,G$380:G$538)+SUMIF($B$380:$B$538,"NORTH WESTERN",G$380:G$538) -> 3516953.476 | E32: 4701384.891 | F32: 3320403.084
A33: Southern | B33: =SUMIF($B$380:$B$538,A33,$J$380:$J$538) -> 15878031.53 | C33: =SUMIF($B$380:$B$538,$A33,F$380:F$538) -> 12786592.92 | D33: 955693.8795 | E33: 1280177.03 | F33: 855567.7003
A34: Peterborough | B34: 637788.0717 | C34: 475976.2198 | D34: 38227.75518 | E34: 42248.44744 | F34: 81335.64932
A35: Port Pirie | B35: 3309506.903 | C35: 2803639.832 | D35: 114683.2655 | E35: 187844.6821 | F35: 203339.1233
A36: Riverland | B36: 551897.6261 | C36: 471421.4234 | D36: 38227.75518 | E36: 42248.44744 | F36: 0
A37: South East | B37: 4121775.367 | C37: 3341553.143 | D37: 229366.5311 | E37: 253490.6847 | F37: 297365.0081
A38: Whyalla | B38: 756646.5673 | C38: 673459.1763 | D38: 38227.75518 | E38: 42248.44744 | F38: 2711.188311
A39: Total | B39: =SUM(B31:B38) -> 106619040.2
A41: Checks | B41: =B39-J539 -> 0
A42: Tariff D Summary - Closing 2020/21 RAB | B42: Total | C42: Total Cost | D42: Total Inlet | E42: Total Meter and RDL | F42: Total Gate Station | G42: Total 2020/21 RAB | H42: Total 2020/21 RAB | I42: Tariff D % (based on 2010/11)
A43: Central | B43: =SUMIF($B$380:$B$538,A43,$J$380:$J$538) -> 29675193.46 | C43: =SUMIF($B$380:$B$538,$A43,F$380:F$538) -> 22934757.33 | D43: =SUMIF($B$380:$B$538,$A43,G$380:G$538) -> 1987843.269 | E43: =SUMIF($B$380:$B$538,$A43,H$380:H$538) -> 2827953.769 | F43: =SUMIF($B$380:$B$538,$A43,I$380:I$538) -> 1924639.089 | G43: =SUM('PTRM Inputs'!D16:D25)*1000000 -> 2053550307 | H43: =G31 -> 1769335207 | I43: =B39/H43 -> 0.06025937866
A44: Northern | B44: =SUMIF($B$380:$B$538,A44,$J$380:$J$538)+SUMIF($B$380:$B$538,"North Western",$J$380:$J$538) -> 51688200.67 | C44: =SUMIF($B$380:$B$538,$A44,F$380:F$538)+SUMIF($B$380:$B$538,"NORTH WESTERN",F$380:F$538) -> 40149459.22 | D44: =SUMIF($B$380:$B$538,$A44,G$380:G$538)+SUMIF($B$380:$B$538,"NORTH WESTERN",G$380:G$538) -> 3516953.476 | E44: =SUMIF($B$380:$B$538,$A44,H$380:H$538)+SUMIF($B$380:$B$538,"NORTH WESTERN",H$380:H$538) -> 4701384.891 | F44: =SUMIF($B$380:$B$538,$A44,I$380:I$538)+SUMIF($B$380:$B$538,"NORTH WESTERN",I$380:I$538) -> 3320403.084
A45: Southern | B45: =SUMIF($B$380:$B$538,A45,$J$380:$J$538) -> 15878031.53 | C45: =SUMIF($B$380:$B$538,$A45,F$380:F$538) -> 12786592.92 | D45: 955693.8795 | E45: 1280177.03 | F45: 855567.7003
A46: Peterborough | B46: 637788.0717 | C46: 475976.2198 | D46: 38227.75518 | E46: 42248.44744 | F46: 81335.64932
A47: Port Pirie | B47: 3309506.903 | C47: 2803639.832 | D47: 114683.2655 | E47: 187844.6821 | F47: 203339.1233
A48: Riverland | B48: 551897.6261 | C48: 471421.4234 | D48: 38227.75518 | E48: 42248.44744 | F48: 0
A49: South East | B49: 4121775.367 | C49: 3341553.143 | D49: 229366.5311 | E49: 253490.6847 | F49: 297365.0081
A50: Whyalla | B50: 756646.5673 | C50: 673459.1763 | D50: 38227.75518 | E50: 42248.44744 | F50: 2711.188311
A51: Total | B51: =SUM(B43:B50) -> 106619040.2
A53: Checks | B53: =B51-J713 -> 106619040.2
A55: Individual Customers as at 1 July 1999 | B55: District Name | C55: Consumption | D55: Flow (MDQ) | E55: Length | F55: Cost | G55: Inlet | H55: Meter and RDL | I55: Gate Station | J55: Total
A56: Adelaide Aquatic Centre | B56: Central | C56: 43127.63534 | D56: 258 | E56: 15749.8 | F56: 47695.37667 | G56: 14100 | H56: 15583 | I56: 4174.559031 | J56: =SUM(F56:I56) -> 81552.93571
A57: Adelaide Festival Centre Trust | B57: Central | C57: 9515.3439 | D57: 73 | E57: =$G$5 -> 14567.76852 | F57: =E57*$H$5 -> 193545.394 | G57: =P157 -> 14100 | H57: =P161 -> 15583 | I57: =P166 -> 4175 | J57: =SUM(F57:I57) -> 227403.394
A58: Arnotts Biscuits | B58: Central | C58: 67493.05675 | D58: 295 | E58: 20402 | F58: 96098.1344 | G58: 14100 | H58: 30583 | I58: 4174.559031 | J58: 144955.6934
A59: Ashford Community Hospital Inc | B59: Central | C59: 18409.79295 | D59: 131 | E59: 20901 | F59: 66028.46791 | G59: 14100 | H59: 15583 | I59: 4174.559031 | J59: 99886.02694
A60: Asphalt SA | B60: Central | C60: 21379.63016 | D60: 146 | E60: =$G$5 -> 14567.76852 | F60: =E60*$H$5 -> 193545.394 | G60: =P157 -> 14100 | H60: =P161 -> 15583 | I60: =P166 -> 4175 | J60: 227403.394
A61: Australia Post | B61: Central | C61: 7945.759397 | D61: 84 | E61: 22249.8 | F61: 114364.7344 | G61: 14100 | H61: 15583 | I61: 4174.559031 | J61: 148222.2934
A62: Brown Wood Panels Pty Ltd | B62: Central | C62: 20497.0961 | D62: 125 | E62: 23602 | F62: 64923.05145 | G62: 14100 | H62: 15583 | I62: 4174.559031 | J62: 98780.61048
A63: Buttercup Bakeries - Forestville | B63: Central | C63: 34915.56606 | D63: 143 | E63: 21401 | F63: 122293.1031 | G63: 14100 | H63: 15583 | I63: 4174.559031 | J63: 156150.6621
A64: Castalloy Manufacturing Pty Ltd (ION Automotive: Nth Plympton) | B64: Central | C64: 336502.683 | D64: 1300 | E64: 23202 | F64: 453743.1076 | G64: 28200 | H64: 53702 | I64: 78749.85194 | J64: 614394.9595
A65: Coca Cola Bottlers Adelaide | B65: Central | C65: 25398.21408 | D65: 134 | E65: 14601 | F65: 32214.39822 | G65: 14100 | H65: 15583 | I65: 4174.559031 | J65: 66071.95725
A66: CSR Building Materials | B66: Central | C66: 368560.9007 | D66: 1300 | E66: 22701 | F66: 864275.9851 | G66: 28200 | H66: 53702 | I66: 78749.85194 | J66: 1024927.837
A67: Dept For The Arts | B67: Central | C67: 11921.24859 | D67: 68 | E67: 19449.8 | F67: 39529.18667 | G67: 14100 | H67: 15583 | I67: 4174.559031 | J67: 73386.7457
A68: Hallet Brick (Austral Bricks) | B68: Central | C68: 214414.5215 | D68: 800 | E68: =$G$5 -> 14567.76852 | F68: =E68*$H$5 -> 193545.394 | G68: =P158 -> 28200 | H68: =P163 -> 53702 | I68: =P167 -> 78750 | J68: 354197.394
A69: Healthscope Ltd | B69: Central | C69: 27658.8352 | D69: 187 | E69: =$G$5 -> 14567.76852 | F69: =E69*$H$5 -> 193545.394 | G69: =P157 -> 14100 | H69: =P161 -> 15583 | I69: =P166 -> 4175 | J69: 227403.394
A70: Hilton International Adelaide | B70: Central | C70: 17136.52205 | D70: 78 | E70: 21049.8 | F70: 57544.94643 | G70: 14100 | H70: 15583 | I70: 4174.559031 | J70: 91402.50546
A71: Hyatt Regency Adelaide | B71: Central | C71: 12258.20491 | D71: 63 | E71: 20049.8 | F71: 56422.41805 | G71: 14100 | H71: 15583 | I71: 4174.559031 | J71: 90279.97708
A72: Inghams Enterprises Pty Ltd | B72: Central | C72: 21065.52116 | D72: 90 | E72: =$G$5 -> 14567.76852 | F72: =E72*$H$5 -> 193545.394 | G72: =P157 -> 14100 | H72: =P161 -> 15583 | I72: =P166 -> 4175 | J72: 227403.394
A73: International Linen Service Pty Ltd | B73: Central | C73: 68467.85877 | D73: 280 | E73: 17102 | F73: 166541.6606 | G73: 14100 | H73: 15583 | I73: 4174.559031 | J73: 200399.2196
A74: Julia Farr Services | B74: Central | C74: 16301.91063 | D74: 149 | E74: 26049.8 | F74: 310200.0178 | G74: 14100 | H74: 15583 | I74: 4174.559031 | J74: 344057.5768
A75: Myer Centre Adelaide Intro International Ltd | B75: Central | C75: 9186.930247 | D75: 76 | E75: =$G$5 -> 14567.76852 | F75: =E75*$H$5 -> 193545.394 | G75: =P157 -> 14100 | H75: =P161 -> 15583 | I75: =P166 -> 4175 | J75: 227403.394
A76: North Eastern Community Hospital Inc | B76: Central | C76: 8964.963519 | D76: 75 | E76: 13910 | F76: 385214.2052 | G76: 14100 | H76: 15583 | I76: 4174.559031 | J76: 419071.7642
A77: North Eastern Community Hospital Inc | B77: Central | C77: 10782.67283 | D77: 50 | E77: =$G$5 -> 14567.76852 | F77: =E77*$H$5 -> 193545.394 | G77: =P157 -> 14100 | H77: =P161 -> 15583 | I77: =P166 -> 4175 | J77: 227403.394
A78: Novotel Adelaide On Hindley | B78: Central | C78: 5761.749699 | E78: =$G$5 -> 14567.76852 | F78: =E78*$H$5 -> 193545.394 | G78: =P157 -> 14100 | H78: =P161 -> 15583 | I78: =P166 -> 4175 | J78: 227403.394
A79: Performance Wheel Co Pty Ltd | B79: Central | C79: 37767.35306 | D79: 175 | E79: =$G$5 -> 14567.76852 | F79: =E79*$H$5 -> 193545.394 | G79: =P157 -> 14100 | H79: =P161 -> 15583 | I79: =P166 -> 4175 | J79: 227403.394
A80: Pioneer Road Services Pty Ltd | B80: Central | C80: 68978.74199 | D80: 350 | E80: 18301 | F80: 10058.7757 | G80: 14100 | H80: 15583 | I80: 4174.559031 | J80: 43916.33473
A81: PMP | B81: Central | C81: 17916.33344 | D81: 62 | E81: =$G$5 -> 14567.76852 | F81: =E81*$H$5 -> 193545.394 | G81: =P157 -> 14100 | H81: =P161 -> 15583 | I81: =P166 -> 4175 | J81: 227403.394
A82: Riviera Bakery Pty Ltd | B82: Central | C82: 14114.0871 | D82: 66 | E82: 16602 | F82: 34677.01635 | G82: 14100 | H82: 15583 | I82: 4174.559031 | J82: 68534.57538
A83: Royal Adelaide Hospital | B83: Central | C83: 169112.2885 | D83: 810 | E83: 19049.8 | F83: 311385.9992 | G83: 28200 | H83: 53702 | I83: 78749.85194 | J83: 472037.8511
A84: S A Linen Services Pty Ltd | B84: Central | C84: 18992.90106 | D84: 67 | E84: 15602 | F84: 23522.17775 | G84: 14100 | H84: 15583 | I84: 4174.559031 | J84: 57379.73679
A85: San Remo Macaroni Co Pty Ltd | B85: Central | C85: 68832.90166 | D85: 440 | E85: 12310 | F85: 643545.9995 | G85: 14100 | H85: 30583 | I85: 4174.559031 | J85: 692403.5585
A86: San Remo Macaroni Co Pty Ltd | B86: Central | C86: 50631.11716 | D86: 164 | E86: =$G$5 -> 14567.76852 | F86: =E86*$H$5 -> 193545.394 | G86: =P157 -> 14100 | H86: =P162 -> 30583 | I86: =P166 -> 4175 | J86: 242403.394
A87: South Australian Brewing Co Pty Ltd | B87: Central | C87: 117926.714 | D87: 890 | E87: 14201 | F87: 115689.0087 | G87: 28200 | H87: 53702 | I87: 78749.85194 | J87: 276340.8606
A88: South Australian Water Corporation | B88: Central | C88: 37049.55311 | D88: 131 | E88: 26602 | F88: 257372.4731 | G88: 14100 | H88: 15583 | I88: 4174.559031 | J88: 291230.0321
A89: St Andrews Hospital Inc | B89: Central | C89: 43287.45347 | D89: 134 | E89: 22649.8 | F89: 191603.535 | G89: 14100 | H89: 15583 | I89: 4174.559031 | J89: 225461.094
A90: Stamford Plaza Adelaide | B90: Central | C90: 11773.4621 | D90: 59 | E90: 20049.8 | F90: 24382.63237 | G90: 14100 | H90: 15583 | I90: 4174.559031 | J90: 58240.1914
A91: Statewide Mental Health Service | B91: Central | C91: 12240.57947 | D91: 99 | E91: 23849.8 | F91: 192388.6939 | G91: 14100 | H91: 15583 | I91: 4174.559031 | J91: 226246.2529
A92: The Adelaide Casino | B92: Central | C92: 10906.26449 | D92: 51 | E92: 19949.8 | F92: 18280.35492 | G92: 14100 | H92: 15583 | I92: 4174.559031 | J92: 52137.91395
A93: The Radisson Playford Hotel | B93: Central | C93: 12983.22023 | D93: 53 | E93: =$G$5 -> 14567.76852 | F93: =E93*$H$5 -> 193545.394 | G93: =P157 -> 14100 | H93: =P161 -> 15583 | I93: =P166 -> 4175 | J93: 227403.394
A94: Thermal Ceramics Australia Pty Ltd | B94: Central | C94: 13440.06472 | D94: 150 | E94: 11800 | F94: 206061.844 | G94: 14100 | H94: 30583 | I94: 4174.559031 | J94: 254919.403
A95: Tip Top Dry Cleaners Pty Ltd | B95: Central | C95: 13186.3922 | D95: 109 | E95: 18701 | F95: 54815.826 | G95: 14100 | H95: 15583 | I95: 4174.559031 | J95: 88673.38503
A96: Torrens Transit | B96: Central | C96: 69909.57124 | D96: 516 | E96: 28701 | F96: 700488.3327 | G96: 28200 | H96: 53702 | I96: 78749.85194 | J96: 861140.1847
A97: Torrens Transit (2) (Non OER) | B97: Central | C97: 73103.27496 | D97: 246 | E97: =$G$5 -> 14567.76852 | F97: =E97*$H$5 -> 193545.394 | G97: =$P$157 -> 14100 | H97: =$P$162 -> 30583 | I97: =$P$166 -> 4175 | J97: 242403.394
A98: University Of Adelaide | B98: Central | C98: 12236.09466 | D98: 68 | E98: 19649.8 | F98: 15026.33232 | G98: 14100 | H98: 15583 | I98: 4174.559031 | J98: 48883.89135
A99: Western Community Hospital Inc | B99: Central | C99: 11400.64757 | D99: 52 | E99: 14561 | F99: 147619.5318 | G99: 14100 | H99: 15583 | I99: 4174.559031 | J99: 181477.0908
A100: Women's & Children's Hospital | B100: Central | C100: 195770.7469 | D100: 560 | E100: 17649.8 | F100: 119203.3099 | G100: 28200 | H100: 53702 | I100: 78749.85194 | J100: 279855.1619
A101: Adelaide Brighton Cement Ltd (Birkenhead) | B101: North Western | C101: 5152894.254 | D101: 17852 | E101: 3100 | F101: 463538.6976 | G101: 28200 | H101: 53702 | I101: 78749.85194 | J101: 624190.5495
A102: Boral Plasterboard | B102: North Western | C102: 15022.54236 | D102: 550 | E102: 3650 | F102: 206084.1206 | G102: 28200 | H102: 38702 | I102: 78749.85194 | J102: 351735.9726
A103: Pacific Terminals Largs Bay | B103: North Western | C103: 1979.973138 | E103: =$G$5 -> 14567.76852 | F103: =E103*$H$5 -> 193545.394 | G103: =$P$157 -> 14100 | H103: =$P$161 -> 15583 | I103: =$P$166 -> 4175 | J103: 227403.394
A104: A I Automotive | B104: Northern | C104: 13463.64495 | D104: 68 | E104: =$G$5 -> 14567.76852 | F104: =E104*$H$5 -> 193545.394 | G104: =$P$157 -> 14100 | H104: =$P$161 -> 15583 | I104: =$P$166 -> 4175 | J104: 227403.394
A105: ACI Glass Packaging | B105: Northern | C105: 428102.964 | D105: 4800 | E105: =$G$5 -> 14567.76852 | F105: =E105*$H$5 -> 193545.394 | G105: =P158 -> 28200 | H105: =$P$163 -> 53702 | I105: =$P$167 -> 78750 | J105: 354197.394
A106: ACI Glass Packaging | B106: Northern | C106: 1759835.129 | D106: 7300 | E106: 10700 | F106: 309603.7339 | G106: 28200 | H106: 53702 | I106: 78749.85194 | J106: 470255.5859
A107: Adelaide Galvanising Industries | B107: Northern | C107: 12228.27467 | D107: 39 | E107: =$G$5 -> 14567.76852 | F107: =E107*$H$5 -> 193545.394 | G107: =$P$157 -> 14100 | H107: =$P$161 -> 15583 | I107: =$P$166 -> 4175 | J107: 227403.394
A108: Adelaide Malting Co Pty Ltd | B108: Northern | C108: 74531.824 | D108: 287 | E108: 1000 | F108: 12391.73914 | G108: 28200 | H108: 53702 | I108: 78749.85194 | J108: 173043.5911
A109: Adelaide Malting Co Pty Ltd | B109: Northern | C109: 198075.0776 | D109: 633 | E109: 2050 | F109: 48528.02114 | G109: 14100 | H109: 15583 | I109: 4174.559031 | J109: 82385.58017
A110: ALLOY TECHNOLOGIES INTERNATIONAL | B110: Northern | C110: 0 | D110: 50 | E110: =$G$5 -> 14567.76852 | F110: =E110*$H$5 -> 193545.394 | G110: =$P$157 -> 14100 | H110: =$P$161 -> 15583 | I110: =$P$166 -> 4175 | J110: 227403.394
A111: Alsco Linen Service Pty Ltd | B111: Northern | C111: 29821.58784 | D111: 130 | E111: 13001 | F111: 31283.08607 | G111: 14100 | H111: 15583 | I111: 4174.559031 | J111: 65140.6451
A112: Amcor Fibre Packaging Australia | B112: Northern | C112: 45000.25701 | D112: 229 | E112: 5200 | F112: 9970.298619 | G112: 14100 | H112: 15583 | I112: 4174.559031 | J112: 43827.85765
A113: Ani Bradken | B113: Northern | C113: 121086.6073 | D113: 500 | E113: 4960 | F113: 67066.97868 | G113: 14100 | H113: 15583 | I113: 4174.559031 | J113: 100924.5377
A114: Arrowcrest Group Pty Ltd | B114: Northern | C114: 166434.2303 | D114: 780 | E114: 6200 | F114: 33492.44752 | G114: 28200 | H114: 53702 | I114: 78749.85194 | J114: 194144.2995
A115: Avery Dennison Materials Pty Ltd | B115: Northern | C115: 44172.68417 | D115: 237 | E115: 14301 | F115: 202960.4149 | G115: 14100 | H115: 15583 | I115: 4174.559031 | J115: 236817.9739
A116: Balfours (Dudley Park) | B116: Northern | C116: 10896.23 | D116: 154 | E116: 21249.8 | F116: 137119.5768 | G116: 14100 | H116: 15583 | I116: 4174.559031 | J116: 170977.1359
A117: Balfours (Seaton) | B117: Northern | C117: 10197.172 | D117: 72 | E117: =$G$5 -> 14567.76852 | F117: =E117*$H$5 -> 193545.394 | G117: =$P$157 -> 14100 | H117: =$P$161 -> 15583 | I117: =$P$166 -> 4175 | J117: 227403.394
A118: Boral Asphalt | B118: Northern | C118: 15242.64022 | D118: 134 | E118: 18801 | F118: 80476.73388 | G118: 14100 | H118: 15583 | I118: 4174.559031 | J118: 114334.2929
A119: Boral Hollostone Masonary SA Pty Ltd | B119: Northern | C119: 12905.60543 | D119: 86 | E119: 5500 | F119: 192939.162 | G119: 14100 | H119: 15583 | I119: 4174.559031 | J119: 226796.721
A120: Bridgestone Australia Ltd | B120: Northern | C120: 179286.4355 | D120: 900 | E120: 10801 | F120: 331888.8187 | G120: 28200 | H120: 53702 | I120: 78749.85194 | J120: 492540.6707
A121: Carter Holt Harvey - Demand | B121: Northern | C121: =7601.155 -> 7601.155 | D121: 357 | E121: =$G$5 -> 14567.76852 | F121: =E121*$H$5 -> 193545.394 | G121: =$P$157 -> 14100 | H121: =$P$161 -> 15583 | I121: =$P$166 -> 4175 | J121: =SUM(F121:I121) -> 227403.394
A122: Carter Holt Harvey - Term Sheet | B122: Northern | C122: 31515.7128 | E122: =$G$5 -> 14567.76852 | F122: =E122*$H$5 -> 193545.394 | G122: =$P$157 -> 14100 | H122: =$P$161 -> 15583 | I122: =$P$166 -> 4175 | J122: 227403.394
A123: Castalloy Wingfield (ION Automotive) | B123: Northern | C123: 93638.04641 | D123: 519 | E123: 10710 | F123: 185312.3112 | G123: 14100 | H123: 15583 | I123: 4174.559031 | J123: 219169.8703
A124: Central Linen Service | B124: Northern | C124: 100790.4956 | D124: 445 | E124: 10710 | F124: 468557.574 | G124: 14100 | H124: 30583 | I124: 4174.559031 | J124: 517415.133
A125: Chief Kitchenware Pty Ltd | B125: Northern | C125: 13611.43473 | D125: 90 | E125: 2310 | F125: 5846.783207 | G125: 14100 | H125: 15583 | I125: 4174.559031 | J125: 39704.34224
A126: Collex Waste Management Pty Ltd | B126: Northern | C126: 12500.81373 | D126: 52 | E126: 3510 | F126: 34767.72309 | G126: 14100 | H126: 15583 | I126: 4174.559031 | J126: 68625.28212
A127: Conroy'S Smallgoods Pty Ltd | B127: Northern | C127: 12379.59491 | D127: 72 | E127: 14049.8 | F127: 19462.16894 | G127: 14100 | H127: 15583 | I127: 4174.559031 | J127: 53319.72797
A128: Crane Aluminium Extrusions | B128: Northern | C128: 38667.91826 | D128: 169 | E128: =$G$5 -> 14567.76852 | F128: =E128*$H$5 -> 193545.394 | G128: =$P$157 -> 14100 | H128: =$P$161 -> 15583 | I128: =$P$166 -> 4175 | J128: 227403.394
A129: CSR Emoleum | B129: Northern | C129: 41548.47146 | D129: 249 | E129: 3920 | F129: 43063.14021 | G129: 14100 | H129: 15583 | I129: 4174.559031 | J129: 76920.69924
A130: CSR Humes Ltd | B130: Northern | C130: 15046.62808 | D130: 135 | E130: 35502 | F130: 660698.703 | G130: 14100 | H130: 15583 | I130: 4174.559031 | J130: 694556.2621
A131: Dept Of Correctional Services Sa | B131: Northern | C131: 15327.1388 | D131: 96 | E131: 7510 | F131: 88677.52171 | G131: 14100 | H131: 15583 | I131: 4174.559031 | J131: 122535.0807
A132: DSTO | B132: Northern | C132: 8158.12159 | D132: 78 | E132: =$G$5 -> 14567.76852 | F132: =E132*$H$5 -> 193545.394 | G132: =$P$157 -> 14100 | H132: =$P$161 -> 15583 | I132: =$P$166 -> 4175 | J132: 227403.394
A133: Electrolux Appliance | B133: Northern | C133: 5362.327819 | E133: =$G$5 -> 14567.76852 | F133: =E133*$H$5 -> 193545.394 | G133: =$P$157 -> 14100 | H133: =$P$161 -> 15583 | I133: =$P$166 -> 4175 | J133: 227403.394
A134: Electrolux Cooking Products Division | B134: Northern | C134: 114006.0718 | D134: 600 | E134: 10810 | F134: 331937.5033 | G134: 14100 | H134: 15583 | I134: 4174.559031 | J134: 365795.0624
A135: Electrolux Home Products Pty Ltd | B135: Northern | C135: 31101.92115 | D135: 170 | E135: 6400 | F135: 33979.48692 | G135: 14100 | H135: 15583 | I135: 4174.559031 | J135: 67837.04595
A136: Elizabeth Swimming Centre | B136: Northern | C136: 7704.772047 | D136: 61 | E136: 11101 | F136: 52912.78351 | G136: 14100 | H136: 15583 | I136: 4174.559031 | J136: 86770.34254
A137: F H Faulding & Co Pty Ltd | B137: Northern | C137: 24835.78307 | D137: 132 | E137: 12201 | F137: 55018.81452 | G137: 14100 | H137: 15583 | I137: 4174.559031 | J137: 88876.37355
A138: Foamex South Australia P/L | B138: Northern | C138: 17587.55236 | D138: 91 | E138: =$G$5 -> 14567.76852 | F138: =E138*$H$5 -> 193545.394 | G138: =$P$157 -> 14100 | H138: =$P$161 -> 15583 | I138: =$P$166 -> 4175 | J138: 227403.394
A139: G H Michell & Sons Pty Ltd | B139: Northern | C139: 194622.3637 | D139: 1150 | E139: 12301 | F139: 468357.6082 | G139: 28200 | H139: 53702 | I139: 78749.85194 | J139: 629009.4601
A140: G N B Battery Technologies Ltd | B140: Northern | C140: 69900.23606 | D140: 278 | E140: 13901 | F140: 360418.82 | G140: 14100 | H140: 15583 | I140: 4174.559031 | J140: 394276.379
A141: Gawler Health Service | B141: Northern | C141: 20676.00252 | D141: 72 | E141: 27101 | F141: 1249184.332 | G141: 14100 | H141: 15583 | I141: 4174.559031 | J141: 1283041.891
A142: Hampstead Rehabilitation Centre | B142: Northern | C142: 9548.867657 | D142: 56 | E142: 7910 | F142: 74830.80197 | G142: 14100 | H142: 15583 | I142: 4174.559031 | J142: 108688.361
A143: Holden Ltd | B143: Northern | C143: 746123.112 | D143: 3700 | E143: 7000 | F143: 480436.0767 | G143: 28200 | H143: 53702 | I143: 78749.85194 | J143: 641087.9287
A144: Industrial Engineers & Springmakers | B144: Northern | C144: 39767.086 | D144: 190 | E144: 12801 | F144: 44697.78992 | G144: 14100 | H144: 15583 | I144: 4174.559031 | J144: 78555.34895
A145: Inghams Enterprises Pty Ltd | B145: Northern | C145: 60988.91127 | D145: 260 | E145: 2300 | F145: 5164.041265 | G145: 14100 | H145: 15583 | I145: 4174.559031 | J145: 39021.6003
A146: Inghams Enterprises Pty Ltd | B146: Northern | C146: 24760.11988 | D146: 100 | E146: 17501 | F146: 15272.12851 | G146: 14100 | H146: 15583 | I146: 4174.559031 | J146: 49129.68754
A147: Intercast & Forge | B147: Northern | C147: 15291.31812 | D147: 65 | E147: =$G$5 -> 14567.76852 | F147: =E147*$H$5 -> 193545.394 | G147: =$P$157 -> 14100 | H147: =$P$161 -> 15583 | I147: =$P$166 -> 4175 | J147: 227403.394
A148: International Hydroponics Pty Ltd | B148: Northern | C148: 1552.566215 | D148: 259 | E148: =$G$5 -> 14567.76852 | F148: =E148*$H$5 -> 193545.394 | G148: =$P$157 -> 14100 | H148: =$P$161 -> 15583 | I148: =$P$166 -> 4175 | J148: 227403.394
A149: Jarrett Industries | B149: Northern | C149: 12813.02193 | D149: 65 | E149: =$G$5 -> 14567.76852 | F149: =E149*$H$5 -> 193545.394 | G149: =$P$157 -> 14100 | H149: =$P$161 -> 15583 | I149: =$P$166 -> 4175 | J149: 227403.394
A150: Joe White Maltings Ltd | B150: Northern | C150: 296942.4461 | D150: 1093 | E150: 1950 | F150: =E150*$H$5 -> 25907.43516 | G150: 28200 | H150: 53702 | I150: 78749.85194 | J150: 186559.2871
A151: John Shearer Ltd | B151: Northern | C151: 12311.39701 | D151: 120 | E151: =$G$5 -> 14567.76852 | F151: =E151*$H$5 -> 193545.394 | G151: =$P$157 -> 14100 | H151: =$P$161 -> 15583 | I151: =$P$166 -> 4175 | J151: 227403.394
A152: Korvest Galvanisers | B152: Northern | C152: 31094.02026 | D152: 190 | E152: 4610 | F152: 47706.70614 | G152: 14100 | H152: 15583 | I152: 4174.559031 | J152: 81564.26517
A153: Lyell Mc Ewin Hospital Inc | B153: Northern | C153: 28988.75285 | D153: 157 | E153: 7901 | F153: 53744.29132 | G153: 14100 | H153: 15583 | I153: 4174.559031 | J153: 87601.85035
A154: Master Butchers Ltd | B154: Northern | C154: 100544.3289 | D154: 468 | E154: 5110 | F154: 109449.2724 | G154: 14100 | H154: 15583 | I154: 4174.559031 | J154: 143306.8315
A155: Mobil Oil Australia | B155: Northern | C155: 12917.14127 | D155: 161 | E155: 2000 | F155: 3954.758558 | G155: 14100 | H155: 15583 | I155: 4174.559031 | J155: 37812.31759
A156: Mullins Wheels Pty Ltd | B156: Northern | C156: 37386.13865 | D156: 180 | E156: 11501 | F156: 46362.31567 | G156: 14100 | H156: 15583 | I156: 4174.559031 | J156: 80219.8747 | O156: Assumed Inlet Sizes
A157: National Foods Milk Limited | B157: Northern | C157: 29202.32357 | D157: 110 | E157: 17701 | F157: 24928.81517 | G157: 14100 | H157: 15583 | I157: 4174.559031 | J157: 58786.3742 | O157: 0 - 100TJ | P157: 14100
A158: Polyrib | B158: Northern | C158: 9956.542329 | D158: 58 | E158: =$G$5 -> 14567.76852 | F158: =E158*$H$5 -> 193545.394 | G158: =$P$157 -> 14100 | H158: =$P$161 -> 15583 | I158: =$P$166 -> 4175 | J158: 227403.394 | O158: Over 100TJ | P158: 28200
A159: P'Petual Holdings Pty Ltd Hydroponics Shed | B159: Northern | C159: 46555.0743 | D159: 218 | E159: =$G$5 -> 14567.76852 | F159: =E159*$H$5 -> 193545.394 | G159: =$P$157 -> 14100 | H159: =$P$161 -> 15583 | I159: =$P$166 -> 4175 | J159: 227403.394
A160: Preventative Maintenance Programs | B160: Northern | C160: 11204.04 | D160: 236 | E160: =$G$5 -> 14567.76852 | F160: =E160*$H$5 -> 193545.394 | G160: =$P$157 -> 14100 | H160: =$P$161 -> 15583 | I160: =$P$166 -> 4175 | J160: 227403.394 | O160: Assumed Meter Sizes
A161: Quality Dry Cleaners | B161: Northern | C161: 11452.86366 | D161: 53 | E161: 3700 | F161: =E161*$H$5 -> 49157.69748 | G161: =$P$157 -> 14100 | H161: =$P$161 -> 15583 | I161: =$P$166 -> 4175 | J161: 83015.69748 | O161: Under 50TJ | P161: 15583
A162: Quality Foods | B162: Northern | C162: 0 | D162: 40 | E162: =$G$5 -> 14567.76852 | F162: =E162*$H$5 -> 193545.394 | G162: =$P$157 -> 14100 | H162: =$P$161 -> 15583 | I162: =$P$166 -> 4175 | J162: 227403.394 | O162: 50-100TJ | P162: 30583
A163: Queen Elizabeth Hospital | B163: Northern | C163: 62264.37446 | D163: 320 | E163: 9311 | F163: 81571.71852 | G163: 14100 | H163: 30583 | I163: 4174.559031 | J163: 130429.2775 | O163: 100-200TJ | P163: 53702
A164: Regency Institute of TAFE | B164: Northern | C164: 9345.317347 | D164: 177 | E164: 9310 | F164: 123315.9731 | G164: 14100 | H164: 15583 | I164: 4174.559031 | J164: 157173.5321
A165: R-Max | B165: Northern | C165: 32101.18135 | D165: 200 | E165: 13801 | F165: 145134.3441 | G165: 14100 | H165: 15583 | I165: 4174.559031 | J165: 178991.9032 | O165: Assumed Gate Station Sizes
A166: Rocla Pipe & Precast Products | B166: Northern | C166: 10104.88065 | D166: 94 | E166: =$G$5 -> 14567.76852 | F166: =E166*$H$5 -> 193545.394 | G166: =$P$157 -> 14100 | H166: =$P$161 -> 15583 | I166: =$P$166 -> 4175 | J166: 227403.394 | O166: 0 - 100TJ | P166: 4175
A167: S Smith & Sons Pty Ltd | B167: Northern | C167: 9942.583063 | D167: 84 | F167: 465187.156 | G167: 14100 | H167: 15583 | J167: 494870.156 | O167: Over 100TJ | P167: 78750
A168: SAFCOL Canning Pty Ltd | B168: Northern | C168: 7634.500628 | D168: 60 | E168: 7501 | F168: 44411.48687 | G168: 14100 | H168: 15583 | I168: 4174.559031 | J168: 78269.0459
A169: Salisbury Brick Pty Ltd | B169: Northern | C169: =54349.031876793+3968.414 -> 58317.44588 | D169: 311 | E169: 22501 | F169: 1276454.549 | G169: 28200 | H169: 53702 | I169: 78749.85194 | J169: 1437106.401
A170: Sheridan Australia | B170: Northern | C170: 39854.93346 | E170: 7500 | F170: 82323.44057 | G170: 28200 | H170: 53702 | I170: 78749.85194 | J170: 242975.2925
A171: South Australian Saw Milling Pty Ltd | B171: Northern | C171: 66701.69587 | D171: 250 | E171: 3400 | F171: 7370.836026 | G171: 14100 | H171: 15583 | I171: 4174.559031 | J171: 41228.39506
A172: South Australian Water Corporation | B172: Northern | C172: 6021.081787 | E172: 5800 | F172: 379621.5153 | G172: 14100 | H172: 15583 | I172: 4174.559031 | J172: 413479.0743
A173: Southcorp Wines Pty Ltd | B173: Northern | C173: 14102.46044 | D173: 62 | E173: 11901 | F173: 21958.31551 | G173: 14100 | H173: 15583 | I173: 4174.559031 | J173: 55815.87454
A174: Strathmont Centre | B174: Northern | C174: 14842.88381 | D174: 94 | E174: 9210 | F174: 61976.17708 | G174: 14100 | H174: 15583 | I174: 4174.559031 | J174: 95833.73612
A175: Tarac Technologies Pty Ltd | B175: Northern | C175: 36826.73333 | D175: 864 | E175: =$G$5 -> 14567.76852 | F175: =E175*$H$5 -> 193545.394 | G175: 0 | H175: 0 | I175: 0 | J175: 193545.394
A176: The Smith'S Snackfood Company Ltd | B176: Northern | C176: 203898.3038 | D176: 845 | E176: 6810 | F176: 206061.844 | G176: 14100 | H176: 30583 | I176: 4174.559031 | J176: 254919.403
A177: Tip Top Bakeries | B177: Northern | C177: 58339.91332 | D177: 254 | E177: 3210 | F177: 53988.19415 | G177: 14100 | H177: 15583 | I177: 4174.559031 | J177: 87845.75318
A178: Top Coat Asphalt Contractors | B178: Northern | C178: 33751.10854 | D178: 223 | E178: 800 | F178: 704.8535471 | G178: 14100 | H178: 15583 | I178: 4174.559031 | J178: 34562.41258
A179: University Of SA - Levels Campus | B179: Northern | C179: 5571.008541 | E179: =$G$5 -> 14567.76852 | F179: =E179*$H$5 -> 193545.394 | G179: =$P$157 -> 14100 | H179: =$P$161 -> 15583 | I179: =$P$166 -> 4175 | J179: 227403.394
A180: Visy Board Pty Ltd | B180: Northern | C180: 57435.41043 | D180: 261 | E180: 3510 | F180: 46483.9836 | G180: 14100 | H180: 15583 | I180: 4174.559031 | J180: 80341.54263
A181: Woodbridge Henderson | B181: Northern | C181: 13241.06146 | D181: 112 | E181: =$G$5 -> 14567.76852 | F181: =E181*$H$5 -> 193545.394 | G181: =$P$157 -> 14100 | H181: =$P$161 -> 15583 | I181: =$P$166 -> 4175 | J181: 227403.394
A182: Metro Velda Pty Ltd | B182: Peterborough | C182: 10594.31584 | D182: 62 | E182: 0 | F182: 175560 | G182: 14100 | H182: 15583 | I182: 30000 | J182: 235243
A183: Conroys Port Pirie Abattoirs | B183: Port Pirie | C183: 55685.33347 | D183: 316 | E183: 0 | F183: 615896.7426 | G183: 14100 | H183: 15583 | I183: 4670.346216 | J183: 650250.0888
A184: Pasminco Port Pirie Smelter Pty Ltd | B184: Port Pirie | C184: 948572.9642 | D184: 3281 | E184: 0 | F184: 418203.2574 | G184: 28200 | H184: 53702 | I184: 70329.65378 | J184: 570434.9112
A185: Murray Bridge Bacon | B185: Riverland | C185: 32329.88578 | D185: 650 | E185: 0 | F185: =E185*$H$5 -> 0 | G185: 0 | H185: 0 | I185: 0 | J185: =SUM(F185:I185) -> 0
A186: Ridley Agriproducts Pty Ltd | B186: Riverland | C186: 24374.44258 | D186: 100 | E186: 0 | F186: 173880 | G186: 14100 | H186: 15583 | J186: 203563
A187: Carter Holt Harvey Panels | B187: South East | C187: 23013.58928 | D187: 109 | E187: =$G$5 -> 14567.76852 | F187: =E187*$H$5 -> 193545.394 | G187: =$P$157 -> 14100 | H187: =$P$161 -> 15583 | I187: =$P$166 -> 4175 | J187: 227403.394
A188: Dairy Vale Foods Limited | B188: South East | C188: 13460.87619 | D188: 71 | F188: 122936.1816 | G188: 14100 | H188: 15583 | I188: 11500.62432 | J188: 164119.806
A189: Green Triangle Forest Products Ltd | B189: South East | C189: 99322.18318 | D189: 536 | F189: 268681.9962 | G189: 14100 | H189: 15583 | I189: 38599.21443 | J189: 336964.2106
A190: Kraft Foods Ltd | B190: South East | C190: 13524.98173 | D190: 69 | F190: 453796.0321 | G190: 28200 | H190: 31166 | I190: 51230.85253 | J190: 564392.8847
A191: McDonnell Industries | B191: South East | C191: 13330.74 | D191: 75 | E191: =$G$5 -> 14567.76852 | F191: =E191*$H$5 -> 193545.394 | G191: =$P$157 -> 14100 | H191: =$P$161 -> 15583 | I191: =$P$166 -> 4175 | J191: 227403.394
A192: Adelaide Mushroom Nominees | B192: Southern | C192: 9743.242215 | D192: 42 | E192: =$G$5 -> 14567.76852 | F192: =E192*$H$5 -> 193545.394 | G192: =$P$157 -> 14100 | H192: =$P$161 -> 15583 | I192: =$P$166 -> 4175 | J192: 227403.394
A193: Bridgestone TG Australia Pty Ltd | B193: Southern | C193: 33002.66303 | D193: 185 | E193: 10801 | F193: 227059.9689 | G193: 14100 | H193: 15583 | I193: 4174.559031 | J193: 260917.5279
A194: BRL Hardy Ltd Winery | B194: Southern | C194: 17968.71348 | D194: 72 | E194: =$G$5 -> 14567.76852 | F194: =E194*$H$5 -> 193545.394 | G194: =$P$157 -> 14100 | H194: =$P$161 -> 15583 | I194: =$P$166 -> 4175 | J194: 227403.394
A195: Dairy Vale Foods Limited | B195: Southern | C195: 8849.013456 | D195: 70 | E195: =$G$5 -> 14567.76852 | F195: =E195*$H$5 -> 193545.394 | G195: =$P$157 -> 14100 | H195: =$P$161 -> 15583 | I195: =$P$166 -> 4175 | J195: 227403.394
A196: Flinders Medical Centre | B196: Southern | C196: 105710.4837 | D196: 630 | E196: 28701 | F196: 114106.6121 | G196: 14100 | H196: 30583 | I196: 4174.559031 | J196: 162964.1711
A197: Flinders University Of SA | B197: Southern | C197: 10444.60702 | D197: 89 | E197: 29201 | F197: 72529.57731 | G197: 14100 | H197: 15583 | I197: 4174.559031 | J197: 106387.1363
A198: Hills Industries Limited | B198: Southern | C198: 42229.86506 | D198: 250 | E198: 24001 | F198: 107660.3064 | G198: 14100 | H198: 15583 | I198: 4174.559031 | J198: 141517.8655
A199: Kimberley Clark (Lonsdale) | B199: Southern | C199: 6205.102131 | D199: 54 | E199: =$G$5 -> 14567.76852 | F199: =E199*$H$5 -> 193545.394 | G199: =$P$157 -> 14100 | H199: =$P$161 -> 15583 | I199: =$P$166 -> 4175 | J199: 227403.394
A200: Marshall Furniture Pty Ltd | B200: Southern | C200: 16541.2778 | D200: 95 | E200: 25802 | F200: 57777.0365 | G200: 14100 | H200: 15583 | I200: 4174.559031 | J200: 91634.59554
A201: Minda Inc | B201: Southern | C201: 10474.9229 | D201: 58 | E201: 31502 | F201: 121747.5748 | G201: 14100 | H201: 15583 | I201: 4174.559031 | J201: 155605.1338
A202: Mitsubishi Motors Australia Ltd | B202: Southern | C202: 169459.2204 | D202: 1900 | E202: 26901 | F202: 623467.736 | G202: 28200 | H202: 53702 | I202: 78749.85194 | J202: 784119.588
A203: Mitsubishi Motors Australia Ltd | B203: Southern | C203: 38185.60641 | D203: 270 | E203: 42601 | F203: 432599.782 | G203: 28200 | H203: 53702 | I203: 78749.85194 | J203: 593251.634
A204: Monroe Australia Pty Ltd | B204: Southern | C204: 33037.93809 | D204: 171 | E204: 27301 | F204: 58127.56486 | G204: 14100 | H204: 15583 | I204: 4174.559031 | J204: 91985.12389
A205: NCCRA Inc | B205: Southern | C205: 17843.55892 | D205: 104 | E205: =$G$5 -> 14567.76852 | F205: =E205*$H$5 -> 193545.394 | G205: =$P$157 -> 14100 | H205: =$P$161 -> 15583 | I205: =$P$166 -> 4175 | J205: 227403.394
A206: Olympic Aluminium Diecasting Pty Ltd | B206: Southern | C206: 44007.15428 | D206: 151 | E206: 42502 | F206: 200123.5758 | G206: 14100 | H206: 15583 | I206: 4174.559031 | J206: 233981.1349
A207: Repatriation General Hospital | B207: Southern | C207: 24602.68568 | D207: 165 | E207: =$G$5 -> 14567.76852 | F207: =E207*$H$5 -> 193545.394 | G207: =$P$157 -> 14100 | H207: =$P$161 -> 15583 | I207: =$P$166 -> 4175 | J207: 227403.394
A208: Schefenacker Vision Systems | B208: Southern | C208: 16725.28291 | D208: 92 | E208: 42101 | F208: 69982.47034 | G208: 14100 | H208: 15583 | I208: 4174.559031 | J208: 103840.0294
... 521 more rows

Sheet FDC Calculations
A1: Fully Distributed Cost Calculations
A3: Building block components - Total ($M NOMINAL) | B3: ='PTRM Inputs'!B3 -> 2016/17 | C3: ='PTRM Inputs'!C3 -> 2017/18 | D3: ='PTRM Inputs'!D3 -> 2018/19 | E3: ='PTRM Inputs'!E3 -> 2019/20 | F3: ='PTRM Inputs'!F3 -> 2020/21 | G3: ='PTRM Inputs'!G3 -> 2021/22 | H3: ='PTRM Inputs'!H3 -> 2022/23 | I3: ='PTRM Inputs'!I3 -> 2023/24 | J3: ='PTRM Inputs'!J3 -> 2024/25 | K3: ='PTRM Inputs'!K3 -> 2025/26 | L3: ='PTRM Inputs'!L3 -> 2026/27 | M3: ='PTRM Inputs'!M3 -> 2027/28 | N3: ='PTRM Inputs'!N3 -> 2028/29 | O3: ='PTRM Inputs'!O3 -> 2029/30 | P3: ='PTRM Inputs'!P3 -> 2030/31 | Q3: TOTAL
A4: Return on capital | B4: ='PTRM Inputs'!B4 -> 85.14494463 | C4: ='PTRM Inputs'!C4 -> 91.6424184 | D4: ='PTRM Inputs'!D4 -> 97.92703966 | E4: ='PTRM Inputs'!E4 -> 104.4132138 | F4: ='PTRM Inputs'!F4 -> 111.0441073 | G4: ='PTRM Inputs'!G4 -> 83.41500742 | H4: ='PTRM Inputs'!H4 -> 83.20698139 | I4: ='PTRM Inputs'!I4 -> 83.12937466 | J4: ='PTRM Inputs'!J4 -> 82.91120001 | K4: ='PTRM Inputs'!K4 -> 82.6287495 | L4: ='PTRM Inputs'!L4 -> 124.0929682 | M4: ='PTRM Inputs'!M4 -> 129.7532524 | N4: ='PTRM Inputs'!N4 -> 139.1140015 | O4: ='PTRM Inputs'!O4 -> 146.1137066 | P4: ='PTRM Inputs'!P4 -> 156.4727754 | Q4: =SUM(B4:P4) -> 1601.009741
A5: Return of capital | B5: ='PTRM Inputs'!B5 -> 11.15062949 | C5: ='PTRM Inputs'!C5 -> 14.32474054 | D5: ='PTRM Inputs'!D5 -> 19.61074034 | E5: ='PTRM Inputs'!E5 -> 24.4868127 | F5: ='PTRM Inputs'!F5 -> 23.99011088 | G5: ='PTRM Inputs'!G5 -> 57.07079889 | H5: ='PTRM Inputs'!H5 -> 61.71123186 | I5: ='PTRM Inputs'!I5 -> 66.3034728 | J5: ='PTRM Inputs'!J5 -> 64.00603055 | K5: ='PTRM Inputs'!K5 -> 69.10591591 | L5: ='PTRM Inputs'!L5 -> 18.01647058 | M5: ='PTRM Inputs'!M5 -> 12.47117127 | N5: ='PTRM Inputs'!N5 -> 21.24680875 | O5: ='PTRM Inputs'!O5 -> 25.82112131 | P5: ='PTRM Inputs'!P5 -> 31.93562809 | Q5: =SUM(B5:P5) -> 521.251684
A6: O&M | B6: ='PTRM Inputs'!B6 -> 73.14045602 | C6: ='PTRM Inputs'!C6 -> 76.37397208 | D6: ='PTRM Inputs'!D6 -> 79.74921945 | E6: ='PTRM Inputs'!E6 -> 81.75199041 | F6: ='PTRM Inputs'!F6 -> 83.93389338 | G6: ='PTRM Inputs'!G6 -> 74.93822135 | H6: ='PTRM Inputs'!H6 -> 77.59179498 | I6: ='PTRM Inputs'!I6 -> 80.35032892 | J6: ='PTRM Inputs'!J6 -> 83.09939789 | K6: ='PTRM Inputs'!K6 -> 85.84262521 | L6: ='PTRM Inputs'!L6 -> 87.79502927 | M6: ='PTRM Inputs'!M6 -> 97.52041893 | N6: ='PTRM Inputs'!N6 -> 113.0388225 | O6: ='PTRM Inputs'!O6 -> 111.0852523 | P6: ='PTRM Inputs'!P6 -> 110.4406267 | Q6: 1316.652049
A7: Carry-over amounts | B7: ='PTRM Inputs'!B7 -> 5.538825144 | C7: ='PTRM Inputs'!C7 -> -2.798603476 | D7: ='PTRM Inputs'!D7 -> -3.71090921 | E7: ='PTRM Inputs'!E7 -> 0.2886529688 | F7: ='PTRM Inputs'!F7 -> 0 | G7: ='PTRM Inputs'!G7 -> 6.687336601 | H7: ='PTRM Inputs'!H7 -> 1.868922322 | I7: ='PTRM Inputs'!I7 -> 6.227054017 | J7: ='PTRM Inputs'!J7 -> -1.753142851 | K7: ='PTRM Inputs'!K7 -> 0 | L7: ='PTRM Inputs'!L7 -> 8.460539861 | M7: ='PTRM Inputs'!M7 -> -2.169787223 | N7: ='PTRM Inputs'!N7 -> -0.8155107211 | O7: ='PTRM Inputs'!O7 -> -0.9345779918 | P7: ='PTRM Inputs'!P7 -> 3.972661393 | Q7: 20.86146083
A8: Benchmark Tax liability | B8: ='PTRM Inputs'!B8 -> 2.238928721 | C8: ='PTRM Inputs'!C8 -> 1.821074784 | D8: ='PTRM Inputs'!D8 -> 1.602903662 | E8: ='PTRM Inputs'!E8 -> 2.216261865 | F8: ='PTRM Inputs'!F8 -> 0.8128296422 | G8: ='PTRM Inputs'!G8 -> 0 | H8: ='PTRM Inputs'!H8 -> 0 | I8: ='PTRM Inputs'!I8 -> 0 | J8: ='PTRM Inputs'!J8 -> 0 | K8: ='PTRM Inputs'!K8 -> 0 | L8: ='PTRM Inputs'!L8 -> 0 | M8: ='PTRM Inputs'!M8 -> 0 | N8: ='PTRM Inputs'!N8 -> 0 | O8: ='PTRM Inputs'!O8 -> 0 | P8: ='PTRM Inputs'!P8 -> 0 | Q8: 8.691998675
A9: Total Revenue | B9: =SUM(B4:B8) -> 177.213784 | C9: 181.3636023 | D9: 195.1789939 | E9: 213.1569317 | F9: 219.7809412 | G9: 222.1113643 | H9: 224.3789305 | I9: 236.0102304 | J9: 228.2634856 | K9: 237.5772906 | L9: =SUM(L4:L8) -> 238.3650079 | M9: 237.5750553 | N9: 272.584122 | O9: 282.0855022 | P9: 302.8216915 | Q9: 3468.466934
A11: Building block components R+C ($M NOMINAL) | B11: =B$3 -> 2016/17 | C11: =C$3 -> 2017/18 | D11: 2018/19 | E11: 2019/20 | F11: 2020/21 | G11: 2021/22 | H11: 2022/23 | I11: 2023/24 | J11: 2024/25 | K11: 2025/26 | L11: 2026/27 | M11: 2027/28 | N11: 2028/29 | O11: 2029/30 | P11: 2030/31 | Q11: TOTAL
A12: =A4 -> Return on capital | B12: =B4-B36 -> 80.01416317 | C12: 86.12010321 | D12: 92.0260171 | E12: 98.12133838 | F12: 104.3526584 | G12: =G4-G36 -> 78.3884709 | H12: 78.19298039 | I12: 78.1200502 | J12: 77.91502261 | K12: 77.6495924 | L12: =L4-L36 -> 116.615203 | M12: 121.934402 | N12: 130.7310782 | O12: 137.3089854 | P12: 147.0438231 | Q12: =SUM(B12:P12) -> 1504.533889
A13: =A5 -> Return of capital | B13: 10.47869949 | C13: 13.46154057 | D13: 18.42900931 | E13: 23.01125258 | F13: 22.5444817 | G13: =G5-G37 -> 53.63174801 | H13: 57.99255137 | I13: 62.30806672 | J13: 60.14906692 | K13: 64.94163636 | L13: =L5-L37 -> 16.93080925 | M13: 11.71966624 | N13: 19.96648926 | O13: 24.26515658 | P13: 30.01120698 | Q13: =SUM(B13:P13) -> 489.8413813
A14: =A6 -> O&M | B14: 54.08713289 | C14: 56.47830766 | D14: 58.97429228 | E14: 60.45533499 | F14: 62.06884524 | G14: =G6-G38 -> 58.08747018 | H14: 60.14435619 | I14: 62.28260093 | J14: 64.41350902 | K14: 66.53988901 | L14: =L6-L38 -> 69.16119533 | M14: 75.5917918 | N14: 87.62069756 | O14: 86.10641093 | P14: 85.60673704 | Q14: 1007.618571
A15: =A7 -> Carry-over amounts | B15: 4.095943448 | C15: -2.069558304 | D15: -2.744205472 | E15: 0.2134579456 | F15: 0 | G15: =G7-G39 -> 5.183609357 | H15: 1.44867289 | I15: 4.826826791 | J15: -1.358927811 | K15: 0 | L15: =L7-L39 -> 6.664853976 | M15: -1.681884735 | N15: -0.6321334272 | O15: -0.7244270047 | P15: 3.079361186 | Q15: 16.30158884
A16: =A8 -> Benchmark Tax liability | B16: 2.104012267 | C16: 1.711337949 | D16: 1.506313684 | E16: 2.082711302 | F16: 0.763849033 | G16: =G8-G40 -> 0 | H16: 0 | I16: 0 | J16: 0 | K16: 0 | L16: =L8-L40 -> 0 | M16: 0 | N16: 0 | O16: 0 | P16: 0 | Q16: 8.168224235
A17: Total Revenue | B17: =SUM(B12:B16) -> 150.7799513 | C17: =SUM(C12:C16) -> 155.7017311 | D17: 168.1914269 | E17: 183.8840952 | F17: 189.7298344 | G17: 195.2912984 | H17: 197.7785608 | I17: 207.5375446 | J17: 201.1186707 | K17: 209.1311178 | L17: =SUM(L12:L16) -> 209.3720616 | M17: 207.5639753 | N17: 237.6861316 | O17: 246.9561259 | P17: 265.7411283 | Q17: 3026.463654
A19: Building block components R ($M NOMINAL) | B19: =B$3 -> 2016/17 | C19: =C$3 -> 2017/18 | D19: 2018/19 | E19: 2019/20 | F19: 2020/21 | G19: 2021/22 | H19: 2022/23 | I19: 2023/24 | J19: 2024/25 | K19: 2025/26 | L19: 2026/27 | M19: 2027/28 | N19: 2028/29 | O19: 2029/30 | P19: 2030/31 | Q19: TOTAL
A20: =A12 -> Return on capital | B20: ='Cost allocators'!$C12*B12 -> 70.68945871 | C20: ='Cost allocators'!$C12*C12 -> 76.08382364 | D20: ='Cost allocators'!$C12*D12 -> 81.30147312 | E20: ='Cost allocators'!$C12*E12 -> 86.68645679 | F20: ='Cost allocators'!$C12*F12 -> 92.19159018 | G20: ='Cost allocators'!$E12*G12 -> 67.95982391 | H20: ='Cost allocators'!$E12*H12 -> 67.79034107 | I20: ='Cost allocators'!$E12*I12 -> 67.72711337 | J20: ='Cost allocators'!$E12*J12 -> 67.54936225 | K20: ='Cost allocators'!$E12*K12 -> 67.31924434 | L20: ='Cost allocators'!$E12*L12 -> 101.1009473 | M20: ='Cost allocators'!$E12*M12 -> 105.7124905 | N20: ='Cost allocators'!$E12*N12 -> 113.3388744 | O20: ='Cost allocators'!$E12*O12 -> 119.0416698 | P20: ='Cost allocators'!$E12*P12 -> 127.481404 | Q20: =SUM(B20:P20) -> 1311.974073
A21: =A13 -> Return of capital | B21: ='Cost allocators'!$C13*B13 -> 9.257530983 | C21: ='Cost allocators'!$C13*C13 -> 11.89275722 | D21: ='Cost allocators'!$C13*D13 -> 16.28132622 | E21: ='Cost allocators'!$C13*E13 -> 20.32956323 | F21: ='Cost allocators'!$C13*F13 -> 19.91718897 | G21: ='Cost allocators'!$E13*G13 -> 46.49668643 | H21: ='Cost allocators'!$E13*H13 -> 50.27733714 | I21: ='Cost allocators'!$E13*I13 -> 54.01872487 | J21: ='Cost allocators'!$E13*J13 -> 52.14695413 | K21: ='Cost allocators'!$E13*K13 -> 56.30192962 | L21: ='Cost allocators'!$E13*L13 -> 14.67836791 | M21: ='Cost allocators'!$E13*M13 -> 10.16050504 | N21: ='Cost allocators'!$E13*N13 -> 17.31018705 | O21: ='Cost allocators'!$E13*O13 -> 21.03696819 | P21: ='Cost allocators'!$E13*P13 -> 26.01857542 | Q21: =SUM(B21:P21) -> 426.1246024
A22: =A14 -> O&M | B22: ='Cost allocators'!$C14*B14 -> 47.78391719 | C22: ='Cost allocators'!$C14*C14 -> 49.89642882 | D22: ='Cost allocators'!$C14*D14 -> 52.10153595 | E22: ='Cost allocators'!$C14*E14 -> 53.40998065 | F22: ='Cost allocators'!$C14*F14 -> 54.83545536 | G22: ='Cost allocators'!$E14*G14 -> 50.35962814 | H22: ='Cost allocators'!$E14*H14 -> 52.1428701 | I22: ='Cost allocators'!$E14*I14 -> 53.996647 | J22: ='Cost allocators'!$E14*J14 -> 55.84406329 | K22: ='Cost allocators'!$E14*K14 -> 57.6875539 | L22: ='Cost allocators'!$E14*L14 -> 59.96012682 | M22: ='Cost allocators'!$E14*M14 -> 65.53520946 | N22: ='Cost allocators'!$E14*N14 -> 75.96381341 | O22: ='Cost allocators'!$E14*O14 -> 74.65098448 | P22: ='Cost allocators'!$E14*P14 -> 74.21778621 | Q22: 878.3860008
A23: =A15 -> Carry-over amounts | B23: ='Cost allocators'!$C15*B15 -> 3.618609678 | C23: ='Cost allocators'!$C15*C15 -> -1.828375759 | D23: ='Cost allocators'!$C15*D15 -> -2.424400777 | E23: ='Cost allocators'!$C15*E15 -> 0.1885819465 | F23: ='Cost allocators'!$C15*F15 -> 0 | G23: ='Cost allocators'!$E15*G15 -> 4.49399223 | H23: ='Cost allocators'!$E15*H15 -> 1.255944316 | I23: ='Cost allocators'!$E15*I15 -> 4.18467531 | J23: ='Cost allocators'!$E15*J15 -> -1.178138745 | K23: ='Cost allocators'!$E15*K15 -> 0 | L23: ='Cost allocators'!$E15*L15 -> 5.778174997 | M23: ='Cost allocators'!$E15*M15 -> -1.45813012 | N23: ='Cost allocators'!$E15*N15 -> -0.5480356475 | O23: ='Cost allocators'!$E15*O15 -> -0.6280506701 | P23: ='Cost allocators'!$E15*P15 -> 2.66968907 | Q23: 14.12453583
A24: =A16 -> Benchmark Tax liability | B24: ='Cost allocators'!$C16*B16 -> 1.85881452 | C24: ='Cost allocators'!$C16*C16 -> 1.51190175 | D24: ='Cost allocators'!$C16*D16 -> 1.330770638 | E24: ='Cost allocators'!$C16*E16 -> 1.83999593 | F24: ='Cost allocators'!$C16*F16 -> 0.6748314616 | G24: ='Cost allocators'!$E16*G16 -> 0 | H24: ='Cost allocators'!$E16*H16 -> 0 | I24: ='Cost allocators'!$E16*I16 -> 0 | J24: ='Cost allocators'!$E16*J16 -> 0 | K24: ='Cost allocators'!$E16*K16 -> 0 | L24: ='Cost allocators'!$E16*L16 -> 0 | M24: ='Cost allocators'!$E16*M16 -> 0 | N24: ='Cost allocators'!$E16*N16 -> 0 | O24: ='Cost allocators'!$E16*O16 -> 0 | P24: ='Cost allocators'!$E16*P16 -> 0 | Q24: 7.216314299
A25: Total Revenue | B25: =SUM(B20:B24) -> 133.2083311 | C25: 137.5565357 | D25: 148.5907051 | E25: 162.4545785 | F25: 167.619066 | G25: 169.3101307 | H25: 171.4664926 | I25: 179.9271605 | J25: 174.3622409 | K25: 181.3087279 | L25: =SUM(L20:L24) -> 181.517617 | M25: 179.9500749 | N25: 206.0648392 | O25: 214.1015718 | P25: 230.3874547 | Q25: 2637.825527
A27: Building block components C ($M NOMINAL) | B27: =B$3 -> 2016/17 | C27: =C$3 -> 2017/18 | D27: 2018/19 | E27: 2019/20 | F27: 2020/21 | G27: 2021/22 | H27: 2022/23 | I27: 2023/24 | J27: 2024/25 | K27: 2025/26 | L27: 2026/27 | M27: 2027/28 | N27: 2028/29 | O27: 2029/30 | P27: 2030/31 | Q27: TOTAL
A28: =A20 -> Return on capital | B28: ='Cost allocators'!$D12*B12 -> 9.324704462 | C28: ='Cost allocators'!$D12*C12 -> 10.03627956 | D28: ='Cost allocators'!$D12*D12 -> 10.72454398 | E28: ='Cost allocators'!$D12*E12 -> 11.43488159 | F28: ='Cost allocators'!$D12*F12 -> 12.16106825 | G28: ='Cost allocators'!$F12*G12 -> 10.42864699 | H28: ='Cost allocators'!$F12*H12 -> 10.40263932 | I28: ='Cost allocators'!$F12*I12 -> 10.39293683 | J28: ='Cost allocators'!$F12*J12 -> 10.36566037 | K28: ='Cost allocators'!$F12*K12 -> 10.33034806 | L28: ='Cost allocators'!$F12*L12 -> 15.51425575 | M28: ='Cost allocators'!$F12*M12 -> 16.22191146 | N28: ='Cost allocators'!$F12*N12 -> 17.39220385 | O28: ='Cost allocators'!$F12*O12 -> 18.2673156 | P28: ='Cost allocators'!$F12*P12 -> 19.56241914 | Q28: =SUM(B28:P28) -> 192.5598152
A29: =A21 -> Return of capital | B29: ='Cost allocators'!$D13*B13 -> 1.221168503 | C29: ='Cost allocators'!$D13*C13 -> 1.568783356 | D29: ='Cost allocators'!$D13*D13 -> 2.147683091 | E29: ='Cost allocators'!$D13*E13 -> 2.681689355 | F29: ='Cost allocators'!$D13*F13 -> 2.627292729 | G29: ='Cost allocators'!$F13*G13 -> 7.135061584 | H29: ='Cost allocators'!$F13*H13 -> 7.715214231 | I29: ='Cost allocators'!$F13*I13 -> 8.28934185 | J29: ='Cost allocators'!$F13*J13 -> 8.002112791 | K29: ='Cost allocators'!$F13*K13 -> 8.639706741 | L29: ='Cost allocators'!$F13*L13 -> 2.252441346 | M29: ='Cost allocators'!$F13*M13 -> 1.559161196 | N29: ='Cost allocators'!$F13*N13 -> 2.656302205 | O29: ='Cost allocators'!$F13*O13 -> 3.228188396 | P29: ='Cost allocators'!$F13*P13 -> 3.992631566 | Q29: =SUM(B29:P29) -> 63.71677894
A30: =A22 -> O&M | B30: ='Cost allocators'!$D14*B14 -> 6.303215698 | C30: ='Cost allocators'!$D14*C14 -> 6.581878839 | D30: ='Cost allocators'!$D14*D14 -> 6.872756328 | E30: ='Cost allocators'!$D14*E14 -> 7.045354341 | F30: ='Cost allocators'!$D14*F14 -> 7.23338988 | G30: ='Cost allocators'!$F14*G14 -> 7.727842041 | H30: ='Cost allocators'!$F14*H14 -> 8.001486084 | I30: ='Cost allocators'!$F14*I14 -> 8.285953931 | J30: ='Cost allocators'!$F14*J14 -> 8.569445725 | K30: ='Cost allocators'!$F14*K14 -> 8.85233511 | L30: ='Cost allocators'!$F14*L14 -> 9.201068513 | M30: ='Cost allocators'!$F14*M14 -> 10.05658234 | N30: ='Cost allocators'!$F14*N14 -> 11.65688415 | O30: ='Cost allocators'!$F14*O14 -> 11.45542645 | P30: ='Cost allocators'!$F14*P14 -> 11.38895083 | Q30: 129.2325703
A31: =A23 -> Carry-over amounts | B31: ='Cost allocators'!$D15*B15 -> 0.4773337698 | C31: ='Cost allocators'!$D15*C15 -> -0.2411825455 | D31: ='Cost allocators'!$D15*D15 -> -0.3198046944 | E31: ='Cost allocators'!$D15*E15 -> 0.02487599919 | F31: ='Cost allocators'!$D15*F15 -> 0 | G31: ='Cost allocators'!$F15*G15 -> 0.6896171273 | H31: ='Cost allocators'!$F15*H15 -> 0.1927285734 | I31: ='Cost allocators'!$F15*I15 -> 0.642151481 | J31: ='Cost allocators'!$F15*J15 -> -0.1807890658 | K31: ='Cost allocators'!$F15*K15 -> 0 | L31: ='Cost allocators'!$F15*L15 -> 0.8866789791 | M31: ='Cost allocators'!$F15*M15 -> -0.2237546157 | N31: ='Cost allocators'!$F15*N15 -> -0.08409777977 | O31: ='Cost allocators'!$F15*O15 -> -0.09637633461 | P31: ='Cost allocators'!$F15*P15 -> 0.4096721162 | Q31: 2.17705301
A32: =A24 -> Benchmark Tax liability | B32: ='Cost allocators'!$D16*B16 -> 0.2451977475 | C32: ='Cost allocators'!$D16*C16 -> 0.1994361995 | D32: ='Cost allocators'!$D16*D16 -> 0.175543046 | E32: ='Cost allocators'!$D16*E16 -> 0.2427153719 | F32: ='Cost allocators'!$D16*F16 -> 0.08901757143 | G32: ='Cost allocators'!$F16*G16 -> 0 | H32: ='Cost allocators'!$F16*H16 -> 0 | I32: ='Cost allocators'!$F16*I16 -> 0 | J32: ='Cost allocators'!$F16*J16 -> 0 | K32: ='Cost allocators'!$F16*K16 -> 0 | L32: ='Cost allocators'!$F16*L16 -> 0 | M32: ='Cost allocators'!$F16*M16 -> 0 | N32: ='Cost allocators'!$F16*N16 -> 0 | O32: ='Cost allocators'!$F16*O16 -> 0 | P32: ='Cost allocators'!$F16*P16 -> 0 | Q32: 0.9519099363
A33: Total Revenue | B33: =SUM(B28:B32) -> 17.57162018 | C33: 18.14519541 | D33: 19.60072175 | E33: 21.42951666 | F33: 22.11076843 | G33: 25.98116774 | H33: 26.31206821 | I33: 27.61038409 | J33: 26.75642982 | K33: 27.82238991 | L33: =SUM(L28:L32) -> 27.85444459 | M33: 27.61390037 | N33: 31.62129242 | O33: 32.85455411 | P33: 35.35367365 | Q33: 388.6381273
A35: Building block components D ($M NOMINAL) | B35: =B$3 -> 2016/17 | C35: =C$3 -> 2017/18 | D35: 2018/19 | E35: 2019/20 | F35: 2020/21 | G35: 2021/22 | H35: 2022/23 | I35: 2023/24 | J35: 2024/25 | K35: 2025/26 | L35: 2026/27 | M35: 2027/28 | N35: 2028/29 | O35: 2029/30 | P35: 2030/31 | Q35: TOTAL
A36: =A12 -> Return on capital | B36: =B47 -> 5.13078146 | C36: =B57 -> 5.522315192 | D36: =B67 -> 5.901022565 | E36: =B77 -> 6.291875386 | F36: =B87 -> 6.691448913 | G36: =B97 -> 5.026536518 | H36: =B107 -> 5.014000999 | I36: =B117 -> 5.009324466 | J36: =B127 -> 4.996177397 | K36: =B137 -> 4.979157105 | L36: =B147 -> 7.477765158 | M36: =B157 -> 7.818850367 | N36: =B167 -> 8.382923295 | O36: =B177 -> 8.804721174 | P36: =B187 -> 9.428952221 | Q36: =SUM(B36:P36) -> 96.47585221
A37: =A13 -> Return of capital | B37: =B48 -> 0.6719300049 | C37: =B58 -> 0.8631999643 | D37: =B68 -> 1.181731028 | E37: =B78 -> 1.475560119 | F37: =B88 -> 1.445629175 | G37: =B98 -> 3.439050881 | H37: =B108 -> 3.718680488 | I37: =B118 -> 3.995406074 | J37: =B128 -> 3.856963632 | K37: =B138 -> 4.164279555 | L37: =B148 -> 1.085661323 | M37: =B158 -> 0.7515050318 | N37: =B168 -> 1.280319494 | O37: =B178 -> 1.555964727 | P37: =B188 -> 1.924421106 | Q37: =SUM(B37:P37) -> 31.4103026
A38: =A14 -> O&M | B38: =B49 -> 19.05332312 | C38: =B59 -> 19.89566442 | D38: =B69 -> 20.77492717 | E38: =B79 -> 21.29665543 | F38: =B89 -> 21.86504814 | G38: 16.85075117 | H38: 17.44743879 | I38: 18.06772799 | J38: 18.68588887 | K38: 19.30273619 | L38: 18.63383394 | M38: 21.92862713 | N38: 25.4181249 | O38: 24.9788414 | P38: 24.83388965 | Q38: 309.0334783
A39: =A15 -> Carry-over amounts | B39: =B50 -> 1.442881696 | C39: =B60 -> -0.7290451719 | D39: =B70 -> -0.9667037385 | E39: =B80 -> 0.07519502319 | F39: =B90 -> 0 | G39: 1.503727244 | H39: 0.4202494328 | I39: 1.400227226 | J39: -0.3942150405 | K39: 0 | L39: 1.795685885 | M39: -0.4879024872 | N39: -0.1833772939 | O39: -0.2101509872 | P39: 0.8933002069 | Q39: 4.559871994
A40: =A16 -> Benchmark Tax liability | B40: =B51 -> 0.1349164536 | C40: =B61 -> 0.109736835 | D40: =B71 -> 0.09658997875 | E40: =B81 -> 0.1335505629 | F40: =B91 -> 0.0489806092 | G40: 0 | H40: 0 | I40: 0 | J40: 0 | K40: 0 | L40: 0 | M40: 0 | N40: 0 | O40: 0 | P40: 0 | Q40: 0.5237744395
A41: Total Revenue | B41: =SUM(B36:B40) -> 26.43383274 | C41: 25.66187124 | D41: 26.98756701 | E41: 29.27283652 | F41: 30.05110684 | G41: 26.82006582 | H41: 26.60036971 | I41: 28.47268575 | J41: 27.14481486 | K41: 28.44617285 | L41: =SUM(L36:L40) -> 28.9929463 | M41: 30.01108004 | N41: 34.8979904 | O41: 35.12937632 | P41: 37.08056319 | Q41: 442.0032796
A43: Checks | B43: =B9-SUM(B25,B33,B41) -> 0 | C43: 0 | D43: 0 | E43: 0 | F43: 0 | G43: 0 | H43: =H9-SUM(H25,H33,H41) -> 0 | I43: 0 | J43: 0 | K43: 0 | Q43: 0
A45: Building Blocks by Zone for Tariff D
A46: =B3 -> 2016/17 | B46: Total | C46: Demand-AdNr | D46: Demand-AdC | E46: Demand-AdS | F46: Demand-PP | G46: Demand-Peter | H46: Demand-River | I46: Demand-SE | J46: Demand-Whyal
A47: =A12 -> Return on capital | B47: =SUM(C47:J47) -> 5.13078146 | C47: =$B4*HLOOKUP(C$46,'Cost allocators'!$E$18:$L$22,(MATCH('Cost allocators'!$B$4,'Cost allocators'!$A$19:$A$22)+1)) -> 2.487368684 | D47: =$B4*HLOOKUP(D$46,'Cost allocators'!$E$18:$L$22,(MATCH('Cost allocators'!$B$4,'Cost allocators'!$A$19:$A$22)+1)) -> 1.428046362 | E47: =$B4*HLOOKUP(E$46,'Cost allocators'!$E$18:$L$22,(MATCH('Cost allocators'!$B$4,'Cost allocators'!$A$19:$A$22)+1)) -> 0.7640915698 | F47: =$B4*HLOOKUP(F$46,'Cost allocators'!$E$18:$L$22,(MATCH('Cost allocators'!$B$4,'Cost allocators'!$A$19:$A$22)+1)) -> 0.1592619539 | G47: =$B4*HLOOKUP(G$46,'Cost allocators'!$E$18:$L$22,(MATCH('Cost allocators'!$B$4,'Cost allocators'!$A$19:$A$22)+1)) -> 0.03069199655 | H47: =$B4*HLOOKUP(H$46,'Cost allocators'!$E$18:$L$22,(MATCH('Cost allocators'!$B$4,'Cost allocators'!$A$19:$A$22)+1)) -> 0.02655872818 | I47: =$B4*HLOOKUP(I$46,'Cost allocators'!$E$18:$L$22,(MATCH('Cost allocators'!$B$4,'Cost allocators'!$A$19:$A$22)+1)) -> 0.198350394 | J47: =$B4*HLOOKUP(J$46,'Cost allocators'!$E$18:$L$22,(MATCH('Cost allocators'!$B$4,'Cost allocators'!$A$19:$A$22)+1)) -> 0.03641177197
A48: =A13 -> Return of capital | B48: =SUM(C48:J48) -> 0.6719300049 | C48: =$B5*HLOOKUP(C$46,'Cost allocators'!$E$18:$L$22,(MATCH('Cost allocators'!$B$5,'Cost allocators'!$A$19:$A$22)+1)) -> 0.3257471917 | D48: =$B5*HLOOKUP(D$46,'Cost allocators'!$E$18:$L$22,(MATCH('Cost allocators'!$B$5,'Cost allocators'!$A$19:$A$22)+1)) -> 0.1870177489 | E48: =$B5*HLOOKUP(E$46,'Cost allocators'!$E$18:$L$22,(MATCH('Cost allocators'!$B$5,'Cost allocators'!$A$19:$A$22)+1)) -> 0.1000658586 | F48: =$B5*HLOOKUP(F$46,'Cost allocators'!$E$18:$L$22,(MATCH('Cost allocators'!$B$5,'Cost allocators'!$A$19:$A$22)+1)) -> 0.0208570344 | G48: =$B5*HLOOKUP(G$46,'Cost allocators'!$E$18:$L$22,(MATCH('Cost allocators'!$B$5,'Cost allocators'!$A$19:$A$22)+1)) -> 0.004019441006 | H48: =$B5*HLOOKUP(H$46,'Cost allocators'!$E$18:$L$22,(MATCH('Cost allocators'!$B$5,'Cost allocators'!$A$19:$A$22)+1)) -> 0.003478145872 | I48: =$B5*HLOOKUP(I$46,'Cost allocators'!$E$18:$L$22,(MATCH('Cost allocators'!$B$5,'Cost allocators'!$A$19:$A$22)+1)) -> 0.02597607836 | J48: =$B5*HLOOKUP(J$46,'Cost allocators'!$E$18:$L$22,(MATCH('Cost allocators'!$B$5,'Cost allocators'!$A$19:$A$22)+1)) -> 0.004768505988
A49: =A14 -> O&M | B49: =SUM(C49:J49) -> 19.05332312 | C49: =$B6*HLOOKUP(C$46,'Cost allocators'!$E$18:$L$22,(MATCH('Cost allocators'!$B$6,'Cost allocators'!$A$19:$A$22)+1)) -> 14.16284703 | D49: =$B6*HLOOKUP(D$46,'Cost allocators'!$E$18:$L$22,(MATCH('Cost allocators'!$B$6,'Cost allocators'!$A$19:$A$22)+1)) -> 3.08570458 | E49: =$B6*HLOOKUP(E$46,'Cost allocators'!$E$18:$L$22,(MATCH('Cost allocators'!$B$6,'Cost allocators'!$A$19:$A$22)+1)) -> 0.5233091079 | F49: =$B6*HLOOKUP(F$46,'Cost allocators'!$E$18:$L$22,(MATCH('Cost allocators'!$B$6,'Cost allocators'!$A$19:$A$22)+1)) -> 0.8824121793 | G49: =$B6*HLOOKUP(G$46,'Cost allocators'!$E$18:$L$22,(MATCH('Cost allocators'!$B$6,'Cost allocators'!$A$19:$A$22)+1)) -> 0.01801016606 | H49: =$B6*HLOOKUP(H$46,'Cost allocators'!$E$18:$L$22,(MATCH('Cost allocators'!$B$6,'Cost allocators'!$A$19:$A$22)+1)) -> 0.1231600427 | I49: =$B6*HLOOKUP(I$46,'Cost allocators'!$E$18:$L$22,(MATCH('Cost allocators'!$B$6,'Cost allocators'!$A$19:$A$22)+1)) -> 0.2460552299 | J49: =$B6*HLOOKUP(J$46,'Cost allocators'!$E$18:$L$22,(MATCH('Cost allocators'!$B$6,'Cost allocators'!$A$19:$A$22)+1)) -> 0.01182478905
A50: =A15 -> Carry-over amounts | B50: =SUM(C50:J50) -> 1.442881696 | C50: =$B7*HLOOKUP(C$46,'Cost allocators'!$E$18:$L$22,(MATCH('Cost allocators'!$B$7,'Cost allocators'!$A$19:$A$22)+1)) -> 1.072532734 | D50: =$B7*HLOOKUP(D$46,'Cost allocators'!$E$18:$L$22,(MATCH('Cost allocators'!$B$7,'Cost allocators'!$A$19:$A$22)+1)) -> 0.2336761219 | E50: =$B7*HLOOKUP(E$46,'Cost allocators'!$E$18:$L$22,(MATCH('Cost allocators'!$B$7,'Cost allocators'!$A$19:$A$22)+1)) -> 0.03962947188 | F50: =$B7*HLOOKUP(F$46,'Cost allocators'!$E$18:$L$22,(MATCH('Cost allocators'!$B$7,'Cost allocators'!$A$19:$A$22)+1)) -> 0.06682384869 | G50: =$B7*HLOOKUP(G$46,'Cost allocators'!$E$18:$L$22,(MATCH('Cost allocators'!$B$7,'Cost allocators'!$A$19:$A$22)+1)) -> 0.00136388486 | H50: =$B7*HLOOKUP(H$46,'Cost allocators'!$E$18:$L$22,(MATCH('Cost allocators'!$B$7,'Cost allocators'!$A$19:$A$22)+1)) -> 0.009326738965 | I50: =$B7*HLOOKUP(I$46,'Cost allocators'!$E$18:$L$22,(MATCH('Cost allocators'!$B$7,'Cost allocators'!$A$19:$A$22)+1)) -> 0.01863342079 | J50: =$B7*HLOOKUP(J$46,'Cost allocators'!$E$18:$L$22,(MATCH('Cost allocators'!$B$7,'Cost allocators'!$A$19:$A$22)+1)) -> 0.0008954748501
A51: =A16 -> Benchmark Tax liability | B51: =SUM(C51:J51) -> 0.1349164536 | C51: =$B8*HLOOKUP(C$46,'Cost allocators'!$E$18:$L$22,(MATCH('Cost allocators'!$B$8,'Cost allocators'!$A$19:$A$22)+1)) -> 0.06540659824 | D51: =$B8*HLOOKUP(D$46,'Cost allocators'!$E$18:$L$22,(MATCH('Cost allocators'!$B$8,'Cost allocators'!$A$19:$A$22)+1)) -> 0.03755119024 | E51: =$B8*HLOOKUP(E$46,'Cost allocators'!$E$18:$L$22,(MATCH('Cost allocators'!$B$8,'Cost allocators'!$A$19:$A$22)+1)) -> 0.02009216834 | F51: =$B8*HLOOKUP(F$46,'Cost allocators'!$E$18:$L$22,(MATCH('Cost allocators'!$B$8,'Cost allocators'!$A$19:$A$22)+1)) -> 0.004187872388 | G51: =$B8*HLOOKUP(G$46,'Cost allocators'!$E$18:$L$22,(MATCH('Cost allocators'!$B$8,'Cost allocators'!$A$19:$A$22)+1)) -> 0.0008070613337 | H51: =$B8*HLOOKUP(H$46,'Cost allocators'!$E$18:$L$22,(MATCH('Cost allocators'!$B$8,'Cost allocators'!$A$19:$A$22)+1)) -> 0.0006983749837 | I51: =$B8*HLOOKUP(I$46,'Cost allocators'!$E$18:$L$22,(MATCH('Cost allocators'!$B$8,'Cost allocators'!$A$19:$A$22)+1)) -> 0.005215722389 | J51: =$B8*HLOOKUP(J$46,'Cost allocators'!$E$18:$L$22,(MATCH('Cost allocators'!$B$8,'Cost allocators'!$A$19:$A$22)+1)) -> 0.0009574656768
A52: Total Revenue | B52: =SUM(B47:B51) -> 26.43383274 | C52: 18.11390224 | D52: 4.971996002 | E52: 1.447188177 | F52: 1.133542889 | G52: 0.05489254981 | H52: 0.1632220307 | I52: 0.4942308455 | J52: 0.05485800753
A54: Checks | B54: =B52-B$41 -> 0
A56: =C3 -> 2017/18 | B56: Total | C56: =C46 -> Demand-AdNr | D56: =D46 -> Demand-AdC | E56: Demand-AdS | F56: Demand-PP | G56: Demand-Peter | H56: Demand-River | I56: Demand-SE | J56: Demand-Whyal
A57: =A47 -> Return on capital | B57: =SUM(C57:J57) -> 5.522315192 | C57: =$C4*HLOOKUP(C$46,'Cost allocators'!$E$18:$L$22,(MATCH('Cost allocators'!$B$4,'Cost allocators'!$A$19:$A$22)+1)) -> 2.67718163 | D57: =$C4*HLOOKUP(D$46,'Cost allocators'!$E$18:$L$22,(MATCH('Cost allocators'!$B$4,'Cost allocators'!$A$19:$A$22)+1)) -> 1.537021637 | E57: =$C4*HLOOKUP(E$46,'Cost allocators'!$E$18:$L$22,(MATCH('Cost allocators'!$B$4,'Cost allocators'!$A$19:$A$22)+1)) -> 0.8223999632 | F57: =$C4*HLOOKUP(F$46,'Cost allocators'!$E$18:$L$22,(MATCH('Cost allocators'!$B$4,'Cost allocators'!$A$19:$A$22)+1)) -> 0.1714153515 | G57: =$C4*HLOOKUP(G$46,'Cost allocators'!$E$18:$L$22,(MATCH('Cost allocators'!$B$4,'Cost allocators'!$A$19:$A$22)+1)) -> 0.03303412553 | H57: =$C4*HLOOKUP(H$46,'Cost allocators'!$E$18:$L$22,(MATCH('Cost allocators'!$B$4,'Cost allocators'!$A$19:$A$22)+1)) -> 0.02858544439 | I57: =$C4*HLOOKUP(I$46,'Cost allocators'!$E$18:$L$22,(MATCH('Cost allocators'!$B$4,'Cost allocators'!$A$19:$A$22)+1)) -> 0.2134866595 | J57: =$C4*HLOOKUP(J$46,'Cost allocators'!$E$18:$L$22,(MATCH('Cost allocators'!$B$4,'Cost allocators'!$A$19:$A$22)+1)) -> 0.03919038125
A58: =A48 -> Return of capital | B58: =SUM(C58:J58) -> 0.8631999643 | C58: =$C5*HLOOKUP(C$46,'Cost allocators'!$E$18:$L$22,(MATCH('Cost allocators'!$B$5,'Cost allocators'!$A$19:$A$22)+1)) -> 0.4184735943 | D58: =$C5*HLOOKUP(D$46,'Cost allocators'!$E$18:$L$22,(MATCH('Cost allocators'!$B$5,'Cost allocators'!$A$19:$A$22)+1)) -> 0.240253766 | E58: =$C5*HLOOKUP(E$46,'Cost allocators'!$E$18:$L$22,(MATCH('Cost allocators'!$B$5,'Cost allocators'!$A$19:$A$22)+1)) -> 0.1285503624 | F58: =$C5*HLOOKUP(F$46,'Cost allocators'!$E$18:$L$22,(MATCH('Cost allocators'!$B$5,'Cost allocators'!$A$19:$A$22)+1)) -> 0.02679414704 | G58: =$C5*HLOOKUP(G$46,'Cost allocators'!$E$18:$L$22,(MATCH('Cost allocators'!$B$5,'Cost allocators'!$A$19:$A$22)+1)) -> 0.005163605298 | H58: =$C5*HLOOKUP(H$46,'Cost allocators'!$E$18:$L$22,(MATCH('Cost allocators'!$B$5,'Cost allocators'!$A$19:$A$22)+1)) -> 0.004468226409 | I58: =$C5*HLOOKUP(I$46,'Cost allocators'!$E$18:$L$22,(MATCH('Cost allocators'!$B$5,'Cost allocators'!$A$19:$A$22)+1)) -> 0.03337036559 | J58: =$C5*HLOOKUP(J$46,'Cost allocators'!$E$18:$L$22,(MATCH('Cost allocators'!$B$5,'Cost allocators'!$A$19:$A$22)+1)) -> 0.006125897295
A59: =A49 -> O&M | B59: =SUM(C59:J59) -> 19.89566442 | C59: =$C6*HLOOKUP(C$46,'Cost allocators'!$E$18:$L$22,(MATCH('Cost allocators'!$B$6,'Cost allocators'!$A$19:$A$22)+1)) -> 14.78898195 | D59: =$C6*HLOOKUP(D$46,'Cost allocators'!$E$18:$L$22,(MATCH('Cost allocators'!$B$6,'Cost allocators'!$A$19:$A$22)+1)) -> 3.222122588 | E59: =$C6*HLOOKUP(E$46,'Cost allocators'!$E$18:$L$22,(MATCH('Cost allocators'!$B$6,'Cost allocators'!$A$19:$A$22)+1)) -> 0.5464444355 | F59: =$C6*HLOOKUP(F$46,'Cost allocators'!$E$18:$L$22,(MATCH('Cost allocators'!$B$6,'Cost allocators'!$A$19:$A$22)+1)) -> 0.9214233382 | G59: =$C6*HLOOKUP(G$46,'Cost allocators'!$E$18:$L$22,(MATCH('Cost allocators'!$B$6,'Cost allocators'!$A$19:$A$22)+1)) -> 0.01880638971 | H59: =$C6*HLOOKUP(H$46,'Cost allocators'!$E$18:$L$22,(MATCH('Cost allocators'!$B$6,'Cost allocators'!$A$19:$A$22)+1)) -> 0.1286049086 | I59: =$C6*HLOOKUP(I$46,'Cost allocators'!$E$18:$L$22,(MATCH('Cost allocators'!$B$6,'Cost allocators'!$A$19:$A$22)+1)) -> 0.2569332525 | J59: =$C6*HLOOKUP(J$46,'Cost allocators'!$E$18:$L$22,(MATCH('Cost allocators'!$B$6,'Cost allocators'!$A$19:$A$22)+1)) -> 0.01234755917
A60: =A50 -> Carry-over amounts | B60: =SUM(C60:J60) -> -0.7290451719 | C60: =$C7*HLOOKUP(C$46,'Cost allocators'!$E$18:$L$22,(MATCH('Cost allocators'!$B$7,'Cost allocators'!$A$19:$A$22)+1)) -> -0.5419188653 | D60: =$C7*HLOOKUP(D$46,'Cost allocators'!$E$18:$L$22,(MATCH('Cost allocators'!$B$7,'Cost allocators'!$A$19:$A$22)+1)) -> -0.1180695888 | E60: =$C7*HLOOKUP(E$46,'Cost allocators'!$E$18:$L$22,(MATCH('Cost allocators'!$B$7,'Cost allocators'!$A$19:$A$22)+1)) -> -0.02002359253 | F60: =$C7*HLOOKUP(F$46,'Cost allocators'!$E$18:$L$22,(MATCH('Cost allocators'!$B$7,'Cost allocators'!$A$19:$A$22)+1)) -> -0.03376410166 | G60: =$C7*HLOOKUP(G$46,'Cost allocators'!$E$18:$L$22,(MATCH('Cost allocators'!$B$7,'Cost allocators'!$A$19:$A$22)+1)) -> -0.0006891304222 | H60: =$C7*HLOOKUP(H$46,'Cost allocators'!$E$18:$L$22,(MATCH('Cost allocators'!$B$7,'Cost allocators'!$A$19:$A$22)+1)) -> -0.004712523579 | I60: =$C7*HLOOKUP(I$46,'Cost allocators'!$E$18:$L$22,(MATCH('Cost allocators'!$B$7,'Cost allocators'!$A$19:$A$22)+1)) -> -0.009414912883 | J60: =$C7*HLOOKUP(J$46,'Cost allocators'!$E$18:$L$22,(MATCH('Cost allocators'!$B$7,'Cost allocators'!$A$19:$A$22)+1)) -> -0.000452456787
A61: =A51 -> Benchmark Tax liability | B61: =SUM(C61:J61) -> 0.109736835 | C61: =$C8*HLOOKUP(C$46,'Cost allocators'!$E$18:$L$22,(MATCH('Cost allocators'!$B$8,'Cost allocators'!$A$19:$A$22)+1)) -> 0.05319968683 | D61: =$C8*HLOOKUP(D$46,'Cost allocators'!$E$18:$L$22,(MATCH('Cost allocators'!$B$8,'Cost allocators'!$A$19:$A$22)+1)) -> 0.03054296683 | E61: =$C8*HLOOKUP(E$46,'Cost allocators'!$E$18:$L$22,(MATCH('Cost allocators'!$B$8,'Cost allocators'!$A$19:$A$22)+1)) -> 0.01634234301 | F61: =$C8*HLOOKUP(F$46,'Cost allocators'!$E$18:$L$22,(MATCH('Cost allocators'!$B$8,'Cost allocators'!$A$19:$A$22)+1)) -> 0.003406284771 | G61: =$C8*HLOOKUP(G$46,'Cost allocators'!$E$18:$L$22,(MATCH('Cost allocators'!$B$8,'Cost allocators'!$A$19:$A$22)+1)) -> 0.0006564385149 | H61: =$C8*HLOOKUP(H$46,'Cost allocators'!$E$18:$L$22,(MATCH('Cost allocators'!$B$8,'Cost allocators'!$A$19:$A$22)+1)) -> 0.0005680364279 | I61: =$C8*HLOOKUP(I$46,'Cost allocators'!$E$18:$L$22,(MATCH('Cost allocators'!$B$8,'Cost allocators'!$A$19:$A$22)+1)) -> 0.004242305901 | J61: =$C8*HLOOKUP(J$46,'Cost allocators'!$E$18:$L$22,(MATCH('Cost allocators'!$B$8,'Cost allocators'!$A$19:$A$22)+1)) -> 0.000778772716
A62: Total Revenue | B62: =SUM(B57:B61) -> 25.66187124 | C62: 17.39591799 | D62: 4.911871369 | E62: 1.493713512 | F62: 1.08927502 | G62: 0.05697142863 | H62: 0.1575140922 | I62: 0.4986176706 | J62: 0.05799015364
A64: Checks | B64: =B62-C$41 -> 0
A66: =D3 -> 2018/19 | B66: Total | C66: =C56 -> Demand-AdNr | D66: =D56 -> Demand-AdC | E66: Demand-AdS | F66: Demand-PP | G66: Demand-Peter | H66: Demand-River | I66: Demand-SE | J66: Demand-Whyal
A67: =A57 -> Return on capital | B67: =SUM(C67:J67) -> 5.901022565 | C67: =$D4*HLOOKUP(C$46,'Cost allocators'!$E$18:$L$22,(MATCH('Cost allocators'!$B$4,'Cost allocators'!$A$19:$A$22)+1)) -> 2.860776442 | D67: =$D4*HLOOKUP(D$46,'Cost allocators'!$E$18:$L$22,(MATCH('Cost allocators'!$B$4,'Cost allocators'!$A$19:$A$22)+1)) -> 1.642426961 | E67: =$D4*HLOOKUP(E$46,'Cost allocators'!$E$18:$L$22,(MATCH('Cost allocators'!$B$4,'Cost allocators'!$A$19:$A$22)+1)) -> 0.8787982162 | F67: =$D4*HLOOKUP(F$46,'Cost allocators'!$E$18:$L$22,(MATCH('Cost allocators'!$B$4,'Cost allocators'!$A$19:$A$22)+1)) -> 0.1831706126 | G67: =$D4*HLOOKUP(G$46,'Cost allocators'!$E$18:$L$22,(MATCH('Cost allocators'!$B$4,'Cost allocators'!$A$19:$A$22)+1)) -> 0.03529952808 | H67: =$D4*HLOOKUP(H$46,'Cost allocators'!$E$18:$L$22,(MATCH('Cost allocators'!$B$4,'Cost allocators'!$A$19:$A$22)+1)) -> 0.03054576686 | I67: =$D4*HLOOKUP(I$46,'Cost allocators'!$E$18:$L$22,(MATCH('Cost allocators'!$B$4,'Cost allocators'!$A$19:$A$22)+1)) -> 0.2281270719 | J67: =$D4*HLOOKUP(J$46,'Cost allocators'!$E$18:$L$22,(MATCH('Cost allocators'!$B$4,'Cost allocators'!$A$19:$A$22)+1)) -> 0.04187796531
A68: =A58 -> Return of capital | B68: =SUM(C68:J68) -> 1.181731028 | C68: =$D5*HLOOKUP(C$46,'Cost allocators'!$E$18:$L$22,(MATCH('Cost allocators'!$B$5,'Cost allocators'!$A$19:$A$22)+1)) -> 0.5728953327 | D68: =$D5*HLOOKUP(D$46,'Cost allocators'!$E$18:$L$22,(MATCH('Cost allocators'!$B$5,'Cost allocators'!$A$19:$A$22)+1)) -> 0.3289102659 | E68: =$D5*HLOOKUP(E$46,'Cost allocators'!$E$18:$L$22,(MATCH('Cost allocators'!$B$5,'Cost allocators'!$A$19:$A$22)+1)) -> 0.1759869765 | F68: =$D5*HLOOKUP(F$46,'Cost allocators'!$E$18:$L$22,(MATCH('Cost allocators'!$B$5,'Cost allocators'!$A$19:$A$22)+1)) -> 0.03668150629 | G68: =$D5*HLOOKUP(G$46,'Cost allocators'!$E$18:$L$22,(MATCH('Cost allocators'!$B$5,'Cost allocators'!$A$19:$A$22)+1)) -> 0.007069037126 | H68: =$D5*HLOOKUP(H$46,'Cost allocators'!$E$18:$L$22,(MATCH('Cost allocators'!$B$5,'Cost allocators'!$A$19:$A$22)+1)) -> 0.006117055149 | I68: =$D5*HLOOKUP(I$46,'Cost allocators'!$E$18:$L$22,(MATCH('Cost allocators'!$B$5,'Cost allocators'!$A$19:$A$22)+1)) -> 0.04568442777 | J68: =$D5*HLOOKUP(J$46,'Cost allocators'!$E$18:$L$22,(MATCH('Cost allocators'!$B$5,'Cost allocators'!$A$19:$A$22)+1)) -> 0.008386426326
A69: =A59 -> O&M | B69: =SUM(C69:J69) -> 20.77492717 | C69: =$D6*HLOOKUP(C$46,'Cost allocators'!$E$18:$L$22,(MATCH('Cost allocators'!$B$6,'Cost allocators'!$A$19:$A$22)+1)) -> 15.44256158 | D69: =$D6*HLOOKUP(D$46,'Cost allocators'!$E$18:$L$22,(MATCH('Cost allocators'!$B$6,'Cost allocators'!$A$19:$A$22)+1)) -> 3.364520063 | E69: =$D6*HLOOKUP(E$46,'Cost allocators'!$E$18:$L$22,(MATCH('Cost allocators'!$B$6,'Cost allocators'!$A$19:$A$22)+1)) -> 0.5705938295 | F69: =$D6*HLOOKUP(F$46,'Cost allocators'!$E$18:$L$22,(MATCH('Cost allocators'!$B$6,'Cost allocators'!$A$19:$A$22)+1)) -> 0.9621444323 | G69: =$D6*HLOOKUP(G$46,'Cost allocators'!$E$18:$L$22,(MATCH('Cost allocators'!$B$6,'Cost allocators'!$A$19:$A$22)+1)) -> 0.0196375134 | H69: =$D6*HLOOKUP(H$46,'Cost allocators'!$E$18:$L$22,(MATCH('Cost allocators'!$B$6,'Cost allocators'!$A$19:$A$22)+1)) -> 0.1342884336 | I69: =$D6*HLOOKUP(I$46,'Cost allocators'!$E$18:$L$22,(MATCH('Cost allocators'!$B$6,'Cost allocators'!$A$19:$A$22)+1)) -> 0.2682880801 | J69: =$D6*HLOOKUP(J$46,'Cost allocators'!$E$18:$L$22,(MATCH('Cost allocators'!$B$6,'Cost allocators'!$A$19:$A$22)+1)) -> 0.01289324333
A70: =A60 -> Carry-over amounts | B70: =SUM(C70:J70) -> -0.9667037385 | C70: =$D7*HLOOKUP(C$46,'Cost allocators'!$E$18:$L$22,(MATCH('Cost allocators'!$B$7,'Cost allocators'!$A$19:$A$22)+1)) -> -0.7185768636 | D70: =$D7*HLOOKUP(D$46,'Cost allocators'!$E$18:$L$22,(MATCH('Cost allocators'!$B$7,'Cost allocators'!$A$19:$A$22)+1)) -> -0.1565586294 | E70: =$D7*HLOOKUP(E$46,'Cost allocators'!$E$18:$L$22,(MATCH('Cost allocators'!$B$7,'Cost allocators'!$A$19:$A$22)+1)) -> -0.02655100466 | F70: =$D7*HLOOKUP(F$46,'Cost allocators'!$E$18:$L$22,(MATCH('Cost allocators'!$B$7,'Cost allocators'!$A$19:$A$22)+1)) -> -0.04477072829 | G70: =$D7*HLOOKUP(G$46,'Cost allocators'!$E$18:$L$22,(MATCH('Cost allocators'!$B$7,'Cost allocators'!$A$19:$A$22)+1)) -> -0.0009137773366 | H70: =$D7*HLOOKUP(H$46,'Cost allocators'!$E$18:$L$22,(MATCH('Cost allocators'!$B$7,'Cost allocators'!$A$19:$A$22)+1)) -> -0.006248740595 | I70: =$D7*HLOOKUP(I$46,'Cost allocators'!$E$18:$L$22,(MATCH('Cost allocators'!$B$7,'Cost allocators'!$A$19:$A$22)+1)) -> -0.01248404328 | J70: =$D7*HLOOKUP(J$46,'Cost allocators'!$E$18:$L$22,(MATCH('Cost allocators'!$B$7,'Cost allocators'!$A$19:$A$22)+1)) -> -0.0005999513944
A71: =A61 -> Benchmark Tax liability | B71: =SUM(C71:J71) -> 0.09658997875 | C71: =$D8*HLOOKUP(C$46,'Cost allocators'!$E$18:$L$22,(MATCH('Cost allocators'!$B$8,'Cost allocators'!$A$19:$A$22)+1)) -> 0.04682617847 | D71: =$D8*HLOOKUP(D$46,'Cost allocators'!$E$18:$L$22,(MATCH('Cost allocators'!$B$8,'Cost allocators'!$A$19:$A$22)+1)) -> 0.02688381269 | E71: =$D8*HLOOKUP(E$46,'Cost allocators'!$E$18:$L$22,(MATCH('Cost allocators'!$B$8,'Cost allocators'!$A$19:$A$22)+1)) -> 0.01438447322 | F71: =$D8*HLOOKUP(F$46,'Cost allocators'!$E$18:$L$22,(MATCH('Cost allocators'!$B$8,'Cost allocators'!$A$19:$A$22)+1)) -> 0.002998199954 | G71: =$D8*HLOOKUP(G$46,'Cost allocators'!$E$18:$L$22,(MATCH('Cost allocators'!$B$8,'Cost allocators'!$A$19:$A$22)+1)) -> 0.0005777948872 | H71: =$D8*HLOOKUP(H$46,'Cost allocators'!$E$18:$L$22,(MATCH('Cost allocators'!$B$8,'Cost allocators'!$A$19:$A$22)+1)) -> 0.0004999836791 | I71: =$D8*HLOOKUP(I$46,'Cost allocators'!$E$18:$L$22,(MATCH('Cost allocators'!$B$8,'Cost allocators'!$A$19:$A$22)+1)) -> 0.003734062832 | J71: =$D8*HLOOKUP(J$46,'Cost allocators'!$E$18:$L$22,(MATCH('Cost allocators'!$B$8,'Cost allocators'!$A$19:$A$22)+1)) -> 0.0006854730236
A72: Total Revenue | B72: =SUM(B67:B71) -> 26.98756701 | C72: 18.20448267 | D72: 5.206182474 | E72: 1.613212491 | F72: 1.140224023 | G72: 0.06167009615 | H72: 0.1652024987 | I72: 0.5333495993 | J72: 0.0632431566
A74: Checks | B74: =B72-D$41 -> 0
A76: =E3 -> 2019/20 | B76: Total | C76: =C66 -> Demand-AdNr | D76: =D66 -> Demand-AdC | E76: Demand-AdS | F76: Demand-PP | G76: Demand-Peter | H76: Demand-River | I76: Demand-SE | J76: Demand-Whyal
A77: =A67 -> Return on capital | B77: =SUM(C77:J77) -> 6.291875386 | C77: =$E4*HLOOKUP(C$46,'Cost allocators'!$E$18:$L$22,(MATCH('Cost allocators'!$B$4,'Cost allocators'!$A$19:$A$22)+1)) -> 3.050259287 | D77: =$E4*HLOOKUP(D$46,'Cost allocators'!$E$18:$L$22,(MATCH('Cost allocators'!$B$4,'Cost allocators'!$A$19:$A$22)+1)) -> 1.751212719 | E77: =$E4*HLOOKUP(E$46,'Cost allocators'!$E$18:$L$22,(MATCH('Cost allocators'!$B$4,'Cost allocators'!$A$19:$A$22)+1)) -> 0.9370052064 | F77: =$E4*HLOOKUP(F$46,'Cost allocators'!$E$18:$L$22,(MATCH('Cost allocators'!$B$4,'Cost allocators'!$A$19:$A$22)+1)) -> 0.1953028745 | G77: =$E4*HLOOKUP(G$46,'Cost allocators'!$E$18:$L$22,(MATCH('Cost allocators'!$B$4,'Cost allocators'!$A$19:$A$22)+1)) -> 0.03763758389 | H77: =$E4*HLOOKUP(H$46,'Cost allocators'!$E$18:$L$22,(MATCH('Cost allocators'!$B$4,'Cost allocators'!$A$19:$A$22)+1)) -> 0.03256895844 | I77: =$E4*HLOOKUP(I$46,'Cost allocators'!$E$18:$L$22,(MATCH('Cost allocators'!$B$4,'Cost allocators'!$A$19:$A$22)+1)) -> 0.2432370141 | J77: =$E4*HLOOKUP(J$46,'Cost allocators'!$E$18:$L$22,(MATCH('Cost allocators'!$B$4,'Cost allocators'!$A$19:$A$22)+1)) -> 0.04465174235
A78: =A68 -> Return of capital | B78: =SUM(C78:J78) -> 1.475560119 | C78: =$E5*HLOOKUP(C$46,'Cost allocators'!$E$18:$L$22,(MATCH('Cost allocators'!$B$5,'Cost allocators'!$A$19:$A$22)+1)) -> 0.7153417194 | D78: =$E5*HLOOKUP(D$46,'Cost allocators'!$E$18:$L$22,(MATCH('Cost allocators'!$B$5,'Cost allocators'!$A$19:$A$22)+1)) -> 0.4106914854 | E78: =$E5*HLOOKUP(E$46,'Cost allocators'!$E$18:$L$22,(MATCH('Cost allocators'!$B$5,'Cost allocators'!$A$19:$A$22)+1)) -> 0.2197448978 | F78: =$E5*HLOOKUP(F$46,'Cost allocators'!$E$18:$L$22,(MATCH('Cost allocators'!$B$5,'Cost allocators'!$A$19:$A$22)+1)) -> 0.0458021043 | G78: =$E5*HLOOKUP(G$46,'Cost allocators'!$E$18:$L$22,(MATCH('Cost allocators'!$B$5,'Cost allocators'!$A$19:$A$22)+1)) -> 0.008826703385 | H78: =$E5*HLOOKUP(H$46,'Cost allocators'!$E$18:$L$22,(MATCH('Cost allocators'!$B$5,'Cost allocators'!$A$19:$A$22)+1)) -> 0.007638017799 | I78: =$E5*HLOOKUP(I$46,'Cost allocators'!$E$18:$L$22,(MATCH('Cost allocators'!$B$5,'Cost allocators'!$A$19:$A$22)+1)) -> 0.05704353875 | J78: =$E5*HLOOKUP(J$46,'Cost allocators'!$E$18:$L$22,(MATCH('Cost allocators'!$B$5,'Cost allocators'!$A$19:$A$22)+1)) -> 0.01047165213
A79: =A69 -> O&M | B79: =SUM(C79:J79) -> 21.29665543 | C79: =$E6*HLOOKUP(C$46,'Cost allocators'!$E$18:$L$22,(MATCH('Cost allocators'!$B$6,'Cost allocators'!$A$19:$A$22)+1)) -> 15.83037621 | D79: =$E6*HLOOKUP(D$46,'Cost allocators'!$E$18:$L$22,(MATCH('Cost allocators'!$B$6,'Cost allocators'!$A$19:$A$22)+1)) -> 3.449014471 | E79: =$E6*HLOOKUP(E$46,'Cost allocators'!$E$18:$L$22,(MATCH('Cost allocators'!$B$6,'Cost allocators'!$A$19:$A$22)+1)) -> 0.5849233585 | F79: =$E6*HLOOKUP(F$46,'Cost allocators'!$E$18:$L$22,(MATCH('Cost allocators'!$B$6,'Cost allocators'!$A$19:$A$22)+1)) -> 0.986307113 | G79: =$E6*HLOOKUP(G$46,'Cost allocators'!$E$18:$L$22,(MATCH('Cost allocators'!$B$6,'Cost allocators'!$A$19:$A$22)+1)) -> 0.02013067737 | H79: =$E6*HLOOKUP(H$46,'Cost allocators'!$E$18:$L$22,(MATCH('Cost allocators'!$B$6,'Cost allocators'!$A$19:$A$22)+1)) -> 0.1376608675 | I79: =$E6*HLOOKUP(I$46,'Cost allocators'!$E$18:$L$22,(MATCH('Cost allocators'!$B$6,'Cost allocators'!$A$19:$A$22)+1)) -> 0.2750256956 | J79: =$E6*HLOOKUP(J$46,'Cost allocators'!$E$18:$L$22,(MATCH('Cost allocators'!$B$6,'Cost allocators'!$A$19:$A$22)+1)) -> 0.01321703601
A80: =A70 -> Carry-over amounts | B80: =SUM(C80:J80) -> 0.07519502319 | C80: =$E7*HLOOKUP(C$46,'Cost allocators'!$E$18:$L$22,(MATCH('Cost allocators'!$B$7,'Cost allocators'!$A$19:$A$22)+1)) -> 0.05589448118 | D80: =$E7*HLOOKUP(D$46,'Cost allocators'!$E$18:$L$22,(MATCH('Cost allocators'!$B$7,'Cost allocators'!$A$19:$A$22)+1)) -> 0.01217790859 | E80: =$E7*HLOOKUP(E$46,'Cost allocators'!$E$18:$L$22,(MATCH('Cost allocators'!$B$7,'Cost allocators'!$A$19:$A$22)+1)) -> 0.002065269153 | F80: =$E7*HLOOKUP(F$46,'Cost allocators'!$E$18:$L$22,(MATCH('Cost allocators'!$B$7,'Cost allocators'!$A$19:$A$22)+1)) -> 0.003482489844 | G80: =$E7*HLOOKUP(G$46,'Cost allocators'!$E$18:$L$22,(MATCH('Cost allocators'!$B$7,'Cost allocators'!$A$19:$A$22)+1)) -> 7.10781445e-05 | H80: =$E7*HLOOKUP(H$46,'Cost allocators'!$E$18:$L$22,(MATCH('Cost allocators'!$B$7,'Cost allocators'!$A$19:$A$22)+1)) -> 0.0004860581119 | I80: =$E7*HLOOKUP(I$46,'Cost allocators'!$E$18:$L$22,(MATCH('Cost allocators'!$B$7,'Cost allocators'!$A$19:$A$22)+1)) -> 0.0009710709567 | J80: =$E7*HLOOKUP(J$46,'Cost allocators'!$E$18:$L$22,(MATCH('Cost allocators'!$B$7,'Cost allocators'!$A$19:$A$22)+1)) -> 4.666720239e-05
A81: =A71 -> Benchmark Tax liability | B81: =SUM(C81:J81) -> 0.1335505629 | C81: =$E8*HLOOKUP(C$46,'Cost allocators'!$E$18:$L$22,(MATCH('Cost allocators'!$B$8,'Cost allocators'!$A$19:$A$22)+1)) -> 0.06474442355 | D81: =$E8*HLOOKUP(D$46,'Cost allocators'!$E$18:$L$22,(MATCH('Cost allocators'!$B$8,'Cost allocators'!$A$19:$A$22)+1)) -> 0.03717102297 | E81: =$E8*HLOOKUP(E$46,'Cost allocators'!$E$18:$L$22,(MATCH('Cost allocators'!$B$8,'Cost allocators'!$A$19:$A$22)+1)) -> 0.01988875576 | F81: =$E8*HLOOKUP(F$46,'Cost allocators'!$E$18:$L$22,(MATCH('Cost allocators'!$B$8,'Cost allocators'!$A$19:$A$22)+1)) -> 0.004145474478 | G81: =$E8*HLOOKUP(G$46,'Cost allocators'!$E$18:$L$22,(MATCH('Cost allocators'!$B$8,'Cost allocators'!$A$19:$A$22)+1)) -> 0.0007988906659 | H81: =$E8*HLOOKUP(H$46,'Cost allocators'!$E$18:$L$22,(MATCH('Cost allocators'!$B$8,'Cost allocators'!$A$19:$A$22)+1)) -> 0.0006913046536 | I81: =$E8*HLOOKUP(I$46,'Cost allocators'!$E$18:$L$22,(MATCH('Cost allocators'!$B$8,'Cost allocators'!$A$19:$A$22)+1)) -> 0.005162918552 | J81: =$E8*HLOOKUP(J$46,'Cost allocators'!$E$18:$L$22,(MATCH('Cost allocators'!$B$8,'Cost allocators'!$A$19:$A$22)+1)) -> 0.0009477723193
A82: Total Revenue | B82: =SUM(B77:B81) -> 29.27283652 | C82: 19.71661612 | D82: 5.660267607 | E82: 1.763627488 | F82: 1.235040056 | G82: 0.06746493346 | H82: 0.1790452065 | I82: 0.5814402379 | J82: 0.06933487
A84: Checks | B84: =B82-E$41 -> 0
A86: =F3 -> 2020/21 | B86: Total | C86: =C76 -> Demand-AdNr | D86: =D76 -> Demand-AdC | E86: Demand-AdS | F86: Demand-PP | G86: Demand-Peter | H86: Demand-River | I86: Demand-SE | J86: Demand-Whyal
A87: =A77 -> Return on capital | B87: =SUM(C87:J87) -> 6.691448913 | C87: =$F4*HLOOKUP(C$46,'Cost allocators'!$E$18:$L$22,(MATCH('Cost allocators'!$B$4,'Cost allocators'!$A$19:$A$22)+1)) -> 3.243969872 | D87: =$F4*HLOOKUP(D$46,'Cost allocators'!$E$18:$L$22,(MATCH('Cost allocators'!$B$4,'Cost allocators'!$A$19:$A$22)+1)) -> 1.862425704 | E87: =$F4*HLOOKUP(E$46,'Cost allocators'!$E$18:$L$22,(MATCH('Cost allocators'!$B$4,'Cost allocators'!$A$19:$A$22)+1)) -> 0.9965109105 | F87: =$F4*HLOOKUP(F$46,'Cost allocators'!$E$18:$L$22,(MATCH('Cost allocators'!$B$4,'Cost allocators'!$A$19:$A$22)+1)) -> 0.2077058312 | G87: =$F4*HLOOKUP(G$46,'Cost allocators'!$E$18:$L$22,(MATCH('Cost allocators'!$B$4,'Cost allocators'!$A$19:$A$22)+1)) -> 0.0400278064 | H87: =$F4*HLOOKUP(H$46,'Cost allocators'!$E$18:$L$22,(MATCH('Cost allocators'!$B$4,'Cost allocators'!$A$19:$A$22)+1)) -> 0.03463729146 | I87: =$F4*HLOOKUP(I$46,'Cost allocators'!$E$18:$L$22,(MATCH('Cost allocators'!$B$4,'Cost allocators'!$A$19:$A$22)+1)) -> 0.2586840892 | J87: =$F4*HLOOKUP(J$46,'Cost allocators'!$E$18:$L$22,(MATCH('Cost allocators'!$B$4,'Cost allocators'!$A$19:$A$22)+1)) -> 0.04748740789
A88: =A78 -> Return of capital | B88: =SUM(C88:J88) -> 1.445629175 | C88: =$F5*HLOOKUP(C$46,'Cost allocators'!$E$18:$L$22,(MATCH('Cost allocators'!$B$5,'Cost allocators'!$A$19:$A$22)+1)) -> 0.7008313973 | D88: =$F5*HLOOKUP(D$46,'Cost allocators'!$E$18:$L$22,(MATCH('Cost allocators'!$B$5,'Cost allocators'!$A$19:$A$22)+1)) -> 0.4023608295 | E88: =$F5*HLOOKUP(E$46,'Cost allocators'!$E$18:$L$22,(MATCH('Cost allocators'!$B$5,'Cost allocators'!$A$19:$A$22)+1)) -> 0.2152874907 | F88: =$F5*HLOOKUP(F$46,'Cost allocators'!$E$18:$L$22,(MATCH('Cost allocators'!$B$5,'Cost allocators'!$A$19:$A$22)+1)) -> 0.04487303324 | G88: =$F5*HLOOKUP(G$46,'Cost allocators'!$E$18:$L$22,(MATCH('Cost allocators'!$B$5,'Cost allocators'!$A$19:$A$22)+1)) -> 0.008647658454 | H88: =$F5*HLOOKUP(H$46,'Cost allocators'!$E$18:$L$22,(MATCH('Cost allocators'!$B$5,'Cost allocators'!$A$19:$A$22)+1)) -> 0.007483084716 | I88: =$F5*HLOOKUP(I$46,'Cost allocators'!$E$18:$L$22,(MATCH('Cost allocators'!$B$5,'Cost allocators'!$A$19:$A$22)+1)) -> 0.05588644124 | J88: =$F5*HLOOKUP(J$46,'Cost allocators'!$E$18:$L$22,(MATCH('Cost allocators'!$B$5,'Cost allocators'!$A$19:$A$22)+1)) -> 0.01025924029
A89: =A79 -> O&M | B89: =SUM(C89:J89) -> 21.86504814 | C89: =$F6*HLOOKUP(C$46,'Cost allocators'!$E$18:$L$22,(MATCH('Cost allocators'!$B$6,'Cost allocators'!$A$19:$A$22)+1)) -> 16.25287778 | D89: =$F6*HLOOKUP(D$46,'Cost allocators'!$E$18:$L$22,(MATCH('Cost allocators'!$B$6,'Cost allocators'!$A$19:$A$22)+1)) -> 3.541066235 | E89: =$F6*HLOOKUP(E$46,'Cost allocators'!$E$18:$L$22,(MATCH('Cost allocators'!$B$6,'Cost allocators'!$A$19:$A$22)+1)) -> 0.6005345504 | F89: =$F6*HLOOKUP(F$46,'Cost allocators'!$E$18:$L$22,(MATCH('Cost allocators'!$B$6,'Cost allocators'!$A$19:$A$22)+1)) -> 1.012630954 | G89: =$F6*HLOOKUP(G$46,'Cost allocators'!$E$18:$L$22,(MATCH('Cost allocators'!$B$6,'Cost allocators'!$A$19:$A$22)+1)) -> 0.02066795095 | H89: =$F6*HLOOKUP(H$46,'Cost allocators'!$E$18:$L$22,(MATCH('Cost allocators'!$B$6,'Cost allocators'!$A$19:$A$22)+1)) -> 0.141334939 | I89: =$F6*HLOOKUP(I$46,'Cost allocators'!$E$18:$L$22,(MATCH('Cost allocators'!$B$6,'Cost allocators'!$A$19:$A$22)+1)) -> 0.2823659375 | J89: =$F6*HLOOKUP(J$46,'Cost allocators'!$E$18:$L$22,(MATCH('Cost allocators'!$B$6,'Cost allocators'!$A$19:$A$22)+1)) -> 0.01356978938
A90: =A80 -> Carry-over amounts | B90: =SUM(C90:J90) -> 0 | C90: =$F7*HLOOKUP(C$46,'Cost allocators'!$E$18:$L$22,(MATCH('Cost allocators'!$B$7,'Cost allocators'!$A$19:$A$22)+1)) -> 0 | D90: =$F7*HLOOKUP(D$46,'Cost allocators'!$E$18:$L$22,(MATCH('Cost allocators'!$B$7,'Cost allocators'!$A$19:$A$22)+1)) -> 0 | E90: =$F7*HLOOKUP(E$46,'Cost allocators'!$E$18:$L$22,(MATCH('Cost allocators'!$B$7,'Cost allocators'!$A$19:$A$22)+1)) -> 0 | F90: =$F7*HLOOKUP(F$46,'Cost allocators'!$E$18:$L$22,(MATCH('Cost allocators'!$B$7,'Cost allocators'!$A$19:$A$22)+1)) -> 0 | G90: =$F7*HLOOKUP(G$46,'Cost allocators'!$E$18:$L$22,(MATCH('Cost allocators'!$B$7,'Cost allocators'!$A$19:$A$22)+1)) -> 0 | H90: =$F7*HLOOKUP(H$46,'Cost allocators'!$E$18:$L$22,(MATCH('Cost allocators'!$B$7,'Cost allocators'!$A$19:$A$22)+1)) -> 0 | I90: =$F7*HLOOKUP(I$46,'Cost allocators'!$E$18:$L$22,(MATCH('Cost allocators'!$B$7,'Cost allocators'!$A$19:$A$22)+1)) -> 0 | J90: =$F7*HLOOKUP(J$46,'Cost allocators'!$E$18:$L$22,(MATCH('Cost allocators'!$B$7,'Cost allocators'!$A$19:$A$22)+1)) -> 0
A91: =A81 -> Benchmark Tax liability | B91: =SUM(C91:J91) -> 0.0489806092 | C91: =$F8*HLOOKUP(C$46,'Cost allocators'!$E$18:$L$22,(MATCH('Cost allocators'!$B$8,'Cost allocators'!$A$19:$A$22)+1)) -> 0.02374547316 | D91: =$F8*HLOOKUP(D$46,'Cost allocators'!$E$18:$L$22,(MATCH('Cost allocators'!$B$8,'Cost allocators'!$A$19:$A$22)+1)) -> 0.01363273437 | E91: =$F8*HLOOKUP(E$46,'Cost allocators'!$E$18:$L$22,(MATCH('Cost allocators'!$B$8,'Cost allocators'!$A$19:$A$22)+1)) -> 0.007294341196 | F91: =$F8*HLOOKUP(F$46,'Cost allocators'!$E$18:$L$22,(MATCH('Cost allocators'!$B$8,'Cost allocators'!$A$19:$A$22)+1)) -> 0.00152038195 | G91: =$F8*HLOOKUP(G$46,'Cost allocators'!$E$18:$L$22,(MATCH('Cost allocators'!$B$8,'Cost allocators'!$A$19:$A$22)+1)) -> 0.0002929987762 | H91: =$F8*HLOOKUP(H$46,'Cost allocators'!$E$18:$L$22,(MATCH('Cost allocators'!$B$8,'Cost allocators'!$A$19:$A$22)+1)) -> 0.0002535408487 | I91: =$F8*HLOOKUP(I$46,'Cost allocators'!$E$18:$L$22,(MATCH('Cost allocators'!$B$8,'Cost allocators'!$A$19:$A$22)+1)) -> 0.001893536727 | J91: =$F8*HLOOKUP(J$46,'Cost allocators'!$E$18:$L$22,(MATCH('Cost allocators'!$B$8,'Cost allocators'!$A$19:$A$22)+1)) -> 0.0003476021707
A92: Total Revenue | B92: =SUM(B87:B91) -> 30.05110684 | C92: =SUM(C87:C91) -> 20.22142453 | D92: =SUM(D87:D91) -> 5.819485503 | E92: 1.819627293 | F92: 1.266730201 | G92: 0.06963641458 | H92: 0.183708856 | I92: 0.5988300046 | J92: 0.07166403972
A94: Checks | B94: =B92-F$41 -> 0
A96: =G3 -> 2021/22 | B96: Total | C96: Demand-AdNr | D96: Demand-AdC | E96: Demand-AdS | F96: Demand-PP | G96: Demand-Peter | H96: Demand-River | I96: Demand-SE | J96: Demand-Whyal
A97: =A87 -> Return on capital | B97: =SUM(C97:J97) -> 5.026536518 | C97: =$G4*HLOOKUP(C$46,'Cost allocators'!$E$31:$L$35,(MATCH('Cost allocators'!$B4,'Cost allocators'!$A$32:$A$35)+1)) -> 2.43683143 | D97: =$G4*HLOOKUP(D$46,'Cost allocators'!$E$31:$L$35,(MATCH('Cost allocators'!$B4,'Cost allocators'!$A$32:$A$35)+1)) -> 1.399031949 | E97: =$G4*HLOOKUP(E$46,'Cost allocators'!$E$31:$L$35,(MATCH('Cost allocators'!$B4,'Cost allocators'!$A$32:$A$35)+1)) -> 0.7485670962 | F97: =$G4*HLOOKUP(F$46,'Cost allocators'!$E$31:$L$35,(MATCH('Cost allocators'!$B4,'Cost allocators'!$A$32:$A$35)+1)) -> 0.1560261401 | G97: =$G4*HLOOKUP(G$46,'Cost allocators'!$E$31:$L$35,(MATCH('Cost allocators'!$B4,'Cost allocators'!$A$32:$A$35)+1)) -> 0.03006841018 | H97: =$G4*HLOOKUP(H$46,'Cost allocators'!$E$31:$L$35,(MATCH('Cost allocators'!$B4,'Cost allocators'!$A$32:$A$35)+1)) -> 0.02601911972 | I97: =$G4*HLOOKUP(I$46,'Cost allocators'!$E$31:$L$35,(MATCH('Cost allocators'!$B4,'Cost allocators'!$A$32:$A$35)+1)) -> 0.1943203987 | J97: =$G4*HLOOKUP(J$46,'Cost allocators'!$E$31:$L$35,(MATCH('Cost allocators'!$B4,'Cost allocators'!$A$32:$A$35)+1)) -> 0.03567197374
A98: =A88 -> Return of capital | B98: =SUM(C98:J98) -> 3.439050881 | C98: =$G5*HLOOKUP(C$46,'Cost allocators'!$E$31:$L$35,(MATCH('Cost allocators'!$B5,'Cost allocators'!$A$32:$A$35)+1)) -> 1.667228965 | D98: =$G5*HLOOKUP(D$46,'Cost allocators'!$E$31:$L$35,(MATCH('Cost allocators'!$B5,'Cost allocators'!$A$32:$A$35)+1)) -> 0.9571883223 | E98: =$G5*HLOOKUP(E$46,'Cost allocators'!$E$31:$L$35,(MATCH('Cost allocators'!$B5,'Cost allocators'!$A$32:$A$35)+1)) -> 0.5121539101 | F98: =$G5*HLOOKUP(F$46,'Cost allocators'!$E$31:$L$35,(MATCH('Cost allocators'!$B5,'Cost allocators'!$A$32:$A$35)+1)) -> 0.1067498133 | G98: =$G5*HLOOKUP(G$46,'Cost allocators'!$E$31:$L$35,(MATCH('Cost allocators'!$B5,'Cost allocators'!$A$32:$A$35)+1)) -> 0.02057217572 | H98: =$G5*HLOOKUP(H$46,'Cost allocators'!$E$31:$L$35,(MATCH('Cost allocators'!$B5,'Cost allocators'!$A$32:$A$35)+1)) -> 0.0178017361 | I98: =$G5*HLOOKUP(I$46,'Cost allocators'!$E$31:$L$35,(MATCH('Cost allocators'!$B5,'Cost allocators'!$A$32:$A$35)+1)) -> 0.132949942 | J98: =$G5*HLOOKUP(J$46,'Cost allocators'!$E$31:$L$35,(MATCH('Cost allocators'!$B5,'Cost allocators'!$A$32:$A$35)+1)) -> 0.0244060164
A99: =A89 -> O&M | B99: =SUM(C99:J99) -> 16.85075117 | C99: =$G6*HLOOKUP(C$46,'Cost allocators'!$E$31:$L$35,(MATCH('Cost allocators'!$B6,'Cost allocators'!$A$32:$A$35)+1)) -> 11.54823577 | D99: =$G6*HLOOKUP(D$46,'Cost allocators'!$E$31:$L$35,(MATCH('Cost allocators'!$B6,'Cost allocators'!$A$32:$A$35)+1)) -> 3.208198608 | E99: =$G6*HLOOKUP(E$46,'Cost allocators'!$E$31:$L$35,(MATCH('Cost allocators'!$B6,'Cost allocators'!$A$32:$A$35)+1)) -> 0.559659298 | F99: =$G6*HLOOKUP(F$46,'Cost allocators'!$E$31:$L$35,(MATCH('Cost allocators'!$B6,'Cost allocators'!$A$32:$A$35)+1)) -> 1.108978043 | G99: =$G6*HLOOKUP(G$46,'Cost allocators'!$E$31:$L$35,(MATCH('Cost allocators'!$B6,'Cost allocators'!$A$32:$A$35)+1)) -> 0 | H99: =$G6*HLOOKUP(H$46,'Cost allocators'!$E$31:$L$35,(MATCH('Cost allocators'!$B6,'Cost allocators'!$A$32:$A$35)+1)) -> 0.1478915756 | I99: =$G6*HLOOKUP(I$46,'Cost allocators'!$E$31:$L$35,(MATCH('Cost allocators'!$B6,'Cost allocators'!$A$32:$A$35)+1)) -> 0.2545409104 | J99: =$G6*HLOOKUP(J$46,'Cost allocators'!$E$31:$L$35,(MATCH('Cost allocators'!$B6,'Cost allocators'!$A$32:$A$35)+1)) -> 0.02324696714
A100: =A90 -> Carry-over amounts | B100: =SUM(C100:J100) -> 1.503727244 | C100: =$G7*HLOOKUP(C$46,'Cost allocators'!$E$31:$L$35,(MATCH('Cost allocators'!$B7,'Cost allocators'!$A$32:$A$35)+1)) -> 1.030541403 | D100: =$G7*HLOOKUP(D$46,'Cost allocators'!$E$31:$L$35,(MATCH('Cost allocators'!$B7,'Cost allocators'!$A$32:$A$35)+1)) -> 0.2862932104 | E100: =$G7*HLOOKUP(E$46,'Cost allocators'!$E$31:$L$35,(MATCH('Cost allocators'!$B7,'Cost allocators'!$A$32:$A$35)+1)) -> 0.04994287348 | F100: =$G7*HLOOKUP(F$46,'Cost allocators'!$E$31:$L$35,(MATCH('Cost allocators'!$B7,'Cost allocators'!$A$32:$A$35)+1)) -> 0.09896297672 | G100: =$G7*HLOOKUP(G$46,'Cost allocators'!$E$31:$L$35,(MATCH('Cost allocators'!$B7,'Cost allocators'!$A$32:$A$35)+1)) -> 0 | H100: =$G7*HLOOKUP(H$46,'Cost allocators'!$E$31:$L$35,(MATCH('Cost allocators'!$B7,'Cost allocators'!$A$32:$A$35)+1)) -> 0.01319754764 | I100: =$G7*HLOOKUP(I$46,'Cost allocators'!$E$31:$L$35,(MATCH('Cost allocators'!$B7,'Cost allocators'!$A$32:$A$35)+1)) -> 0.02271472042 | J100: =$G7*HLOOKUP(J$46,'Cost allocators'!$E$31:$L$35,(MATCH('Cost allocators'!$B7,'Cost allocators'!$A$32:$A$35)+1)) -> 0.002074512731
A101: =A91 -> Benchmark Tax liability | B101: =SUM(C101:J101) -> 0 | C101: =$G8*HLOOKUP(C$46,'Cost allocators'!$E$31:$L$35,(MATCH('Cost allocators'!$B8,'Cost allocators'!$A$32:$A$35)+1)) -> 0 | D101: =$G8*HLOOKUP(D$46,'Cost allocators'!$E$31:$L$35,(MATCH('Cost allocators'!$B8,'Cost allocators'!$A$32:$A$35)+1)) -> 0 | E101: =$G8*HLOOKUP(E$46,'Cost allocators'!$E$31:$L$35,(MATCH('Cost allocators'!$B8,'Cost allocators'!$A$32:$A$35)+1)) -> 0 | F101: =$G8*HLOOKUP(F$46,'Cost allocators'!$E$31:$L$35,(MATCH('Cost allocators'!$B8,'Cost allocators'!$A$32:$A$35)+1)) -> 0 | G101: =$G8*HLOOKUP(G$46,'Cost allocators'!$E$31:$L$35,(MATCH('Cost allocators'!$B8,'Cost allocators'!$A$32:$A$35)+1)) -> 0 | H101: =$G8*HLOOKUP(H$46,'Cost allocators'!$E$31:$L$35,(MATCH('Cost allocators'!$B8,'Cost allocators'!$A$32:$A$35)+1)) -> 0 | I101: =$G8*HLOOKUP(I$46,'Cost allocators'!$E$31:$L$35,(MATCH('Cost allocators'!$B8,'Cost allocators'!$A$32:$A$35)+1)) -> 0 | J101: =$G8*HLOOKUP(J$46,'Cost allocators'!$E$31:$L$35,(MATCH('Cost allocators'!$B8,'Cost allocators'!$A$32:$A$35)+1)) -> 0
A102: Total Revenue | B102: =SUM(B97:B101) -> 26.82006582 | C102: 16.68283757 | D102: 5.850712089 | E102: 1.870323178 | F102: 1.470716973 | G102: 0.0506405859 | H102: 0.204909979 | I102: 0.6045259716 | J102: 0.08539947001
A104: Checks | B104: =B102-G$41 -> 0
A106: =H3 -> 2022/23 | B106: Total | C106: =C96 -> Demand-AdNr | D106: =D96 -> Demand-AdC | E106: Demand-AdS | F106: Demand-PP | G106: Demand-Peter | H106: Demand-River | I106: Demand-SE | J106: Demand-Whyal
A107: =A97 -> Return on capital | B107: =SUM(C107:J107) -> 5.014000999 | C107: =$H4*HLOOKUP(C$46,'Cost allocators'!$E$31:$L$35,(MATCH('Cost allocators'!$B4,'Cost allocators'!$A$32:$A$35)+1)) -> 2.430754294 | D107: =$H4*HLOOKUP(D$46,'Cost allocators'!$E$31:$L$35,(MATCH('Cost allocators'!$B4,'Cost allocators'!$A$32:$A$35)+1)) -> 1.395542948 | E107: =$H4*HLOOKUP(E$46,'Cost allocators'!$E$31:$L$35,(MATCH('Cost allocators'!$B4,'Cost allocators'!$A$32:$A$35)+1)) -> 0.7467002686 | F107: =$H4*HLOOKUP(F$46,'Cost allocators'!$E$31:$L$35,(MATCH('Cost allocators'!$B4,'Cost allocators'!$A$32:$A$35)+1)) -> 0.1556370315 | G107: =$H4*HLOOKUP(G$46,'Cost allocators'!$E$31:$L$35,(MATCH('Cost allocators'!$B4,'Cost allocators'!$A$32:$A$35)+1)) -> 0.02999342353 | H107: =$H4*HLOOKUP(H$46,'Cost allocators'!$E$31:$L$35,(MATCH('Cost allocators'!$B4,'Cost allocators'!$A$32:$A$35)+1)) -> 0.02595423147 | I107: =$H4*HLOOKUP(I$46,'Cost allocators'!$E$31:$L$35,(MATCH('Cost allocators'!$B4,'Cost allocators'!$A$32:$A$35)+1)) -> 0.1938357893 | J107: =$H4*HLOOKUP(J$46,'Cost allocators'!$E$31:$L$35,(MATCH('Cost allocators'!$B4,'Cost allocators'!$A$32:$A$35)+1)) -> 0.03558301254
A108: =A98 -> Return of capital | B108: =SUM(C108:J108) -> 3.718680488 | C108: =$H5*HLOOKUP(C$46,'Cost allocators'!$E$31:$L$35,(MATCH('Cost allocators'!$B5,'Cost allocators'!$A$32:$A$35)+1)) -> 1.802791537 | D108: =$H5*HLOOKUP(D$46,'Cost allocators'!$E$31:$L$35,(MATCH('Cost allocators'!$B5,'Cost allocators'!$A$32:$A$35)+1)) -> 1.035017411 | E108: =$H5*HLOOKUP(E$46,'Cost allocators'!$E$31:$L$35,(MATCH('Cost allocators'!$B5,'Cost allocators'!$A$32:$A$35)+1)) -> 0.5537972011 | F108: =$H5*HLOOKUP(F$46,'Cost allocators'!$E$31:$L$35,(MATCH('Cost allocators'!$B5,'Cost allocators'!$A$32:$A$35)+1)) -> 0.1154296524 | G108: =$H5*HLOOKUP(G$46,'Cost allocators'!$E$31:$L$35,(MATCH('Cost allocators'!$B5,'Cost allocators'!$A$32:$A$35)+1)) -> 0.0222449016 | H108: =$H5*HLOOKUP(H$46,'Cost allocators'!$E$31:$L$35,(MATCH('Cost allocators'!$B5,'Cost allocators'!$A$32:$A$35)+1)) -> 0.01924919723 | I108: =$H5*HLOOKUP(I$46,'Cost allocators'!$E$31:$L$35,(MATCH('Cost allocators'!$B5,'Cost allocators'!$A$32:$A$35)+1)) -> 0.1437601165 | J108: =$H5*HLOOKUP(J$46,'Cost allocators'!$E$31:$L$35,(MATCH('Cost allocators'!$B5,'Cost allocators'!$A$32:$A$35)+1)) -> 0.0263904723
A109: =A99 -> O&M | B109: =SUM(C109:J109) -> 17.44743879 | C109: =$H6*HLOOKUP(C$46,'Cost allocators'!$E$31:$L$35,(MATCH('Cost allocators'!$B6,'Cost allocators'!$A$32:$A$35)+1)) -> 11.95716053 | D109: =$H6*HLOOKUP(D$46,'Cost allocators'!$E$31:$L$35,(MATCH('Cost allocators'!$B6,'Cost allocators'!$A$32:$A$35)+1)) -> 3.3218014 | E109: =$H6*HLOOKUP(E$46,'Cost allocators'!$E$31:$L$35,(MATCH('Cost allocators'!$B6,'Cost allocators'!$A$32:$A$35)+1)) -> 0.5794769175 | F109: =$H6*HLOOKUP(F$46,'Cost allocators'!$E$31:$L$35,(MATCH('Cost allocators'!$B6,'Cost allocators'!$A$32:$A$35)+1)) -> 1.148247121 | G109: =$H6*HLOOKUP(G$46,'Cost allocators'!$E$31:$L$35,(MATCH('Cost allocators'!$B6,'Cost allocators'!$A$32:$A$35)+1)) -> 0 | H109: =$H6*HLOOKUP(H$46,'Cost allocators'!$E$31:$L$35,(MATCH('Cost allocators'!$B6,'Cost allocators'!$A$32:$A$35)+1)) -> 0.1531284384 | I109: =$H6*HLOOKUP(I$46,'Cost allocators'!$E$31:$L$35,(MATCH('Cost allocators'!$B6,'Cost allocators'!$A$32:$A$35)+1)) -> 0.2635542422 | J109: =$H6*HLOOKUP(J$46,'Cost allocators'!$E$31:$L$35,(MATCH('Cost allocators'!$B6,'Cost allocators'!$A$32:$A$35)+1)) -> 0.02407014573
A110: =A100 -> Carry-over amounts | B110: =SUM(C110:J110) -> 0.4202494328 | C110: =$H7*HLOOKUP(C$46,'Cost allocators'!$E$31:$L$35,(MATCH('Cost allocators'!$B7,'Cost allocators'!$A$32:$A$35)+1)) -> 0.288007311 | D110: =$H7*HLOOKUP(D$46,'Cost allocators'!$E$31:$L$35,(MATCH('Cost allocators'!$B7,'Cost allocators'!$A$32:$A$35)+1)) -> 0.08001089277 | E110: =$H7*HLOOKUP(E$46,'Cost allocators'!$E$31:$L$35,(MATCH('Cost allocators'!$B7,'Cost allocators'!$A$32:$A$35)+1)) -> 0.01395762718 | F110: =$H7*HLOOKUP(F$46,'Cost allocators'!$E$31:$L$35,(MATCH('Cost allocators'!$B7,'Cost allocators'!$A$32:$A$35)+1)) -> 0.02765736605 | G110: =$H7*HLOOKUP(G$46,'Cost allocators'!$E$31:$L$35,(MATCH('Cost allocators'!$B7,'Cost allocators'!$A$32:$A$35)+1)) -> 0 | H110: =$H7*HLOOKUP(H$46,'Cost allocators'!$E$31:$L$35,(MATCH('Cost allocators'!$B7,'Cost allocators'!$A$32:$A$35)+1)) -> 0.003688343036 | I110: =$H7*HLOOKUP(I$46,'Cost allocators'!$E$31:$L$35,(MATCH('Cost allocators'!$B7,'Cost allocators'!$A$32:$A$35)+1)) -> 0.006348124908 | J110: =$H7*HLOOKUP(J$46,'Cost allocators'!$E$31:$L$35,(MATCH('Cost allocators'!$B7,'Cost allocators'!$A$32:$A$35)+1)) -> 0.000579767908
A111: =A101 -> Benchmark Tax liability | B111: =SUM(C111:J111) -> 0 | C111: =$H8*HLOOKUP(C$46,'Cost allocators'!$E$31:$L$35,(MATCH('Cost allocators'!$B8,'Cost allocators'!$A$32:$A$35)+1)) -> 0 | D111: =$H8*HLOOKUP(D$46,'Cost allocators'!$E$31:$L$35,(MATCH('Cost allocators'!$B8,'Cost allocators'!$A$32:$A$35)+1)) -> 0 | E111: =$H8*HLOOKUP(E$46,'Cost allocators'!$E$31:$L$35,(MATCH('Cost allocators'!$B8,'Cost allocators'!$A$32:$A$35)+1)) -> 0 | F111: =$H8*HLOOKUP(F$46,'Cost allocators'!$E$31:$L$35,(MATCH('Cost allocators'!$B8,'Cost allocators'!$A$32:$A$35)+1)) -> 0 | G111: =$H8*HLOOKUP(G$46,'Cost allocators'!$E$31:$L$35,(MATCH('Cost allocators'!$B8,'Cost allocators'!$A$32:$A$35)+1)) -> 0 | H111: =$H8*HLOOKUP(H$46,'Cost allocators'!$E$31:$L$35,(MATCH('Cost allocators'!$B8,'Cost allocators'!$A$32:$A$35)+1)) -> 0 | I111: =$H8*HLOOKUP(I$46,'Cost allocators'!$E$31:$L$35,(MATCH('Cost allocators'!$B8,'Cost allocators'!$A$32:$A$35)+1)) -> 0 | J111: =$H8*HLOOKUP(J$46,'Cost allocators'!$E$31:$L$35,(MATCH('Cost allocators'!$B8,'Cost allocators'!$A$32:$A$35)+1)) -> 0
A112: Total Revenue | B112: =SUM(B107:B111) -> 26.60036971 | C112: 16.47871367 | D112: 5.832372652 | E112: 1.893932014 | F112: 1.446971171 | G112: 0.05223832513 | H112: 0.2020202101 | I112: 0.6074982728 | J112: 0.08662339847
A114: Checks | B114: =B112-H$41 -> 0
A116: =I3 -> 2023/24 | B116: Total | C116: =C106 -> Demand-AdNr | D116: =D106 -> Demand-AdC | E116: Demand-AdS | F116: Demand-PP | G116: Demand-Peter | H116: Demand-River | I116: Demand-SE | J116: Demand-Whyal
A117: =A107 -> Return on capital | B117: =SUM(C117:J117) -> 5.009324466 | C117: =$I4*HLOOKUP(C$46,'Cost allocators'!$E$31:$L$35,(MATCH('Cost allocators'!$B4,'Cost allocators'!$A$32:$A$35)+1)) -> 2.428487142 | D117: =$I4*HLOOKUP(D$46,'Cost allocators'!$E$31:$L$35,(MATCH('Cost allocators'!$B4,'Cost allocators'!$A$32:$A$35)+1)) -> 1.394241332 | E117: =$I4*HLOOKUP(E$46,'Cost allocators'!$E$31:$L$35,(MATCH('Cost allocators'!$B4,'Cost allocators'!$A$32:$A$35)+1)) -> 0.7460038251 | F117: =$I4*HLOOKUP(F$46,'Cost allocators'!$E$31:$L$35,(MATCH('Cost allocators'!$B4,'Cost allocators'!$A$32:$A$35)+1)) -> 0.1554918696 | G117: =$I4*HLOOKUP(G$46,'Cost allocators'!$E$31:$L$35,(MATCH('Cost allocators'!$B4,'Cost allocators'!$A$32:$A$35)+1)) -> 0.02996544882 | H117: =$I4*HLOOKUP(H$46,'Cost allocators'!$E$31:$L$35,(MATCH('Cost allocators'!$B4,'Cost allocators'!$A$32:$A$35)+1)) -> 0.02593002409 | I117: =$I4*HLOOKUP(I$46,'Cost allocators'!$E$31:$L$35,(MATCH('Cost allocators'!$B4,'Cost allocators'!$A$32:$A$35)+1)) -> 0.1936549996 | J117: =$I4*HLOOKUP(J$46,'Cost allocators'!$E$31:$L$35,(MATCH('Cost allocators'!$B4,'Cost allocators'!$A$32:$A$35)+1)) -> 0.03554982445
A118: =A108 -> Return of capital | B118: =SUM(C118:J118) -> 3.995406074 | C118: =$I5*HLOOKUP(C$46,'Cost allocators'!$E$31:$L$35,(MATCH('Cost allocators'!$B5,'Cost allocators'!$A$32:$A$35)+1)) -> 1.936946258 | D118: =$I5*HLOOKUP(D$46,'Cost allocators'!$E$31:$L$35,(MATCH('Cost allocators'!$B5,'Cost allocators'!$A$32:$A$35)+1)) -> 1.112038225 | E118: =$I5*HLOOKUP(E$46,'Cost allocators'!$E$31:$L$35,(MATCH('Cost allocators'!$B5,'Cost allocators'!$A$32:$A$35)+1)) -> 0.5950080164 | F118: =$I5*HLOOKUP(F$46,'Cost allocators'!$E$31:$L$35,(MATCH('Cost allocators'!$B5,'Cost allocators'!$A$32:$A$35)+1)) -> 0.1240193492 | G118: =$I5*HLOOKUP(G$46,'Cost allocators'!$E$31:$L$35,(MATCH('Cost allocators'!$B5,'Cost allocators'!$A$32:$A$35)+1)) -> 0.02390025582 | H118: =$I5*HLOOKUP(H$46,'Cost allocators'!$E$31:$L$35,(MATCH('Cost allocators'!$B5,'Cost allocators'!$A$32:$A$35)+1)) -> 0.02068162613 | I118: =$I5*HLOOKUP(I$46,'Cost allocators'!$E$31:$L$35,(MATCH('Cost allocators'!$B5,'Cost allocators'!$A$32:$A$35)+1)) -> 0.1544580246 | J118: =$I5*HLOOKUP(J$46,'Cost allocators'!$E$31:$L$35,(MATCH('Cost allocators'!$B5,'Cost allocators'!$A$32:$A$35)+1)) -> 0.02835431913
A119: =A109 -> O&M | B119: =SUM(C119:J119) -> 18.06772799 | C119: =$I6*HLOOKUP(C$46,'Cost allocators'!$E$31:$L$35,(MATCH('Cost allocators'!$B6,'Cost allocators'!$A$32:$A$35)+1)) -> 12.38226003 | D119: =$I6*HLOOKUP(D$46,'Cost allocators'!$E$31:$L$35,(MATCH('Cost allocators'!$B6,'Cost allocators'!$A$32:$A$35)+1)) -> 3.439897675 | E119: =$I6*HLOOKUP(E$46,'Cost allocators'!$E$31:$L$35,(MATCH('Cost allocators'!$B6,'Cost allocators'!$A$32:$A$35)+1)) -> 0.6000784094 | F119: =$I6*HLOOKUP(F$46,'Cost allocators'!$E$31:$L$35,(MATCH('Cost allocators'!$B6,'Cost allocators'!$A$32:$A$35)+1)) -> 1.189069461 | G119: =$I6*HLOOKUP(G$46,'Cost allocators'!$E$31:$L$35,(MATCH('Cost allocators'!$B6,'Cost allocators'!$A$32:$A$35)+1)) -> 0 | H119: =$I6*HLOOKUP(H$46,'Cost allocators'!$E$31:$L$35,(MATCH('Cost allocators'!$B6,'Cost allocators'!$A$32:$A$35)+1)) -> 0.1585724418 | I119: =$I6*HLOOKUP(I$46,'Cost allocators'!$E$31:$L$35,(MATCH('Cost allocators'!$B6,'Cost allocators'!$A$32:$A$35)+1)) -> 0.2729240901 | J119: =$I6*HLOOKUP(J$46,'Cost allocators'!$E$31:$L$35,(MATCH('Cost allocators'!$B6,'Cost allocators'!$A$32:$A$35)+1)) -> 0.02492588458
A120: =A110 -> Carry-over amounts | B120: =SUM(C120:J120) -> 1.400227226 | C120: =$I7*HLOOKUP(C$46,'Cost allocators'!$E$31:$L$35,(MATCH('Cost allocators'!$B7,'Cost allocators'!$A$32:$A$35)+1)) -> 0.9596102851 | D120: =$I7*HLOOKUP(D$46,'Cost allocators'!$E$31:$L$35,(MATCH('Cost allocators'!$B7,'Cost allocators'!$A$32:$A$35)+1)) -> 0.2665879396 | E120: =$I7*HLOOKUP(E$46,'Cost allocators'!$E$31:$L$35,(MATCH('Cost allocators'!$B7,'Cost allocators'!$A$32:$A$35)+1)) -> 0.04650535624 | F120: =$I7*HLOOKUP(F$46,'Cost allocators'!$E$31:$L$35,(MATCH('Cost allocators'!$B7,'Cost allocators'!$A$32:$A$35)+1)) -> 0.09215145558 | G120: =$I7*HLOOKUP(G$46,'Cost allocators'!$E$31:$L$35,(MATCH('Cost allocators'!$B7,'Cost allocators'!$A$32:$A$35)+1)) -> 0 | H120: =$I7*HLOOKUP(H$46,'Cost allocators'!$E$31:$L$35,(MATCH('Cost allocators'!$B7,'Cost allocators'!$A$32:$A$35)+1)) -> 0.01228917384 | I120: =$I7*HLOOKUP(I$46,'Cost allocators'!$E$31:$L$35,(MATCH('Cost allocators'!$B7,'Cost allocators'!$A$32:$A$35)+1)) -> 0.02115128929 | J120: =$I7*HLOOKUP(J$46,'Cost allocators'!$E$31:$L$35,(MATCH('Cost allocators'!$B7,'Cost allocators'!$A$32:$A$35)+1)) -> 0.001931726127
A121: =A111 -> Benchmark Tax liability | B121: =SUM(C121:J121) -> 0 | C121: =$I8*HLOOKUP(C$46,'Cost allocators'!$E$31:$L$35,(MATCH('Cost allocators'!$B8,'Cost allocators'!$A$32:$A$35)+1)) -> 0 | D121: =$I8*HLOOKUP(D$46,'Cost allocators'!$E$31:$L$35,(MATCH('Cost allocators'!$B8,'Cost allocators'!$A$32:$A$35)+1)) -> 0 | E121: =$I8*HLOOKUP(E$46,'Cost allocators'!$E$31:$L$35,(MATCH('Cost allocators'!$B8,'Cost allocators'!$A$32:$A$35)+1)) -> 0 | F121: =$I8*HLOOKUP(F$46,'Cost allocators'!$E$31:$L$35,(MATCH('Cost allocators'!$B8,'Cost allocators'!$A$32:$A$35)+1)) -> 0 | G121: =$I8*HLOOKUP(G$46,'Cost allocators'!$E$31:$L$35,(MATCH('Cost allocators'!$B8,'Cost allocators'!$A$32:$A$35)+1)) -> 0 | H121: =$I8*HLOOKUP(H$46,'Cost allocators'!$E$31:$L$35,(MATCH('Cost allocators'!$B8,'Cost allocators'!$A$32:$A$35)+1)) -> 0 | I121: =$I8*HLOOKUP(I$46,'Cost allocators'!$E$31:$L$35,(MATCH('Cost allocators'!$B8,'Cost allocators'!$A$32:$A$35)+1)) -> 0 | J121: =$I8*HLOOKUP(J$46,'Cost allocators'!$E$31:$L$35,(MATCH('Cost allocators'!$B8,'Cost allocators'!$A$32:$A$35)+1)) -> 0
A122: Total Revenue | B122: =SUM(B117:B121) -> 28.47268575 | C122: 17.70730371 | D122: 6.212765171 | E122: 1.987595607 | F122: 1.560732136 | G122: 0.05386570463 | H122: 0.2174732658 | I122: 0.6421884037 | J122: 0.09076175428
A124: Checks | B124: =B122-I$41 -> 0
A126: =J3 -> 2024/25 | B126: Total | C126: =C116 -> Demand-AdNr | D126: =D116 -> Demand-AdC | E126: Demand-AdS | F126: Demand-PP | G126: Demand-Peter | H126: Demand-River | I126: Demand-SE | J126: Demand-Whyal
A127: =A117 -> Return on capital | B127: =SUM(C127:J127) -> 4.996177397 | C127: =$J4*HLOOKUP(C$46,'Cost allocators'!$E$31:$L$35,(MATCH('Cost allocators'!$B4,'Cost allocators'!$A$32:$A$35)+1)) -> 2.422113531 | D127: =$J4*HLOOKUP(D$46,'Cost allocators'!$E$31:$L$35,(MATCH('Cost allocators'!$B4,'Cost allocators'!$A$32:$A$35)+1)) -> 1.390582119 | E127: =$J4*HLOOKUP(E$46,'Cost allocators'!$E$31:$L$35,(MATCH('Cost allocators'!$B4,'Cost allocators'!$A$32:$A$35)+1)) -> 0.7440459236 | F127: =$J4*HLOOKUP(F$46,'Cost allocators'!$E$31:$L$35,(MATCH('Cost allocators'!$B4,'Cost allocators'!$A$32:$A$35)+1)) -> 0.1550837782 | G127: =$J4*HLOOKUP(G$46,'Cost allocators'!$E$31:$L$35,(MATCH('Cost allocators'!$B4,'Cost allocators'!$A$32:$A$35)+1)) -> 0.02988680392 | H127: =$J4*HLOOKUP(H$46,'Cost allocators'!$E$31:$L$35,(MATCH('Cost allocators'!$B4,'Cost allocators'!$A$32:$A$35)+1)) -> 0.02586197024 | I127: =$J4*HLOOKUP(I$46,'Cost allocators'!$E$31:$L$35,(MATCH('Cost allocators'!$B4,'Cost allocators'!$A$32:$A$35)+1)) -> 0.1931467483 | J127: =$J4*HLOOKUP(J$46,'Cost allocators'!$E$31:$L$35,(MATCH('Cost allocators'!$B4,'Cost allocators'!$A$32:$A$35)+1)) -> 0.03545652324
A128: =A118 -> Return of capital | B128: =SUM(C128:J128) -> 3.856963632 | C128: =$J5*HLOOKUP(C$46,'Cost allocators'!$E$31:$L$35,(MATCH('Cost allocators'!$B5,'Cost allocators'!$A$32:$A$35)+1)) -> 1.869830284 | D128: =$J5*HLOOKUP(D$46,'Cost allocators'!$E$31:$L$35,(MATCH('Cost allocators'!$B5,'Cost allocators'!$A$32:$A$35)+1)) -> 1.073505649 | E128: =$J5*HLOOKUP(E$46,'Cost allocators'!$E$31:$L$35,(MATCH('Cost allocators'!$B5,'Cost allocators'!$A$32:$A$35)+1)) -> 0.5743907471 | F128: =$J5*HLOOKUP(F$46,'Cost allocators'!$E$31:$L$35,(MATCH('Cost allocators'!$B5,'Cost allocators'!$A$32:$A$35)+1)) -> 0.1197220285 | G128: =$J5*HLOOKUP(G$46,'Cost allocators'!$E$31:$L$35,(MATCH('Cost allocators'!$B5,'Cost allocators'!$A$32:$A$35)+1)) -> 0.02307210225 | H128: =$J5*HLOOKUP(H$46,'Cost allocators'!$E$31:$L$35,(MATCH('Cost allocators'!$B5,'Cost allocators'!$A$32:$A$35)+1)) -> 0.01996499939 | I128: =$J5*HLOOKUP(I$46,'Cost allocators'!$E$31:$L$35,(MATCH('Cost allocators'!$B5,'Cost allocators'!$A$32:$A$35)+1)) -> 0.1491059914 | J128: =$J5*HLOOKUP(J$46,'Cost allocators'!$E$31:$L$35,(MATCH('Cost allocators'!$B5,'Cost allocators'!$A$32:$A$35)+1)) -> 0.02737183046
A129: =A119 -> O&M | B129: =SUM(C129:J129) -> 18.68588887 | C129: =$J6*HLOOKUP(C$46,'Cost allocators'!$E$31:$L$35,(MATCH('Cost allocators'!$B6,'Cost allocators'!$A$32:$A$35)+1)) -> 12.80590094 | D129: =$J6*HLOOKUP(D$46,'Cost allocators'!$E$31:$L$35,(MATCH('Cost allocators'!$B6,'Cost allocators'!$A$32:$A$35)+1)) -> 3.557588742 | E129: =$J6*HLOOKUP(E$46,'Cost allocators'!$E$31:$L$35,(MATCH('Cost allocators'!$B6,'Cost allocators'!$A$32:$A$35)+1)) -> 0.6206092145 | F129: =$J6*HLOOKUP(F$46,'Cost allocators'!$E$31:$L$35,(MATCH('Cost allocators'!$B6,'Cost allocators'!$A$32:$A$35)+1)) -> 1.229751734 | G129: =$J6*HLOOKUP(G$46,'Cost allocators'!$E$31:$L$35,(MATCH('Cost allocators'!$B6,'Cost allocators'!$A$32:$A$35)+1)) -> 0 | H129: =$J6*HLOOKUP(H$46,'Cost allocators'!$E$31:$L$35,(MATCH('Cost allocators'!$B6,'Cost allocators'!$A$32:$A$35)+1)) -> 0.1639977659 | I129: =$J6*HLOOKUP(I$46,'Cost allocators'!$E$31:$L$35,(MATCH('Cost allocators'!$B6,'Cost allocators'!$A$32:$A$35)+1)) -> 0.2822617886 | J129: =$J6*HLOOKUP(J$46,'Cost allocators'!$E$31:$L$35,(MATCH('Cost allocators'!$B6,'Cost allocators'!$A$32:$A$35)+1)) -> 0.02577868726
A130: =A120 -> Carry-over amounts | B130: =SUM(C130:J130) -> -0.3942150405 | C130: =$J7*HLOOKUP(C$46,'Cost allocators'!$E$31:$L$35,(MATCH('Cost allocators'!$B7,'Cost allocators'!$A$32:$A$35)+1)) -> -0.2701652992 | D130: =$J7*HLOOKUP(D$46,'Cost allocators'!$E$31:$L$35,(MATCH('Cost allocators'!$B7,'Cost allocators'!$A$32:$A$35)+1)) -> -0.07505422938 | E130: =$J7*HLOOKUP(E$46,'Cost allocators'!$E$31:$L$35,(MATCH('Cost allocators'!$B7,'Cost allocators'!$A$32:$A$35)+1)) -> -0.01309295417 | F130: =$J7*HLOOKUP(F$46,'Cost allocators'!$E$31:$L$35,(MATCH('Cost allocators'!$B7,'Cost allocators'!$A$32:$A$35)+1)) -> -0.02594399617 | G130: =$J7*HLOOKUP(G$46,'Cost allocators'!$E$31:$L$35,(MATCH('Cost allocators'!$B7,'Cost allocators'!$A$32:$A$35)+1)) -> 0 | H130: =$J7*HLOOKUP(H$46,'Cost allocators'!$E$31:$L$35,(MATCH('Cost allocators'!$B7,'Cost allocators'!$A$32:$A$35)+1)) -> -0.003459850712 | I130: =$J7*HLOOKUP(I$46,'Cost allocators'!$E$31:$L$35,(MATCH('Cost allocators'!$B7,'Cost allocators'!$A$32:$A$35)+1)) -> -0.005954859476 | J130: =$J7*HLOOKUP(J$46,'Cost allocators'!$E$31:$L$35,(MATCH('Cost allocators'!$B7,'Cost allocators'!$A$32:$A$35)+1)) -> -0.0005438513689
A131: =A121 -> Benchmark Tax liability | B131: =SUM(C131:J131) -> 0 | C131: =$J8*HLOOKUP(C$46,'Cost allocators'!$E$31:$L$35,(MATCH('Cost allocators'!$B8,'Cost allocators'!$A$32:$A$35)+1)) -> 0 | D131: =$J8*HLOOKUP(D$46,'Cost allocators'!$E$31:$L$35,(MATCH('Cost allocators'!$B8,'Cost allocators'!$A$32:$A$35)+1)) -> 0 | E131: =$J8*HLOOKUP(E$46,'Cost allocators'!$E$31:$L$35,(MATCH('Cost allocators'!$B8,'Cost allocators'!$A$32:$A$35)+1)) -> 0 | F131: =$J8*HLOOKUP(F$46,'Cost allocators'!$E$31:$L$35,(MATCH('Cost allocators'!$B8,'Cost allocators'!$A$32:$A$35)+1)) -> 0 | G131: =$J8*HLOOKUP(G$46,'Cost allocators'!$E$31:$L$35,(MATCH('Cost allocators'!$B8,'Cost allocators'!$A$32:$A$35)+1)) -> 0 | H131: =$J8*HLOOKUP(H$46,'Cost allocators'!$E$31:$L$35,(MATCH('Cost allocators'!$B8,'Cost allocators'!$A$32:$A$35)+1)) -> 0 | I131: =$J8*HLOOKUP(I$46,'Cost allocators'!$E$31:$L$35,(MATCH('Cost allocators'!$B8,'Cost allocators'!$A$32:$A$35)+1)) -> 0 | J131: =$J8*HLOOKUP(J$46,'Cost allocators'!$E$31:$L$35,(MATCH('Cost allocators'!$B8,'Cost allocators'!$A$32:$A$35)+1)) -> 0
A132: Total Revenue | B132: =SUM(B127:B131) -> 27.14481486 | C132: 16.82767946 | D132: 5.94662228 | E132: 1.925952931 | F132: 1.478613544 | G132: 0.05295890617 | H132: 0.2063648848 | I132: 0.6185596689 | J132: 0.0880631896
A134: Checks | B134: =B132-J$41 -> 0
A136: =K3 -> 2025/26 | B136: Total | C136: =C126 -> Demand-AdNr | D136: =D126 -> Demand-AdC | E136: Demand-AdS | F136: Demand-PP | G136: Demand-Peter | H136: Demand-River | I136: Demand-SE | J136: Demand-Whyal
A137: =A127 -> Return on capital | B137: =SUM(C137:J137) -> 4.979157105 | C137: =$K4*HLOOKUP(C$46,'Cost allocators'!$E$31:$L$35,(MATCH('Cost allocators'!$B4,'Cost allocators'!$A$32:$A$35)+1)) -> 2.413862206 | D137: =$K4*HLOOKUP(D$46,'Cost allocators'!$E$31:$L$35,(MATCH('Cost allocators'!$B4,'Cost allocators'!$A$32:$A$35)+1)) -> 1.385844874 | E137: =$K4*HLOOKUP(E$46,'Cost allocators'!$E$31:$L$35,(MATCH('Cost allocators'!$B4,'Cost allocators'!$A$32:$A$35)+1)) -> 0.74151121 | F137: =$K4*HLOOKUP(F$46,'Cost allocators'!$E$31:$L$35,(MATCH('Cost allocators'!$B4,'Cost allocators'!$A$32:$A$35)+1)) -> 0.1545554601 | G137: =$K4*HLOOKUP(G$46,'Cost allocators'!$E$31:$L$35,(MATCH('Cost allocators'!$B4,'Cost allocators'!$A$32:$A$35)+1)) -> 0.02978498965 | H137: =$K4*HLOOKUP(H$46,'Cost allocators'!$E$31:$L$35,(MATCH('Cost allocators'!$B4,'Cost allocators'!$A$32:$A$35)+1)) -> 0.02577386723 | I137: =$K4*HLOOKUP(I$46,'Cost allocators'!$E$31:$L$35,(MATCH('Cost allocators'!$B4,'Cost allocators'!$A$32:$A$35)+1)) -> 0.1924887625 | J137: =$K4*HLOOKUP(J$46,'Cost allocators'!$E$31:$L$35,(MATCH('Cost allocators'!$B4,'Cost allocators'!$A$32:$A$35)+1)) -> 0.03533573482
A138: =A128 -> Return of capital | B138: =SUM(C138:J138) -> 4.164279555 | C138: =$K5*HLOOKUP(C$46,'Cost allocators'!$E$31:$L$35,(MATCH('Cost allocators'!$B5,'Cost allocators'!$A$32:$A$35)+1)) -> 2.018814997 | D138: =$K5*HLOOKUP(D$46,'Cost allocators'!$E$31:$L$35,(MATCH('Cost allocators'!$B5,'Cost allocators'!$A$32:$A$35)+1)) -> 1.159040648 | E138: =$K5*HLOOKUP(E$46,'Cost allocators'!$E$31:$L$35,(MATCH('Cost allocators'!$B5,'Cost allocators'!$A$32:$A$35)+1)) -> 0.6201571685 | F138: =$K5*HLOOKUP(F$46,'Cost allocators'!$E$31:$L$35,(MATCH('Cost allocators'!$B5,'Cost allocators'!$A$32:$A$35)+1)) -> 0.1292612643 | G138: =$K5*HLOOKUP(G$46,'Cost allocators'!$E$31:$L$35,(MATCH('Cost allocators'!$B5,'Cost allocators'!$A$32:$A$35)+1)) -> 0.02491044585 | H138: =$K5*HLOOKUP(H$46,'Cost allocators'!$E$31:$L$35,(MATCH('Cost allocators'!$B5,'Cost allocators'!$A$32:$A$35)+1)) -> 0.02155577462 | I138: =$K5*HLOOKUP(I$46,'Cost allocators'!$E$31:$L$35,(MATCH('Cost allocators'!$B5,'Cost allocators'!$A$32:$A$35)+1)) -> 0.1609864885 | J138: =$K5*HLOOKUP(J$46,'Cost allocators'!$E$31:$L$35,(MATCH('Cost allocators'!$B5,'Cost allocators'!$A$32:$A$35)+1)) -> 0.02955276867
A139: =A129 -> O&M | B139: =SUM(C139:J139) -> 19.30273619 | C139: =$K6*HLOOKUP(C$46,'Cost allocators'!$E$31:$L$35,(MATCH('Cost allocators'!$B6,'Cost allocators'!$A$32:$A$35)+1)) -> 13.22864164 | D139: =$K6*HLOOKUP(D$46,'Cost allocators'!$E$31:$L$35,(MATCH('Cost allocators'!$B6,'Cost allocators'!$A$32:$A$35)+1)) -> 3.67502972 | E139: =$K6*HLOOKUP(E$46,'Cost allocators'!$E$31:$L$35,(MATCH('Cost allocators'!$B6,'Cost allocators'!$A$32:$A$35)+1)) -> 0.6410963924 | F139: =$K6*HLOOKUP(F$46,'Cost allocators'!$E$31:$L$35,(MATCH('Cost allocators'!$B6,'Cost allocators'!$A$32:$A$35)+1)) -> 1.270347558 | G139: =$K6*HLOOKUP(G$46,'Cost allocators'!$E$31:$L$35,(MATCH('Cost allocators'!$B6,'Cost allocators'!$A$32:$A$35)+1)) -> 0 | H139: =$K6*HLOOKUP(H$46,'Cost allocators'!$E$31:$L$35,(MATCH('Cost allocators'!$B6,'Cost allocators'!$A$32:$A$35)+1)) -> 0.1694115615 | I139: =$K6*HLOOKUP(I$46,'Cost allocators'!$E$31:$L$35,(MATCH('Cost allocators'!$B6,'Cost allocators'!$A$32:$A$35)+1)) -> 0.2915796449 | J139: =$K6*HLOOKUP(J$46,'Cost allocators'!$E$31:$L$35,(MATCH('Cost allocators'!$B6,'Cost allocators'!$A$32:$A$35)+1)) -> 0.02662967777
A140: =A130 -> Carry-over amounts | B140: =SUM(C140:J140) -> 0 | C140: =$K7*HLOOKUP(C$46,'Cost allocators'!$E$31:$L$35,(MATCH('Cost allocators'!$B7,'Cost allocators'!$A$32:$A$35)+1)) -> 0 | D140: =$K7*HLOOKUP(D$46,'Cost allocators'!$E$31:$L$35,(MATCH('Cost allocators'!$B7,'Cost allocators'!$A$32:$A$35)+1)) -> 0 | E140: =$K7*HLOOKUP(E$46,'Cost allocators'!$E$31:$L$35,(MATCH('Cost allocators'!$B7,'Cost allocators'!$A$32:$A$35)+1)) -> 0 | F140: =$K7*HLOOKUP(F$46,'Cost allocators'!$E$31:$L$35,(MATCH('Cost allocators'!$B7,'Cost allocators'!$A$32:$A$35)+1)) -> 0 | G140: =$K7*HLOOKUP(G$46,'Cost allocators'!$E$31:$L$35,(MATCH('Cost allocators'!$B7,'Cost allocators'!$A$32:$A$35)+1)) -> 0 | H140: =$K7*HLOOKUP(H$46,'Cost allocators'!$E$31:$L$35,(MATCH('Cost allocators'!$B7,'Cost allocators'!$A$32:$A$35)+1)) -> 0 | I140: =$K7*HLOOKUP(I$46,'Cost allocators'!$E$31:$L$35,(MATCH('Cost allocators'!$B7,'Cost allocators'!$A$32:$A$35)+1)) -> 0 | J140: =$K7*HLOOKUP(J$46,'Cost allocators'!$E$31:$L$35,(MATCH('Cost allocators'!$B7,'Cost allocators'!$A$32:$A$35)+1)) -> 0
A141: =A131 -> Benchmark Tax liability | B141: =SUM(C141:J141) -> 0 | C141: =$K8*HLOOKUP(C$46,'Cost allocators'!$E$31:$L$35,(MATCH('Cost allocators'!$B8,'Cost allocators'!$A$32:$A$35)+1)) -> 0 | D141: =$K8*HLOOKUP(D$46,'Cost allocators'!$E$31:$L$35,(MATCH('Cost allocators'!$B8,'Cost allocators'!$A$32:$A$35)+1)) -> 0 | E141: =$K8*HLOOKUP(E$46,'Cost allocators'!$E$31:$L$35,(MATCH('Cost allocators'!$B8,'Cost allocators'!$A$32:$A$35)+1)) -> 0 | F141: =$K8*HLOOKUP(F$46,'Cost allocators'!$E$31:$L$35,(MATCH('Cost allocators'!$B8,'Cost allocators'!$A$32:$A$35)+1)) -> 0 | G141: =$K8*HLOOKUP(G$46,'Cost allocators'!$E$31:$L$35,(MATCH('Cost allocators'!$B8,'Cost allocators'!$A$32:$A$35)+1)) -> 0 | H141: =$K8*HLOOKUP(H$46,'Cost allocators'!$E$31:$L$35,(MATCH('Cost allocators'!$B8,'Cost allocators'!$A$32:$A$35)+1)) -> 0 | I141: =$K8*HLOOKUP(I$46,'Cost allocators'!$E$31:$L$35,(MATCH('Cost allocators'!$B8,'Cost allocators'!$A$32:$A$35)+1)) -> 0 | J141: =$K8*HLOOKUP(J$46,'Cost allocators'!$E$31:$L$35,(MATCH('Cost allocators'!$B8,'Cost allocators'!$A$32:$A$35)+1)) -> 0
A142: Total Revenue | B142: =SUM(B137:B141) -> 28.44617285 | C142: =SUM(C137:C141) -> 17.66131884 | D142: =SUM(D137:D141) -> 6.219915242 | E142: 2.002764771 | F142: 1.554164282 | G142: 0.0546954355 | H142: 0.2167412033 | I142: 0.6450548959 | J142: 0.09151818126
A144: Checks | B144: =B142-K$41 -> 0
A146: =L3 -> 2026/27 | B146: Total | C146: =C136 -> Demand-AdNr | D146: =D136 -> Demand-AdC | E146: Demand-AdS | F146: Demand-PP | G146: Demand-Peter | H146: Demand-River | I146: Demand-SE | J146: Demand-Whyal
A147: =A137 -> Return on capital | B147: =SUM(C147:J147) -> 7.477765158 | C147: =$L4*HLOOKUP(C$46,'Cost allocators'!$E$44:$L$48,(MATCH('Cost allocators'!$B4,'Cost allocators'!$A$45:$A$48)+1)) -> 3.625170751 | D147: =$L4*HLOOKUP(D$46,'Cost allocators'!$E$44:$L$48,(MATCH('Cost allocators'!$B4,'Cost allocators'!$A$45:$A$48)+1)) -> 2.081280485 | E147: =$L4*HLOOKUP(E$46,'Cost allocators'!$E$44:$L$48,(MATCH('Cost allocators'!$B4,'Cost allocators'!$A$45:$A$48)+1)) -> 1.113611516 | F147: =$L4*HLOOKUP(F$46,'Cost allocators'!$E$44:$L$48,(MATCH('Cost allocators'!$B4,'Cost allocators'!$A$45:$A$48)+1)) -> 0.2321134702 | G147: =$L4*HLOOKUP(G$46,'Cost allocators'!$E$44:$L$48,(MATCH('Cost allocators'!$B4,'Cost allocators'!$A$45:$A$48)+1)) -> 0.04473149835 | H147: =$L4*HLOOKUP(H$46,'Cost allocators'!$E$44:$L$48,(MATCH('Cost allocators'!$B4,'Cost allocators'!$A$45:$A$48)+1)) -> 0.03870754071 | I147: =$L4*HLOOKUP(I$46,'Cost allocators'!$E$44:$L$48,(MATCH('Cost allocators'!$B4,'Cost allocators'!$A$45:$A$48)+1)) -> 0.2890822143 | J147: =$L4*HLOOKUP(J$46,'Cost allocators'!$E$44:$L$48,(MATCH('Cost allocators'!$B4,'Cost allocators'!$A$45:$A$48)+1)) -> 0.05306768216
A148: =A138 -> Return of capital | B148: =SUM(C148:J148) -> 1.085661323 | C148: =$L5*HLOOKUP(C$46,'Cost allocators'!$E$44:$L$48,(MATCH('Cost allocators'!$B5,'Cost allocators'!$A$45:$A$48)+1)) -> 0.5263213794 | D148: =$L5*HLOOKUP(D$46,'Cost allocators'!$E$44:$L$48,(MATCH('Cost allocators'!$B5,'Cost allocators'!$A$45:$A$48)+1)) -> 0.3021712606 | E148: =$L5*HLOOKUP(E$46,'Cost allocators'!$E$44:$L$48,(MATCH('Cost allocators'!$B5,'Cost allocators'!$A$45:$A$48)+1)) -> 0.161679984 | F148: =$L5*HLOOKUP(F$46,'Cost allocators'!$E$44:$L$48,(MATCH('Cost allocators'!$B5,'Cost allocators'!$A$45:$A$48)+1)) -> 0.03369945588 | G148: =$L5*HLOOKUP(G$46,'Cost allocators'!$E$44:$L$48,(MATCH('Cost allocators'!$B5,'Cost allocators'!$A$45:$A$48)+1)) -> 0.006494354482 | H148: =$L5*HLOOKUP(H$46,'Cost allocators'!$E$44:$L$48,(MATCH('Cost allocators'!$B5,'Cost allocators'!$A$45:$A$48)+1)) -> 0.005619764589 | I148: =$L5*HLOOKUP(I$46,'Cost allocators'!$E$44:$L$48,(MATCH('Cost allocators'!$B5,'Cost allocators'!$A$45:$A$48)+1)) -> 0.04197047815 | J148: =$L5*HLOOKUP(J$46,'Cost allocators'!$E$44:$L$48,(MATCH('Cost allocators'!$B5,'Cost allocators'!$A$45:$A$48)+1)) -> 0.007704645544
A149: =A139 -> O&M | B149: =SUM(C149:J149) -> 18.63383394 | C149: =$L6*HLOOKUP(C$46,'Cost allocators'!$E$44:$L$48,(MATCH('Cost allocators'!$B6,'Cost allocators'!$A$45:$A$48)+1)) -> 10.99866622 | D149: =$L6*HLOOKUP(D$46,'Cost allocators'!$E$44:$L$48,(MATCH('Cost allocators'!$B6,'Cost allocators'!$A$45:$A$48)+1)) -> 4.282276937 | E149: =$L6*HLOOKUP(E$46,'Cost allocators'!$E$44:$L$48,(MATCH('Cost allocators'!$B6,'Cost allocators'!$A$45:$A$48)+1)) -> 0.9890606061 | F149: =$L6*HLOOKUP(F$46,'Cost allocators'!$E$44:$L$48,(MATCH('Cost allocators'!$B6,'Cost allocators'!$A$45:$A$48)+1)) -> 1.611483765 | G149: =$L6*HLOOKUP(G$46,'Cost allocators'!$E$44:$L$48,(MATCH('Cost allocators'!$B6,'Cost allocators'!$A$45:$A$48)+1)) -> 0 | H149: =$L6*HLOOKUP(H$46,'Cost allocators'!$E$44:$L$48,(MATCH('Cost allocators'!$B6,'Cost allocators'!$A$45:$A$48)+1)) -> 0.2134534418 | I149: =$L6*HLOOKUP(I$46,'Cost allocators'!$E$44:$L$48,(MATCH('Cost allocators'!$B6,'Cost allocators'!$A$45:$A$48)+1)) -> 0.4501340208 | J149: =$L6*HLOOKUP(J$46,'Cost allocators'!$E$44:$L$48,(MATCH('Cost allocators'!$B6,'Cost allocators'!$A$45:$A$48)+1)) -> 0.08875895097
A150: =A140 -> Carry-over amounts | B150: =SUM(C150:J150) -> 1.795685885 | C150: =$L7*HLOOKUP(C$46,'Cost allocators'!$E$44:$L$48,(MATCH('Cost allocators'!$B7,'Cost allocators'!$A$45:$A$48)+1)) -> 1.059908001 | D150: =$L7*HLOOKUP(D$46,'Cost allocators'!$E$44:$L$48,(MATCH('Cost allocators'!$B7,'Cost allocators'!$A$45:$A$48)+1)) -> 0.4126699999 | E150: =$L7*HLOOKUP(E$46,'Cost allocators'!$E$44:$L$48,(MATCH('Cost allocators'!$B7,'Cost allocators'!$A$45:$A$48)+1)) -> 0.09531276148 | F150: =$L7*HLOOKUP(F$46,'Cost allocators'!$E$44:$L$48,(MATCH('Cost allocators'!$B7,'Cost allocators'!$A$45:$A$48)+1)) -> 0.1552937876 | G150: =$L7*HLOOKUP(G$46,'Cost allocators'!$E$44:$L$48,(MATCH('Cost allocators'!$B7,'Cost allocators'!$A$45:$A$48)+1)) -> 0 | H150: =$L7*HLOOKUP(H$46,'Cost allocators'!$E$44:$L$48,(MATCH('Cost allocators'!$B7,'Cost allocators'!$A$45:$A$48)+1)) -> 0.02056985877 | I150: =$L7*HLOOKUP(I$46,'Cost allocators'!$E$44:$L$48,(MATCH('Cost allocators'!$B7,'Cost allocators'!$A$45:$A$48)+1)) -> 0.04337804609 | J150: =$L7*HLOOKUP(J$46,'Cost allocators'!$E$44:$L$48,(MATCH('Cost allocators'!$B7,'Cost allocators'!$A$45:$A$48)+1)) -> 0.008553430063
A151: =A141 -> Benchmark Tax liability | B151: =SUM(C151:J151) -> 0 | C151: =$L8*HLOOKUP(C$46,'Cost allocators'!$E$44:$L$48,(MATCH('Cost allocators'!$B8,'Cost allocators'!$A$45:$A$48)+1)) -> 0 | D151: =$L8*HLOOKUP(D$46,'Cost allocators'!$E$44:$L$48,(MATCH('Cost allocators'!$B8,'Cost allocators'!$A$45:$A$48)+1)) -> 0 | E151: =$L8*HLOOKUP(E$46,'Cost allocators'!$E$44:$L$48,(MATCH('Cost allocators'!$B8,'Cost allocators'!$A$45:$A$48)+1)) -> 0 | F151: =$L8*HLOOKUP(F$46,'Cost allocators'!$E$44:$L$48,(MATCH('Cost allocators'!$B8,'Cost allocators'!$A$45:$A$48)+1)) -> 0 | G151: =$L8*HLOOKUP(G$46,'Cost allocators'!$E$44:$L$48,(MATCH('Cost allocators'!$B8,'Cost allocators'!$A$45:$A$48)+1)) -> 0 | H151: =$L8*HLOOKUP(H$46,'Cost allocators'!$E$44:$L$48,(MATCH('Cost allocators'!$B8,'Cost allocators'!$A$45:$A$48)+1)) -> 0 | I151: =$L8*HLOOKUP(I$46,'Cost allocators'!$E$44:$L$48,(MATCH('Cost allocators'!$B8,'Cost allocators'!$A$45:$A$48)+1)) -> 0 | J151: =$L8*HLOOKUP(J$46,'Cost allocators'!$E$44:$L$48,(MATCH('Cost allocators'!$B8,'Cost allocators'!$A$45:$A$48)+1)) -> 0
A152: Total Revenue | B152: =SUM(B147:B151) -> 28.9929463 | C152: =SUM(C147:C151) -> 16.21006635 | D152: =SUM(D147:D151) -> 7.078398682 | E152: 2.359664867 | F152: 2.032590479 | G152: 0.05122585284 | H152: 0.2783506059 | I152: 0.8245647594 | J152: 0.1580847087
A154: Checks | B154: =B152-L$41 -> 0
A156: =M3 -> 2027/28 | B156: Total | C156: =C146 -> Demand-AdNr | D156: =D146 -> Demand-AdC | E156: Demand-AdS | F156: Demand-PP | G156: Demand-Peter | H156: Demand-River | I156: Demand-SE | J156: Demand-Whyal
A157: =A147 -> Return on capital | B157: =SUM(C157:J157) -> 7.818850367 | C157: =$M4*HLOOKUP(C$46,'Cost allocators'!$E$31:$L$35,(MATCH('Cost allocators'!$B4,'Cost allocators'!$A$45:$A$48)+1)) -> 3.790526589 | D157: =$M4*HLOOKUP(D$46,'Cost allocators'!$E$31:$L$35,(MATCH('Cost allocators'!$B4,'Cost allocators'!$A$45:$A$48)+1)) -> 2.176214463 | E157: =$M4*HLOOKUP(E$46,'Cost allocators'!$E$31:$L$35,(MATCH('Cost allocators'!$B4,'Cost allocators'!$A$45:$A$48)+1)) -> 1.164406962 | F157: =$M4*HLOOKUP(F$46,'Cost allocators'!$E$31:$L$35,(MATCH('Cost allocators'!$B4,'Cost allocators'!$A$45:$A$48)+1)) -> 0.2427009211 | G157: =$M4*HLOOKUP(G$46,'Cost allocators'!$E$31:$L$35,(MATCH('Cost allocators'!$B4,'Cost allocators'!$A$45:$A$48)+1)) -> 0.04677184759 | H157: =$M4*HLOOKUP(H$46,'Cost allocators'!$E$31:$L$35,(MATCH('Cost allocators'!$B4,'Cost allocators'!$A$45:$A$48)+1)) -> 0.04047311764 | I157: =$M4*HLOOKUP(I$46,'Cost allocators'!$E$31:$L$35,(MATCH('Cost allocators'!$B4,'Cost allocators'!$A$45:$A$48)+1)) -> 0.3022681951 | J157: =$M4*HLOOKUP(J$46,'Cost allocators'!$E$31:$L$35,(MATCH('Cost allocators'!$B4,'Cost allocators'!$A$45:$A$48)+1)) -> 0.05548827188
